Workbook

Sheet EKH
A1: S.No. | B1: Activity | C1: Year 2016-17 | K1: Outlay Proposed for 2017-18 | T1: Outlay Recommended for 2017-18
C2: Outlay approved by PAB (including spillover) | E2: Achievement during the year | I2: Savings | K2: Spill Over | M2: Deferred laibility of 2014-15 | O2: Fresh | R2: Total | T2: Spill Over | V2: Deferred laibility of 2014-15 | X2: Fresh | AA2: Total
C3: Phy. | D3: Fin. | E3: Phy. | F3: Fin. | G3: Phy. (%) | H3: Fin. (%) | I3: Phy. | J3: Fin. | K3: Phy. | L3: Fin. | M3: Phy. | N3: Fin. | O3: Unit Cost | P3: Phy. | Q3: Fin. | R3: Phy. | S3: Fin. | T3: Phy. | U3: Fin. | V3: Phy. | W3: Fin. | X3: Unit Cost | Y3: Phy. | Z3: Fin. | AA3: Phy. | AB3: Fin.
A4: I | B4: ACCESS
B5: SSA
A6: 1 | B6: Opening of New Schools
A7: 1.01 | B7: New Primary School | D7: 0 | I7: =C7-E7 -> 0 | J7: =D7-F7 -> 0 | R7: =P7+M7+K7 -> 0 | S7: =Q7+N7+L7 -> 0 | AA7: =T7+V7+Y7 -> 0 | AB7: =U7+W7+Z7 -> 0 | AC7: =X7*Y7=Z7 -> TRUE | AD7: =U7+W7+Z7=AB7 -> TRUE | AE7: =AB7 -> 0
A8: 1.02 | B8: Upgradation of PS to UPS | C8: 0 | D8: 0 | I8: =C8-E8 -> 0 | J8: =D8-F8 -> 0 | R8: =P8+M8+K8 -> 0 | S8: =Q8+N8+L8 -> 0 | AA8: =T8+V8+Y8 -> 0 | AB8: =U8+W8+Z8 -> 0 | AC8: =X8*Y8=Z8 -> TRUE | AD8: =U8+W8+Z8=AB8 -> TRUE | AE8: =AB8 -> 0
A9: 1.03 | B9: Composite Schools | C9: 0 | D9: 0 | I9: 0 | J9: 0 | R9: 0 | S9: 0 | AA9: 0 | AB9: 0 | AC9: TRUE | AD9: TRUE | AE9: 0
A10: 1.04 | B10: Residential schools for specific category of children | C10: 0 | D10: 0 | I10: 0 | J10: 0 | R10: 0 | S10: 0 | AA10: 0 | AB10: 0 | AC10: TRUE | AD10: TRUE | AE10: 0
A11: 1.05 | B11: Residential Hostel | C11: 0 | D11: 0 | I11: 0 | J11: 0 | R11: 0 | S11: 0 | AA11: 0 | AB11: 0 | AC11: TRUE | AD11: TRUE | AE11: 0
A12: 1.06 | B12: Integration of Class V with primary schools | C12: 0 | D12: 0 | I12: 0 | J12: 0 | R12: 0 | S12: 0 | AA12: 0 | AB12: 0 | AC12: TRUE | AD12: TRUE | AE12: 0
A13: 1.07 | B13: Integration of Class VIII with upper primary schools | C13: 0 | D13: 0 | I13: 0 | J13: 0 | R13: 0 | S13: 0 | AA13: 0 | AB13: 0 | AC13: TRUE | AD13: TRUE | AE13: 0
A14: 2 | B14: Residential Schools for specific category of children | C14: 0 | D14: 0 | I14: 0 | J14: 0 | R14: 0 | S14: 0 | Z14: =X14*Y14 -> 0 | AA14: 0 | AB14: 0 | AC14: TRUE | AD14: TRUE | AE14: 0
B15: 50 children | C15: 0 | D15: 0 | I15: 0 | J15: 0 | R15: 0 | S15: 0 | Z15: 0 | AA15: 0 | AB15: 0 | AC15: TRUE | AD15: TRUE | AE15: 0
B16: Non-recurring (one time grant) | C16: 0 | D16: 0 | I16: 0 | J16: 0 | R16: 0 | S16: 0 | Z16: 0 | AA16: 0 | AB16: 0 | AC16: TRUE | AD16: TRUE | AE16: 0
A17: 2.01 | B17: Furniture/ Equipment (including kitchen) | C17: 0 | D17: 0 | I17: 0 | J17: 0 | R17: 0 | S17: 0 | Z17: 0 | AA17: 0 | AB17: 0 | AC17: TRUE | AD17: TRUE | AE17: 0
A18: 2.02 | B18: TLM and equipment including library books | C18: 0 | D18: 0 | I18: 0 | J18: 0 | R18: 0 | S18: 0 | Z18: 0 | AA18: 0 | AB18: 0 | AC18: TRUE | AD18: TRUE | AE18: 0
A19: 2.03 | B19: Bedding (new) | C19: 0 | D19: 0 | I19: 0 | J19: 0 | R19: 0 | S19: 0 | Z19: 0 | AA19: 0 | AB19: 0 | AC19: TRUE | AD19: TRUE | AE19: 0
A20: 2.04 | B20: Replacement of bedding (once in 3 years) | C20: 0 | D20: 0 | I20: 0 | J20: 0 | R20: 0 | S20: 0 | Z20: 0 | AA20: 0 | AB20: 0 | AC20: TRUE | AD20: TRUE | AE20: 0
B21: Sub Total (Non Recurring) | C21: =SUM(C15:C20) -> 0 | D21: =SUM(D15:D20) -> 0 | E21: 0 | F21: 0 | G21: 0 | H21: 0 | I21: 0 | J21: 0 | K21: 0 | L21: 0 | M21: 0 | N21: 0 | O21: 0 | P21: 0 | Q21: 0 | R21: 0 | S21: 0 | T21: 0 | U21: 0 | V21: 0 | W21: 0 | X21: 0 | Y21: 0 | Z21: 0 | AA21: 0 | AB21: 0 | AE21: 0
B22: Recurring (50 children) | AA22: =Y22+V22+T22 -> 0 | AB22: =Z22+W22+U22 -> 0 | AE22: 0
A23: 2.05 | B23: Maintenance @ Rs.1,500/- per child Per month | C23: 0 | D23: 0 | I23: =C23-E23 -> 0 | J23: =D23-F23 -> 0 | R23: =P23+M23+K23 -> 0 | S23: =Q23+N23+L23 -> 0 | Z23: =X23*Y23 -> 0 | AA23: =T23+V23+Y23 -> 0 | AB23: =U23+W23+Z23 -> 0 | AC23: =X23*Y23=Z23 -> TRUE | AD23: =U23+W23+Z23=AB23 -> TRUE | AE23: 0
A24: 2.06 | B24: Stipend @ Rs.100/- per child per month | C24: 0 | D24: 0 | I24: =C24-E24 -> 0 | J24: =D24-F24 -> 0 | R24: =P24+M24+K24 -> 0 | S24: =Q24+N24+L24 -> 0 | Z24: 0 | AA24: 0 | AB24: 0 | AC24: TRUE | AD24: TRUE | AE24: 0
A25: 2.07 | B25: Supplementary TLM, Stationery and other educational material @Rs.1,000/- per child per annum | C25: 0 | D25: 0 | I25: 0 | J25: 0 | R25: 0 | S25: 0 | Z25: 0 | AA25: 0 | AB25: 0 | AC25: TRUE | AD25: TRUE | AE25: 0
A26: 2.08 | B26: Salaries | C26: 0 | D26: 0 | I26: 0 | J26: 0 | R26: 0 | S26: 0 | Z26: 0 | AA26: 0 | AB26: 0 | AC26: TRUE | AD26: TRUE | AE26: 0
A27: (a) | B27: 1 Warden @ Rs.25,000/- per month | C27: 0 | D27: 0 | I27: 0 | J27: 0 | R27: 0 | S27: 0 | Z27: 0 | AA27: 0 | AB27: 0 | AC27: TRUE | AD27: TRUE | AE27: 0
A28: (b) | B28: 4 Fulltime teachers as per RTE Norms @ Rs. 20,000/- per month per teacher | C28: 0 | D28: 0 | I28: 0 | J28: 0 | R28: 0 | S28: 0 | Z28: 0 | AA28: 0 | AB28: 0 | AC28: TRUE | AD28: TRUE | AE28: 0
A29: (c) | B29: 2 Urdu Teachers (only for Blocks with muslim population above 20% and select urban areas) if required @ Rs.12,000/- per month per teacher. | C29: 0 | D29: 0 | I29: 0 | J29: 0 | R29: 0 | S29: 0 | Z29: 0 | AA29: 0 | AB29: 0 | AC29: TRUE | AD29: TRUE | AE29: 0
A30: (d) | B30: 3 Part time teachers @ Rs.5,000/- per month per teacher | C30: 0 | D30: 0 | I30: 0 | J30: 0 | R30: 0 | S30: 0 | Z30: 0 | AA30: 0 | AB30: 0 | AC30: TRUE | AD30: TRUE | AE30: 0
A31: (e) | B31: 1 Full time Accountant @ Rs. 10,000/- per month | C31: 0 | D31: 0 | I31: 0 | J31: 0 | R31: 0 | S31: 0 | Z31: 0 | AA31: 0 | AB31: 0 | AC31: TRUE | AD31: TRUE | AE31: 0
A32: (f) | B32: 2 Support staff - (Accountant/Assistant, Peon, Chowkidar) @ Rs. 5,000/- per month per staff | C32: 0 | D32: 0 | I32: 0 | J32: 0 | R32: 0 | S32: 0 | Z32: 0 | AA32: 0 | AB32: 0 | AC32: TRUE | AD32: TRUE | AE32: 0
A33: (g) | B33: 1 Head Cook @ Rs. 6,000/- per month and upto 2 Asstt. Cooks @ Rs. 4,500/- per month per cook | C33: 0 | D33: 0 | I33: 0 | J33: 0 | R33: 0 | S33: 0 | Z33: 0 | AA33: 0 | AB33: 0 | AC33: TRUE | AD33: TRUE | AE33: 0
A34: 2.09 | B34: Specific Skill training @ Rs.1,000/- per child per annum | C34: 0 | D34: 0 | I34: 0 | J34: 0 | R34: 0 | S34: 0 | Z34: 0 | AA34: 0 | AB34: 0 | AC34: TRUE | AD34: TRUE | AE34: 0
A35: 2.1 | B35: Electricity / water charges @ Rs. 1,000/- per child per annum | C35: 0 | D35: 0 | I35: 0 | J35: 0 | R35: 0 | S35: 0 | Z35: 0 | AA35: 0 | AB35: 0 | AC35: TRUE | AD35: TRUE | AE35: 0
A36: =+A35+0.01 -> 2.11 | B36: Medical care/contingencies @ Rs.1,250/- per child per annum | C36: 0 | D36: 0 | I36: 0 | J36: 0 | R36: 0 | S36: 0 | Z36: 0 | AA36: 0 | AB36: 0 | AC36: TRUE | AD36: TRUE | AE36: 0
A37: =+A36+0.01 -> 2.12 | B37: Maintenance @ Rs. 750/- per child per annum | C37: 0 | D37: 0 | I37: 0 | J37: 0 | R37: 0 | S37: 0 | Z37: 0 | AA37: 0 | AB37: 0 | AC37: TRUE | AD37: TRUE | AE37: 0
A38: 2.13 | B38: Miscellaneous @ Rs. 750/- per child per annum | C38: 0 | D38: 0 | I38: 0 | J38: 0 | R38: 0 | S38: 0 | Z38: 0 | AA38: 0 | AB38: 0 | AC38: TRUE | AD38: TRUE | AE38: 0
A39: 2.14 | B39: Preparatory camps @ Rs. 300/- per child per annum | C39: 0 | D39: 0 | I39: 0 | J39: 0 | R39: 0 | S39: 0 | Z39: 0 | AA39: 0 | AB39: 0 | AC39: TRUE | AD39: TRUE | AE39: 0
A40: 2.15 | B40: P.T.A / school functions @ Rs. 300/- per child per annum | C40: 0 | D40: 0 | I40: 0 | J40: 0 | R40: 0 | S40: 0 | Z40: 0 | AA40: 0 | AB40: 0 | AC40: TRUE | AD40: TRUE | AE40: 0
A41: 2.16 | B41: Provision of Rent @ Rs. 10,000/- per child per annum | C41: 0 | D41: 0 | I41: 0 | J41: 0 | R41: 0 | S41: 0 | Z41: 0 | AA41: 0 | AB41: 0 | AC41: TRUE | AD41: TRUE | AE41: 0
A42: 2.17 | B42: Capacity Building @ Rs. 500/- per child per annum | C42: 0 | D42: 0 | I42: 0 | J42: 0 | R42: 0 | S42: 0 | Z42: 0 | AA42: 0 | AB42: 0 | AC42: TRUE | AD42: TRUE | AE42: 0
A43: 2.18 | B43: Physical / Self Defence Training @ Rs.200/- per child per annum | C43: 0 | D43: 0 | I43: 0 | J43: 0 | R43: 0 | S43: 0 | Z43: 0 | AA43: 0 | AB43: 0 | AC43: TRUE | AD43: TRUE | AE43: 0
B44: Sub Total (Recurring) | C44: =SUM(C23:C43) -> 0 | D44: =SUM(D23:D43) -> 0 | E44: 0 | F44: 0 | G44: 0 | H44: 0 | I44: 0 | J44: 0 | K44: 0 | L44: 0 | M44: 0 | N44: 0 | O44: 0 | P44: 0 | Q44: 0 | R44: 0 | S44: 0 | T44: 0 | U44: 0 | V44: 0 | W44: 0 | X44: 0 | Y44: 0 | Z44: 0 | AA44: 0 | AB44: 0 | AE44: 0
B45: Total (Non Recurring + Recurring) | C45: =C44+C21 -> 0 | D45: =D44+D21 -> 0 | E45: 0 | F45: 0 | G45: 0 | H45: 0 | I45: 0 | J45: 0 | K45: 0 | L45: 0 | M45: 0 | N45: 0 | O45: 0 | P45: 0 | Q45: 0 | R45: 0 | S45: 0 | T45: 0 | U45: 0 | V45: 0 | W45: 0 | X45: 0 | Y45: 0 | Z45: 0 | AA45: 0 | AB45: 0 | AE45: 0
B46: 100 children | C46: 0 | D46: 0 | AA46: 0 | AB46: 0 | AC46: =X46*Y46=Z46 -> TRUE | AD46: =U46+W46+Z46=AB46 -> TRUE | AE46: 0
B47: Non-recurring (one time grant) | C47: 0 | D47: 0 | AA47: 0 | AB47: 0 | AC47: TRUE | AD47: TRUE | AE47: 0
A48: 2.19 | B48: Furniture / Equipment (including kitchen equipment) | C48: 0 | D48: 0 | I48: =C48-E48 -> 0 | J48: 0 | R48: =P48+M48+K48 -> 0 | S48: 0 | Z48: =X48*Y48 -> 0 | AA48: =T48+V48+Y48 -> 0 | AB48: =U48+W48+Z48 -> 0 | AC48: TRUE | AD48: TRUE | AE48: 0
A49: =+A48+0.01 -> 2.2 | B49: TLM and equipment including library books (New) | C49: 0 | D49: 0 | I49: 0 | J49: 0 | R49: 0 | S49: 0 | Z49: 0 | AA49: 0 | AB49: 0 | AC49: TRUE | AD49: TRUE | AE49: 0
A50: =+A49+0.01 -> 2.21 | B50: Bedding (New) | C50: 0 | D50: 0 | I50: 0 | J50: 0 | R50: 0 | S50: 0 | Z50: 0 | AA50: 0 | AB50: 0 | AC50: TRUE | AD50: TRUE | AE50: 0
A51: =+A50+0.01 -> 2.22 | B51: Replacement of bedding (once in 3 years) | C51: 0 | D51: 0 | I51: 0 | J51: 0 | R51: 0 | S51: 0 | Z51: 0 | AA51: 0 | AB51: 0 | AC51: TRUE | AD51: TRUE | AE51: 0
B52: Sub Total Non-recurring | C52: =SUM(C48:C51) -> 0 | D52: =SUM(D48:D51) -> 0 | E52: 0 | F52: 0 | G52: 0 | H52: 0 | I52: 0 | J52: 0 | K52: 0 | L52: 0 | M52: 0 | N52: 0 | O52: 0 | P52: 0 | Q52: 0 | R52: 0 | S52: 0 | T52: 0 | U52: 0 | V52: 0 | W52: 0 | X52: 0 | Y52: 0 | Z52: 0 | AA52: 0 | AB52: 0 | AE52: 0
B53: Recurring | C53: 0 | D53: 0 | AA53: 0 | AB53: 0 | AC53: =X53*Y53=Z53 -> TRUE | AD53: =U53+W53+Z53=AB53 -> TRUE | AE53: 0
A54: 2.23 | B54: Maintenance @ Rs. 1,500/- per child per month | C54: 0 | D54: 0 | I54: =C54-E54 -> 0 | J54: =D54-F54 -> 0 | R54: =P54+M54+K54 -> 0 | S54: =Q54+N54+L54 -> 0 | Z54: =X54*Y54 -> 0 | AA54: =T54+V54+Y54 -> 0 | AB54: =U54+W54+Z54 -> 0 | AC54: TRUE | AD54: TRUE | AE54: 0
A55: =+A54+0.01 -> 2.24 | B55: Stipend @ Rs.100/- per child per month | C55: 0 | D55: 0 | I55: =C55-E55 -> 0 | J55: =D55-F55 -> 0 | R55: =P55+M55+K55 -> 0 | S55: =Q55+N55+L55 -> 0 | Z55: 0 | AA55: 0 | AB55: 0 | AC55: TRUE | AD55: TRUE | AE55: 0
A56: 2.25 | B56: Supplementary TLM, Stationery and other educational material @1,000/- per child per annum | C56: 0 | D56: 0 | I56: 0 | J56: 0 | R56: 0 | S56: 0 | Z56: 0 | AA56: 0 | AB56: 0 | AC56: TRUE | AD56: TRUE | AE56: 0
A57: 2.26 | B57: Salaries | C57: 0 | D57: 0 | I57: 0 | J57: 0 | R57: 0 | S57: 0 | Z57: 0 | AA57: 0 | AB57: 0 | AC57: TRUE | AD57: TRUE | AE57: 0
A58: (a) | B58: 1 Warden @ Rs. 25,000/- per month | C58: 0 | D58: 0 | I58: 0 | J58: 0 | R58: 0 | S58: 0 | Z58: 0 | AA58: 0 | AB58: 0 | AC58: TRUE | AD58: TRUE | AE58: 0
A59: (b) | B59: 1 head teacher @ Rs. 25,000/- per month in case the enrollment exceeds 100 | C59: 0 | D59: 0 | I59: 0 | J59: 0 | R59: 0 | S59: 0 | Z59: 0 | AA59: 0 | AB59: 0 | AC59: TRUE | AD59: TRUE | AE59: 0
A60: (c) | B60: 4 - 5 Full time teachers as per RTE norms @ Rs. 20,000/- per month per teacher | C60: 0 | D60: 0 | I60: 0 | J60: 0 | R60: 0 | S60: 0 | Z60: 0 | AA60: 0 | AB60: 0 | AC60: TRUE | AD60: TRUE | AE60: 0
A61: (d) | B61: 2 Urdu Teachers (only for blocks with muslim population above 20% and select urban areas), if required @ Rs. 12,000/- per month per teacher | C61: 0 | D61: 0 | I61: 0 | J61: 0 | R61: 0 | S61: 0 | Z61: 0 | AA61: 0 | AB61: 0 | AC61: TRUE | AD61: TRUE | AE61: 0
A62: (e) | B62: 3 part time teachers @ Rs. 5,000/- per month per teacher | C62: 0 | D62: 0 | I62: 0 | J62: 0 | R62: 0 | S62: 0 | Z62: 0 | AA62: 0 | AB62: 0 | AC62: TRUE | AD62: TRUE | AE62: 0
A63: (f) | B63: 1 Full time Accountant @ Rs. 10,000/- per month | C63: 0 | D63: 0 | I63: 0 | J63: 0 | R63: 0 | S63: 0 | Z63: 0 | AA63: 0 | AB63: 0 | AC63: TRUE | AD63: TRUE | AE63: 0
A64: (g) | B64: 2 Support Staff – (Accountant/ Assistant, Peon, Chowkidar) @ Rs. 5,000/- per month per staff | C64: 0 | D64: 0 | I64: 0 | J64: 0 | R64: 0 | S64: 0 | Z64: 0 | AA64: 0 | AB64: 0 | AC64: TRUE | AD64: TRUE | AE64: 0
A65: (h) | B65: 1 Head cook @ Rs. 6,000/- per month and upto 2 Asstt. Cooks @ Rs. 4,500/- per month per cook | C65: 0 | D65: 0 | I65: 0 | J65: 0 | R65: 0 | S65: 0 | Z65: 0 | AA65: 0 | AB65: 0 | AC65: TRUE | AD65: TRUE | AE65: 0
A66: 2.27 | B66: Specific skill training @ Rs. 1,000/- per child per annum | C66: 0 | D66: 0 | I66: 0 | J66: 0 | R66: 0 | S66: 0 | Z66: 0 | AA66: 0 | AB66: 0 | AC66: TRUE | AD66: TRUE | AE66: 0
A67: 2.28 | B67: Electricity / water charges @Rs. 1,000/- per child per annum | C67: 0 | D67: 0 | I67: 0 | J67: 0 | R67: 0 | S67: 0 | Z67: 0 | AA67: 0 | AB67: 0 | AC67: TRUE | AD67: TRUE | AE67: 0
A68: 2.29 | B68: Medical care/contingencies @ Rs. 1,250/- per child per annum | C68: 0 | D68: 0 | I68: 0 | J68: 0 | R68: 0 | S68: 0 | Z68: 0 | AA68: 0 | AB68: 0 | AC68: TRUE | AD68: TRUE | AE68: 0
A69: 2.3 | B69: Maintenance @ Rs. 750/- per child per annum | C69: 0 | D69: 0 | I69: 0 | J69: 0 | R69: 0 | S69: 0 | Z69: 0 | AA69: 0 | AB69: 0 | AC69: TRUE | AD69: TRUE | AE69: 0
A70: 2.31 | B70: Miscellaneous @ Rs. 750/- per child per annum | C70: 0 | D70: 0 | I70: 0 | J70: 0 | R70: 0 | S70: 0 | Z70: 0 | AA70: 0 | AB70: 0 | AC70: TRUE | AD70: TRUE | AE70: 0
A71: 2.32 | B71: Preparatory camps @ Rs.200/- per child per annum | C71: 0 | D71: 0 | I71: 0 | J71: 0 | R71: 0 | S71: 0 | Z71: 0 | AA71: 0 | AB71: 0 | AC71: TRUE | AD71: TRUE | AE71: 0
A72: 2.33 | B72: P.T.A / school functions @ Rs.200/- per child per annum | C72: 0 | D72: 0 | I72: 0 | J72: 0 | R72: 0 | S72: 0 | Z72: 0 | AA72: 0 | AB72: 0 | AC72: TRUE | AD72: TRUE | AE72: =AB72 -> 0
A73: 2.34 | B73: Provision of Rent @ Rs. 6,000/- per child per annum | C73: 0 | D73: 0 | I73: 0 | J73: 0 | R73: 0 | S73: 0 | Z73: 0 | AA73: 0 | AB73: 0 | AC73: TRUE | AD73: TRUE | AE73: 0
A74: 2.35 | B74: Capacity Building @ Rs. 500/- per child per annum | C74: 0 | D74: 0 | I74: 0 | J74: 0 | R74: 0 | S74: 0 | Z74: 0 | AA74: 0 | AB74: 0 | AC74: TRUE | AD74: TRUE | AE74: 0
A75: 2.36 | B75: Physical / Self Defence training @ Rs. 200/- per child per annum. | C75: 0 | D75: 0 | I75: 0 | J75: 0 | R75: 0 | S75: 0 | Z75: 0 | AA75: 0 | AB75: 0 | AC75: TRUE | AD75: TRUE | AE75: 0
B76: Sub Total (Recurring) | C76: =SUM(C54:C75) -> 0 | D76: =SUM(D54:D75) -> 0 | E76: =SUM(E54:E75) -> 0 | F76: =SUM(F54:F75) -> 0 | G76: =SUM(G54:G75) -> 0 | H76: =SUM(H54:H75) -> 0 | I76: =SUM(I54:I75) -> 0 | J76: =SUM(J54:J75) -> 0 | K76: =SUM(K54:K75) -> 0 | L76: =SUM(L54:L75) -> 0 | M76: =SUM(M54:M75) -> 0 | N76: =SUM(N54:N75) -> 0 | O76: 0 | P76: =SUM(P54:P75) -> 0 | Q76: =SUM(Q54:Q75) -> 0 | R76: =SUM(R54:R75) -> 0 | S76: =SUM(S54:S75) -> 0 | T76: =SUM(T54:T75) -> 0 | U76: =SUM(U54:U75) -> 0 | V76: =SUM(V54:V75) -> 0 | W76: =SUM(W54:W75) -> 0 | X76: 0 | Y76: =SUM(Y54:Y75) -> 0 | Z76: =SUM(Z54:Z75) -> 0 | AA76: =SUM(AA54:AA75) -> 0 | AB76: =SUM(AB54:AB75) -> 0 | AE76: 0
B77: Total (Recurring + Non Recurring) | C77: =C76+C52 -> 0 | D77: =D76+D52 -> 0 | E77: 0 | F77: 0 | G77: 0 | H77: 0 | I77: 0 | J77: 0 | K77: 0 | L77: 0 | M77: 0 | N77: 0 | O77: 0 | P77: 0 | Q77: 0 | R77: 0 | S77: 0 | T77: 0 | U77: 0 | V77: 0 | W77: 0 | X77: 0 | Y77: 0 | Z77: 0 | AA77: 0 | AB77: 0 | AE77: 0
B78: Total (50 + 100 children) | C78: 0 | D78: 0 | E78: =E77+E45 -> 0 | F78: =F77+F45 -> 0 | AA78: =Y78+V78+T78 -> 0 | AB78: =Z78+W78+U78 -> 0 | AC78: =X78*Y78=Z78 -> TRUE | AD78: =U78+W78+Z78=AB78 -> TRUE | AE78: 0
A79: 3 | B79: Residential Hostel for specific category of children | C79: 0 | D79: 0 | AA79: 0 | AB79: 0 | AC79: TRUE | AD79: TRUE | AE79: 0
A80: (A) | B80: 50 children | D80: 0 | AA80: 0 | AB80: 0 | AC80: TRUE | AD80: TRUE | AE80: 0
B81: Non-recurring (one time grant) | D81: 0 | AA81: 0 | AB81: 0 | AC81: TRUE | AD81: TRUE | AE81: 0
A82: 3.01 | B82: Furniture/ Equipment (including kitchen) | C82: 0 | D82: 0 | I82: =C82-E82 -> 0 | J82: 0 | R82: =P82+M82+K82 -> 0 | S82: 0 | Z82: =X82*Y82 -> 0 | AA82: =T82+V82+Y82 -> 0 | AB82: =U82+W82+Z82 -> 0 | AC82: TRUE | AD82: TRUE | AE82: 0
A83: =+A82+0.01 -> 3.02 | B83: TLM and equipment including library books | C83: 0 | D83: 0 | I83: 0 | J83: 0 | R83: 0 | S83: 0 | Z83: 0 | AA83: 0 | AB83: 0 | AC83: TRUE | AD83: TRUE | AE83: 0
A84: =+A83+0.01 -> 3.03 | B84: Bedding (new) | C84: 0 | D84: 0 | I84: 0 | J84: 0 | R84: 0 | S84: 0 | Z84: 0 | AA84: 0 | AB84: 0 | AC84: TRUE | AD84: TRUE | AE84: 0
A85: =+A84+0.01 -> 3.04 | B85: Replacement of bedding (once in 3 years) | C85: 0 | D85: 0 | I85: 0 | J85: 0 | R85: 0 | S85: 0 | Z85: 0 | AA85: 0 | AB85: 0 | AC85: TRUE | AD85: TRUE | AE85: 0
B86: Sub Total (Non Recurring) | C86: =SUM(C82:C85) -> 0 | D86: =SUM(D82:D85) -> 0 | E86: 0 | F86: 0 | G86: 0 | H86: 0 | I86: 0 | J86: 0 | K86: 0 | L86: 0 | M86: 0 | N86: 0 | O86: 0 | P86: 0 | Q86: 0 | R86: 0 | S86: 0 | T86: 0 | U86: 0 | V86: 0 | W86: 0 | X86: 0 | Y86: 0 | Z86: 0 | AA86: 0 | AB86: 0 | AE86: 0
B87: Recurring (50 children) | D87: 0 | AA87: 0 | AB87: 0 | AC87: =X87*Y87=Z87 -> TRUE | AD87: =U87+W87+Z87=AB87 -> TRUE | AE87: 0
A88: 3.05 | B88: Maintenance @ Rs.1,500/- per child per month | C88: 0 | D88: 0 | I88: =C88-E88 -> 0 | J88: =D88-F88 -> 0 | R88: =P88+M88+K88 -> 0 | S88: =Q88+N88+L88 -> 0 | Z88: =X88*Y88 -> 0 | AA88: =T88+V88+Y88 -> 0 | AB88: =U88+W88+Z88 -> 0 | AC88: TRUE | AD88: TRUE | AE88: 0
A89: =+A88+0.01 -> 3.06 | B89: Stipend @ Rs.100/- per child per month | C89: 0 | D89: 0 | I89: =C89-E89 -> 0 | J89: =D89-F89 -> 0 | R89: =P89+M89+K89 -> 0 | S89: =Q89+N89+L89 -> 0 | Z89: 0 | AA89: 0 | AB89: 0 | AC89: TRUE | AD89: TRUE | AE89: 0
A90: =+A89+0.01 -> 3.07 | B90: Supplementary TLM, Stationery and other educational material @Rs.1,000/- per child per annum | C90: 0 | D90: 0 | I90: 0 | J90: 0 | R90: 0 | S90: 0 | Z90: 0 | AA90: 0 | AB90: 0 | AC90: TRUE | AD90: TRUE | AE90: 0
A91: 3.08 | B91: Salaries | C91: 0 | D91: 0 | I91: 0 | J91: 0 | R91: 0 | S91: 0 | Z91: 0 | AA91: 0 | AB91: 0 | AC91: TRUE | AD91: TRUE | AE91: 0
A92: (a) | B92: 1 Warden @ Rs. 25,000/- per month | C92: 0 | D92: 0 | I92: 0 | J92: 0 | R92: 0 | S92: 0 | Z92: 0 | AA92: 0 | AB92: 0 | AC92: TRUE | AD92: TRUE | AE92: 0
A93: (b) | B93: 4 Fulltime teachers as per RTE Norms @ Rs. 20,000/- per month per teacher | C93: 0 | D93: 0 | I93: 0 | J93: 0 | R93: 0 | S93: 0 | Z93: 0 | AA93: 0 | AB93: 0 | AC93: TRUE | AD93: TRUE | AE93: 0
A94: (c) | B94: 2 Urdu Teachers (only for Blocks with muslim population above 20% and select urban areas) if required @ Rs.12,000/- per month per teacher. | C94: 0 | D94: 0 | I94: 0 | J94: 0 | R94: 0 | S94: 0 | Z94: 0 | AA94: 0 | AB94: 0 | AC94: TRUE | AD94: TRUE | AE94: 0
A95: (d) | B95: 3 Part time teachers @ Rs.5,000/- per month per teacher | C95: 0 | D95: 0 | I95: 0 | J95: 0 | R95: 0 | S95: 0 | Z95: 0 | AA95: 0 | AB95: 0 | AC95: TRUE | AD95: TRUE | AE95: 0
A96: (e) | B96: 1 Full time Accountant @ Rs. 10,000/- per month | C96: 0 | D96: 0 | I96: 0 | J96: 0 | R96: 0 | S96: 0 | Z96: 0 | AA96: 0 | AB96: 0 | AC96: TRUE | AD96: TRUE | AE96: 0
A97: (f) | B97: 2 Support staff - (Accountant/Assistant, Peon, Chowkidar) @ Rs. 5,000/- per month per staff | C97: 0 | D97: 0 | I97: 0 | J97: 0 | R97: 0 | S97: 0 | Z97: 0 | AA97: 0 | AB97: 0 | AC97: TRUE | AD97: TRUE | AE97: 0
A98: (g) | B98: 1 Head Cook @ Rs. 6,000/- per month and upto 2 Asstt. Cooks @ Rs. 4,500/- per month per cook | C98: 0 | D98: 0 | I98: 0 | J98: 0 | R98: 0 | S98: 0 | Z98: 0 | AA98: 0 | AB98: 0 | AC98: TRUE | AD98: TRUE | AE98: 0
A99: 3.09 | B99: Specific Skill training @ Rs.1000/- per child per annum | C99: 0 | D99: 0 | I99: 0 | J99: 0 | R99: 0 | S99: 0 | Z99: 0 | AA99: 0 | AB99: 0 | AC99: TRUE | AD99: TRUE | AE99: 0
A100: =+A99+0.01 -> 3.1 | B100: Electricity / water charges @ Rs. 1,000/- per child per annum | C100: 0 | D100: 0 | I100: 0 | J100: 0 | R100: 0 | S100: 0 | Z100: 0 | AA100: 0 | AB100: 0 | AC100: TRUE | AD100: TRUE | AE100: 0
A101: 3.11 | B101: Medical care/contingencies @ Rs.1,250/- per child per annum | C101: 0 | D101: 0 | I101: 0 | J101: 0 | R101: 0 | S101: 0 | Z101: 0 | AA101: 0 | AB101: 0 | AC101: TRUE | AD101: TRUE | AE101: 0
A102: 3.12 | B102: Maintenance @ Rs. 750/- per child per annum | C102: 0 | D102: 0 | I102: 0 | J102: 0 | R102: 0 | S102: 0 | Z102: 0 | AA102: 0 | AB102: 0 | AC102: TRUE | AD102: TRUE | AE102: 0
A103: 3.13 | B103: Miscellaneous @ Rs. 750/- per child per annum | C103: 0 | D103: 0 | I103: 0 | J103: 0 | R103: 0 | S103: 0 | Z103: 0 | AA103: 0 | AB103: 0 | AC103: TRUE | AD103: TRUE | AE103: 0
A104: 3.14 | B104: Preparatory camps @ Rs. 300/- per child per annum | C104: 0 | D104: 0 | I104: 0 | J104: 0 | R104: 0 | S104: 0 | Z104: 0 | AA104: 0 | AB104: 0 | AC104: TRUE | AD104: TRUE | AE104: 0
A105: 3.15 | B105: P.T.A / school functions @ Rs. 300/- per child per annum | C105: 0 | D105: 0 | I105: 0 | J105: 0 | R105: 0 | S105: 0 | Z105: 0 | AA105: 0 | AB105: 0 | AC105: TRUE | AD105: TRUE | AE105: 0
A106: 3.16 | B106: Provision of Rent @ Rs. 10,000/- per child per annum | C106: 0 | D106: 0 | I106: 0 | J106: 0 | R106: 0 | S106: 0 | Z106: 0 | AA106: 0 | AB106: 0 | AC106: TRUE | AD106: TRUE | AE106: 0
A107: 3.17 | B107: Capacity Building @ Rs. 500/- per child per annum | C107: 0 | D107: 0 | I107: 0 | J107: 0 | R107: 0 | S107: 0 | Z107: 0 | AA107: 0 | AB107: 0 | AC107: TRUE | AD107: TRUE | AE107: 0
A108: 3.18 | B108: Physical / Self Defence Training @ Rs.200/- per child per annum | C108: 0 | D108: 0 | I108: 0 | J108: 0 | R108: 0 | S108: 0 | Z108: 0 | AA108: 0 | AB108: 0 | AC108: TRUE | AD108: TRUE | AE108: 0
B109: Sub Total (Recurring) | C109: =SUM(C88:C108) -> 0 | D109: =SUM(D88:D108) -> 0 | E109: 0 | F109: 0 | G109: 0 | H109: 0 | I109: 0 | J109: 0 | K109: 0 | L109: 0 | M109: 0 | N109: 0 | O109: 0 | P109: 0 | Q109: 0 | R109: 0 | S109: 0 | T109: 0 | U109: 0 | V109: 0 | W109: 0 | X109: 0 | Y109: 0 | Z109: 0 | AA109: 0 | AB109: 0 | AE109: 0
B110: Total (Non Recurring + Recurring) | C110: =C109+C86 -> 0 | D110: 0 | E110: =E109+E86 -> 0 | F110: =F109+F86 -> 0 | G110: 0 | H110: 0 | I110: 0 | J110: 0 | K110: 0 | L110: 0 | M110: 0 | N110: 0 | O110: 0 | P110: 0 | Q110: 0 | R110: 0 | S110: 0 | T110: 0 | U110: 0 | V110: 0 | W110: 0 | X110: 0 | Y110: 0 | Z110: 0 | AA110: 0 | AB110: 0 | AE110: 0
A111: (B) | B111: 100 Children | D111: 0 | AA111: 0 | AB111: 0 | AC111: =X111*Y111=Z111 -> TRUE | AD111: =U111+W111+Z111=AB111 -> TRUE | AE111: 0
B112: Non-recurring (one time grant) | D112: 0 | AA112: 0 | AB112: 0 | AC112: TRUE | AD112: TRUE | AE112: 0
A113: 3.19 | B113: Furniture / Equipment (including kitchen equipment) | C113: 0 | D113: 0 | I113: =C113-E113 -> 0 | J113: 0 | R113: =P113+M113+K113 -> 0 | S113: 0 | Z113: =X113*Y113 -> 0 | AA113: =T113+V113+Y113 -> 0 | AB113: =U113+W113+Z113 -> 0 | AC113: TRUE | AD113: TRUE | AE113: 0
A114: =+A113+0.01 -> 3.2 | B114: TLM and equipment including library books (New) | C114: 0 | D114: 0 | I114: 0 | J114: 0 | R114: 0 | S114: 0 | Z114: 0 | AA114: 0 | AB114: 0 | AC114: TRUE | AD114: TRUE | AE114: 0
A115: =+A114+0.01 -> 3.21 | B115: Bedding (New) | C115: 0 | D115: 0 | I115: 0 | J115: 0 | R115: 0 | S115: 0 | Z115: 0 | AA115: 0 | AB115: 0 | AC115: TRUE | AD115: TRUE | AE115: 0
A116: =+A115+0.01 -> 3.22 | B116: Replacement of bedding (once in 3 years) | C116: 0 | D116: 0 | I116: 0 | J116: 0 | R116: 0 | S116: 0 | Z116: 0 | AA116: 0 | AB116: 0 | AC116: TRUE | AD116: TRUE | AE116: 0
B117: Sub Total Non-recurring | C117: =SUM(C113:C116) -> 0 | D117: =SUM(D113:D116) -> 0 | E117: =SUM(E113:E116) -> 0 | F117: =SUM(F113:F116) -> 0 | G117: =SUM(G113:G116) -> 0 | H117: =SUM(H113:H116) -> 0 | I117: =SUM(I113:I116) -> 0 | J117: =SUM(J113:J116) -> 0 | K117: =SUM(K113:K116) -> 0 | L117: =SUM(L113:L116) -> 0 | M117: =SUM(M113:M116) -> 0 | N117: =SUM(N113:N116) -> 0 | O117: 0 | P117: =SUM(P113:P116) -> 0 | Q117: =SUM(Q113:Q116) -> 0 | R117: =SUM(R113:R116) -> 0 | S117: =SUM(S113:S116) -> 0 | T117: =SUM(T113:T116) -> 0 | U117: =SUM(U113:U116) -> 0 | V117: =SUM(V113:V116) -> 0 | W117: =SUM(W113:W116) -> 0 | X117: 0 | Y117: =SUM(Y113:Y116) -> 0 | Z117: =SUM(Z113:Z116) -> 0 | AA117: =SUM(AA113:AA116) -> 0 | AB117: =SUM(AB113:AB116) -> 0 | AE117: 0
B118: Recurring | D118: 0 | AA118: 0 | AB118: 0 | AC118: =X118*Y118=Z118 -> TRUE | AD118: =U118+W118+Z118=AB118 -> TRUE | AE118: 0
A119: 3.23 | B119: Maintenance @ Rs. 1,500/- per child per month | C119: 0 | D119: 0 | I119: =C119-E119 -> 0 | J119: =D119-F119 -> 0 | R119: =P119+M119+K119 -> 0 | S119: =Q119+N119+L119 -> 0 | Z119: =X119*Y119 -> 0 | AA119: =T119+V119+Y119 -> 0 | AB119: =U119+W119+Z119 -> 0 | AC119: TRUE | AD119: TRUE | AE119: 0
A120: =+A119+0.01 -> 3.24 | B120: Stipend @ Rs.100/- per child per month | C120: 0 | D120: 0 | I120: =C120-E120 -> 0 | J120: =D120-F120 -> 0 | R120: =P120+M120+K120 -> 0 | S120: =Q120+N120+L120 -> 0 | Z120: 0 | AA120: 0 | AB120: 0 | AC120: TRUE | AD120: TRUE | AE120: 0
A121: =+A120+0.01 -> 3.25 | B121: Supplementary TLM, Stationery and other educational material @1,000/- per child per annum | C121: 0 | D121: 0 | I121: 0 | J121: 0 | R121: 0 | S121: 0 | Z121: 0 | AA121: 0 | AB121: 0 | AC121: TRUE | AD121: TRUE | AE121: 0
A122: 3.26 | B122: Salaries | C122: 0 | D122: 0 | I122: 0 | J122: 0 | R122: 0 | S122: 0 | Z122: 0 | AA122: 0 | AB122: 0 | AC122: TRUE | AD122: TRUE | AE122: 0
A123: (a) | B123: 1 Warden @ Rs. 25,000/- per month | C123: 0 | D123: 0 | I123: 0 | J123: 0 | R123: 0 | S123: 0 | Z123: 0 | AA123: 0 | AB123: 0 | AC123: TRUE | AD123: TRUE | AE123: 0
A124: (b) | B124: 1 head teacher @ Rs. 25,000/- per month in case the enrollment exceeds 100 | C124: 0 | D124: 0 | I124: 0 | J124: 0 | R124: 0 | S124: 0 | Z124: 0 | AA124: 0 | AB124: 0 | AC124: TRUE | AD124: TRUE | AE124: 0
A125: (c) | B125: 4 - 5 Full time teachers as per RTE norms @ Rs. 20,000/- per month per teacher | C125: 0 | D125: 0 | I125: 0 | J125: 0 | R125: 0 | S125: 0 | Z125: 0 | AA125: 0 | AB125: 0 | AC125: TRUE | AD125: TRUE | AE125: 0
A126: (d) | B126: 2 Urdu Teachers (only for blocks with muslim population above 20% and select urban areas), if required @ Rs. 12,000/- per month per teacher | C126: 0 | D126: 0 | I126: 0 | J126: 0 | R126: 0 | S126: 0 | Z126: 0 | AA126: 0 | AB126: 0 | AC126: TRUE | AD126: TRUE | AE126: 0
A127: (e) | B127: 3 part time teachers @ Rs. 5,000/- per month per teacher | C127: 0 | D127: 0 | I127: 0 | J127: 0 | R127: 0 | S127: 0 | Z127: 0 | AA127: 0 | AB127: 0 | AC127: TRUE | AD127: TRUE | AE127: 0
A128: (f) | B128: 1 Full time Accountant @ Rs. 10,000/- per month | C128: 0 | D128: 0 | I128: 0 | J128: 0 | R128: 0 | S128: 0 | Z128: 0 | AA128: 0 | AB128: 0 | AC128: TRUE | AD128: TRUE | AE128: 0
A129: (g) | B129: 2 Support Staff – (Accountant/ Assistant, Peon, Chowkidar) @ Rs. 5,000/- per month per staff | C129: 0 | D129: 0 | I129: 0 | J129: 0 | R129: 0 | S129: 0 | Z129: 0 | AA129: 0 | AB129: 0 | AC129: TRUE | AD129: TRUE | AE129: 0
A130: (h) | B130: 1 Head cook @ Rs. 6,000/- per month and upto 2 Asstt. Cooks @ Rs. 4,500/- per month per cook | C130: 0 | D130: 0 | I130: 0 | J130: 0 | R130: 0 | S130: 0 | Z130: 0 | AA130: 0 | AB130: 0 | AC130: TRUE | AD130: TRUE | AE130: 0
A131: 3.27 | B131: Specific skill training @ Rs.1,000/- per child per annum | C131: 0 | D131: 0 | I131: 0 | J131: 0 | R131: 0 | S131: 0 | Z131: 0 | AA131: 0 | AB131: 0 | AC131: TRUE | AD131: TRUE | AE131: 0
A132: =+A131+0.01 -> 3.28 | B132: Electricity / water charges @ Rs.1,000/- per child per annum | C132: 0 | D132: 0 | I132: 0 | J132: 0 | R132: 0 | S132: 0 | Z132: 0 | AA132: 0 | AB132: 0 | AC132: TRUE | AD132: TRUE | AE132: 0
A133: 3.29 | B133: Medical care/contingencies @ Rs.1,250/- per child per annum | C133: 0 | D133: 0 | I133: 0 | J133: 0 | R133: 0 | S133: 0 | Z133: 0 | AA133: 0 | AB133: 0 | AC133: TRUE | AD133: TRUE | AE133: 0
A134: 3.3 | B134: Maintenance @ Rs.750/- per child per annum | C134: 0 | D134: 0 | I134: 0 | J134: 0 | R134: 0 | S134: 0 | Z134: 0 | AA134: 0 | AB134: 0 | AC134: TRUE | AD134: TRUE | AE134: 0
A135: 3.31 | B135: Miscellaneous @ Rs.750/- per child per annum | C135: 0 | D135: 0 | I135: 0 | J135: 0 | R135: 0 | S135: 0 | Z135: 0 | AA135: 0 | AB135: 0 | AC135: TRUE | AD135: TRUE | AE135: 0
A136: 3.32 | B136: Preparatory camps @ Rs.200/- per child per annum | C136: 0 | D136: 0 | I136: 0 | J136: 0 | R136: 0 | S136: 0 | Z136: 0 | AA136: 0 | AB136: 0 | AC136: TRUE | AD136: TRUE | AE136: =AB136 -> 0
A137: 3.33 | B137: P.T.A / school functions @ Rs.200/- per child per annum | C137: 0 | D137: 0 | I137: 0 | J137: 0 | R137: 0 | S137: 0 | Z137: 0 | AA137: 0 | AB137: 0 | AC137: TRUE | AD137: TRUE | AE137: 0
A138: 3.34 | B138: Provision of Rent @ Rs. 6,000/- per child per annum | C138: 0 | D138: 0 | I138: 0 | J138: 0 | R138: 0 | S138: 0 | Z138: 0 | AA138: 0 | AB138: 0 | AC138: TRUE | AD138: TRUE | AE138: 0
A139: 3.35 | B139: Capacity Building @ Rs.500/- per child per annum | C139: 0 | D139: 0 | I139: 0 | J139: 0 | R139: 0 | S139: 0 | Z139: 0 | AA139: 0 | AB139: 0 | AC139: TRUE | AD139: TRUE | AE139: 0
A140: 3.36 | B140: Physical / Self Defence training @ Rs. 200/- per child per annum. | C140: 0 | D140: 0 | I140: 0 | J140: 0 | R140: 0 | S140: 0 | Z140: 0 | AA140: 0 | AB140: 0 | AC140: TRUE | AD140: TRUE | AE140: 0
B141: Sub Total (Recurring) | C141: =SUM(C119:C140) -> 0 | D141: =SUM(D119:D140) -> 0 | E141: =SUM(E119:E140) -> 0 | F141: =SUM(F119:F140) -> 0 | G141: =SUM(G119:G140) -> 0 | H141: =SUM(H119:H140) -> 0 | I141: =SUM(I119:I140) -> 0 | J141: =SUM(J119:J140) -> 0 | K141: =SUM(K119:K140) -> 0 | L141: =SUM(L119:L140) -> 0 | M141: =SUM(M119:M140) -> 0 | N141: =SUM(N119:N140) -> 0 | O141: 0 | P141: =SUM(P119:P140) -> 0 | Q141: =SUM(Q119:Q140) -> 0 | R141: =SUM(R119:R140) -> 0 | S141: =SUM(S119:S140) -> 0 | T141: =SUM(T119:T140) -> 0 | U141: =SUM(U119:U140) -> 0 | V141: =SUM(V119:V140) -> 0 | W141: =SUM(W119:W140) -> 0 | X141: 0 | Y141: =SUM(Y119:Y140) -> 0 | Z141: =SUM(Z119:Z140) -> 0 | AA141: =SUM(AA119:AA140) -> 0 | AB141: =SUM(AB119:AB140) -> 0 | AE141: 0
B142: Total (Recurring + Non Recurring) | C142: =C141+C117 -> 0 | D142: =D141+D117 -> 0 | E142: =E141+E117 -> 0 | F142: =F141+F117 -> 0 | G142: =G141+G117 -> 0 | H142: =H141+H117 -> 0 | I142: =I141+I117 -> 0 | J142: =J141+J117 -> 0 | K142: =K141+K117 -> 0 | L142: =L141+L117 -> 0 | M142: =M141+M117 -> 0 | N142: =N141+N117 -> 0 | O142: 0 | P142: =P141+P117 -> 0 | Q142: =Q141+Q117 -> 0 | R142: =R141+R117 -> 0 | S142: =S141+S117 -> 0 | T142: =T141+T117 -> 0 | U142: =U141+U117 -> 0 | V142: =V141+V117 -> 0 | W142: =W141+W117 -> 0 | X142: 0 | Y142: =Y141+Y117 -> 0 | Z142: =Z141+Z117 -> 0 | AA142: =AA141+AA117 -> 0 | AB142: =AB141+AB117 -> 0 | AE142: 0
B143: Total (A + B) | C143: =C142+C110 -> 0 | D143: 0 | E143: =E142+E110 -> 0 | F143: =F142+F110 -> 0 | G143: 0 | H143: 0 | I143: 0 | J143: 0 | K143: 0 | L143: 0 | M143: 0 | N143: 0 | O143: 0 | P143: 0 | Q143: 0 | R143: 0 | S143: 0 | T143: 0 | U143: 0 | V143: 0 | W143: 0 | X143: 0 | Y143: 0 | Z143: 0 | AA143: 0 | AB143: 0 | AE143: 0
A144: 4 | B144: Transport/Escort Facility | D144: 0 | AA144: =Y144+V144+T144 -> 0 | AB144: =Z144+W144+U144 -> 0 | AC144: =X144*Y144=Z144 -> TRUE | AD144: =U144+W144+Z144=AB144 -> TRUE | AE144: 0
A145: 4.01 | B145: Children in remote habitation | C145: 0 | D145: 0 | I145: =C145-E145 -> 0 | J145: =D145-F145 -> 0 | Q145: =+O145*P145 -> 0 | R145: =P145+M145+K145 -> 0 | S145: =Q145+N145+L145 -> 0 | Z145: =X145*Y145 -> 0 | AA145: =T145+V145+Y145 -> 0 | AB145: =U145+W145+Z145 -> 0 | AC145: TRUE | AD145: TRUE | AE145: 0
A146: 4.02 | B146: Urban deprived children/children without adult protection | C146: 0 | D146: 0 | I146: =C146-E146 -> 0 | J146: =D146-F146 -> 0 | R146: =P146+M146+K146 -> 0 | S146: =Q146+N146+L146 -> 0 | Z146: 0 | AA146: 0 | AB146: 0 | AC146: TRUE | AD146: TRUE | AE146: 0
B147: Sub Total | C147: =SUM(C145:C146) -> 0 | D147: 0 | E147: 0 | F147: 0 | G147: 0 | H147: 0 | I147: 0 | J147: 0 | K147: 0 | L147: 0 | M147: 0 | N147: 0 | O147: 0 | P147: 0 | Q147: 0 | R147: 0 | S147: 0 | T147: 0 | U147: 0 | V147: 0 | W147: 0 | X147: 0 | Y147: 0 | Z147: 0 | AA147: 0 | AB147: 0 | AE147: 0
A148: 5 | B148: Reimbursement of Fee against 25% admission under Section 12(1)(c) of RTE Act 2009 (Entry Level) subject to upper limit of 20% of AWP&B guidelines issued by MHRD | C148: 0 | D148: 0 | I148: =C148-E148 -> 0 | J148: =D148-F148 -> 0 | R148: =P148+M148+K148 -> 0 | S148: =Q148+N148+L148 -> 0 | Z148: =X148*Y148 -> 0 | AA148: =T148+V148+Y148 -> 0 | AB148: =U148+W148+Z148 -> 0 | AC148: =X148*Y148=Z148 -> TRUE | AD148: =U148+W148+Z148=AB148 -> TRUE | AE148: 0
B149: Sub Total | C149: =SUM(C148) -> 0 | D149: =SUM(D148) -> 0 | E149: =SUM(E148) -> 0 | F149: =SUM(F148) -> 0 | G149: =SUM(G148) -> 0 | H149: =SUM(H148) -> 0 | I149: =SUM(I148) -> 0 | J149: =SUM(J148) -> 0 | K149: =SUM(K148) -> 0 | L149: =SUM(L148) -> 0 | M149: =SUM(M148) -> 0 | N149: =SUM(N148) -> 0 | O149: 0 | P149: =SUM(P148) -> 0 | Q149: =SUM(Q148) -> 0 | R149: =SUM(R148) -> 0 | S149: =SUM(S148) -> 0 | T149: =SUM(T148) -> 0 | U149: =SUM(U148) -> 0 | V149: =SUM(V148) -> 0 | W149: =SUM(W148) -> 0 | X149: 0 | Y149: =SUM(Y148) -> 0 | Z149: =SUM(Z148) -> 0 | AA149: =SUM(AA148) -> 0 | AB149: =SUM(AB148) -> 0 | AE149: 0
A150: =+A148+1 -> 6 | B150: Special Training for mainstreaming of out of school children | D150: 0 | AA150: 0 | AB150: 0 | AC150: =X150*Y150=Z150 -> TRUE | AD150: =U150+W150+Z150=AB150 -> TRUE | AE150: 0
A151: 6.01 | B151: Residential (Fresh) | D151: 0 | AA151: 0 | AB151: 0 | AC151: TRUE | AD151: TRUE | AE151: 0
B152: (a) 12 months | C152: 0 | D152: 0 | I152: =C152-E152 -> 0 | J152: 0 | R152: =P152+M152+K152 -> 0 | S152: 0 | Z152: =X152*Y152 -> 0 | AA152: =T152+V152+Y152 -> 0 | AB152: =U152+W152+Z152 -> 0 | AC152: TRUE | AD152: TRUE | AE152: 0
B153: (b) 9 months | C153: 0 | D153: 0 | I153: 0 | J153: 0 | R153: 0 | S153: 0 | Z153: 0 | AA153: 0 | AB153: 0 | AC153: TRUE | AD153: TRUE | AE153: 0
B154: (c) 6 months | C154: 0 | D154: 0 | I154: 0 | J154: 0 | R154: 0 | S154: 0 | Z154: 0 | AA154: 0 | AB154: 0 | AC154: TRUE | AD154: TRUE | AE154: 0
B155: (d) 3 months | C155: 0 | D155: 0 | I155: 0 | J155: 0 | R155: 0 | S155: 0 | Z155: 0 | AA155: 0 | AB155: 0 | AC155: TRUE | AD155: TRUE | AE155: 0
B156: Sub Total | C156: =SUM(C152:C155) -> 0 | D156: =SUM(D152:D155) -> 0 | E156: =SUM(E152:E155) -> 0 | F156: =SUM(F152:F155) -> 0 | G156: =SUM(G152:G155) -> 0 | H156: =SUM(H152:H155) -> 0 | I156: =SUM(I152:I155) -> 0 | J156: =SUM(J152:J155) -> 0 | K156: =SUM(K152:K155) -> 0 | L156: =SUM(L152:L155) -> 0 | M156: =SUM(M152:M155) -> 0 | N156: =SUM(N152:N155) -> 0 | O156: 0 | P156: =SUM(P152:P155) -> 0 | Q156: =SUM(Q152:Q155) -> 0 | R156: =SUM(R152:R155) -> 0 | S156: =SUM(S152:S155) -> 0 | T156: =SUM(T152:T155) -> 0 | U156: =SUM(U152:U155) -> 0 | V156: =SUM(V152:V155) -> 0 | W156: =SUM(W152:W155) -> 0 | X156: 0 | Y156: =SUM(Y152:Y155) -> 0 | Z156: =SUM(Z152:Z155) -> 0 | AA156: =SUM(AA152:AA155) -> 0 | AB156: =SUM(AB152:AB155) -> 0 | AE156: 0
A157: =+A151+0.01 -> 6.02 | B157: Residential (Continuing from previous year) | D157: 0 | AA157: 0 | AB157: 0 | AC157: =X157*Y157=Z157 -> TRUE | AD157: =U157+W157+Z157=AB157 -> TRUE | AE157: 0
B158: (a) 12 months | C158: 0 | D158: 0 | I158: =C158-E158 -> 0 | J158: 0 | R158: =P158+M158+K158 -> 0 | S158: 0 | Z158: =X158*Y158 -> 0 | AA158: =T158+V158+Y158 -> 0 | AB158: =U158+W158+Z158 -> 0 | AC158: TRUE | AD158: TRUE | AE158: 0
B159: (b) 9 months | C159: 0 | D159: 0 | I159: 0 | J159: 0 | R159: 0 | S159: 0 | Z159: 0 | AA159: 0 | AB159: 0 | AC159: TRUE | AD159: TRUE | AE159: 0
B160: (c) 6 months | C160: 0 | D160: 0 | I160: 0 | J160: 0 | R160: 0 | S160: 0 | Z160: 0 | AA160: 0 | AB160: 0 | AC160: TRUE | AD160: TRUE | AE160: 0
B161: (d) 3 months | C161: 0 | D161: 0 | I161: 0 | J161: 0 | R161: 0 | S161: 0 | Z161: 0 | AA161: 0 | AB161: 0 | AC161: TRUE | AD161: TRUE | AE161: 0
B162: Sub Total | C162: =SUM(C158:C161) -> 0 | D162: =SUM(D158:D161) -> 0 | E162: =SUM(E158:E161) -> 0 | F162: =SUM(F158:F161) -> 0 | G162: =SUM(G158:G161) -> 0 | H162: =SUM(H158:H161) -> 0 | I162: =SUM(I158:I161) -> 0 | J162: =SUM(J158:J161) -> 0 | K162: =SUM(K158:K161) -> 0 | L162: =SUM(L158:L161) -> 0 | M162: =SUM(M158:M161) -> 0 | N162: =SUM(N158:N161) -> 0 | O162: 0 | P162: =SUM(P158:P161) -> 0 | Q162: =SUM(Q158:Q161) -> 0 | R162: =SUM(R158:R161) -> 0 | S162: =SUM(S158:S161) -> 0 | T162: =SUM(T158:T161) -> 0 | U162: =SUM(U158:U161) -> 0 | V162: =SUM(V158:V161) -> 0 | W162: =SUM(W158:W161) -> 0 | X162: 0 | Y162: =SUM(Y158:Y161) -> 0 | Z162: =SUM(Z158:Z161) -> 0 | AA162: =SUM(AA158:AA161) -> 0 | AB162: =SUM(AB158:AB161) -> 0 | AE162: 0
A163: 6.03 | B163: Non-Residential (Fresh) | D163: 0 | AA163: 0 | AB163: 0 | AC163: =X163*Y163=Z163 -> TRUE | AD163: =U163+W163+Z163=AB163 -> TRUE | AE163: 0
B164: (a) 12 months | C164: 0 | D164: 0 | I164: =C164-E164 -> 0 | J164: 0 | S164: =Q164+N164+L164 -> 0 | AA164: =T164+V164+Y164 -> 0 | AB164: =U164+W164+Z164 -> 0 | AC164: TRUE | AD164: TRUE | AE164: 0
B165: (b) 10 months | C165: 2232 | D165: 58.032 | E165: 1499 | F165: 38.974 | I165: 733 | J165: 19.058 | O165: 0.06 | P165: 662 | Q165: =O165*P165 -> 39.72 | R165: =K165+M165+P165 -> 662 | S165: =L165+N165+Q165 -> 39.72 | X165: 0.06 | Y165: 662 | Z165: =Y165*X165 -> 39.72 | AA165: 662 | AB165: =U165+W165+Z165 -> 39.72 | AC165: TRUE | AD165: TRUE | AE165: 39.72
B166: (c) 6 months | C166: 0 | D166: 0 | I166: 0 | J166: 0 | R166: =P166+M166+K166 -> 0 | S166: =Q166+N166+L166 -> 0 | AA166: 0 | AB166: =U166+W166+Z166 -> 0 | AC166: TRUE | AD166: TRUE | AE166: 0
B167: (d) 3 months | C167: 0 | D167: 0 | I167: 0 | J167: 0 | R167: =P167+M167+K167 -> 0 | S167: =Q167+N167+L167 -> 0 | AA167: 0 | AB167: 0 | AC167: TRUE | AD167: TRUE | AE167: 0
B168: Sub Total | C168: =SUM(C164:C167) -> 2232 | D168: =SUM(D164:D167) -> 58.032 | E168: =SUM(E164:E167) -> 1499 | F168: =SUM(F164:F167) -> 38.974 | G168: =SUM(G164:G167) -> 0 | H168: =SUM(H164:H167) -> 0 | I168: =SUM(I164:I167) -> 733 | J168: =SUM(J164:J167) -> 19.058 | K168: =SUM(K164:K167) -> 0 | L168: =SUM(L164:L167) -> 0 | M168: =SUM(M164:M167) -> 0 | N168: =SUM(N164:N167) -> 0 | O168: 0.06 | P168: =SUM(P164:P167) -> 662 | Q168: =SUM(Q164:Q167) -> 39.72 | R168: =SUM(R164:R167) -> 662 | S168: =SUM(S164:S167) -> 39.72 | T168: =SUM(T164:T167) -> 0 | U168: =SUM(U164:U167) -> 0 | V168: =SUM(V164:V167) -> 0 | W168: =SUM(W164:W167) -> 0 | X168: 0.06 | Y168: =SUM(Y164:Y167) -> 662 | Z168: =SUM(Z164:Z167) -> 39.72 | AA168: =SUM(AA164:AA167) -> 662 | AB168: =SUM(AB164:AB167) -> 39.72 | AE168: 39.72
A169: 6.04 | B169: Non-Residential (Continuing from previous year) | D169: 0 | AD169: =U169+W169+Z169=AB169 -> TRUE | AE169: 0
B170: (a) 12 months | C170: 0 | D170: 0 | I170: =C170-E170 -> 0 | J170: 0 | S170: =Q170+N170+L170 -> 0 | Z170: =X170*Y170 -> 0 | AA170: =T170+V170+Y170 -> 0 | AB170: =U170+W170+Z170 -> 0 | AC170: =X170*Y170=Z170 -> TRUE | AD170: TRUE | AE170: 0
B171: (b) 9 months | C171: 746 | D171: 32.078 | E171: 746 | F171: 32.078 | I171: 0 | J171: 0 | O171: 0.06 | P171: 2137 | Q171: =O171*P171 -> 128.22 | R171: =K171+M171+P171 -> 2137 | S171: =Q171+N171+L171 -> 128.22 | X171: 0.06 | Y171: 2137 | Z171: 128.22 | AA171: 2137 | AB171: 128.22 | AC171: TRUE | AD171: TRUE | AE171: 128.22
B172: (c) 6 months | C172: 0 | D172: 0 | I172: 0 | J172: 0 | R172: =P172+M172+K172 -> 0 | S172: =Q172+N172+L172 -> 0 | Z172: 0 | AA172: 0 | AB172: 0 | AC172: TRUE | AD172: TRUE | AE172: 0
B173: (d) 3 months | C173: 0 | D173: 0 | I173: 0 | J173: 0 | R173: =P173+M173+K173 -> 0 | S173: =Q173+N173+L173 -> 0 | Z173: 0 | AA173: 0 | AB173: 0 | AC173: TRUE | AD173: TRUE | AE173: 0
B174: Sub Total | C174: =SUM(C170:C173) -> 746 | D174: =SUM(D170:D173) -> 32.078 | E174: =SUM(E170:E173) -> 746 | F174: =SUM(F170:F173) -> 32.078 | G174: =SUM(G170:G173) -> 0 | H174: =SUM(H170:H173) -> 0 | I174: =SUM(I170:I173) -> 0 | J174: =SUM(J170:J173) -> 0 | K174: =SUM(K170:K173) -> 0 | L174: =SUM(L170:L173) -> 0 | M174: =SUM(M170:M173) -> 0 | N174: =SUM(N170:N173) -> 0 | O174: 0.06 | P174: =SUM(P170:P173) -> 2137 | Q174: =SUM(Q170:Q173) -> 128.22 | R174: 2137 | S174: =SUM(S170:S173) -> 128.22 | T174: =SUM(T170:T173) -> 0 | U174: =SUM(U170:U173) -> 0 | V174: =SUM(V170:V173) -> 0 | W174: =SUM(W170:W173) -> 0 | X174: 0.06 | Y174: =SUM(Y170:Y173) -> 2137 | Z174: =SUM(Z170:Z173) -> 128.22 | AA174: =SUM(AA170:AA173) -> 2137 | AB174: =SUM(AB170:AB173) -> 128.22 | AE174: 128.22
A175: 6.05 | B175: Madarasa/Maktab | D175: 0 | Z175: =X175*Y175 -> 0 | AA175: =T175+V175+Y175 -> 0 | AB175: =U175+W175+Z175 -> 0 | AC175: =X175*Y175=Z175 -> TRUE | AD175: =U175+W175+Z175=AB175 -> TRUE | AE175: 0
B176: (a) 12 months | C176: 0 | D176: 0 | I176: =C176-E176 -> 0 | J176: 0 | S176: =Q176+N176+L176 -> 0 | Z176: 0 | AA176: 0 | AB176: 0 | AC176: TRUE | AD176: TRUE | AE176: 0
B177: (b) 9 months | C177: 0 | D177: 0 | I177: 0 | J177: 0 | R177: =P177+M177+K177 -> 0 | S177: =Q177+N177+L177 -> 0 | Z177: 0 | AA177: 0 | AB177: 0 | AC177: TRUE | AD177: TRUE | AE177: 0
B178: (c) 6 months | C178: 0 | D178: 0 | I178: 0 | J178: 0 | R178: =P178+M178+K178 -> 0 | S178: =Q178+N178+L178 -> 0 | Z178: 0 | AA178: 0 | AB178: 0 | AC178: TRUE | AD178: TRUE | AE178: 0
B179: (d) 3 months | C179: 0 | D179: 0 | I179: 0 | J179: 0 | R179: =P179+M179+K179 -> 0 | S179: =Q179+N179+L179 -> 0 | Z179: 0 | AA179: 0 | AB179: 0 | AC179: TRUE | AD179: TRUE | AE179: 0
B180: Sub Total | C180: =SUM(C176:C179) -> 0 | D180: =SUM(D176:D179) -> 0 | E180: =SUM(E176:E179) -> 0 | F180: =SUM(F176:F179) -> 0 | G180: =SUM(G176:G179) -> 0 | H180: =SUM(H176:H179) -> 0 | I180: =SUM(I176:I179) -> 0 | J180: =SUM(J176:J179) -> 0 | K180: =SUM(K176:K179) -> 0 | L180: =SUM(L176:L179) -> 0 | M180: =SUM(M176:M179) -> 0 | N180: =SUM(N176:N179) -> 0 | O180: 0 | P180: =SUM(P176:P179) -> 0 | Q180: =SUM(Q176:Q179) -> 0 | R180: =SUM(R176:R179) -> 0 | S180: =SUM(S176:S179) -> 0 | T180: =SUM(T176:T179) -> 0 | U180: =SUM(U176:U179) -> 0 | V180: =SUM(V176:V179) -> 0 | W180: =SUM(W176:W179) -> 0 | X180: 0 | Y180: =SUM(Y176:Y179) -> 0 | Z180: =SUM(Z176:Z179) -> 0 | AA180: =SUM(AA176:AA179) -> 0 | AB180: =SUM(AB176:AB179) -> 0 | AE180: 0
A181: 6.06 | B181: Seasonal Hostel (Residential) | D181: 0 | AA181: 0 | AB181: 0 | AC181: =X181*Y181=Z181 -> TRUE | AD181: =U181+W181+Z181=AB181 -> TRUE | AE181: 0
B182: (a) 12 months | C182: 0 | D182: 0 | I182: =C182-E182 -> 0 | J182: 0 | R182: =P182+M182+K182 -> 0 | S182: 0 | Z182: =X182*Y182 -> 0 | AA182: =T182+V182+Y182 -> 0 | AB182: =U182+W182+Z182 -> 0 | AC182: TRUE | AD182: TRUE | AE182: 0
B183: (b) 9 months | C183: 0 | D183: 0 | I183: 0 | J183: 0 | R183: 0 | S183: 0 | Z183: 0 | AA183: 0 | AB183: 0 | AC183: TRUE | AD183: TRUE | AE183: 0
B184: (c) 6 months | C184: 0 | D184: 0 | I184: 0 | J184: 0 | R184: 0 | S184: 0 | Z184: 0 | AA184: 0 | AB184: 0 | AC184: TRUE | AD184: TRUE | AE184: 0
B185: (d) 3 months | C185: 0 | D185: 0 | I185: 0 | J185: 0 | R185: 0 | S185: 0 | Z185: 0 | AA185: 0 | AB185: 0 | AC185: TRUE | AD185: TRUE | AE185: 0
B186: Sub Total | C186: =SUM(C182:C185) -> 0 | D186: =SUM(D182:D185) -> 0 | E186: =SUM(E182:E185) -> 0 | F186: =SUM(F182:F185) -> 0 | G186: =SUM(G182:G185) -> 0 | H186: =SUM(H182:H185) -> 0 | I186: =SUM(I182:I185) -> 0 | J186: =SUM(J182:J185) -> 0 | K186: =SUM(K182:K185) -> 0 | L186: =SUM(L182:L185) -> 0 | M186: =SUM(M182:M185) -> 0 | N186: =SUM(N182:N185) -> 0 | O186: 0 | P186: =SUM(P182:P185) -> 0 | Q186: =SUM(Q182:Q185) -> 0 | R186: =SUM(R182:R185) -> 0 | S186: =SUM(S182:S185) -> 0 | T186: =SUM(T182:T185) -> 0 | U186: =SUM(U182:U185) -> 0 | V186: =SUM(V182:V185) -> 0 | W186: =SUM(W182:W185) -> 0 | X186: 0 | Y186: =SUM(Y182:Y185) -> 0 | Z186: =SUM(Z182:Z185) -> 0 | AA186: =SUM(AA182:AA185) -> 0 | AB186: =SUM(AB182:AB185) -> 0 | AE186: 0
A187: 6.07 | B187: Seasonal Hostel (Non Residential) | D187: 0 | AA187: 0 | AB187: 0 | AC187: =X187*Y187=Z187 -> TRUE | AD187: =U187+W187+Z187=AB187 -> TRUE | AE187: 0
B188: (a) 12 months | C188: 0 | D188: 0 | I188: =C188-E188 -> 0 | J188: 0 | R188: =P188+M188+K188 -> 0 | S188: 0 | Z188: =X188*Y188 -> 0 | AA188: =T188+V188+Y188 -> 0 | AB188: =U188+W188+Z188 -> 0 | AC188: TRUE | AD188: TRUE | AE188: 0
B189: (b) 9 months | C189: 0 | D189: 0 | I189: 0 | J189: 0 | R189: 0 | S189: 0 | Z189: 0 | AA189: 0 | AB189: 0 | AC189: TRUE | AD189: TRUE | AE189: 0
B190: (c) 6 months | C190: 0 | D190: 0 | I190: 0 | J190: 0 | R190: 0 | S190: 0 | Z190: 0 | AA190: 0 | AB190: 0 | AC190: TRUE | AD190: TRUE | AE190: 0
B191: (d) 3 months | C191: 0 | D191: 0 | I191: 0 | J191: 0 | R191: 0 | S191: 0 | Z191: 0 | AA191: 0 | AB191: 0 | AC191: TRUE | AD191: TRUE | AE191: 0
B192: Sub Total | C192: =SUM(C188:C191) -> 0 | D192: =SUM(D188:D191) -> 0 | E192: =SUM(E188:E191) -> 0 | F192: =SUM(F188:F191) -> 0 | G192: =SUM(G188:G191) -> 0 | H192: =SUM(H188:H191) -> 0 | I192: =SUM(I188:I191) -> 0 | J192: =SUM(J188:J191) -> 0 | K192: =SUM(K188:K191) -> 0 | L192: =SUM(L188:L191) -> 0 | M192: =SUM(M188:M191) -> 0 | N192: =SUM(N188:N191) -> 0 | O192: 0 | P192: =SUM(P188:P191) -> 0 | Q192: =SUM(Q188:Q191) -> 0 | R192: =SUM(R188:R191) -> 0 | S192: =SUM(S188:S191) -> 0 | T192: =SUM(T188:T191) -> 0 | U192: =SUM(U188:U191) -> 0 | V192: =SUM(V188:V191) -> 0 | W192: =SUM(W188:W191) -> 0 | X192: 0 | Y192: =SUM(Y188:Y191) -> 0 | Z192: =SUM(Z188:Z191) -> 0 | AA192: =SUM(AA188:AA191) -> 0 | AB192: 0 | AE192: 0
B193: Total | C193: =C192+C186+C180+C174+C168+C162+C156 -> 2978 | D193: =D192+D186+D180+D174+D168+D162+D156 -> 90.11 | E193: =E192+E186+E180+E174+E168+E162+E156 -> 2245 | F193: =F192+F186+F180+F174+F168+F162+F156 -> 71.052 | G193: =G192+G186+G180+G174+G168+G162+G156 -> 0 | H193: =H192+H186+H180+H174+H168+H162+H156 -> 0 | I193: =I192+I186+I180+I174+I168+I162+I156 -> 733 | J193: =J192+J186+J180+J174+J168+J162+J156 -> 19.058 | K193: =K192+K186+K180+K174+K168+K162+K156 -> 0 | L193: =L192+L186+L180+L174+L168+L162+L156 -> 0 | M193: =M192+M186+M180+M174+M168+M162+M156 -> 0 | N193: =N192+N186+N180+N174+N168+N162+N156 -> 0 | O193: 0.12 | P193: =P192+P186+P180+P174+P168+P162+P156 -> 2799 | Q193: =Q192+Q186+Q180+Q174+Q168+Q162+Q156 -> 167.94 | R193: 2799 | S193: =S192+S186+S180+S174+S168+S162+S156 -> 167.94 | T193: =T192+T186+T180+T174+T168+T162+T156 -> 0 | U193: =U192+U186+U180+U174+U168+U162+U156 -> 0 | V193: =V192+V186+V180+V174+V168+V162+V156 -> 0 | W193: =W192+W186+W180+W174+W168+W162+W156 -> 0 | X193: 0.12 | Y193: =Y192+Y186+Y180+Y174+Y168+Y162+Y156 -> 2799 | Z193: =Z192+Z186+Z180+Z174+Z168+Z162+Z156 -> 167.94 | AA193: 2799 | AB193: =AB192+AB186+AB180+AB174+AB168+AB162+AB156 -> 167.94 | AE193: 167.94
A194: II | B194: RETENTION | D194: 0 | AC194: =X194*Y194=Z194 -> TRUE | AD194: =U194+W194+Z194=AB194 -> TRUE | AE194: 0
A195: 7 | B195: Free Text Books | D195: 0 | AC195: TRUE | AD195: TRUE | AE195: 0
A196: 7.01 | B196: Free Text Books (P) | C196: 0 | D196: 0 | I196: =C196-E196 -> 0 | J196: =D196-F196 -> 0 | N196: 0 | AC196: TRUE | AD196: TRUE | AE196: 0
B197: (a) Class I & II | C197: 37296 | D197: 55.944 | E197: 37296 | F197: 55.944 | I197: =C197-E197 -> 0 | J197: =D197-F197 -> 0 | O197: 0.0015 | P197: 37296 | Q197: =P197*O197 -> 55.944 | R197: =P197+M197+K197 -> 37296 | S197: =Q197+N197+L197 -> 55.944 | X197: 0.0015 | Y197: 37296 | Z197: =X197*Y197 -> 55.944 | AA197: =T197+V197+Y197 -> 37296 | AB197: =U197+W197+Z197 -> 55.944 | AC197: Recommended propsed | AD197: TRUE | AE197: 55.944
B198: (b) Braille Books Class I & II | C198: 6 | D198: 0.009 | E198: 6 | F198: 0.009 | I198: 0 | J198: 0 | O198: 0.0015 | P198: 6 | Q198: 0.009 | R198: =P198+M198+K198 -> 6 | S198: =Q198+N198+L198 -> 0.009 | X198: 0.0015 | Y198: 6 | Z198: =X198*Y198 -> 0.009 | AA198: 6 | AB198: =U198+W198+Z198 -> 0.009 | AC198: TRUE | AD198: TRUE | AE198: 0.009
B199: (c) Large Print Books Class I & II | C199: 0 | D199: 0 | E199: 0 | F199: 0 | I199: 0 | J199: 0 | O199: 0.0015 | P199: 1 | Q199: 0.0015 | R199: 1 | S199: 0.0015 | X199: 0.0015 | Y199: 1 | Z199: 0.0015 | AA199: 1 | AB199: 0.0015 | AC199: TRUE | AD199: TRUE | AE199: 0.0015
B200: (d) Class III to V | C200: 49218 | D200: 73.827 | E200: 49218 | F200: 73.827 | I200: 0 | J200: 0 | O200: 0.0015 | P200: 49218 | Q200: 73.827 | R200: 49218 | S200: 73.827 | X200: 0.0015 | Y200: 49218 | Z200: 73.827 | AA200: 49218 | AB200: 73.827 | AC200: Recommended propsed | AD200: TRUE | AE200: =AB200 -> 73.827
... 325 more rows

Sheet RBD
A1: S.No. | B1: Activity | C1: Year 2016-17 | K1: Outlay Proposed for 2017-18 | T1: Outlay Recommended for 2017-18
C2: Outlay approved by PAB (including spillover) | E2: Achievement during the year | I2: Savings | K2: Spill Over | M2: Deferred laibility of 2014-15 | O2: Fresh | R2: Total | T2: Spill Over | V2: Deferred laibility of 2014-15 | X2: Fresh | AA2: Total
C3: Phy. | D3: Fin. | E3: Phy. | F3: Fin. | G3: Phy. (%) | H3: Fin. (%) | I3: Phy. | J3: Fin. | K3: Phy. | L3: Fin. | M3: Phy. | N3: Fin. | O3: Unit Cost | P3: Phy. | Q3: Fin. | R3: Phy. | S3: Fin. | T3: Phy. | U3: Fin. | V3: Phy. | W3: Fin. | X3: Unit Cost | Y3: Phy. | Z3: Fin. | AA3: Phy. | AB3: Fin.
A4: I | B4: ACCESS
B5: SSA
A6: 1 | B6: Opening of New Schools
A7: 1.01 | B7: New Primary School | D7: 0 | I7: =C7-E7 -> 0 | J7: =D7-F7 -> 0 | R7: =P7+M7+K7 -> 0 | S7: =Q7+N7+L7 -> 0 | AA7: =T7+V7+Y7 -> 0 | AB7: =U7+W7+Z7 -> 0 | AC7: =X7*Y7=Z7 -> TRUE | AD7: =U7+W7+Z7=AB7 -> TRUE | AE7: =AB7 -> 0
A8: 1.02 | B8: Upgradation of PS to UPS | C8: 0 | D8: 0 | I8: =C8-E8 -> 0 | J8: 0 | P8: 5 | R8: =P8+M8+K8 -> 5 | S8: 0 | Y8: 5 | AA8: =T8+V8+Y8 -> 5 | AB8: =U8+W8+Z8 -> 0 | AC8: =X8*Y8=Z8 -> TRUE | AD8: =U8+W8+Z8=AB8 -> TRUE | AE8: =AB8 -> 0
A9: 1.03 | B9: Composite Schools | C9: 0 | D9: 0 | I9: 0 | J9: 0 | R9: 0 | S9: 0 | AA9: 0 | AB9: 0 | AC9: TRUE | AD9: TRUE | AE9: 0
A10: 1.04 | B10: Residential schools for specific category of children | C10: 0 | D10: 0 | I10: 0 | J10: 0 | R10: 0 | S10: 0 | AA10: 0 | AB10: 0 | AC10: TRUE | AD10: TRUE | AE10: 0
A11: 1.05 | B11: Residential Hostel | C11: 0 | D11: 0 | I11: 0 | J11: 0 | R11: 0 | S11: 0 | AA11: 0 | AB11: 0 | AC11: TRUE | AD11: TRUE | AE11: 0
A12: 1.06 | B12: Integration of Class V with primary schools | C12: 0 | D12: 0 | I12: 0 | J12: 0 | R12: 0 | S12: 0 | AA12: 0 | AB12: 0 | AC12: TRUE | AD12: TRUE | AE12: 0
A13: 1.07 | B13: Integration of Class VIII with upper primary schools | C13: 0 | D13: 0 | I13: 0 | J13: 0 | R13: 0 | S13: 0 | AA13: 0 | AB13: 0 | AC13: TRUE | AD13: TRUE | AE13: 0
A14: 2 | B14: Residential Schools for specific category of children | C14: 0 | D14: 0 | I14: 0 | J14: 0 | R14: 0 | S14: 0 | AA14: =Y14+V14+T14 -> 0 | AB14: =Z14+W14+U14 -> 0 | AC14: TRUE | AD14: TRUE | AE14: 0
B15: 50 children | C15: 0 | D15: 0 | I15: 0 | J15: 0 | R15: 0 | S15: 0 | AA15: 0 | AB15: 0 | AC15: TRUE | AD15: TRUE | AE15: 0
B16: Non-recurring (one time grant) | C16: 0 | D16: 0 | I16: 0 | J16: 0 | R16: 0 | S16: 0 | AA16: 0 | AB16: 0 | AC16: TRUE | AD16: TRUE | AE16: 0
A17: 2.01 | B17: Furniture/ Equipment (including kitchen) | C17: 0 | D17: 0 | I17: 0 | J17: 0 | R17: 0 | S17: 0 | Z17: =X17*Y17 -> 0 | AA17: =T17+V17+Y17 -> 0 | AB17: =U17+W17+Z17 -> 0 | AC17: TRUE | AD17: TRUE | AE17: 0
A18: 2.02 | B18: TLM and equipment including library books | C18: 0 | D18: 0 | I18: 0 | J18: 0 | R18: 0 | S18: 0 | Z18: 0 | AA18: 0 | AB18: 0 | AC18: TRUE | AD18: TRUE | AE18: 0
A19: 2.03 | B19: Bedding (new) | C19: 0 | D19: 0 | I19: 0 | J19: 0 | R19: 0 | S19: 0 | Z19: 0 | AA19: 0 | AB19: 0 | AC19: TRUE | AD19: TRUE | AE19: 0
A20: 2.04 | B20: Replacement of bedding (once in 3 years) | C20: 0 | D20: 0 | I20: 0 | J20: 0 | R20: 0 | S20: 0 | Z20: 0 | AA20: 0 | AB20: 0 | AC20: TRUE | AD20: TRUE | AE20: 0
B21: Sub Total (Non Recurring) | C21: =SUM(C15:C20) -> 0 | D21: =SUM(D15:D20) -> 0 | E21: 0 | F21: 0 | G21: 0 | H21: 0 | I21: 0 | J21: 0 | K21: 0 | L21: 0 | M21: 0 | N21: 0 | O21: 0 | P21: 0 | Q21: 0 | R21: 0 | S21: 0 | T21: 0 | U21: 0 | V21: 0 | W21: 0 | X21: 0 | Y21: 0 | Z21: 0 | AA21: 0 | AB21: 0 | AE21: 0
B22: Recurring (50 children) | C22: 0 | D22: 0 | AA22: 0 | AB22: 0 | AE22: 0
A23: 2.05 | B23: Maintenance @ Rs.1,500/- per child Per month | C23: 0 | D23: 0 | I23: =C23-E23 -> 0 | J23: 0 | R23: =P23+M23+K23 -> 0 | S23: 0 | Z23: =X23*Y23 -> 0 | AA23: =T23+V23+Y23 -> 0 | AB23: =U23+W23+Z23 -> 0 | AC23: =X23*Y23=Z23 -> TRUE | AD23: =U23+W23+Z23=AB23 -> TRUE | AE23: 0
A24: 2.06 | B24: Stipend @ Rs.100/- per child per month | C24: 0 | D24: 0 | I24: 0 | J24: 0 | R24: 0 | S24: 0 | Z24: 0 | AA24: 0 | AB24: 0 | AC24: TRUE | AD24: TRUE | AE24: 0
A25: 2.07 | B25: Supplementary TLM, Stationery and other educational material @Rs.1,000/- per child per annum | C25: 0 | D25: 0 | I25: 0 | J25: 0 | R25: 0 | S25: 0 | Z25: 0 | AA25: 0 | AB25: 0 | AC25: TRUE | AD25: TRUE | AE25: 0
A26: 2.08 | B26: Salaries | C26: 0 | D26: 0 | I26: 0 | J26: 0 | R26: 0 | S26: 0 | Z26: 0 | AA26: 0 | AB26: 0 | AC26: TRUE | AD26: TRUE | AE26: 0
A27: (a) | B27: 1 Warden @ Rs.25,000/- per month | C27: 0 | D27: 0 | I27: 0 | J27: 0 | R27: 0 | S27: 0 | Z27: 0 | AA27: 0 | AB27: 0 | AC27: TRUE | AD27: TRUE | AE27: 0
A28: (b) | B28: 4 Fulltime teachers as per RTE Norms @ Rs. 20,000/- per month per teacher | C28: 0 | D28: 0 | I28: 0 | J28: 0 | R28: 0 | S28: 0 | Z28: 0 | AA28: 0 | AB28: 0 | AC28: TRUE | AD28: TRUE | AE28: 0
A29: (c) | B29: 2 Urdu Teachers (only for Blocks with muslim population above 20% and select urban areas) if required @ Rs.12,000/- per month per teacher. | C29: 0 | D29: 0 | I29: 0 | J29: 0 | R29: 0 | S29: 0 | Z29: 0 | AA29: 0 | AB29: 0 | AC29: TRUE | AD29: TRUE | AE29: 0
A30: (d) | B30: 3 Part time teachers @ Rs.5,000/- per month per teacher | C30: 0 | D30: 0 | I30: 0 | J30: 0 | R30: 0 | S30: 0 | Z30: 0 | AA30: 0 | AB30: 0 | AC30: TRUE | AD30: TRUE | AE30: 0
A31: (e) | B31: 1 Full time Accountant @ Rs. 10,000/- per month | C31: 0 | D31: 0 | I31: 0 | J31: 0 | R31: 0 | S31: 0 | Z31: 0 | AA31: 0 | AB31: 0 | AC31: TRUE | AD31: TRUE | AE31: 0
A32: (f) | B32: 2 Support staff - (Accountant/Assistant, Peon, Chowkidar) @ Rs. 5,000/- per month per staff | C32: 0 | D32: 0 | I32: 0 | J32: 0 | R32: 0 | S32: 0 | Z32: 0 | AA32: 0 | AB32: 0 | AC32: TRUE | AD32: TRUE | AE32: 0
A33: (g) | B33: 1 Head Cook @ Rs. 6,000/- per month and upto 2 Asstt. Cooks @ Rs. 4,500/- per month per cook | C33: 0 | D33: 0 | I33: 0 | J33: 0 | R33: 0 | S33: 0 | Z33: 0 | AA33: 0 | AB33: 0 | AC33: TRUE | AD33: TRUE | AE33: 0
A34: 2.09 | B34: Specific Skill training @ Rs.1,000/- per child per annum | C34: 0 | D34: 0 | I34: 0 | J34: 0 | R34: 0 | S34: 0 | Z34: 0 | AA34: 0 | AB34: 0 | AC34: TRUE | AD34: TRUE | AE34: 0
A35: 2.1 | B35: Electricity / water charges @ Rs. 1,000/- per child per annum | C35: 0 | D35: 0 | I35: 0 | J35: 0 | R35: 0 | S35: 0 | Z35: 0 | AA35: 0 | AB35: 0 | AC35: TRUE | AD35: TRUE | AE35: 0
A36: =+A35+0.01 -> 2.11 | B36: Medical care/contingencies @ Rs.1,250/- per child per annum | C36: 0 | D36: 0 | I36: 0 | J36: 0 | R36: 0 | S36: 0 | Z36: 0 | AA36: 0 | AB36: 0 | AC36: TRUE | AD36: TRUE | AE36: 0
A37: =+A36+0.01 -> 2.12 | B37: Maintenance @ Rs. 750/- per child per annum | C37: 0 | D37: 0 | I37: 0 | J37: 0 | R37: 0 | S37: 0 | Z37: 0 | AA37: 0 | AB37: 0 | AC37: TRUE | AD37: TRUE | AE37: 0
A38: 2.13 | B38: Miscellaneous @ Rs. 750/- per child per annum | C38: 0 | D38: 0 | I38: 0 | J38: 0 | R38: 0 | S38: 0 | Z38: 0 | AA38: 0 | AB38: 0 | AC38: TRUE | AD38: TRUE | AE38: 0
A39: 2.14 | B39: Preparatory camps @ Rs. 300/- per child per annum | C39: 0 | D39: 0 | I39: =C39-E39 -> 0 | J39: 0 | R39: =P39+M39+K39 -> 0 | S39: 0 | Z39: 0 | AA39: 0 | AB39: 0 | AC39: TRUE | AD39: TRUE | AE39: 0
A40: 2.15 | B40: P.T.A / school functions @ Rs. 300/- per child per annum | C40: 0 | D40: 0 | I40: 0 | J40: 0 | R40: 0 | S40: 0 | Z40: 0 | AA40: 0 | AB40: 0 | AC40: TRUE | AD40: TRUE | AE40: 0
A41: 2.16 | B41: Provision of Rent @ Rs. 10,000/- per child per annum | C41: 0 | D41: 0 | I41: 0 | J41: 0 | R41: 0 | S41: 0 | Z41: 0 | AA41: 0 | AB41: 0 | AC41: TRUE | AD41: TRUE | AE41: 0
A42: 2.17 | B42: Capacity Building @ Rs. 500/- per child per annum | C42: 0 | D42: 0 | I42: 0 | J42: 0 | R42: 0 | S42: 0 | Z42: 0 | AA42: 0 | AB42: 0 | AC42: TRUE | AD42: TRUE | AE42: 0
A43: 2.18 | B43: Physical / Self Defence Training @ Rs.200/- per child per annum | C43: 0 | D43: 0 | I43: 0 | J43: 0 | R43: 0 | S43: 0 | Z43: 0 | AA43: 0 | AB43: 0 | AC43: TRUE | AD43: TRUE | AE43: 0
B44: Sub Total (Recurring) | C44: 0 | D44: 0 | E44: 0 | F44: 0 | G44: 0 | H44: 0 | I44: 0 | J44: 0 | K44: 0 | L44: 0 | M44: 0 | N44: 0 | O44: 0 | P44: 0 | Q44: 0 | R44: 0 | S44: 0 | T44: 0 | U44: 0 | V44: 0 | W44: 0 | X44: 0 | Y44: 0 | Z44: 0 | AA44: 0 | AB44: 0 | AE44: 0
B45: Total (Non Recurring + Recurring) | C45: =C44+C21 -> 0 | D45: =D44+D21 -> 0 | E45: 0 | F45: 0 | G45: 0 | H45: 0 | I45: 0 | J45: 0 | K45: 0 | L45: 0 | M45: 0 | N45: 0 | O45: 0 | P45: 0 | Q45: 0 | R45: 0 | S45: 0 | T45: 0 | U45: 0 | V45: 0 | W45: 0 | X45: 0 | Y45: 0 | Z45: 0 | AA45: 0 | AB45: 0 | AE45: 0
B46: 100 children | C46: 0 | D46: 0 | AA46: 0 | AB46: 0 | AC46: =X46*Y46=Z46 -> TRUE | AD46: =U46+W46+Z46=AB46 -> TRUE | AE46: 0
B47: Non-recurring (one time grant) | C47: 0 | D47: 0 | AA47: 0 | AB47: 0 | AC47: TRUE | AD47: TRUE | AE47: 0
A48: 2.19 | B48: Furniture / Equipment (including kitchen equipment) | C48: 0 | D48: 0 | I48: =C48-E48 -> 0 | J48: 0 | R48: =P48+M48+K48 -> 0 | S48: 0 | Z48: =X48*Y48 -> 0 | AA48: =T48+V48+Y48 -> 0 | AB48: =U48+W48+Z48 -> 0 | AC48: TRUE | AD48: TRUE | AE48: 0
A49: =+A48+0.01 -> 2.2 | B49: TLM and equipment including library books (New) | C49: 0 | D49: 0 | I49: 0 | J49: 0 | R49: 0 | S49: 0 | Z49: 0 | AA49: 0 | AB49: 0 | AC49: TRUE | AD49: TRUE | AE49: 0
A50: =+A49+0.01 -> 2.21 | B50: Bedding (New) | C50: 0 | D50: 0 | I50: 0 | J50: 0 | R50: 0 | S50: 0 | Z50: 0 | AA50: 0 | AB50: 0 | AC50: TRUE | AD50: TRUE | AE50: 0
A51: =+A50+0.01 -> 2.22 | B51: Replacement of bedding (once in 3 years) | C51: 0 | D51: 0 | I51: 0 | J51: 0 | R51: 0 | S51: 0 | Z51: 0 | AA51: 0 | AB51: 0 | AC51: TRUE | AD51: TRUE | AE51: 0
B52: Sub Total Non-recurring | C52: =SUM(C48:C51) -> 0 | D52: =SUM(D48:D51) -> 0 | E52: 0 | F52: 0 | G52: 0 | H52: 0 | I52: 0 | J52: 0 | K52: 0 | L52: 0 | M52: 0 | N52: 0 | O52: 0 | P52: 0 | Q52: 0 | R52: 0 | S52: 0 | T52: 0 | U52: 0 | V52: 0 | W52: 0 | X52: 0 | Y52: 0 | Z52: 0 | AA52: 0 | AB52: 0 | AE52: 0
B53: Recurring | C53: 0 | D53: 0 | AA53: 0 | AB53: 0 | AC53: =X53*Y53=Z53 -> TRUE | AD53: =U53+W53+Z53=AB53 -> TRUE | AE53: 0
A54: 2.23 | B54: Maintenance @ Rs. 1,500/- per child per month | C54: 0 | D54: 0 | I54: =C54-E54 -> 0 | J54: 0 | R54: =P54+M54+K54 -> 0 | S54: 0 | Z54: =X54*Y54 -> 0 | AA54: =T54+V54+Y54 -> 0 | AB54: =U54+W54+Z54 -> 0 | AC54: TRUE | AD54: TRUE | AE54: 0
A55: =+A54+0.01 -> 2.24 | B55: Stipend @ Rs.100/- per child per month | C55: 0 | D55: 0 | I55: 0 | J55: 0 | R55: 0 | S55: 0 | Z55: 0 | AA55: 0 | AB55: 0 | AC55: TRUE | AD55: TRUE | AE55: 0
A56: 2.25 | B56: Supplementary TLM, Stationery and other educational material @1,000/- per child per annum | C56: 0 | D56: 0 | I56: 0 | J56: 0 | R56: 0 | S56: 0 | Z56: 0 | AA56: 0 | AB56: 0 | AC56: TRUE | AD56: TRUE | AE56: 0
A57: 2.26 | B57: Salaries | C57: 0 | D57: 0 | I57: 0 | J57: 0 | R57: 0 | S57: 0 | Z57: 0 | AA57: 0 | AB57: 0 | AC57: TRUE | AD57: TRUE | AE57: 0
A58: (a) | B58: 1 Warden @ Rs. 25,000/- per month | C58: 0 | D58: 0 | I58: 0 | J58: 0 | R58: 0 | S58: 0 | Z58: 0 | AA58: 0 | AB58: 0 | AC58: TRUE | AD58: TRUE | AE58: 0
A59: (b) | B59: 1 head teacher @ Rs. 25,000/- per month in case the enrollment exceeds 100 | C59: 0 | D59: 0 | I59: 0 | J59: 0 | R59: 0 | S59: 0 | Z59: 0 | AA59: 0 | AB59: 0 | AC59: TRUE | AD59: TRUE | AE59: 0
A60: (c) | B60: 4 - 5 Full time teachers as per RTE norms @ Rs. 20,000/- per month per teacher | C60: 0 | D60: 0 | I60: 0 | J60: 0 | R60: 0 | S60: 0 | Z60: 0 | AA60: 0 | AB60: 0 | AC60: TRUE | AD60: TRUE | AE60: 0
A61: (d) | B61: 2 Urdu Teachers (only for blocks with muslim population above 20% and select urban areas), if required @ Rs. 12,000/- per month per teacher | C61: 0 | D61: 0 | I61: 0 | J61: 0 | R61: 0 | S61: 0 | Z61: 0 | AA61: 0 | AB61: 0 | AC61: TRUE | AD61: TRUE | AE61: 0
A62: (e) | B62: 3 part time teachers @ Rs. 5,000/- per month per teacher | C62: 0 | D62: 0 | I62: 0 | J62: 0 | R62: 0 | S62: 0 | Z62: 0 | AA62: 0 | AB62: 0 | AC62: TRUE | AD62: TRUE | AE62: 0
A63: (f) | B63: 1 Full time Accountant @ Rs. 10,000/- per month | C63: 0 | D63: 0 | I63: 0 | J63: 0 | R63: 0 | S63: 0 | Z63: 0 | AA63: 0 | AB63: 0 | AC63: TRUE | AD63: TRUE | AE63: 0
A64: (g) | B64: 2 Support Staff – (Accountant/ Assistant, Peon, Chowkidar) @ Rs. 5,000/- per month per staff | C64: 0 | D64: 0 | I64: 0 | J64: 0 | R64: 0 | S64: 0 | Z64: 0 | AA64: 0 | AB64: 0 | AC64: TRUE | AD64: TRUE | AE64: 0
A65: (h) | B65: 1 Head cook @ Rs. 6,000/- per month and upto 2 Asstt. Cooks @ Rs. 4,500/- per month per cook | C65: 0 | D65: 0 | I65: 0 | J65: 0 | R65: 0 | S65: 0 | Z65: 0 | AA65: 0 | AB65: 0 | AC65: TRUE | AD65: TRUE | AE65: 0
A66: 2.27 | B66: Specific skill training @ Rs. 1,000/- per child per annum | C66: 0 | D66: 0 | I66: 0 | J66: 0 | R66: 0 | S66: 0 | Z66: 0 | AA66: 0 | AB66: 0 | AC66: TRUE | AD66: TRUE | AE66: 0
A67: 2.28 | B67: Electricity / water charges @Rs. 1,000/- per child per annum | C67: 0 | D67: 0 | I67: 0 | J67: 0 | R67: 0 | S67: 0 | Z67: 0 | AA67: 0 | AB67: 0 | AC67: TRUE | AD67: TRUE | AE67: 0
A68: 2.29 | B68: Medical care/contingencies @ Rs. 1,250/- per child per annum | C68: 0 | D68: 0 | I68: 0 | J68: 0 | R68: 0 | S68: 0 | Z68: 0 | AA68: 0 | AB68: 0 | AC68: TRUE | AD68: TRUE | AE68: 0
A69: 2.3 | B69: Maintenance @ Rs. 750/- per child per annum | C69: 0 | D69: 0 | I69: 0 | J69: 0 | R69: 0 | S69: 0 | Z69: 0 | AA69: 0 | AB69: 0 | AC69: TRUE | AD69: TRUE | AE69: 0
A70: 2.31 | B70: Miscellaneous @ Rs. 750/- per child per annum | C70: 0 | D70: 0 | I70: =C70-E70 -> 0 | J70: 0 | R70: =P70+M70+K70 -> 0 | S70: 0 | Z70: 0 | AA70: 0 | AB70: 0 | AC70: TRUE | AD70: TRUE | AE70: 0
A71: 2.32 | B71: Preparatory camps @ Rs.200/- per child per annum | C71: 0 | D71: 0 | I71: 0 | J71: 0 | R71: 0 | S71: 0 | Z71: 0 | AA71: 0 | AB71: 0 | AC71: TRUE | AD71: TRUE | AE71: 0
A72: 2.33 | B72: P.T.A / school functions @ Rs.200/- per child per annum | C72: 0 | D72: 0 | I72: 0 | J72: 0 | R72: 0 | S72: 0 | Z72: 0 | AA72: 0 | AB72: 0 | AC72: TRUE | AD72: TRUE | AE72: =AB72 -> 0
A73: 2.34 | B73: Provision of Rent @ Rs. 6,000/- per child per annum | C73: 0 | D73: 0 | I73: 0 | J73: 0 | R73: 0 | S73: 0 | Z73: 0 | AA73: 0 | AB73: 0 | AC73: TRUE | AD73: TRUE | AE73: 0
A74: 2.35 | B74: Capacity Building @ Rs. 500/- per child per annum | C74: 0 | D74: 0 | I74: 0 | J74: 0 | R74: 0 | S74: 0 | Z74: 0 | AA74: 0 | AB74: 0 | AC74: TRUE | AD74: TRUE | AE74: 0
A75: 2.36 | B75: Physical / Self Defence training @ Rs. 200/- per child per annum. | C75: 0 | D75: 0 | I75: 0 | J75: 0 | R75: 0 | S75: 0 | Z75: 0 | AA75: 0 | AB75: 0 | AC75: TRUE | AD75: TRUE | AE75: 0
B76: Sub Total (Recurring) | C76: =SUM(C54:C75) -> 0 | D76: =SUM(D54:D75) -> 0 | E76: =SUM(E54:E75) -> 0 | F76: =SUM(F54:F75) -> 0 | G76: =SUM(G54:G75) -> 0 | H76: =SUM(H54:H75) -> 0 | I76: =SUM(I54:I75) -> 0 | J76: =SUM(J54:J75) -> 0 | K76: =SUM(K54:K75) -> 0 | L76: =SUM(L54:L75) -> 0 | M76: =SUM(M54:M75) -> 0 | N76: =SUM(N54:N75) -> 0 | O76: 0 | P76: =SUM(P54:P75) -> 0 | Q76: =SUM(Q54:Q75) -> 0 | R76: =SUM(R54:R75) -> 0 | S76: =SUM(S54:S75) -> 0 | T76: =SUM(T54:T75) -> 0 | U76: =SUM(U54:U75) -> 0 | V76: =SUM(V54:V75) -> 0 | W76: =SUM(W54:W75) -> 0 | X76: 0 | Y76: =SUM(Y54:Y75) -> 0 | Z76: =SUM(Z54:Z75) -> 0 | AA76: =SUM(AA54:AA75) -> 0 | AB76: =SUM(AB54:AB75) -> 0 | AE76: 0
B77: Total (Recurring + Non Recurring) | C77: =C76+C52 -> 0 | D77: =D76+D52 -> 0 | E77: 0 | F77: 0 | G77: 0 | H77: 0 | I77: 0 | J77: 0 | K77: 0 | L77: 0 | M77: 0 | N77: 0 | O77: 0 | P77: 0 | Q77: 0 | R77: 0 | S77: 0 | T77: 0 | U77: 0 | V77: 0 | W77: 0 | X77: 0 | Y77: 0 | Z77: 0 | AA77: 0 | AB77: 0 | AE77: 0
B78: Total (50 + 100 children) | C78: 0 | D78: 0 | E78: =E77+E45 -> 0 | F78: =F77+F45 -> 0 | AA78: =Y78+V78+T78 -> 0 | AB78: =Z78+W78+U78 -> 0 | AC78: =X78*Y78=Z78 -> TRUE | AD78: =U78+W78+Z78=AB78 -> TRUE | AE78: 0
A79: 3 | B79: Residential Hostel for specific category of children | C79: 0 | D79: 0 | AA79: 0 | AB79: 0 | AC79: TRUE | AD79: TRUE | AE79: 0
A80: (A) | B80: 50 children | D80: 0 | AA80: 0 | AB80: 0 | AC80: TRUE | AD80: TRUE | AE80: 0
B81: Non-recurring (one time grant) | D81: 0 | AA81: 0 | AB81: 0 | AC81: TRUE | AD81: TRUE | AE81: 0
A82: 3.01 | B82: Furniture/ Equipment (including kitchen) | C82: 0 | D82: 0 | I82: =C82-E82 -> 0 | J82: 0 | R82: =P82+M82+K82 -> 0 | S82: 0 | Z82: =X82*Y82 -> 0 | AA82: =T82+V82+Y82 -> 0 | AB82: =U82+W82+Z82 -> 0 | AC82: TRUE | AD82: TRUE | AE82: 0
A83: =+A82+0.01 -> 3.02 | B83: TLM and equipment including library books | C83: 0 | D83: 0 | I83: 0 | J83: 0 | R83: 0 | S83: 0 | Z83: 0 | AA83: 0 | AB83: 0 | AC83: TRUE | AD83: TRUE | AE83: 0
A84: =+A83+0.01 -> 3.03 | B84: Bedding (new) | C84: 0 | D84: 0 | I84: 0 | J84: 0 | R84: 0 | S84: 0 | Z84: 0 | AA84: 0 | AB84: 0 | AC84: TRUE | AD84: TRUE | AE84: 0
A85: =+A84+0.01 -> 3.04 | B85: Replacement of bedding (once in 3 years) | C85: 0 | D85: 0 | I85: 0 | J85: 0 | R85: 0 | S85: 0 | Z85: 0 | AA85: 0 | AB85: 0 | AC85: TRUE | AD85: TRUE | AE85: 0
B86: Sub Total (Non Recurring) | C86: =SUM(C82:C85) -> 0 | D86: =SUM(D82:D85) -> 0 | E86: 0 | F86: 0 | G86: 0 | H86: 0 | I86: 0 | J86: 0 | K86: 0 | L86: 0 | M86: 0 | N86: 0 | O86: 0 | P86: 0 | Q86: 0 | R86: 0 | S86: 0 | T86: 0 | U86: 0 | V86: 0 | W86: 0 | X86: 0 | Y86: 0 | Z86: 0 | AA86: 0 | AB86: 0 | AE86: 0
B87: Recurring (50 children) | D87: 0 | AA87: 0 | AB87: 0 | AC87: =X87*Y87=Z87 -> TRUE | AD87: =U87+W87+Z87=AB87 -> TRUE | AE87: 0
A88: 3.05 | B88: Maintenance @ Rs.1,500/- per child per month | C88: 0 | D88: 0 | I88: =C88-E88 -> 0 | J88: 0 | R88: =P88+M88+K88 -> 0 | S88: 0 | Z88: =X88*Y88 -> 0 | AA88: =T88+V88+Y88 -> 0 | AB88: =U88+W88+Z88 -> 0 | AC88: TRUE | AD88: TRUE | AE88: 0
A89: =+A88+0.01 -> 3.06 | B89: Stipend @ Rs.100/- per child per month | C89: 0 | D89: 0 | I89: 0 | J89: 0 | R89: 0 | S89: 0 | Z89: 0 | AA89: 0 | AB89: 0 | AC89: TRUE | AD89: TRUE | AE89: 0
A90: =+A89+0.01 -> 3.07 | B90: Supplementary TLM, Stationery and other educational material @Rs.1,000/- per child per annum | C90: 0 | D90: 0 | I90: 0 | J90: 0 | R90: 0 | S90: 0 | Z90: 0 | AA90: 0 | AB90: 0 | AC90: TRUE | AD90: TRUE | AE90: 0
A91: 3.08 | B91: Salaries | C91: 0 | D91: 0 | I91: 0 | J91: 0 | R91: 0 | S91: 0 | Z91: 0 | AA91: 0 | AB91: 0 | AC91: TRUE | AD91: TRUE | AE91: 0
A92: (a) | B92: 1 Warden @ Rs. 25,000/- per month | C92: 0 | D92: 0 | I92: 0 | J92: 0 | R92: 0 | S92: 0 | Z92: 0 | AA92: 0 | AB92: 0 | AC92: TRUE | AD92: TRUE | AE92: 0
A93: (b) | B93: 4 Fulltime teachers as per RTE Norms @ Rs. 20,000/- per month per teacher | C93: 0 | D93: 0 | I93: 0 | J93: 0 | R93: 0 | S93: 0 | Z93: 0 | AA93: 0 | AB93: 0 | AC93: TRUE | AD93: TRUE | AE93: 0
A94: (c) | B94: 2 Urdu Teachers (only for Blocks with muslim population above 20% and select urban areas) if required @ Rs.12,000/- per month per teacher. | C94: 0 | D94: 0 | I94: 0 | J94: 0 | R94: 0 | S94: 0 | Z94: 0 | AA94: 0 | AB94: 0 | AC94: TRUE | AD94: TRUE | AE94: 0
A95: (d) | B95: 3 Part time teachers @ Rs.5,000/- per month per teacher | C95: 0 | D95: 0 | I95: 0 | J95: 0 | R95: 0 | S95: 0 | Z95: 0 | AA95: 0 | AB95: 0 | AC95: TRUE | AD95: TRUE | AE95: 0
A96: (e) | B96: 1 Full time Accountant @ Rs. 10,000/- per month | C96: 0 | D96: 0 | I96: 0 | J96: 0 | R96: 0 | S96: 0 | Z96: 0 | AA96: 0 | AB96: 0 | AC96: TRUE | AD96: TRUE | AE96: 0
A97: (f) | B97: 2 Support staff - (Accountant/Assistant, Peon, Chowkidar) @ Rs. 5,000/- per month per staff | C97: 0 | D97: 0 | I97: 0 | J97: 0 | R97: 0 | S97: 0 | Z97: 0 | AA97: 0 | AB97: 0 | AC97: TRUE | AD97: TRUE | AE97: 0
A98: (g) | B98: 1 Head Cook @ Rs. 6,000/- per month and upto 2 Asstt. Cooks @ Rs. 4,500/- per month per cook | C98: 0 | D98: 0 | I98: 0 | J98: 0 | R98: 0 | S98: 0 | Z98: 0 | AA98: 0 | AB98: 0 | AC98: TRUE | AD98: TRUE | AE98: 0
A99: 3.09 | B99: Specific Skill training @ Rs.1000/- per child per annum | C99: 0 | D99: 0 | I99: 0 | J99: 0 | R99: 0 | S99: 0 | Z99: 0 | AA99: 0 | AB99: 0 | AC99: TRUE | AD99: TRUE | AE99: 0
A100: =+A99+0.01 -> 3.1 | B100: Electricity / water charges @ Rs. 1,000/- per child per annum | C100: 0 | D100: 0 | I100: 0 | J100: 0 | R100: 0 | S100: 0 | Z100: 0 | AA100: 0 | AB100: 0 | AC100: TRUE | AD100: TRUE | AE100: 0
A101: 3.11 | B101: Medical care/contingencies @ Rs.1,250/- per child per annum | C101: 0 | D101: 0 | I101: 0 | J101: 0 | R101: 0 | S101: 0 | Z101: 0 | AA101: 0 | AB101: 0 | AC101: TRUE | AD101: TRUE | AE101: 0
A102: 3.12 | B102: Maintenance @ Rs. 750/- per child per annum | C102: 0 | D102: 0 | I102: 0 | J102: 0 | R102: 0 | S102: 0 | Z102: 0 | AA102: 0 | AB102: 0 | AC102: TRUE | AD102: TRUE | AE102: 0
A103: 3.13 | B103: Miscellaneous @ Rs. 750/- per child per annum | C103: 0 | D103: 0 | I103: 0 | J103: 0 | R103: 0 | S103: 0 | Z103: 0 | AA103: 0 | AB103: 0 | AC103: TRUE | AD103: TRUE | AE103: 0
A104: 3.14 | B104: Preparatory camps @ Rs. 300/- per child per annum | C104: 0 | D104: 0 | I104: =C104-E104 -> 0 | J104: 0 | R104: =P104+M104+K104 -> 0 | S104: 0 | Z104: 0 | AA104: 0 | AB104: 0 | AC104: TRUE | AD104: TRUE | AE104: 0
A105: 3.15 | B105: P.T.A / school functions @ Rs. 300/- per child per annum | C105: 0 | D105: 0 | I105: 0 | J105: 0 | R105: 0 | S105: 0 | Z105: 0 | AA105: 0 | AB105: 0 | AC105: TRUE | AD105: TRUE | AE105: 0
A106: 3.16 | B106: Provision of Rent @ Rs. 10,000/- per child per annum | C106: 0 | D106: 0 | I106: 0 | J106: 0 | R106: 0 | S106: 0 | Z106: 0 | AA106: 0 | AB106: 0 | AC106: TRUE | AD106: TRUE | AE106: 0
A107: 3.17 | B107: Capacity Building @ Rs. 500/- per child per annum | C107: 0 | D107: 0 | I107: 0 | J107: 0 | R107: 0 | S107: 0 | Z107: 0 | AA107: 0 | AB107: 0 | AC107: TRUE | AD107: TRUE | AE107: 0
A108: 3.18 | B108: Physical / Self Defence Training @ Rs.200/- per child per annum | C108: 0 | D108: 0 | I108: 0 | J108: 0 | R108: 0 | S108: 0 | Z108: 0 | AA108: 0 | AB108: 0 | AC108: TRUE | AD108: TRUE | AE108: 0
B109: Sub Total (Recurring) | C109: =SUM(C88:C108) -> 0 | D109: =SUM(D88:D108) -> 0 | E109: 0 | F109: 0 | G109: 0 | H109: 0 | I109: 0 | J109: 0 | K109: 0 | L109: 0 | M109: 0 | N109: 0 | O109: 0 | P109: 0 | Q109: 0 | R109: 0 | S109: 0 | T109: 0 | U109: 0 | V109: 0 | W109: 0 | X109: 0 | Y109: 0 | Z109: 0 | AA109: 0 | AB109: 0 | AE109: 0
B110: Total (Non Recurring + Recurring) | C110: =C109+C86 -> 0 | D110: 0 | E110: =E109+E86 -> 0 | F110: =F109+F86 -> 0 | G110: 0 | H110: 0 | I110: 0 | J110: 0 | K110: 0 | L110: 0 | M110: 0 | N110: 0 | O110: 0 | P110: 0 | Q110: 0 | R110: 0 | S110: 0 | T110: 0 | U110: 0 | V110: 0 | W110: 0 | X110: 0 | Y110: 0 | Z110: 0 | AA110: 0 | AB110: 0 | AE110: 0
A111: (B) | B111: 100 Children | D111: 0 | AA111: 0 | AB111: 0 | AC111: =X111*Y111=Z111 -> TRUE | AD111: =U111+W111+Z111=AB111 -> TRUE | AE111: 0
B112: Non-recurring (one time grant) | D112: 0 | AA112: 0 | AB112: 0 | AC112: TRUE | AD112: TRUE | AE112: 0
A113: 3.19 | B113: Furniture / Equipment (including kitchen equipment) | C113: 0 | D113: 0 | I113: =C113-E113 -> 0 | J113: 0 | R113: =P113+M113+K113 -> 0 | S113: 0 | Z113: =X113*Y113 -> 0 | AA113: =T113+V113+Y113 -> 0 | AB113: =U113+W113+Z113 -> 0 | AC113: TRUE | AD113: TRUE | AE113: 0
A114: =+A113+0.01 -> 3.2 | B114: TLM and equipment including library books (New) | C114: 0 | D114: 0 | I114: 0 | J114: 0 | R114: 0 | S114: 0 | Z114: 0 | AA114: 0 | AB114: 0 | AC114: TRUE | AD114: TRUE | AE114: 0
A115: =+A114+0.01 -> 3.21 | B115: Bedding (New) | C115: 0 | D115: 0 | I115: 0 | J115: 0 | R115: 0 | S115: 0 | Z115: 0 | AA115: 0 | AB115: 0 | AC115: TRUE | AD115: TRUE | AE115: 0
A116: =+A115+0.01 -> 3.22 | B116: Replacement of bedding (once in 3 years) | C116: 0 | D116: 0 | I116: 0 | J116: 0 | R116: 0 | S116: 0 | Z116: 0 | AA116: 0 | AB116: 0 | AC116: TRUE | AD116: TRUE | AE116: 0
B117: Sub Total Non-recurring | C117: =SUM(C113:C116) -> 0 | D117: =SUM(D113:D116) -> 0 | E117: =SUM(E113:E116) -> 0 | F117: =SUM(F113:F116) -> 0 | G117: =SUM(G113:G116) -> 0 | H117: =SUM(H113:H116) -> 0 | I117: =SUM(I113:I116) -> 0 | J117: =SUM(J113:J116) -> 0 | K117: =SUM(K113:K116) -> 0 | L117: =SUM(L113:L116) -> 0 | M117: =SUM(M113:M116) -> 0 | N117: =SUM(N113:N116) -> 0 | O117: 0 | P117: =SUM(P113:P116) -> 0 | Q117: =SUM(Q113:Q116) -> 0 | R117: =SUM(R113:R116) -> 0 | S117: =SUM(S113:S116) -> 0 | T117: =SUM(T113:T116) -> 0 | U117: =SUM(U113:U116) -> 0 | V117: =SUM(V113:V116) -> 0 | W117: =SUM(W113:W116) -> 0 | X117: 0 | Y117: =SUM(Y113:Y116) -> 0 | Z117: =SUM(Z113:Z116) -> 0 | AA117: =SUM(AA113:AA116) -> 0 | AB117: =SUM(AB113:AB116) -> 0 | AE117: 0
B118: Recurring | D118: 0 | AA118: 0 | AB118: 0 | AC118: =X118*Y118=Z118 -> TRUE | AD118: =U118+W118+Z118=AB118 -> TRUE | AE118: 0
A119: 3.23 | B119: Maintenance @ Rs. 1,500/- per child per month | C119: 0 | D119: 0 | I119: =C119-E119 -> 0 | J119: 0 | R119: =P119+M119+K119 -> 0 | S119: 0 | Z119: =X119*Y119 -> 0 | AA119: =T119+V119+Y119 -> 0 | AB119: =U119+W119+Z119 -> 0 | AC119: TRUE | AD119: TRUE | AE119: 0
A120: =+A119+0.01 -> 3.24 | B120: Stipend @ Rs.100/- per child per month | C120: 0 | D120: 0 | I120: 0 | J120: 0 | R120: 0 | S120: 0 | Z120: 0 | AA120: 0 | AB120: 0 | AC120: TRUE | AD120: TRUE | AE120: 0
A121: =+A120+0.01 -> 3.25 | B121: Supplementary TLM, Stationery and other educational material @1,000/- per child per annum | C121: 0 | D121: 0 | I121: 0 | J121: 0 | R121: 0 | S121: 0 | Z121: 0 | AA121: 0 | AB121: 0 | AC121: TRUE | AD121: TRUE | AE121: 0
A122: 3.26 | B122: Salaries | C122: 0 | D122: 0 | I122: 0 | J122: 0 | R122: 0 | S122: 0 | Z122: 0 | AA122: 0 | AB122: 0 | AC122: TRUE | AD122: TRUE | AE122: 0
A123: (a) | B123: 1 Warden @ Rs. 25,000/- per month | C123: 0 | D123: 0 | I123: 0 | J123: 0 | R123: 0 | S123: 0 | Z123: 0 | AA123: 0 | AB123: 0 | AC123: TRUE | AD123: TRUE | AE123: 0
A124: (b) | B124: 1 head teacher @ Rs. 25,000/- per month in case the enrollment exceeds 100 | C124: 0 | D124: 0 | I124: 0 | J124: 0 | R124: 0 | S124: 0 | Z124: 0 | AA124: 0 | AB124: 0 | AC124: TRUE | AD124: TRUE | AE124: 0
A125: (c) | B125: 4 - 5 Full time teachers as per RTE norms @ Rs. 20,000/- per month per teacher | C125: 0 | D125: 0 | I125: 0 | J125: 0 | R125: 0 | S125: 0 | Z125: 0 | AA125: 0 | AB125: 0 | AC125: TRUE | AD125: TRUE | AE125: 0
A126: (d) | B126: 2 Urdu Teachers (only for blocks with muslim population above 20% and select urban areas), if required @ Rs. 12,000/- per month per teacher | C126: 0 | D126: 0 | I126: 0 | J126: 0 | R126: 0 | S126: 0 | Z126: 0 | AA126: 0 | AB126: 0 | AC126: TRUE | AD126: TRUE | AE126: 0
A127: (e) | B127: 3 part time teachers @ Rs. 5,000/- per month per teacher | C127: 0 | D127: 0 | I127: 0 | J127: 0 | R127: 0 | S127: 0 | Z127: 0 | AA127: 0 | AB127: 0 | AC127: TRUE | AD127: TRUE | AE127: 0
A128: (f) | B128: 1 Full time Accountant @ Rs. 10,000/- per month | C128: 0 | D128: 0 | I128: 0 | J128: 0 | R128: 0 | S128: 0 | Z128: 0 | AA128: 0 | AB128: 0 | AC128: TRUE | AD128: TRUE | AE128: 0
A129: (g) | B129: 2 Support Staff – (Accountant/ Assistant, Peon, Chowkidar) @ Rs. 5,000/- per month per staff | C129: 0 | D129: 0 | I129: 0 | J129: 0 | R129: 0 | S129: 0 | Z129: 0 | AA129: 0 | AB129: 0 | AC129: TRUE | AD129: TRUE | AE129: 0
A130: (h) | B130: 1 Head cook @ Rs. 6,000/- per month and upto 2 Asstt. Cooks @ Rs. 4,500/- per month per cook | C130: 0 | D130: 0 | I130: 0 | J130: 0 | R130: 0 | S130: 0 | Z130: 0 | AA130: 0 | AB130: 0 | AC130: TRUE | AD130: TRUE | AE130: 0
A131: 3.27 | B131: Specific skill training @ Rs.1,000/- per child per annum | C131: 0 | D131: 0 | I131: 0 | J131: 0 | R131: 0 | S131: 0 | Z131: 0 | AA131: 0 | AB131: 0 | AC131: TRUE | AD131: TRUE | AE131: 0
A132: =+A131+0.01 -> 3.28 | B132: Electricity / water charges @ Rs.1,000/- per child per annum | C132: 0 | D132: 0 | I132: 0 | J132: 0 | R132: 0 | S132: 0 | Z132: 0 | AA132: 0 | AB132: 0 | AC132: TRUE | AD132: TRUE | AE132: 0
A133: 3.29 | B133: Medical care/contingencies @ Rs.1,250/- per child per annum | C133: 0 | D133: 0 | I133: 0 | J133: 0 | R133: 0 | S133: 0 | Z133: 0 | AA133: 0 | AB133: 0 | AC133: TRUE | AD133: TRUE | AE133: 0
A134: 3.3 | B134: Maintenance @ Rs.750/- per child per annum | C134: 0 | D134: 0 | I134: 0 | J134: 0 | R134: 0 | S134: 0 | Z134: 0 | AA134: 0 | AB134: 0 | AC134: TRUE | AD134: TRUE | AE134: 0
A135: 3.31 | B135: Miscellaneous @ Rs.750/- per child per annum | C135: 0 | D135: 0 | I135: =C135-E135 -> 0 | J135: 0 | R135: =P135+M135+K135 -> 0 | S135: 0 | Z135: 0 | AA135: 0 | AB135: 0 | AC135: TRUE | AD135: TRUE | AE135: 0
A136: 3.32 | B136: Preparatory camps @ Rs.200/- per child per annum | C136: 0 | D136: 0 | I136: 0 | J136: 0 | R136: 0 | S136: 0 | Z136: 0 | AA136: 0 | AB136: 0 | AC136: TRUE | AD136: TRUE | AE136: =AB136 -> 0
A137: 3.33 | B137: P.T.A / school functions @ Rs.200/- per child per annum | C137: 0 | D137: 0 | I137: 0 | J137: 0 | R137: 0 | S137: 0 | Z137: 0 | AA137: 0 | AB137: 0 | AC137: TRUE | AD137: TRUE | AE137: 0
A138: 3.34 | B138: Provision of Rent @ Rs. 6,000/- per child per annum | C138: 0 | D138: 0 | I138: 0 | J138: 0 | R138: 0 | S138: 0 | Z138: 0 | AA138: 0 | AB138: 0 | AC138: TRUE | AD138: TRUE | AE138: 0
A139: 3.35 | B139: Capacity Building @ Rs.500/- per child per annum | C139: 0 | D139: 0 | I139: 0 | J139: 0 | R139: 0 | S139: 0 | Z139: 0 | AA139: 0 | AB139: 0 | AC139: TRUE | AD139: TRUE | AE139: 0
A140: 3.36 | B140: Physical / Self Defence training @ Rs. 200/- per child per annum. | C140: 0 | D140: 0 | I140: 0 | J140: 0 | R140: 0 | S140: 0 | Z140: 0 | AA140: 0 | AB140: 0 | AC140: TRUE | AD140: TRUE | AE140: 0
B141: Sub Total (Recurring) | C141: =SUM(C119:C140) -> 0 | D141: =SUM(D119:D140) -> 0 | E141: =SUM(E119:E140) -> 0 | F141: =SUM(F119:F140) -> 0 | G141: =SUM(G119:G140) -> 0 | H141: =SUM(H119:H140) -> 0 | I141: =SUM(I119:I140) -> 0 | J141: =SUM(J119:J140) -> 0 | K141: =SUM(K119:K140) -> 0 | L141: =SUM(L119:L140) -> 0 | M141: =SUM(M119:M140) -> 0 | N141: =SUM(N119:N140) -> 0 | O141: 0 | P141: =SUM(P119:P140) -> 0 | Q141: =SUM(Q119:Q140) -> 0 | R141: =SUM(R119:R140) -> 0 | S141: =SUM(S119:S140) -> 0 | T141: =SUM(T119:T140) -> 0 | U141: =SUM(U119:U140) -> 0 | V141: =SUM(V119:V140) -> 0 | W141: =SUM(W119:W140) -> 0 | X141: 0 | Y141: =SUM(Y119:Y140) -> 0 | Z141: =SUM(Z119:Z140) -> 0 | AA141: =SUM(AA119:AA140) -> 0 | AB141: =SUM(AB119:AB140) -> 0 | AE141: 0
B142: Total (Recurring + Non Recurring) | C142: =C141+C117 -> 0 | D142: =D141+D117 -> 0 | E142: =E141+E117 -> 0 | F142: =F141+F117 -> 0 | G142: =G141+G117 -> 0 | H142: =H141+H117 -> 0 | I142: =I141+I117 -> 0 | J142: =J141+J117 -> 0 | K142: =K141+K117 -> 0 | L142: =L141+L117 -> 0 | M142: =M141+M117 -> 0 | N142: =N141+N117 -> 0 | O142: 0 | P142: =P141+P117 -> 0 | Q142: =Q141+Q117 -> 0 | R142: =R141+R117 -> 0 | S142: =S141+S117 -> 0 | T142: =T141+T117 -> 0 | U142: =U141+U117 -> 0 | V142: =V141+V117 -> 0 | W142: =W141+W117 -> 0 | X142: 0 | Y142: =Y141+Y117 -> 0 | Z142: =Z141+Z117 -> 0 | AA142: =AA141+AA117 -> 0 | AB142: =AB141+AB117 -> 0 | AE142: 0
B143: Total (A + B) | C143: =C142+C110 -> 0 | D143: 0 | E143: =E142+E110 -> 0 | F143: =F142+F110 -> 0 | G143: 0 | H143: 0 | I143: 0 | J143: 0 | K143: 0 | L143: 0 | M143: 0 | N143: 0 | O143: 0 | P143: 0 | Q143: 0 | R143: 0 | S143: 0 | T143: 0 | U143: 0 | V143: 0 | W143: 0 | X143: 0 | Y143: 0 | Z143: 0 | AA143: 0 | AB143: 0 | AE143: 0
A144: 4 | B144: Transport/Escort Facility | D144: 0 | AA144: =Y144+V144+T144 -> 0 | AB144: =Z144+W144+U144 -> 0 | AC144: =X144*Y144=Z144 -> TRUE | AD144: =U144+W144+Z144=AB144 -> TRUE | AE144: 0
A145: 4.01 | B145: Children in remote habitation | C145: 0 | D145: 0 | I145: =C145-E145 -> 0 | J145: =D145-F145 -> 0 | Q145: =+O145*P145 -> 0 | R145: =P145+M145+K145 -> 0 | S145: =Q145+N145+L145 -> 0 | Z145: =X145*Y145 -> 0 | AA145: =T145+V145+Y145 -> 0 | AB145: =U145+W145+Z145 -> 0 | AC145: TRUE | AD145: TRUE | AE145: 0
A146: 4.02 | B146: Urban deprived children/children without adult protection | C146: 0 | D146: 0 | I146: =C146-E146 -> 0 | J146: =D146-F146 -> 0 | R146: =P146+M146+K146 -> 0 | S146: =Q146+N146+L146 -> 0 | Z146: =X146*Y146 -> 0 | AA146: =T146+V146+Y146 -> 0 | AB146: =U146+W146+Z146 -> 0 | AC146: TRUE | AD146: TRUE | AE146: 0
B147: Sub Total | C147: =SUM(C145:C146) -> 0 | D147: 0 | E147: 0 | F147: 0 | G147: 0 | H147: 0 | I147: 0 | J147: 0 | K147: 0 | L147: 0 | M147: 0 | N147: 0 | O147: 0 | P147: 0 | Q147: 0 | R147: 0 | S147: 0 | T147: 0 | U147: 0 | V147: 0 | W147: 0 | X147: 0 | Y147: 0 | Z147: 0 | AA147: 0 | AB147: 0 | AE147: 0
A148: 5 | B148: Reimbursement of Fee against 25% admission under Section 12(1)(c) of RTE Act 2009 (Entry Level) subject to upper limit of 20% of AWP&B guidelines issued by MHRD | C148: 0 | D148: 0 | I148: =C148-E148 -> 0 | J148: =D148-F148 -> 0 | R148: =P148+M148+K148 -> 0 | S148: =Q148+N148+L148 -> 0 | Z148: =X148*Y148 -> 0 | AA148: =T148+V148+Y148 -> 0 | AB148: =U148+W148+Z148 -> 0 | AC148: =X148*Y148=Z148 -> TRUE | AD148: =U148+W148+Z148=AB148 -> TRUE | AE148: 0
B149: Sub Total | C149: =SUM(C148) -> 0 | D149: =SUM(D148) -> 0 | E149: =SUM(E148) -> 0 | F149: =SUM(F148) -> 0 | G149: =SUM(G148) -> 0 | H149: =SUM(H148) -> 0 | I149: =SUM(I148) -> 0 | J149: =SUM(J148) -> 0 | K149: =SUM(K148) -> 0 | L149: =SUM(L148) -> 0 | M149: =SUM(M148) -> 0 | N149: =SUM(N148) -> 0 | O149: 0 | P149: =SUM(P148) -> 0 | Q149: =SUM(Q148) -> 0 | R149: =SUM(R148) -> 0 | S149: =SUM(S148) -> 0 | T149: =SUM(T148) -> 0 | U149: =SUM(U148) -> 0 | V149: =SUM(V148) -> 0 | W149: =SUM(W148) -> 0 | X149: 0 | Y149: =SUM(Y148) -> 0 | Z149: =SUM(Z148) -> 0 | AA149: =SUM(AA148) -> 0 | AB149: =SUM(AB148) -> 0 | AE149: 0
A150: =+A148+1 -> 6 | B150: Special Training for mainstreaming of out of school children | D150: 0 | AA150: 0 | AB150: 0 | AC150: =X150*Y150=Z150 -> TRUE | AD150: =U150+W150+Z150=AB150 -> TRUE | AE150: 0
A151: 6.01 | B151: Residential (Fresh) | D151: 0 | AA151: 0 | AB151: 0 | AC151: TRUE | AD151: TRUE | AE151: 0
B152: (a) 12 months | C152: 0 | D152: 0 | I152: =C152-E152 -> 0 | J152: 0 | R152: =P152+M152+K152 -> 0 | S152: 0 | Z152: =X152*Y152 -> 0 | AA152: =T152+V152+Y152 -> 0 | AB152: =U152+W152+Z152 -> 0 | AC152: TRUE | AD152: TRUE | AE152: 0
B153: (b) 9 months | C153: 0 | D153: 0 | I153: 0 | J153: 0 | R153: 0 | S153: 0 | Z153: 0 | AA153: 0 | AB153: 0 | AC153: TRUE | AD153: TRUE | AE153: 0
B154: (c) 6 months | C154: 0 | D154: 0 | I154: 0 | J154: 0 | R154: 0 | S154: 0 | Z154: 0 | AA154: 0 | AB154: 0 | AC154: TRUE | AD154: TRUE | AE154: 0
B155: (d) 3 months | C155: 0 | D155: 0 | I155: 0 | J155: 0 | R155: 0 | S155: 0 | Z155: 0 | AA155: 0 | AB155: 0 | AC155: TRUE | AD155: TRUE | AE155: 0
B156: Sub Total | C156: =SUM(C152:C155) -> 0 | D156: =SUM(D152:D155) -> 0 | E156: =SUM(E152:E155) -> 0 | F156: =SUM(F152:F155) -> 0 | G156: =SUM(G152:G155) -> 0 | H156: =SUM(H152:H155) -> 0 | I156: =SUM(I152:I155) -> 0 | J156: =SUM(J152:J155) -> 0 | K156: =SUM(K152:K155) -> 0 | L156: =SUM(L152:L155) -> 0 | M156: =SUM(M152:M155) -> 0 | N156: =SUM(N152:N155) -> 0 | O156: 0 | P156: =SUM(P152:P155) -> 0 | Q156: =SUM(Q152:Q155) -> 0 | R156: =SUM(R152:R155) -> 0 | S156: =SUM(S152:S155) -> 0 | T156: =SUM(T152:T155) -> 0 | U156: =SUM(U152:U155) -> 0 | V156: =SUM(V152:V155) -> 0 | W156: =SUM(W152:W155) -> 0 | X156: 0 | Y156: =SUM(Y152:Y155) -> 0 | Z156: =SUM(Z152:Z155) -> 0 | AA156: =SUM(AA152:AA155) -> 0 | AB156: =SUM(AB152:AB155) -> 0 | AE156: 0
A157: =+A151+0.01 -> 6.02 | B157: Residential (Continuing from previous year) | D157: 0 | AA157: 0 | AB157: 0 | AC157: =X157*Y157=Z157 -> TRUE | AD157: =U157+W157+Z157=AB157 -> TRUE | AE157: 0
B158: (a) 12 months | C158: 0 | D158: 0 | I158: =C158-E158 -> 0 | J158: 0 | R158: =P158+M158+K158 -> 0 | S158: 0 | Z158: =X158*Y158 -> 0 | AA158: =T158+V158+Y158 -> 0 | AB158: =U158+W158+Z158 -> 0 | AC158: TRUE | AD158: TRUE | AE158: 0
B159: (b) 9 months | C159: 0 | D159: 0 | I159: 0 | J159: 0 | R159: 0 | S159: 0 | Z159: 0 | AA159: 0 | AB159: 0 | AC159: TRUE | AD159: TRUE | AE159: 0
B160: (c) 6 months | C160: 0 | D160: 0 | I160: 0 | J160: 0 | R160: 0 | S160: 0 | Z160: 0 | AA160: 0 | AB160: 0 | AC160: TRUE | AD160: TRUE | AE160: 0
B161: (d) 3 months | C161: 0 | D161: 0 | I161: 0 | J161: 0 | R161: 0 | S161: 0 | Z161: 0 | AA161: 0 | AB161: 0 | AC161: TRUE | AD161: TRUE | AE161: 0
B162: Sub Total | C162: =SUM(C158:C161) -> 0 | D162: =SUM(D158:D161) -> 0 | E162: =SUM(E158:E161) -> 0 | F162: =SUM(F158:F161) -> 0 | G162: =SUM(G158:G161) -> 0 | H162: =SUM(H158:H161) -> 0 | I162: =SUM(I158:I161) -> 0 | J162: =SUM(J158:J161) -> 0 | K162: =SUM(K158:K161) -> 0 | L162: =SUM(L158:L161) -> 0 | M162: =SUM(M158:M161) -> 0 | N162: =SUM(N158:N161) -> 0 | O162: 0 | P162: =SUM(P158:P161) -> 0 | Q162: =SUM(Q158:Q161) -> 0 | R162: =SUM(R158:R161) -> 0 | S162: =SUM(S158:S161) -> 0 | T162: =SUM(T158:T161) -> 0 | U162: =SUM(U158:U161) -> 0 | V162: =SUM(V158:V161) -> 0 | W162: =SUM(W158:W161) -> 0 | X162: 0 | Y162: =SUM(Y158:Y161) -> 0 | Z162: =SUM(Z158:Z161) -> 0 | AA162: =SUM(AA158:AA161) -> 0 | AB162: =SUM(AB158:AB161) -> 0 | AE162: 0
A163: 6.03 | B163: Non-Residential (Fresh) | D163: 0 | AA163: 0 | AB163: 0 | AC163: =X163*Y163=Z163 -> TRUE | AD163: =U163+W163+Z163=AB163 -> TRUE | AE163: 0
B164: (a) 12 months | C164: 0 | D164: 0 | I164: =C164-E164 -> 0 | J164: 0 | S164: =Q164+N164+L164 -> 0 | AA164: =T164+V164+Y164 -> 0 | AB164: =U164+W164+Z164 -> 0 | AC164: TRUE | AD164: TRUE | AE164: 0
B165: (b) 10 months | C165: 1680 | D165: 43.68 | E165: 206 | F165: 5.356 | I165: 1474 | J165: 38.324 | O165: 0.06 | P165: 1041 | Q165: =O165*P165 -> 62.46 | R165: =K165+M165+P165 -> 1041 | S165: =L165+N165+Q165 -> 62.46 | X165: 0.06 | Y165: 1041 | Z165: =Y165*X165 -> 62.46 | AA165: 1041 | AB165: =U165+W165+Z165 -> 62.46 | AC165: TRUE | AD165: TRUE | AE165: 62.46
B166: (c) 6 months | C166: 0 | D166: 0 | I166: 0 | J166: 0 | R166: 0 | S166: 0 | AA166: 0 | AB166: =U166+W166+Z166 -> 0 | AC166: TRUE | AD166: TRUE | AE166: 0
B167: (d) 3 months | C167: 0 | D167: 0 | I167: 0 | J167: 0 | R167: 0 | S167: 0 | AA167: 0 | AB167: 0 | AC167: TRUE | AD167: TRUE | AE167: 0
B168: Sub Total | C168: =SUM(C164:C167) -> 1680 | D168: =SUM(D164:D167) -> 43.68 | E168: =SUM(E164:E167) -> 206 | F168: =SUM(F164:F167) -> 5.356 | G168: =SUM(G164:G167) -> 0 | H168: =SUM(H164:H167) -> 0 | I168: =SUM(I164:I167) -> 1474 | J168: =SUM(J164:J167) -> 38.324 | K168: =SUM(K164:K167) -> 0 | L168: =SUM(L164:L167) -> 0 | M168: =SUM(M164:M167) -> 0 | N168: =SUM(N164:N167) -> 0 | O168: 0.06 | P168: =SUM(P164:P167) -> 1041 | Q168: =SUM(Q164:Q167) -> 62.46 | R168: =SUM(R164:R167) -> 1041 | S168: =SUM(S164:S167) -> 62.46 | T168: =SUM(T164:T167) -> 0 | U168: =SUM(U164:U167) -> 0 | V168: =SUM(V164:V167) -> 0 | W168: =SUM(W164:W167) -> 0 | X168: 0.06 | Y168: =SUM(Y164:Y167) -> 1041 | Z168: =SUM(Z164:Z167) -> 62.46 | AA168: =SUM(AA164:AA167) -> 1041 | AB168: =SUM(AB164:AB167) -> 62.46 | AE168: 62.46
A169: 6.04 | B169: Non-Residential (Continuing from previous year) | D169: 0 | AD169: =U169+W169+Z169=AB169 -> TRUE | AE169: 0
B170: (a) 12 months | C170: 0 | D170: 0 | I170: =C170-E170 -> 0 | J170: 0 | S170: =Q170+N170+L170 -> 0 | Z170: =X170*Y170 -> 0 | AA170: =T170+V170+Y170 -> 0 | AB170: =U170+W170+Z170 -> 0 | AC170: =X170*Y170=Z170 -> TRUE | AD170: TRUE | AE170: 0
B171: (b) 9 months | C171: 1206 | D171: 51.858 | E171: 1206 | F171: 51.858 | I171: 0 | J171: 0 | O171: 0.06 | P171: 465 | Q171: =O171*P171 -> 27.9 | R171: =K171+M171+P171 -> 465 | S171: 27.9 | X171: 0.06 | Y171: 465 | Z171: 27.9 | AA171: 465 | AB171: 27.9 | AC171: TRUE | AD171: TRUE | AE171: 27.9
B172: (c) 6 months | C172: 0 | D172: 0 | I172: 0 | J172: 0 | R172: 0 | S172: 0 | Z172: 0 | AA172: 0 | AB172: 0 | AC172: TRUE | AD172: TRUE | AE172: 0
B173: (d) 3 months | C173: 0 | D173: 0 | I173: 0 | J173: 0 | R173: 0 | S173: 0 | Z173: 0 | AA173: 0 | AB173: 0 | AC173: TRUE | AD173: TRUE | AE173: 0
B174: Sub Total | C174: =SUM(C170:C173) -> 1206 | D174: =SUM(D170:D173) -> 51.858 | E174: =SUM(E170:E173) -> 1206 | F174: =SUM(F170:F173) -> 51.858 | G174: =SUM(G170:G173) -> 0 | H174: =SUM(H170:H173) -> 0 | I174: =SUM(I170:I173) -> 0 | J174: =SUM(J170:J173) -> 0 | K174: =SUM(K170:K173) -> 0 | L174: =SUM(L170:L173) -> 0 | M174: =SUM(M170:M173) -> 0 | N174: =SUM(N170:N173) -> 0 | O174: 0.06 | P174: =SUM(P170:P173) -> 465 | Q174: =SUM(Q170:Q173) -> 27.9 | R174: 465 | S174: =SUM(S170:S173) -> 27.9 | T174: =SUM(T170:T173) -> 0 | U174: =SUM(U170:U173) -> 0 | V174: =SUM(V170:V173) -> 0 | W174: =SUM(W170:W173) -> 0 | X174: 0.06 | Y174: =SUM(Y170:Y173) -> 465 | Z174: =SUM(Z170:Z173) -> 27.9 | AA174: =SUM(AA170:AA173) -> 465 | AB174: =SUM(AB170:AB173) -> 27.9 | AE174: 27.9
A175: 6.05 | B175: Madarasa/Maktab | D175: 0 | Z175: =X175*Y175 -> 0 | AA175: =T175+V175+Y175 -> 0 | AB175: =U175+W175+Z175 -> 0 | AC175: =X175*Y175=Z175 -> TRUE | AD175: =U175+W175+Z175=AB175 -> TRUE | AE175: 0
B176: (a) 12 months | C176: 0 | D176: 0 | I176: =C176-E176 -> 0 | J176: 0 | S176: =Q176+N176+L176 -> 0 | Z176: 0 | AA176: 0 | AB176: 0 | AC176: TRUE | AD176: TRUE | AE176: 0
B177: (b) 9 months | C177: 0 | D177: 0 | I177: 0 | J177: 0 | R177: 0 | S177: 0 | Z177: 0 | AA177: 0 | AB177: 0 | AC177: TRUE | AD177: TRUE | AE177: 0
B178: (c) 6 months | C178: 0 | D178: 0 | I178: 0 | J178: 0 | R178: 0 | S178: 0 | Z178: 0 | AA178: 0 | AB178: 0 | AC178: TRUE | AD178: TRUE | AE178: 0
B179: (d) 3 months | C179: 0 | D179: 0 | I179: 0 | J179: 0 | R179: 0 | S179: 0 | Z179: 0 | AA179: 0 | AB179: 0 | AC179: TRUE | AD179: TRUE | AE179: 0
B180: Sub Total | C180: =SUM(C176:C179) -> 0 | D180: =SUM(D176:D179) -> 0 | E180: =SUM(E176:E179) -> 0 | F180: =SUM(F176:F179) -> 0 | G180: =SUM(G176:G179) -> 0 | H180: =SUM(H176:H179) -> 0 | I180: =SUM(I176:I179) -> 0 | J180: =SUM(J176:J179) -> 0 | K180: =SUM(K176:K179) -> 0 | L180: =SUM(L176:L179) -> 0 | M180: =SUM(M176:M179) -> 0 | N180: =SUM(N176:N179) -> 0 | O180: 0 | P180: =SUM(P176:P179) -> 0 | Q180: =SUM(Q176:Q179) -> 0 | R180: =SUM(R176:R179) -> 0 | S180: =SUM(S176:S179) -> 0 | T180: =SUM(T176:T179) -> 0 | U180: =SUM(U176:U179) -> 0 | V180: =SUM(V176:V179) -> 0 | W180: =SUM(W176:W179) -> 0 | X180: 0 | Y180: =SUM(Y176:Y179) -> 0 | Z180: =SUM(Z176:Z179) -> 0 | AA180: =SUM(AA176:AA179) -> 0 | AB180: =SUM(AB176:AB179) -> 0 | AE180: 0
A181: 6.06 | B181: Seasonal Hostel (Residential) | D181: 0 | AA181: 0 | AB181: 0 | AC181: =X181*Y181=Z181 -> TRUE | AD181: =U181+W181+Z181=AB181 -> TRUE | AE181: 0
B182: (a) 12 months | C182: 0 | D182: 0 | I182: =C182-E182 -> 0 | J182: 0 | R182: =P182+M182+K182 -> 0 | S182: 0 | Z182: =X182*Y182 -> 0 | AA182: =T182+V182+Y182 -> 0 | AB182: =U182+W182+Z182 -> 0 | AC182: TRUE | AD182: TRUE | AE182: 0
B183: (b) 9 months | C183: 0 | D183: 0 | I183: 0 | J183: 0 | R183: 0 | S183: 0 | Z183: 0 | AA183: 0 | AB183: 0 | AC183: TRUE | AD183: TRUE | AE183: 0
B184: (c) 6 months | C184: 0 | D184: 0 | I184: 0 | J184: 0 | R184: 0 | S184: 0 | Z184: 0 | AA184: 0 | AB184: 0 | AC184: TRUE | AD184: TRUE | AE184: 0
B185: (d) 3 months | C185: 0 | D185: 0 | I185: 0 | J185: 0 | R185: 0 | S185: 0 | Z185: 0 | AA185: 0 | AB185: 0 | AC185: TRUE | AD185: TRUE | AE185: 0
B186: Sub Total | C186: =SUM(C182:C185) -> 0 | D186: =SUM(D182:D185) -> 0 | E186: =SUM(E182:E185) -> 0 | F186: =SUM(F182:F185) -> 0 | G186: =SUM(G182:G185) -> 0 | H186: =SUM(H182:H185) -> 0 | I186: =SUM(I182:I185) -> 0 | J186: =SUM(J182:J185) -> 0 | K186: =SUM(K182:K185) -> 0 | L186: =SUM(L182:L185) -> 0 | M186: =SUM(M182:M185) -> 0 | N186: =SUM(N182:N185) -> 0 | O186: 0 | P186: =SUM(P182:P185) -> 0 | Q186: =SUM(Q182:Q185) -> 0 | R186: =SUM(R182:R185) -> 0 | S186: =SUM(S182:S185) -> 0 | T186: =SUM(T182:T185) -> 0 | U186: =SUM(U182:U185) -> 0 | V186: =SUM(V182:V185) -> 0 | W186: =SUM(W182:W185) -> 0 | X186: 0 | Y186: =SUM(Y182:Y185) -> 0 | Z186: =SUM(Z182:Z185) -> 0 | AA186: =SUM(AA182:AA185) -> 0 | AB186: =SUM(AB182:AB185) -> 0 | AE186: 0
A187: 6.07 | B187: Seasonal Hostel (Non Residential) | D187: 0 | AA187: 0 | AB187: 0 | AC187: =X187*Y187=Z187 -> TRUE | AD187: =U187+W187+Z187=AB187 -> TRUE | AE187: 0
B188: (a) 12 months | C188: 0 | D188: 0 | I188: =C188-E188 -> 0 | J188: 0 | R188: =P188+M188+K188 -> 0 | S188: 0 | Z188: =X188*Y188 -> 0 | AA188: =T188+V188+Y188 -> 0 | AB188: =U188+W188+Z188 -> 0 | AC188: TRUE | AD188: TRUE | AE188: 0
B189: (b) 9 months | C189: 0 | D189: 0 | I189: 0 | J189: 0 | R189: 0 | S189: 0 | Z189: 0 | AA189: 0 | AB189: 0 | AC189: TRUE | AD189: TRUE | AE189: 0
B190: (c) 6 months | C190: 0 | D190: 0 | I190: 0 | J190: 0 | R190: 0 | S190: 0 | Z190: 0 | AA190: 0 | AB190: 0 | AC190: TRUE | AD190: TRUE | AE190: 0
B191: (d) 3 months | C191: 0 | D191: 0 | I191: 0 | J191: 0 | R191: 0 | S191: 0 | Z191: 0 | AA191: 0 | AB191: 0 | AC191: TRUE | AD191: TRUE | AE191: 0
B192: Sub Total | C192: =SUM(C188:C191) -> 0 | D192: =SUM(D188:D191) -> 0 | E192: =SUM(E188:E191) -> 0 | F192: =SUM(F188:F191) -> 0 | G192: =SUM(G188:G191) -> 0 | H192: =SUM(H188:H191) -> 0 | I192: =SUM(I188:I191) -> 0 | J192: =SUM(J188:J191) -> 0 | K192: =SUM(K188:K191) -> 0 | L192: =SUM(L188:L191) -> 0 | M192: =SUM(M188:M191) -> 0 | N192: =SUM(N188:N191) -> 0 | O192: 0 | P192: =SUM(P188:P191) -> 0 | Q192: =SUM(Q188:Q191) -> 0 | R192: =SUM(R188:R191) -> 0 | S192: =SUM(S188:S191) -> 0 | T192: =SUM(T188:T191) -> 0 | U192: =SUM(U188:U191) -> 0 | V192: =SUM(V188:V191) -> 0 | W192: =SUM(W188:W191) -> 0 | X192: 0 | Y192: =SUM(Y188:Y191) -> 0 | Z192: =SUM(Z188:Z191) -> 0 | AA192: =SUM(AA188:AA191) -> 0 | AB192: 0 | AE192: 0
B193: Total | C193: =C192+C186+C180+C174+C168+C162+C156 -> 2886 | D193: =D192+D186+D180+D174+D168+D162+D156 -> 95.538 | E193: =E192+E186+E180+E174+E168+E162+E156 -> 1412 | F193: =F192+F186+F180+F174+F168+F162+F156 -> 57.214 | G193: =G192+G186+G180+G174+G168+G162+G156 -> 0 | H193: =H192+H186+H180+H174+H168+H162+H156 -> 0 | I193: =I192+I186+I180+I174+I168+I162+I156 -> 1474 | J193: =J192+J186+J180+J174+J168+J162+J156 -> 38.324 | K193: =K192+K186+K180+K174+K168+K162+K156 -> 0 | L193: =L192+L186+L180+L174+L168+L162+L156 -> 0 | M193: =M192+M186+M180+M174+M168+M162+M156 -> 0 | N193: =N192+N186+N180+N174+N168+N162+N156 -> 0 | O193: 0.12 | P193: =P192+P186+P180+P174+P168+P162+P156 -> 1506 | Q193: =Q192+Q186+Q180+Q174+Q168+Q162+Q156 -> 90.36 | R193: 1506 | S193: =S192+S186+S180+S174+S168+S162+S156 -> 90.36 | T193: =T192+T186+T180+T174+T168+T162+T156 -> 0 | U193: =U192+U186+U180+U174+U168+U162+U156 -> 0 | V193: =V192+V186+V180+V174+V168+V162+V156 -> 0 | W193: =W192+W186+W180+W174+W168+W162+W156 -> 0 | X193: 0.12 | Y193: =Y192+Y186+Y180+Y174+Y168+Y162+Y156 -> 1506 | Z193: =Z192+Z186+Z180+Z174+Z168+Z162+Z156 -> 90.36 | AA193: 1506 | AB193: =AB192+AB186+AB180+AB174+AB168+AB162+AB156 -> 90.36 | AE193: 90.36
A194: II | B194: RETENTION | D194: 0 | AC194: =X194*Y194=Z194 -> TRUE | AD194: =U194+W194+Z194=AB194 -> TRUE | AE194: 0
A195: 7 | B195: Free Text Books | D195: 0 | AC195: TRUE | AD195: TRUE | AE195: 0
A196: 7.01 | B196: Free Text Books (P) | C196: 0 | D196: 0 | I196: =C196-E196 -> 0 | J196: 0 | N196: 0 | AC196: TRUE | AD196: TRUE | AE196: 0
B197: (a) Class I & II | C197: 18988 | D197: 28.482 | E197: 18988 | F197: 28.482 | I197: 0 | J197: 0 | O197: 0.0015 | P197: 18988 | Q197: =P197*O197 -> 28.482 | R197: =P197+M197+K197 -> 18988 | S197: 28.482 | X197: 0.0015 | Y197: 18988 | Z197: =X197*Y197 -> 28.482 | AA197: =T197+V197+Y197 -> 18988 | AB197: =U197+W197+Z197 -> 28.482 | AC197: Recommended propsed | AD197: TRUE | AE197: 28.482
B198: (b) Braille Books Class I & II | C198: 4 | D198: 0.006 | E198: 4 | F198: 0.006 | I198: 0 | J198: 0 | O198: 0.0015 | P198: 0 | Q198: 0 | R198: 0 | S198: 0 | X198: 0.0015 | Y198: 0 | Z198: =X198*Y198 -> 0 | AA198: 0 | AB198: =U198+W198+Z198 -> 0 | AC198: TRUE | AD198: TRUE | AE198: 0
B199: (c) Large Print Books Class I & II | C199: 0 | D199: 0 | E199: 0 | F199: 0 | I199: 0 | J199: 0 | O199: 0.0015 | P199: 0 | Q199: 0 | R199: 0 | S199: 0 | X199: 0.0015 | Y199: 0 | Z199: 0 | AA199: 0 | AB199: 0 | AC199: TRUE | AD199: TRUE | AE199: 0
B200: (d) Class III to V | C200: 22135 | D200: 33.2025 | E200: 22135 | F200: 33.2025 | I200: 0 | J200: 0 | O200: 0.0015 | P200: 22135 | Q200: 33.2025 | R200: 22135 | S200: 33.2025 | X200: 0.0015 | Y200: 22135 | Z200: 33.2025 | AA200: 22135 | AB200: 33.2025 | AC200: Recommended propsed | AD200: TRUE | AE200: =AB200 -> 33.2025
... 325 more rows

Sheet WKH
A1: S.No. | B1: Activity | C1: Year 2016-17 | K1: Outlay Proposed for 2017-18 | T1: Outlay Recommended for 2017-18
C2: Outlay approved by PAB (including spillover) | E2: Achievement during the year | I2: Savings | K2: Spill Over | M2: Deferred laibility of 2014-15 | O2: Fresh | R2: Total | T2: Spill Over | V2: Deferred laibility of 2014-15 | X2: Fresh | AA2: Total
C3: Phy. | D3: Fin. | E3: Phy. | F3: Fin. | G3: Phy. (%) | H3: Fin. (%) | I3: Phy. | J3: Fin. | K3: Phy. | L3: Fin. | M3: Phy. | N3: Fin. | O3: Unit Cost | P3: Phy. | Q3: Fin. | R3: Phy. | S3: Fin. | T3: Phy. | U3: Fin. | V3: Phy. | W3: Fin. | X3: Unit Cost | Y3: Phy. | Z3: Fin. | AA3: Phy. | AB3: Fin.
A4: I | B4: ACCESS
B5: SSA
A6: 1 | B6: Opening of New Schools
A7: 1.01 | B7: New Primary School | D7: 0 | I7: =C7-E7 -> 0 | J7: =D7-F7 -> 0 | R7: =P7+M7+K7 -> 0 | S7: =Q7+N7+L7 -> 0 | AA7: =T7+V7+Y7 -> 0 | AB7: =U7+W7+Z7 -> 0 | AC7: =X7*Y7=Z7 -> TRUE | AD7: =U7+W7+Z7=AB7 -> TRUE | AE7: =AB7 -> 0
A8: 1.02 | B8: Upgradation of PS to UPS | C8: 1 | D8: 0 | E8: 1 | I8: =C8-E8 -> 0 | J8: 0 | R8: =P8+M8+K8 -> 0 | S8: 0 | AA8: =T8+V8+Y8 -> 0 | AB8: =U8+W8+Z8 -> 0 | AC8: =X8*Y8=Z8 -> TRUE | AD8: =U8+W8+Z8=AB8 -> TRUE | AE8: =AB8 -> 0
A9: 1.03 | B9: Composite Schools | C9: 0 | D9: 0 | I9: 0 | J9: 0 | R9: 0 | S9: 0 | AA9: 0 | AB9: 0 | AC9: TRUE | AD9: TRUE | AE9: 0
A10: 1.04 | B10: Residential schools for specific category of children | C10: 0 | D10: 0 | I10: 0 | J10: 0 | R10: 0 | S10: 0 | AA10: 0 | AB10: 0 | AC10: TRUE | AD10: TRUE | AE10: 0
A11: 1.05 | B11: Residential Hostel | C11: 0 | D11: 0 | I11: 0 | J11: 0 | R11: 0 | S11: 0 | AA11: 0 | AB11: 0 | AC11: TRUE | AD11: TRUE | AE11: 0
A12: 1.06 | B12: Integration of Class V with primary schools | C12: 0 | D12: 0 | I12: 0 | J12: 0 | R12: 0 | S12: 0 | AA12: 0 | AB12: 0 | AC12: TRUE | AD12: TRUE | AE12: 0
A13: 1.07 | B13: Integration of Class VIII with upper primary schools | C13: 0 | D13: 0 | I13: 0 | J13: 0 | R13: 0 | S13: 0 | AA13: 0 | AB13: 0 | AC13: TRUE | AD13: TRUE | AE13: 0
A14: 2 | B14: Residential Schools for specific category of children | C14: 0 | D14: 0 | I14: 0 | J14: 0 | R14: 0 | S14: 0 | AA14: =Y14+V14+T14 -> 0 | AB14: =Z14+W14+U14 -> 0 | AC14: TRUE | AD14: TRUE | AE14: 0
B15: 50 children | C15: 0 | D15: 0 | I15: 0 | J15: 0 | R15: 0 | S15: 0 | AA15: 0 | AB15: 0 | AC15: TRUE | AD15: TRUE | AE15: 0
B16: Non-recurring (one time grant) | C16: 0 | D16: 0 | I16: 0 | J16: 0 | R16: 0 | S16: 0 | AA16: 0 | AB16: 0 | AC16: TRUE | AD16: TRUE | AE16: 0
A17: 2.01 | B17: Furniture/ Equipment (including kitchen) | C17: 0 | D17: 0 | I17: 0 | J17: 0 | R17: 0 | S17: 0 | Z17: =X17*Y17 -> 0 | AA17: =T17+V17+Y17 -> 0 | AB17: =U17+W17+Z17 -> 0 | AC17: TRUE | AD17: TRUE | AE17: 0
A18: 2.02 | B18: TLM and equipment including library books | C18: 0 | D18: 0 | I18: 0 | J18: 0 | R18: 0 | S18: 0 | Z18: 0 | AA18: 0 | AB18: 0 | AC18: TRUE | AD18: TRUE | AE18: 0
A19: 2.03 | B19: Bedding (new) | C19: 0 | D19: 0 | I19: 0 | J19: 0 | R19: 0 | S19: 0 | Z19: 0 | AA19: 0 | AB19: 0 | AC19: TRUE | AD19: TRUE | AE19: 0
A20: 2.04 | B20: Replacement of bedding (once in 3 years) | C20: 0 | D20: 0 | I20: 0 | J20: 0 | R20: 0 | S20: 0 | Z20: 0 | AA20: 0 | AB20: 0 | AC20: TRUE | AD20: TRUE | AE20: 0
B21: Sub Total (Non Recurring) | C21: =SUM(C15:C20) -> 0 | D21: =SUM(D15:D20) -> 0 | E21: 0 | F21: 0 | G21: 0 | H21: 0 | I21: 0 | J21: 0 | K21: 0 | L21: 0 | M21: 0 | N21: 0 | O21: 0 | P21: 0 | Q21: 0 | R21: 0 | S21: 0 | T21: 0 | U21: 0 | V21: 0 | W21: 0 | X21: 0 | Y21: 0 | Z21: 0 | AA21: 0 | AB21: 0 | AE21: 0
B22: Recurring (50 children) | C22: 0 | D22: 0 | AA22: 0 | AB22: 0 | AE22: 0
A23: 2.05 | B23: Maintenance @ Rs.1,500/- per child Per month | C23: 0 | D23: 0 | I23: =C23-E23 -> 0 | J23: 0 | R23: =P23+M23+K23 -> 0 | S23: 0 | Z23: =X23*Y23 -> 0 | AA23: =T23+V23+Y23 -> 0 | AB23: =U23+W23+Z23 -> 0 | AC23: =X23*Y23=Z23 -> TRUE | AD23: =U23+W23+Z23=AB23 -> TRUE | AE23: 0
A24: 2.06 | B24: Stipend @ Rs.100/- per child per month | C24: 0 | D24: 0 | I24: 0 | J24: 0 | R24: 0 | S24: 0 | Z24: 0 | AA24: 0 | AB24: 0 | AC24: TRUE | AD24: TRUE | AE24: 0
A25: 2.07 | B25: Supplementary TLM, Stationery and other educational material @Rs.1,000/- per child per annum | C25: 0 | D25: 0 | I25: 0 | J25: 0 | R25: 0 | S25: 0 | Z25: 0 | AA25: 0 | AB25: 0 | AC25: TRUE | AD25: TRUE | AE25: 0
A26: 2.08 | B26: Salaries | C26: 0 | D26: 0 | I26: 0 | J26: 0 | R26: 0 | S26: 0 | Z26: 0 | AA26: 0 | AB26: 0 | AC26: TRUE | AD26: TRUE | AE26: 0
A27: (a) | B27: 1 Warden @ Rs.25,000/- per month | C27: 0 | D27: 0 | I27: 0 | J27: 0 | R27: 0 | S27: 0 | Z27: 0 | AA27: 0 | AB27: 0 | AC27: TRUE | AD27: TRUE | AE27: 0
A28: (b) | B28: 4 Fulltime teachers as per RTE Norms @ Rs. 20,000/- per month per teacher | C28: 0 | D28: 0 | I28: 0 | J28: 0 | R28: 0 | S28: 0 | Z28: 0 | AA28: 0 | AB28: 0 | AC28: TRUE | AD28: TRUE | AE28: 0
A29: (c) | B29: 2 Urdu Teachers (only for Blocks with muslim population above 20% and select urban areas) if required @ Rs.12,000/- per month per teacher. | C29: 0 | D29: 0 | I29: 0 | J29: 0 | R29: 0 | S29: 0 | Z29: 0 | AA29: 0 | AB29: 0 | AC29: TRUE | AD29: TRUE | AE29: 0
A30: (d) | B30: 3 Part time teachers @ Rs.5,000/- per month per teacher | C30: 0 | D30: 0 | I30: 0 | J30: 0 | R30: 0 | S30: 0 | Z30: 0 | AA30: 0 | AB30: 0 | AC30: TRUE | AD30: TRUE | AE30: 0
A31: (e) | B31: 1 Full time Accountant @ Rs. 10,000/- per month | C31: 0 | D31: 0 | I31: 0 | J31: 0 | R31: 0 | S31: 0 | Z31: 0 | AA31: 0 | AB31: 0 | AC31: TRUE | AD31: TRUE | AE31: 0
A32: (f) | B32: 2 Support staff - (Accountant/Assistant, Peon, Chowkidar) @ Rs. 5,000/- per month per staff | C32: 0 | D32: 0 | I32: 0 | J32: 0 | R32: 0 | S32: 0 | Z32: 0 | AA32: 0 | AB32: 0 | AC32: TRUE | AD32: TRUE | AE32: 0
A33: (g) | B33: 1 Head Cook @ Rs. 6,000/- per month and upto 2 Asstt. Cooks @ Rs. 4,500/- per month per cook | C33: 0 | D33: 0 | I33: 0 | J33: 0 | R33: 0 | S33: 0 | Z33: 0 | AA33: 0 | AB33: 0 | AC33: TRUE | AD33: TRUE | AE33: 0
A34: 2.09 | B34: Specific Skill training @ Rs.1,000/- per child per annum | C34: 0 | D34: 0 | I34: 0 | J34: 0 | R34: 0 | S34: 0 | Z34: 0 | AA34: 0 | AB34: 0 | AC34: TRUE | AD34: TRUE | AE34: 0
A35: 2.1 | B35: Electricity / water charges @ Rs. 1,000/- per child per annum | C35: 0 | D35: 0 | I35: 0 | J35: 0 | R35: 0 | S35: 0 | Z35: 0 | AA35: 0 | AB35: 0 | AC35: TRUE | AD35: TRUE | AE35: 0
A36: =+A35+0.01 -> 2.11 | B36: Medical care/contingencies @ Rs.1,250/- per child per annum | C36: 0 | D36: 0 | I36: 0 | J36: 0 | R36: 0 | S36: 0 | Z36: 0 | AA36: 0 | AB36: 0 | AC36: TRUE | AD36: TRUE | AE36: 0
A37: =+A36+0.01 -> 2.12 | B37: Maintenance @ Rs. 750/- per child per annum | C37: 0 | D37: 0 | I37: 0 | J37: 0 | R37: 0 | S37: 0 | Z37: 0 | AA37: 0 | AB37: 0 | AC37: TRUE | AD37: TRUE | AE37: 0
A38: 2.13 | B38: Miscellaneous @ Rs. 750/- per child per annum | C38: 0 | D38: 0 | I38: 0 | J38: 0 | R38: 0 | S38: 0 | Z38: 0 | AA38: 0 | AB38: 0 | AC38: TRUE | AD38: TRUE | AE38: 0
A39: 2.14 | B39: Preparatory camps @ Rs. 300/- per child per annum | C39: 0 | D39: 0 | I39: =C39-E39 -> 0 | J39: 0 | R39: =P39+M39+K39 -> 0 | S39: 0 | Z39: 0 | AA39: 0 | AB39: 0 | AC39: TRUE | AD39: TRUE | AE39: 0
A40: 2.15 | B40: P.T.A / school functions @ Rs. 300/- per child per annum | C40: 0 | D40: 0 | I40: 0 | J40: 0 | R40: 0 | S40: 0 | Z40: 0 | AA40: 0 | AB40: 0 | AC40: TRUE | AD40: TRUE | AE40: 0
A41: 2.16 | B41: Provision of Rent @ Rs. 10,000/- per child per annum | C41: 0 | D41: 0 | I41: 0 | J41: 0 | R41: 0 | S41: 0 | Z41: 0 | AA41: 0 | AB41: 0 | AC41: TRUE | AD41: TRUE | AE41: 0
A42: 2.17 | B42: Capacity Building @ Rs. 500/- per child per annum | C42: 0 | D42: 0 | I42: 0 | J42: 0 | R42: 0 | S42: 0 | Z42: 0 | AA42: 0 | AB42: 0 | AC42: TRUE | AD42: TRUE | AE42: 0
A43: 2.18 | B43: Physical / Self Defence Training @ Rs.200/- per child per annum | C43: 0 | D43: 0 | I43: 0 | J43: 0 | R43: 0 | S43: 0 | Z43: 0 | AA43: 0 | AB43: 0 | AC43: TRUE | AD43: TRUE | AE43: 0
B44: Sub Total (Recurring) | C44: 0 | D44: 0 | E44: 0 | F44: 0 | G44: 0 | H44: 0 | I44: 0 | J44: 0 | K44: 0 | L44: 0 | M44: 0 | N44: 0 | O44: 0 | P44: 0 | Q44: 0 | R44: 0 | S44: 0 | T44: 0 | U44: 0 | V44: 0 | W44: 0 | X44: 0 | Y44: 0 | Z44: 0 | AA44: 0 | AB44: 0 | AE44: 0
B45: Total (Non Recurring + Recurring) | C45: =C44+C21 -> 0 | D45: =D44+D21 -> 0 | E45: 0 | F45: 0 | G45: 0 | H45: 0 | I45: 0 | J45: 0 | K45: 0 | L45: 0 | M45: 0 | N45: 0 | O45: 0 | P45: 0 | Q45: 0 | R45: 0 | S45: 0 | T45: 0 | U45: 0 | V45: 0 | W45: 0 | X45: 0 | Y45: 0 | Z45: 0 | AA45: 0 | AB45: 0 | AE45: 0
B46: 100 children | C46: 0 | D46: 0 | AA46: 0 | AB46: 0 | AC46: =X46*Y46=Z46 -> TRUE | AD46: =U46+W46+Z46=AB46 -> TRUE | AE46: 0
B47: Non-recurring (one time grant) | C47: 0 | D47: 0 | AA47: 0 | AB47: 0 | AC47: TRUE | AD47: TRUE | AE47: 0
A48: 2.19 | B48: Furniture / Equipment (including kitchen equipment) | C48: 0 | D48: 0 | I48: =C48-E48 -> 0 | J48: 0 | R48: =P48+M48+K48 -> 0 | S48: 0 | Z48: =X48*Y48 -> 0 | AA48: =T48+V48+Y48 -> 0 | AB48: =U48+W48+Z48 -> 0 | AC48: TRUE | AD48: TRUE | AE48: 0
A49: =+A48+0.01 -> 2.2 | B49: TLM and equipment including library books (New) | C49: 0 | D49: 0 | I49: 0 | J49: 0 | R49: 0 | S49: 0 | Z49: 0 | AA49: 0 | AB49: 0 | AC49: TRUE | AD49: TRUE | AE49: 0
A50: =+A49+0.01 -> 2.21 | B50: Bedding (New) | C50: 0 | D50: 0 | I50: 0 | J50: 0 | R50: 0 | S50: 0 | Z50: 0 | AA50: 0 | AB50: 0 | AC50: TRUE | AD50: TRUE | AE50: 0
A51: =+A50+0.01 -> 2.22 | B51: Replacement of bedding (once in 3 years) | C51: 0 | D51: 0 | I51: 0 | J51: 0 | R51: 0 | S51: 0 | Z51: 0 | AA51: 0 | AB51: 0 | AC51: TRUE | AD51: TRUE | AE51: 0
B52: Sub Total Non-recurring | C52: =SUM(C48:C51) -> 0 | D52: =SUM(D48:D51) -> 0 | E52: 0 | F52: 0 | G52: 0 | H52: 0 | I52: 0 | J52: 0 | K52: 0 | L52: 0 | M52: 0 | N52: 0 | O52: 0 | P52: 0 | Q52: 0 | R52: 0 | S52: 0 | T52: 0 | U52: 0 | V52: 0 | W52: 0 | X52: 0 | Y52: 0 | Z52: 0 | AA52: 0 | AB52: 0 | AE52: 0
B53: Recurring | C53: 0 | D53: 0 | AA53: 0 | AB53: 0 | AC53: =X53*Y53=Z53 -> TRUE | AD53: =U53+W53+Z53=AB53 -> TRUE | AE53: 0
A54: 2.23 | B54: Maintenance @ Rs. 1,500/- per child per month | C54: 0 | D54: 0 | I54: =C54-E54 -> 0 | J54: 0 | R54: =P54+M54+K54 -> 0 | S54: 0 | Z54: =X54*Y54 -> 0 | AA54: =T54+V54+Y54 -> 0 | AB54: =U54+W54+Z54 -> 0 | AC54: TRUE | AD54: TRUE | AE54: 0
A55: =+A54+0.01 -> 2.24 | B55: Stipend @ Rs.100/- per child per month | C55: 0 | D55: 0 | I55: 0 | J55: 0 | R55: 0 | S55: 0 | Z55: 0 | AA55: 0 | AB55: 0 | AC55: TRUE | AD55: TRUE | AE55: 0
A56: 2.25 | B56: Supplementary TLM, Stationery and other educational material @1,000/- per child per annum | C56: 0 | D56: 0 | I56: 0 | J56: 0 | R56: 0 | S56: 0 | Z56: 0 | AA56: 0 | AB56: 0 | AC56: TRUE | AD56: TRUE | AE56: 0
A57: 2.26 | B57: Salaries | C57: 0 | D57: 0 | I57: 0 | J57: 0 | R57: 0 | S57: 0 | Z57: 0 | AA57: 0 | AB57: 0 | AC57: TRUE | AD57: TRUE | AE57: 0
A58: (a) | B58: 1 Warden @ Rs. 25,000/- per month | C58: 0 | D58: 0 | I58: 0 | J58: 0 | R58: 0 | S58: 0 | Z58: 0 | AA58: 0 | AB58: 0 | AC58: TRUE | AD58: TRUE | AE58: 0
A59: (b) | B59: 1 head teacher @ Rs. 25,000/- per month in case the enrollment exceeds 100 | C59: 0 | D59: 0 | I59: 0 | J59: 0 | R59: 0 | S59: 0 | Z59: 0 | AA59: 0 | AB59: 0 | AC59: TRUE | AD59: TRUE | AE59: 0
A60: (c) | B60: 4 - 5 Full time teachers as per RTE norms @ Rs. 20,000/- per month per teacher | C60: 0 | D60: 0 | I60: 0 | J60: 0 | R60: 0 | S60: 0 | Z60: 0 | AA60: 0 | AB60: 0 | AC60: TRUE | AD60: TRUE | AE60: 0
A61: (d) | B61: 2 Urdu Teachers (only for blocks with muslim population above 20% and select urban areas), if required @ Rs. 12,000/- per month per teacher | C61: 0 | D61: 0 | I61: 0 | J61: 0 | R61: 0 | S61: 0 | Z61: 0 | AA61: 0 | AB61: 0 | AC61: TRUE | AD61: TRUE | AE61: 0
A62: (e) | B62: 3 part time teachers @ Rs. 5,000/- per month per teacher | C62: 0 | D62: 0 | I62: 0 | J62: 0 | R62: 0 | S62: 0 | Z62: 0 | AA62: 0 | AB62: 0 | AC62: TRUE | AD62: TRUE | AE62: 0
A63: (f) | B63: 1 Full time Accountant @ Rs. 10,000/- per month | C63: 0 | D63: 0 | I63: 0 | J63: 0 | R63: 0 | S63: 0 | Z63: 0 | AA63: 0 | AB63: 0 | AC63: TRUE | AD63: TRUE | AE63: 0
A64: (g) | B64: 2 Support Staff – (Accountant/ Assistant, Peon, Chowkidar) @ Rs. 5,000/- per month per staff | C64: 0 | D64: 0 | I64: 0 | J64: 0 | R64: 0 | S64: 0 | Z64: 0 | AA64: 0 | AB64: 0 | AC64: TRUE | AD64: TRUE | AE64: 0
A65: (h) | B65: 1 Head cook @ Rs. 6,000/- per month and upto 2 Asstt. Cooks @ Rs. 4,500/- per month per cook | C65: 0 | D65: 0 | I65: 0 | J65: 0 | R65: 0 | S65: 0 | Z65: 0 | AA65: 0 | AB65: 0 | AC65: TRUE | AD65: TRUE | AE65: 0
A66: 2.27 | B66: Specific skill training @ Rs. 1,000/- per child per annum | C66: 0 | D66: 0 | I66: 0 | J66: 0 | R66: 0 | S66: 0 | Z66: 0 | AA66: 0 | AB66: 0 | AC66: TRUE | AD66: TRUE | AE66: 0
A67: 2.28 | B67: Electricity / water charges @Rs. 1,000/- per child per annum | C67: 0 | D67: 0 | I67: 0 | J67: 0 | R67: 0 | S67: 0 | Z67: 0 | AA67: 0 | AB67: 0 | AC67: TRUE | AD67: TRUE | AE67: 0
A68: 2.29 | B68: Medical care/contingencies @ Rs. 1,250/- per child per annum | C68: 0 | D68: 0 | I68: 0 | J68: 0 | R68: 0 | S68: 0 | Z68: 0 | AA68: 0 | AB68: 0 | AC68: TRUE | AD68: TRUE | AE68: 0
A69: 2.3 | B69: Maintenance @ Rs. 750/- per child per annum | C69: 0 | D69: 0 | I69: 0 | J69: 0 | R69: 0 | S69: 0 | Z69: 0 | AA69: 0 | AB69: 0 | AC69: TRUE | AD69: TRUE | AE69: 0
A70: 2.31 | B70: Miscellaneous @ Rs. 750/- per child per annum | C70: 0 | D70: 0 | I70: =C70-E70 -> 0 | J70: 0 | R70: =P70+M70+K70 -> 0 | S70: 0 | Z70: 0 | AA70: 0 | AB70: 0 | AC70: TRUE | AD70: TRUE | AE70: 0
A71: 2.32 | B71: Preparatory camps @ Rs.200/- per child per annum | C71: 0 | D71: 0 | I71: 0 | J71: 0 | R71: 0 | S71: 0 | Z71: 0 | AA71: 0 | AB71: 0 | AC71: TRUE | AD71: TRUE | AE71: 0
A72: 2.33 | B72: P.T.A / school functions @ Rs.200/- per child per annum | C72: 0 | D72: 0 | I72: 0 | J72: 0 | R72: 0 | S72: 0 | Z72: 0 | AA72: 0 | AB72: 0 | AC72: TRUE | AD72: TRUE | AE72: =AB72 -> 0
A73: 2.34 | B73: Provision of Rent @ Rs. 6,000/- per child per annum | C73: 0 | D73: 0 | I73: 0 | J73: 0 | R73: 0 | S73: 0 | Z73: 0 | AA73: 0 | AB73: 0 | AC73: TRUE | AD73: TRUE | AE73: 0
A74: 2.35 | B74: Capacity Building @ Rs. 500/- per child per annum | C74: 0 | D74: 0 | I74: 0 | J74: 0 | R74: 0 | S74: 0 | Z74: 0 | AA74: 0 | AB74: 0 | AC74: TRUE | AD74: TRUE | AE74: 0
A75: 2.36 | B75: Physical / Self Defence training @ Rs. 200/- per child per annum. | C75: 0 | D75: 0 | I75: 0 | J75: 0 | R75: 0 | S75: 0 | Z75: 0 | AA75: 0 | AB75: 0 | AC75: TRUE | AD75: TRUE | AE75: 0
B76: Sub Total (Recurring) | C76: =SUM(C54:C75) -> 0 | D76: =SUM(D54:D75) -> 0 | E76: =SUM(E54:E75) -> 0 | F76: =SUM(F54:F75) -> 0 | G76: =SUM(G54:G75) -> 0 | H76: =SUM(H54:H75) -> 0 | I76: =SUM(I54:I75) -> 0 | J76: =SUM(J54:J75) -> 0 | K76: =SUM(K54:K75) -> 0 | L76: =SUM(L54:L75) -> 0 | M76: =SUM(M54:M75) -> 0 | N76: =SUM(N54:N75) -> 0 | O76: 0 | P76: =SUM(P54:P75) -> 0 | Q76: =SUM(Q54:Q75) -> 0 | R76: =SUM(R54:R75) -> 0 | S76: =SUM(S54:S75) -> 0 | T76: =SUM(T54:T75) -> 0 | U76: =SUM(U54:U75) -> 0 | V76: =SUM(V54:V75) -> 0 | W76: =SUM(W54:W75) -> 0 | X76: 0 | Y76: =SUM(Y54:Y75) -> 0 | Z76: =SUM(Z54:Z75) -> 0 | AA76: =SUM(AA54:AA75) -> 0 | AB76: =SUM(AB54:AB75) -> 0 | AE76: 0
B77: Total (Recurring + Non Recurring) | C77: =C76+C52 -> 0 | D77: =D76+D52 -> 0 | E77: 0 | F77: 0 | G77: 0 | H77: 0 | I77: 0 | J77: 0 | K77: 0 | L77: 0 | M77: 0 | N77: 0 | O77: 0 | P77: 0 | Q77: 0 | R77: 0 | S77: 0 | T77: 0 | U77: 0 | V77: 0 | W77: 0 | X77: 0 | Y77: 0 | Z77: 0 | AA77: 0 | AB77: 0 | AE77: 0
B78: Total (50 + 100 children) | C78: 0 | D78: 0 | E78: =E77+E45 -> 0 | F78: =F77+F45 -> 0 | AA78: =Y78+V78+T78 -> 0 | AB78: =Z78+W78+U78 -> 0 | AC78: =X78*Y78=Z78 -> TRUE | AD78: =U78+W78+Z78=AB78 -> TRUE | AE78: 0
A79: 3 | B79: Residential Hostel for specific category of children | C79: 0 | D79: 0 | AA79: 0 | AB79: 0 | AC79: TRUE | AD79: TRUE | AE79: 0
A80: (A) | B80: 50 children | D80: 0 | AA80: 0 | AB80: 0 | AC80: TRUE | AD80: TRUE | AE80: 0
B81: Non-recurring (one time grant) | D81: 0 | AA81: 0 | AB81: 0 | AC81: TRUE | AD81: TRUE | AE81: 0
A82: 3.01 | B82: Furniture/ Equipment (including kitchen) | C82: 0 | D82: 0 | I82: =C82-E82 -> 0 | J82: 0 | R82: =P82+M82+K82 -> 0 | S82: 0 | Z82: =X82*Y82 -> 0 | AA82: =T82+V82+Y82 -> 0 | AB82: =U82+W82+Z82 -> 0 | AC82: TRUE | AD82: TRUE | AE82: 0
A83: =+A82+0.01 -> 3.02 | B83: TLM and equipment including library books | C83: 0 | D83: 0 | I83: 0 | J83: 0 | R83: 0 | S83: 0 | Z83: 0 | AA83: 0 | AB83: 0 | AC83: TRUE | AD83: TRUE | AE83: 0
A84: =+A83+0.01 -> 3.03 | B84: Bedding (new) | C84: 0 | D84: 0 | I84: 0 | J84: 0 | R84: 0 | S84: 0 | Z84: 0 | AA84: 0 | AB84: 0 | AC84: TRUE | AD84: TRUE | AE84: 0
A85: =+A84+0.01 -> 3.04 | B85: Replacement of bedding (once in 3 years) | C85: 0 | D85: 0 | I85: 0 | J85: 0 | R85: 0 | S85: 0 | Z85: 0 | AA85: 0 | AB85: 0 | AC85: TRUE | AD85: TRUE | AE85: 0
B86: Sub Total (Non Recurring) | C86: =SUM(C82:C85) -> 0 | D86: =SUM(D82:D85) -> 0 | E86: 0 | F86: 0 | G86: 0 | H86: 0 | I86: 0 | J86: 0 | K86: 0 | L86: 0 | M86: 0 | N86: 0 | O86: 0 | P86: 0 | Q86: 0 | R86: 0 | S86: 0 | T86: 0 | U86: 0 | V86: 0 | W86: 0 | X86: 0 | Y86: 0 | Z86: 0 | AA86: 0 | AB86: 0 | AE86: 0
B87: Recurring (50 children) | D87: 0 | AA87: 0 | AB87: 0 | AC87: =X87*Y87=Z87 -> TRUE | AD87: =U87+W87+Z87=AB87 -> TRUE | AE87: 0
A88: 3.05 | B88: Maintenance @ Rs.1,500/- per child per month | C88: 0 | D88: 0 | I88: =C88-E88 -> 0 | J88: 0 | R88: =P88+M88+K88 -> 0 | S88: 0 | Z88: =X88*Y88 -> 0 | AA88: =T88+V88+Y88 -> 0 | AB88: =U88+W88+Z88 -> 0 | AC88: TRUE | AD88: TRUE | AE88: 0
A89: =+A88+0.01 -> 3.06 | B89: Stipend @ Rs.100/- per child per month | C89: 0 | D89: 0 | I89: 0 | J89: 0 | R89: 0 | S89: 0 | Z89: 0 | AA89: 0 | AB89: 0 | AC89: TRUE | AD89: TRUE | AE89: 0
A90: =+A89+0.01 -> 3.07 | B90: Supplementary TLM, Stationery and other educational material @Rs.1,000/- per child per annum | C90: 0 | D90: 0 | I90: 0 | J90: 0 | R90: 0 | S90: 0 | Z90: 0 | AA90: 0 | AB90: 0 | AC90: TRUE | AD90: TRUE | AE90: 0
A91: 3.08 | B91: Salaries | C91: 0 | D91: 0 | I91: 0 | J91: 0 | R91: 0 | S91: 0 | Z91: 0 | AA91: 0 | AB91: 0 | AC91: TRUE | AD91: TRUE | AE91: 0
A92: (a) | B92: 1 Warden @ Rs. 25,000/- per month | C92: 0 | D92: 0 | I92: 0 | J92: 0 | R92: 0 | S92: 0 | Z92: 0 | AA92: 0 | AB92: 0 | AC92: TRUE | AD92: TRUE | AE92: 0
A93: (b) | B93: 4 Fulltime teachers as per RTE Norms @ Rs. 20,000/- per month per teacher | C93: 0 | D93: 0 | I93: 0 | J93: 0 | R93: 0 | S93: 0 | Z93: 0 | AA93: 0 | AB93: 0 | AC93: TRUE | AD93: TRUE | AE93: 0
A94: (c) | B94: 2 Urdu Teachers (only for Blocks with muslim population above 20% and select urban areas) if required @ Rs.12,000/- per month per teacher. | C94: 0 | D94: 0 | I94: 0 | J94: 0 | R94: 0 | S94: 0 | Z94: 0 | AA94: 0 | AB94: 0 | AC94: TRUE | AD94: TRUE | AE94: 0
A95: (d) | B95: 3 Part time teachers @ Rs.5,000/- per month per teacher | C95: 0 | D95: 0 | I95: 0 | J95: 0 | R95: 0 | S95: 0 | Z95: 0 | AA95: 0 | AB95: 0 | AC95: TRUE | AD95: TRUE | AE95: 0
A96: (e) | B96: 1 Full time Accountant @ Rs. 10,000/- per month | C96: 0 | D96: 0 | I96: 0 | J96: 0 | R96: 0 | S96: 0 | Z96: 0 | AA96: 0 | AB96: 0 | AC96: TRUE | AD96: TRUE | AE96: 0
A97: (f) | B97: 2 Support staff - (Accountant/Assistant, Peon, Chowkidar) @ Rs. 5,000/- per month per staff | C97: 0 | D97: 0 | I97: 0 | J97: 0 | R97: 0 | S97: 0 | Z97: 0 | AA97: 0 | AB97: 0 | AC97: TRUE | AD97: TRUE | AE97: 0
A98: (g) | B98: 1 Head Cook @ Rs. 6,000/- per month and upto 2 Asstt. Cooks @ Rs. 4,500/- per month per cook | C98: 0 | D98: 0 | I98: 0 | J98: 0 | R98: 0 | S98: 0 | Z98: 0 | AA98: 0 | AB98: 0 | AC98: TRUE | AD98: TRUE | AE98: 0
A99: 3.09 | B99: Specific Skill training @ Rs.1000/- per child per annum | C99: 0 | D99: 0 | I99: 0 | J99: 0 | R99: 0 | S99: 0 | Z99: 0 | AA99: 0 | AB99: 0 | AC99: TRUE | AD99: TRUE | AE99: 0
A100: =+A99+0.01 -> 3.1 | B100: Electricity / water charges @ Rs. 1,000/- per child per annum | C100: 0 | D100: 0 | I100: 0 | J100: 0 | R100: 0 | S100: 0 | Z100: 0 | AA100: 0 | AB100: 0 | AC100: TRUE | AD100: TRUE | AE100: 0
A101: 3.11 | B101: Medical care/contingencies @ Rs.1,250/- per child per annum | C101: 0 | D101: 0 | I101: 0 | J101: 0 | R101: 0 | S101: 0 | Z101: 0 | AA101: 0 | AB101: 0 | AC101: TRUE | AD101: TRUE | AE101: 0
A102: 3.12 | B102: Maintenance @ Rs. 750/- per child per annum | C102: 0 | D102: 0 | I102: 0 | J102: 0 | R102: 0 | S102: 0 | Z102: 0 | AA102: 0 | AB102: 0 | AC102: TRUE | AD102: TRUE | AE102: 0
A103: 3.13 | B103: Miscellaneous @ Rs. 750/- per child per annum | C103: 0 | D103: 0 | I103: 0 | J103: 0 | R103: 0 | S103: 0 | Z103: 0 | AA103: 0 | AB103: 0 | AC103: TRUE | AD103: TRUE | AE103: 0
A104: 3.14 | B104: Preparatory camps @ Rs. 300/- per child per annum | C104: 0 | D104: 0 | I104: =C104-E104 -> 0 | J104: 0 | R104: =P104+M104+K104 -> 0 | S104: 0 | Z104: 0 | AA104: 0 | AB104: 0 | AC104: TRUE | AD104: TRUE | AE104: 0
A105: 3.15 | B105: P.T.A / school functions @ Rs. 300/- per child per annum | C105: 0 | D105: 0 | I105: 0 | J105: 0 | R105: 0 | S105: 0 | Z105: 0 | AA105: 0 | AB105: 0 | AC105: TRUE | AD105: TRUE | AE105: 0
A106: 3.16 | B106: Provision of Rent @ Rs. 10,000/- per child per annum | C106: 0 | D106: 0 | I106: 0 | J106: 0 | R106: 0 | S106: 0 | Z106: 0 | AA106: 0 | AB106: 0 | AC106: TRUE | AD106: TRUE | AE106: 0
A107: 3.17 | B107: Capacity Building @ Rs. 500/- per child per annum | C107: 0 | D107: 0 | I107: 0 | J107: 0 | R107: 0 | S107: 0 | Z107: 0 | AA107: 0 | AB107: 0 | AC107: TRUE | AD107: TRUE | AE107: 0
A108: 3.18 | B108: Physical / Self Defence Training @ Rs.200/- per child per annum | C108: 0 | D108: 0 | I108: 0 | J108: 0 | R108: 0 | S108: 0 | Z108: 0 | AA108: 0 | AB108: 0 | AC108: TRUE | AD108: TRUE | AE108: 0
B109: Sub Total (Recurring) | C109: =SUM(C88:C108) -> 0 | D109: =SUM(D88:D108) -> 0 | E109: 0 | F109: 0 | G109: 0 | H109: 0 | I109: 0 | J109: 0 | K109: 0 | L109: 0 | M109: 0 | N109: 0 | O109: 0 | P109: 0 | Q109: 0 | R109: 0 | S109: 0 | T109: 0 | U109: 0 | V109: 0 | W109: 0 | X109: 0 | Y109: 0 | Z109: 0 | AA109: 0 | AB109: 0 | AE109: 0
B110: Total (Non Recurring + Recurring) | C110: =C109+C86 -> 0 | D110: 0 | E110: =E109+E86 -> 0 | F110: =F109+F86 -> 0 | G110: 0 | H110: 0 | I110: 0 | J110: 0 | K110: 0 | L110: 0 | M110: 0 | N110: 0 | O110: 0 | P110: 0 | Q110: 0 | R110: 0 | S110: 0 | T110: 0 | U110: 0 | V110: 0 | W110: 0 | X110: 0 | Y110: 0 | Z110: 0 | AA110: 0 | AB110: 0 | AE110: 0
A111: (B) | B111: 100 Children | D111: 0 | AA111: 0 | AB111: 0 | AC111: =X111*Y111=Z111 -> TRUE | AD111: =U111+W111+Z111=AB111 -> TRUE | AE111: 0
B112: Non-recurring (one time grant) | D112: 0 | AA112: 0 | AB112: 0 | AC112: TRUE | AD112: TRUE | AE112: 0
A113: 3.19 | B113: Furniture / Equipment (including kitchen equipment) | C113: 0 | D113: 0 | I113: =C113-E113 -> 0 | J113: 0 | R113: =P113+M113+K113 -> 0 | S113: 0 | Z113: =X113*Y113 -> 0 | AA113: =T113+V113+Y113 -> 0 | AB113: =U113+W113+Z113 -> 0 | AC113: TRUE | AD113: TRUE | AE113: 0
A114: =+A113+0.01 -> 3.2 | B114: TLM and equipment including library books (New) | C114: 0 | D114: 0 | I114: 0 | J114: 0 | R114: 0 | S114: 0 | Z114: 0 | AA114: 0 | AB114: 0 | AC114: TRUE | AD114: TRUE | AE114: 0
A115: =+A114+0.01 -> 3.21 | B115: Bedding (New) | C115: 0 | D115: 0 | I115: 0 | J115: 0 | R115: 0 | S115: 0 | Z115: 0 | AA115: 0 | AB115: 0 | AC115: TRUE | AD115: TRUE | AE115: 0
A116: =+A115+0.01 -> 3.22 | B116: Replacement of bedding (once in 3 years) | C116: 0 | D116: 0 | I116: 0 | J116: 0 | R116: 0 | S116: 0 | Z116: 0 | AA116: 0 | AB116: 0 | AC116: TRUE | AD116: TRUE | AE116: 0
B117: Sub Total Non-recurring | C117: =SUM(C113:C116) -> 0 | D117: =SUM(D113:D116) -> 0 | E117: =SUM(E113:E116) -> 0 | F117: =SUM(F113:F116) -> 0 | G117: =SUM(G113:G116) -> 0 | H117: =SUM(H113:H116) -> 0 | I117: =SUM(I113:I116) -> 0 | J117: =SUM(J113:J116) -> 0 | K117: =SUM(K113:K116) -> 0 | L117: =SUM(L113:L116) -> 0 | M117: =SUM(M113:M116) -> 0 | N117: =SUM(N113:N116) -> 0 | O117: 0 | P117: =SUM(P113:P116) -> 0 | Q117: =SUM(Q113:Q116) -> 0 | R117: =SUM(R113:R116) -> 0 | S117: =SUM(S113:S116) -> 0 | T117: =SUM(T113:T116) -> 0 | U117: =SUM(U113:U116) -> 0 | V117: =SUM(V113:V116) -> 0 | W117: =SUM(W113:W116) -> 0 | X117: 0 | Y117: =SUM(Y113:Y116) -> 0 | Z117: =SUM(Z113:Z116) -> 0 | AA117: =SUM(AA113:AA116) -> 0 | AB117: =SUM(AB113:AB116) -> 0 | AE117: 0
B118: Recurring | D118: 0 | AA118: 0 | AB118: 0 | AC118: =X118*Y118=Z118 -> TRUE | AD118: =U118+W118+Z118=AB118 -> TRUE | AE118: 0
A119: 3.23 | B119: Maintenance @ Rs. 1,500/- per child per month | C119: 0 | D119: 0 | I119: =C119-E119 -> 0 | J119: 0 | R119: =P119+M119+K119 -> 0 | S119: 0 | Z119: =X119*Y119 -> 0 | AA119: =T119+V119+Y119 -> 0 | AB119: =U119+W119+Z119 -> 0 | AC119: TRUE | AD119: TRUE | AE119: 0
A120: =+A119+0.01 -> 3.24 | B120: Stipend @ Rs.100/- per child per month | C120: 0 | D120: 0 | I120: 0 | J120: 0 | R120: 0 | S120: 0 | Z120: 0 | AA120: 0 | AB120: 0 | AC120: TRUE | AD120: TRUE | AE120: 0
A121: =+A120+0.01 -> 3.25 | B121: Supplementary TLM, Stationery and other educational material @1,000/- per child per annum | C121: 0 | D121: 0 | I121: 0 | J121: 0 | R121: 0 | S121: 0 | Z121: 0 | AA121: 0 | AB121: 0 | AC121: TRUE | AD121: TRUE | AE121: 0
A122: 3.26 | B122: Salaries | C122: 0 | D122: 0 | I122: 0 | J122: 0 | R122: 0 | S122: 0 | Z122: 0 | AA122: 0 | AB122: 0 | AC122: TRUE | AD122: TRUE | AE122: 0
A123: (a) | B123: 1 Warden @ Rs. 25,000/- per month | C123: 0 | D123: 0 | I123: 0 | J123: 0 | R123: 0 | S123: 0 | Z123: 0 | AA123: 0 | AB123: 0 | AC123: TRUE | AD123: TRUE | AE123: 0
A124: (b) | B124: 1 head teacher @ Rs. 25,000/- per month in case the enrollment exceeds 100 | C124: 0 | D124: 0 | I124: 0 | J124: 0 | R124: 0 | S124: 0 | Z124: 0 | AA124: 0 | AB124: 0 | AC124: TRUE | AD124: TRUE | AE124: 0
A125: (c) | B125: 4 - 5 Full time teachers as per RTE norms @ Rs. 20,000/- per month per teacher | C125: 0 | D125: 0 | I125: 0 | J125: 0 | R125: 0 | S125: 0 | Z125: 0 | AA125: 0 | AB125: 0 | AC125: TRUE | AD125: TRUE | AE125: 0
A126: (d) | B126: 2 Urdu Teachers (only for blocks with muslim population above 20% and select urban areas), if required @ Rs. 12,000/- per month per teacher | C126: 0 | D126: 0 | I126: 0 | J126: 0 | R126: 0 | S126: 0 | Z126: 0 | AA126: 0 | AB126: 0 | AC126: TRUE | AD126: TRUE | AE126: 0
A127: (e) | B127: 3 part time teachers @ Rs. 5,000/- per month per teacher | C127: 0 | D127: 0 | I127: 0 | J127: 0 | R127: 0 | S127: 0 | Z127: 0 | AA127: 0 | AB127: 0 | AC127: TRUE | AD127: TRUE | AE127: 0
A128: (f) | B128: 1 Full time Accountant @ Rs. 10,000/- per month | C128: 0 | D128: 0 | I128: 0 | J128: 0 | R128: 0 | S128: 0 | Z128: 0 | AA128: 0 | AB128: 0 | AC128: TRUE | AD128: TRUE | AE128: 0
A129: (g) | B129: 2 Support Staff – (Accountant/ Assistant, Peon, Chowkidar) @ Rs. 5,000/- per month per staff | C129: 0 | D129: 0 | I129: 0 | J129: 0 | R129: 0 | S129: 0 | Z129: 0 | AA129: 0 | AB129: 0 | AC129: TRUE | AD129: TRUE | AE129: 0
A130: (h) | B130: 1 Head cook @ Rs. 6,000/- per month and upto 2 Asstt. Cooks @ Rs. 4,500/- per month per cook | C130: 0 | D130: 0 | I130: 0 | J130: 0 | R130: 0 | S130: 0 | Z130: 0 | AA130: 0 | AB130: 0 | AC130: TRUE | AD130: TRUE | AE130: 0
A131: 3.27 | B131: Specific skill training @ Rs.1,000/- per child per annum | C131: 0 | D131: 0 | I131: 0 | J131: 0 | R131: 0 | S131: 0 | Z131: 0 | AA131: 0 | AB131: 0 | AC131: TRUE | AD131: TRUE | AE131: 0
A132: =+A131+0.01 -> 3.28 | B132: Electricity / water charges @ Rs.1,000/- per child per annum | C132: 0 | D132: 0 | I132: 0 | J132: 0 | R132: 0 | S132: 0 | Z132: 0 | AA132: 0 | AB132: 0 | AC132: TRUE | AD132: TRUE | AE132: 0
A133: 3.29 | B133: Medical care/contingencies @ Rs.1,250/- per child per annum | C133: 0 | D133: 0 | I133: 0 | J133: 0 | R133: 0 | S133: 0 | Z133: 0 | AA133: 0 | AB133: 0 | AC133: TRUE | AD133: TRUE | AE133: 0
A134: 3.3 | B134: Maintenance @ Rs.750/- per child per annum | C134: 0 | D134: 0 | I134: 0 | J134: 0 | R134: 0 | S134: 0 | Z134: 0 | AA134: 0 | AB134: 0 | AC134: TRUE | AD134: TRUE | AE134: 0
A135: 3.31 | B135: Miscellaneous @ Rs.750/- per child per annum | C135: 0 | D135: 0 | I135: =C135-E135 -> 0 | J135: 0 | R135: =P135+M135+K135 -> 0 | S135: 0 | Z135: 0 | AA135: 0 | AB135: 0 | AC135: TRUE | AD135: TRUE | AE135: 0
A136: 3.32 | B136: Preparatory camps @ Rs.200/- per child per annum | C136: 0 | D136: 0 | I136: 0 | J136: 0 | R136: 0 | S136: 0 | Z136: 0 | AA136: 0 | AB136: 0 | AC136: TRUE | AD136: TRUE | AE136: =AB136 -> 0
A137: 3.33 | B137: P.T.A / school functions @ Rs.200/- per child per annum | C137: 0 | D137: 0 | I137: 0 | J137: 0 | R137: 0 | S137: 0 | Z137: 0 | AA137: 0 | AB137: 0 | AC137: TRUE | AD137: TRUE | AE137: 0
A138: 3.34 | B138: Provision of Rent @ Rs. 6,000/- per child per annum | C138: 0 | D138: 0 | I138: 0 | J138: 0 | R138: 0 | S138: 0 | Z138: 0 | AA138: 0 | AB138: 0 | AC138: TRUE | AD138: TRUE | AE138: 0
A139: 3.35 | B139: Capacity Building @ Rs.500/- per child per annum | C139: 0 | D139: 0 | I139: 0 | J139: 0 | R139: 0 | S139: 0 | Z139: 0 | AA139: 0 | AB139: 0 | AC139: TRUE | AD139: TRUE | AE139: 0
A140: 3.36 | B140: Physical / Self Defence training @ Rs. 200/- per child per annum. | C140: 0 | D140: 0 | I140: 0 | J140: 0 | R140: 0 | S140: 0 | Z140: 0 | AA140: 0 | AB140: 0 | AC140: TRUE | AD140: TRUE | AE140: 0
B141: Sub Total (Recurring) | C141: =SUM(C119:C140) -> 0 | D141: =SUM(D119:D140) -> 0 | E141: =SUM(E119:E140) -> 0 | F141: =SUM(F119:F140) -> 0 | G141: =SUM(G119:G140) -> 0 | H141: =SUM(H119:H140) -> 0 | I141: =SUM(I119:I140) -> 0 | J141: =SUM(J119:J140) -> 0 | K141: =SUM(K119:K140) -> 0 | L141: =SUM(L119:L140) -> 0 | M141: =SUM(M119:M140) -> 0 | N141: =SUM(N119:N140) -> 0 | O141: 0 | P141: =SUM(P119:P140) -> 0 | Q141: =SUM(Q119:Q140) -> 0 | R141: =SUM(R119:R140) -> 0 | S141: =SUM(S119:S140) -> 0 | T141: =SUM(T119:T140) -> 0 | U141: =SUM(U119:U140) -> 0 | V141: =SUM(V119:V140) -> 0 | W141: =SUM(W119:W140) -> 0 | X141: 0 | Y141: =SUM(Y119:Y140) -> 0 | Z141: =SUM(Z119:Z140) -> 0 | AA141: =SUM(AA119:AA140) -> 0 | AB141: =SUM(AB119:AB140) -> 0 | AE141: 0
B142: Total (Recurring + Non Recurring) | C142: =C141+C117 -> 0 | D142: =D141+D117 -> 0 | E142: =E141+E117 -> 0 | F142: =F141+F117 -> 0 | G142: =G141+G117 -> 0 | H142: =H141+H117 -> 0 | I142: =I141+I117 -> 0 | J142: =J141+J117 -> 0 | K142: =K141+K117 -> 0 | L142: =L141+L117 -> 0 | M142: =M141+M117 -> 0 | N142: =N141+N117 -> 0 | O142: 0 | P142: =P141+P117 -> 0 | Q142: =Q141+Q117 -> 0 | R142: =R141+R117 -> 0 | S142: =S141+S117 -> 0 | T142: =T141+T117 -> 0 | U142: =U141+U117 -> 0 | V142: =V141+V117 -> 0 | W142: =W141+W117 -> 0 | X142: 0 | Y142: =Y141+Y117 -> 0 | Z142: =Z141+Z117 -> 0 | AA142: =AA141+AA117 -> 0 | AB142: =AB141+AB117 -> 0 | AE142: 0
B143: Total (A + B) | C143: =C142+C110 -> 0 | D143: 0 | E143: =E142+E110 -> 0 | F143: =F142+F110 -> 0 | G143: 0 | H143: 0 | I143: 0 | J143: 0 | K143: 0 | L143: 0 | M143: 0 | N143: 0 | O143: 0 | P143: 0 | Q143: 0 | R143: 0 | S143: 0 | T143: 0 | U143: 0 | V143: 0 | W143: 0 | X143: 0 | Y143: 0 | Z143: 0 | AA143: 0 | AB143: 0 | AE143: 0
A144: 4 | B144: Transport/Escort Facility | D144: 0 | AA144: =Y144+V144+T144 -> 0 | AB144: =Z144+W144+U144 -> 0 | AC144: =X144*Y144=Z144 -> TRUE | AD144: =U144+W144+Z144=AB144 -> TRUE | AE144: 0
A145: 4.01 | B145: Children in remote habitation | C145: 0 | D145: 0 | I145: =C145-E145 -> 0 | J145: =D145-F145 -> 0 | Q145: =+O145*P145 -> 0 | R145: =P145+M145+K145 -> 0 | S145: =Q145+N145+L145 -> 0 | Z145: =X145*Y145 -> 0 | AA145: =T145+V145+Y145 -> 0 | AB145: =U145+W145+Z145 -> 0 | AC145: TRUE | AD145: TRUE | AE145: 0
A146: 4.02 | B146: Urban deprived children/children without adult protection | C146: 0 | D146: 0 | I146: =C146-E146 -> 0 | J146: =D146-F146 -> 0 | R146: =P146+M146+K146 -> 0 | S146: =Q146+N146+L146 -> 0 | Z146: =X146*Y146 -> 0 | AA146: =T146+V146+Y146 -> 0 | AB146: =U146+W146+Z146 -> 0 | AC146: TRUE | AD146: TRUE | AE146: 0
B147: Sub Total | C147: =SUM(C145:C146) -> 0 | D147: 0 | E147: 0 | F147: 0 | G147: 0 | H147: 0 | I147: 0 | J147: 0 | K147: 0 | L147: 0 | M147: 0 | N147: 0 | O147: 0 | P147: 0 | Q147: 0 | R147: 0 | S147: 0 | T147: 0 | U147: 0 | V147: 0 | W147: 0 | X147: 0 | Y147: 0 | Z147: 0 | AA147: 0 | AB147: 0 | AE147: 0
A148: 5 | B148: Reimbursement of Fee against 25% admission under Section 12(1)(c) of RTE Act 2009 (Entry Level) subject to upper limit of 20% of AWP&B guidelines issued by MHRD | C148: 0 | D148: 0 | I148: =C148-E148 -> 0 | J148: =D148-F148 -> 0 | R148: =P148+M148+K148 -> 0 | S148: =Q148+N148+L148 -> 0 | Z148: =X148*Y148 -> 0 | AA148: =T148+V148+Y148 -> 0 | AB148: =U148+W148+Z148 -> 0 | AC148: =X148*Y148=Z148 -> TRUE | AD148: =U148+W148+Z148=AB148 -> TRUE | AE148: 0
B149: Sub Total | C149: =SUM(C148) -> 0 | D149: =SUM(D148) -> 0 | E149: =SUM(E148) -> 0 | F149: =SUM(F148) -> 0 | G149: =SUM(G148) -> 0 | H149: =SUM(H148) -> 0 | I149: =SUM(I148) -> 0 | J149: =SUM(J148) -> 0 | K149: =SUM(K148) -> 0 | L149: =SUM(L148) -> 0 | M149: =SUM(M148) -> 0 | N149: =SUM(N148) -> 0 | O149: 0 | P149: =SUM(P148) -> 0 | Q149: =SUM(Q148) -> 0 | R149: =SUM(R148) -> 0 | S149: =SUM(S148) -> 0 | T149: =SUM(T148) -> 0 | U149: =SUM(U148) -> 0 | V149: =SUM(V148) -> 0 | W149: =SUM(W148) -> 0 | X149: 0 | Y149: =SUM(Y148) -> 0 | Z149: =SUM(Z148) -> 0 | AA149: =SUM(AA148) -> 0 | AB149: =SUM(AB148) -> 0 | AE149: 0
A150: =+A148+1 -> 6 | B150: Special Training for mainstreaming of out of school children | D150: 0 | AA150: 0 | AB150: 0 | AC150: =X150*Y150=Z150 -> TRUE | AD150: =U150+W150+Z150=AB150 -> TRUE | AE150: 0
A151: 6.01 | B151: Residential (Fresh) | D151: 0 | AA151: 0 | AB151: 0 | AC151: TRUE | AD151: TRUE | AE151: 0
B152: (a) 12 months | C152: 0 | D152: 0 | I152: =C152-E152 -> 0 | J152: 0 | R152: =P152+M152+K152 -> 0 | S152: 0 | Z152: =X152*Y152 -> 0 | AA152: =T152+V152+Y152 -> 0 | AB152: =U152+W152+Z152 -> 0 | AC152: TRUE | AD152: TRUE | AE152: 0
B153: (b) 9 months | C153: 0 | D153: 0 | I153: 0 | J153: 0 | R153: 0 | S153: 0 | Z153: 0 | AA153: 0 | AB153: 0 | AC153: TRUE | AD153: TRUE | AE153: 0
B154: (c) 6 months | C154: 0 | D154: 0 | I154: 0 | J154: 0 | R154: 0 | S154: 0 | Z154: 0 | AA154: 0 | AB154: 0 | AC154: TRUE | AD154: TRUE | AE154: 0
B155: (d) 3 months | C155: 0 | D155: 0 | I155: 0 | J155: 0 | R155: 0 | S155: 0 | Z155: 0 | AA155: 0 | AB155: 0 | AC155: TRUE | AD155: TRUE | AE155: 0
B156: Sub Total | C156: =SUM(C152:C155) -> 0 | D156: =SUM(D152:D155) -> 0 | E156: =SUM(E152:E155) -> 0 | F156: =SUM(F152:F155) -> 0 | G156: =SUM(G152:G155) -> 0 | H156: =SUM(H152:H155) -> 0 | I156: =SUM(I152:I155) -> 0 | J156: =SUM(J152:J155) -> 0 | K156: =SUM(K152:K155) -> 0 | L156: =SUM(L152:L155) -> 0 | M156: =SUM(M152:M155) -> 0 | N156: =SUM(N152:N155) -> 0 | O156: 0 | P156: =SUM(P152:P155) -> 0 | Q156: =SUM(Q152:Q155) -> 0 | R156: =SUM(R152:R155) -> 0 | S156: =SUM(S152:S155) -> 0 | T156: =SUM(T152:T155) -> 0 | U156: =SUM(U152:U155) -> 0 | V156: =SUM(V152:V155) -> 0 | W156: =SUM(W152:W155) -> 0 | X156: 0 | Y156: =SUM(Y152:Y155) -> 0 | Z156: =SUM(Z152:Z155) -> 0 | AA156: =SUM(AA152:AA155) -> 0 | AB156: =SUM(AB152:AB155) -> 0 | AE156: 0
A157: =+A151+0.01 -> 6.02 | B157: Residential (Continuing from previous year) | D157: 0 | AA157: 0 | AB157: 0 | AC157: =X157*Y157=Z157 -> TRUE | AD157: =U157+W157+Z157=AB157 -> TRUE | AE157: 0
B158: (a) 12 months | C158: 0 | D158: 0 | I158: =C158-E158 -> 0 | J158: 0 | R158: =P158+M158+K158 -> 0 | S158: 0 | Z158: =X158*Y158 -> 0 | AA158: =T158+V158+Y158 -> 0 | AB158: =U158+W158+Z158 -> 0 | AC158: TRUE | AD158: TRUE | AE158: 0
B159: (b) 9 months | C159: 0 | D159: 0 | I159: 0 | J159: 0 | R159: 0 | S159: 0 | Z159: 0 | AA159: 0 | AB159: 0 | AC159: TRUE | AD159: TRUE | AE159: 0
B160: (c) 6 months | C160: 0 | D160: 0 | I160: 0 | J160: 0 | R160: 0 | S160: 0 | Z160: 0 | AA160: 0 | AB160: 0 | AC160: TRUE | AD160: TRUE | AE160: 0
B161: (d) 3 months | C161: 0 | D161: 0 | I161: 0 | J161: 0 | R161: 0 | S161: 0 | Z161: 0 | AA161: 0 | AB161: 0 | AC161: TRUE | AD161: TRUE | AE161: 0
B162: Sub Total | C162: =SUM(C158:C161) -> 0 | D162: =SUM(D158:D161) -> 0 | E162: =SUM(E158:E161) -> 0 | F162: =SUM(F158:F161) -> 0 | G162: =SUM(G158:G161) -> 0 | H162: =SUM(H158:H161) -> 0 | I162: =SUM(I158:I161) -> 0 | J162: =SUM(J158:J161) -> 0 | K162: =SUM(K158:K161) -> 0 | L162: =SUM(L158:L161) -> 0 | M162: =SUM(M158:M161) -> 0 | N162: =SUM(N158:N161) -> 0 | O162: 0 | P162: =SUM(P158:P161) -> 0 | Q162: =SUM(Q158:Q161) -> 0 | R162: =SUM(R158:R161) -> 0 | S162: =SUM(S158:S161) -> 0 | T162: =SUM(T158:T161) -> 0 | U162: =SUM(U158:U161) -> 0 | V162: =SUM(V158:V161) -> 0 | W162: =SUM(W158:W161) -> 0 | X162: 0 | Y162: =SUM(Y158:Y161) -> 0 | Z162: =SUM(Z158:Z161) -> 0 | AA162: =SUM(AA158:AA161) -> 0 | AB162: =SUM(AB158:AB161) -> 0 | AE162: 0
A163: 6.03 | B163: Non-Residential (Fresh) | D163: 0 | AA163: 0 | AB163: 0 | AC163: =X163*Y163=Z163 -> TRUE | AD163: =U163+W163+Z163=AB163 -> TRUE | AE163: 0
B164: (a) 12 months | C164: 0 | D164: 0 | I164: =C164-E164 -> 0 | J164: 0 | S164: =Q164+N164+L164 -> 0 | AA164: =T164+V164+Y164 -> 0 | AB164: =U164+W164+Z164 -> 0 | AC164: TRUE | AD164: TRUE | AE164: 0
B165: (b) 10 months | C165: 4915 | D165: 127.79 | E165: 357 | F165: 9.282 | I165: 4558 | J165: 118.508 | O165: 0.06 | P165: 4343 | Q165: =O165*P165 -> 260.58 | R165: =K165+M165+P165 -> 4343 | S165: =L165+N165+Q165 -> 260.58 | X165: 0.06 | Y165: 4343 | Z165: =Y165*X165 -> 260.58 | AA165: 4343 | AB165: =U165+W165+Z165 -> 260.58 | AC165: TRUE | AD165: TRUE | AE165: 260.58
B166: (c) 6 months | C166: 0 | D166: 0 | I166: 0 | J166: 0 | R166: 0 | S166: 0 | AA166: 0 | AB166: =U166+W166+Z166 -> 0 | AC166: TRUE | AD166: TRUE | AE166: 0
B167: (d) 3 months | C167: 0 | D167: 0 | I167: 0 | J167: 0 | R167: 0 | S167: 0 | AA167: 0 | AB167: 0 | AC167: TRUE | AD167: TRUE | AE167: 0
B168: Sub Total | C168: =SUM(C164:C167) -> 4915 | D168: =SUM(D164:D167) -> 127.79 | E168: =SUM(E164:E167) -> 357 | F168: =SUM(F164:F167) -> 9.282 | G168: =SUM(G164:G167) -> 0 | H168: =SUM(H164:H167) -> 0 | I168: =SUM(I164:I167) -> 4558 | J168: =SUM(J164:J167) -> 118.508 | K168: =SUM(K164:K167) -> 0 | L168: =SUM(L164:L167) -> 0 | M168: =SUM(M164:M167) -> 0 | N168: =SUM(N164:N167) -> 0 | O168: 0.06 | P168: =SUM(P164:P167) -> 4343 | Q168: =SUM(Q164:Q167) -> 260.58 | R168: =SUM(R164:R167) -> 4343 | S168: =SUM(S164:S167) -> 260.58 | T168: =SUM(T164:T167) -> 0 | U168: =SUM(U164:U167) -> 0 | V168: =SUM(V164:V167) -> 0 | W168: =SUM(W164:W167) -> 0 | X168: 0.06 | Y168: =SUM(Y164:Y167) -> 4343 | Z168: =SUM(Z164:Z167) -> 260.58 | AA168: =SUM(AA164:AA167) -> 4343 | AB168: =SUM(AB164:AB167) -> 260.58 | AE168: 260.58
A169: 6.04 | B169: Non-Residential (Continuing from previous year) | D169: 0 | AD169: =U169+W169+Z169=AB169 -> TRUE | AE169: 0
B170: (a) 12 months | C170: 0 | D170: 0 | I170: =C170-E170 -> 0 | J170: 0 | S170: =Q170+N170+L170 -> 0 | Z170: =X170*Y170 -> 0 | AA170: =T170+V170+Y170 -> 0 | AB170: =U170+W170+Z170 -> 0 | AC170: =X170*Y170=Z170 -> TRUE | AD170: TRUE | AE170: 0
B171: (b) 9 months | C171: 107 | D171: 4.601 | E171: 107 | F171: 4.601 | I171: 0 | J171: 0 | O171: 0.06 | P171: 35 | Q171: =O171*P171 -> 2.1 | R171: =K171+M171+P171 -> 35 | S171: 2.1 | X171: 0.06 | Y171: 35 | Z171: 2.1 | AA171: 35 | AB171: 2.1 | AC171: TRUE | AD171: TRUE | AE171: 2.1
B172: (c) 6 months | C172: 0 | D172: 0 | I172: 0 | J172: 0 | R172: 0 | S172: 0 | Z172: 0 | AA172: 0 | AB172: 0 | AC172: TRUE | AD172: TRUE | AE172: 0
B173: (d) 3 months | C173: 0 | D173: 0 | I173: 0 | J173: 0 | R173: 0 | S173: 0 | Z173: 0 | AA173: 0 | AB173: 0 | AC173: TRUE | AD173: TRUE | AE173: 0
B174: Sub Total | C174: =SUM(C170:C173) -> 107 | D174: =SUM(D170:D173) -> 4.601 | E174: =SUM(E170:E173) -> 107 | F174: =SUM(F170:F173) -> 4.601 | G174: =SUM(G170:G173) -> 0 | H174: =SUM(H170:H173) -> 0 | I174: =SUM(I170:I173) -> 0 | J174: =SUM(J170:J173) -> 0 | K174: =SUM(K170:K173) -> 0 | L174: =SUM(L170:L173) -> 0 | M174: =SUM(M170:M173) -> 0 | N174: =SUM(N170:N173) -> 0 | O174: 0.06 | P174: =SUM(P170:P173) -> 35 | Q174: =SUM(Q170:Q173) -> 2.1 | R174: 35 | S174: =SUM(S170:S173) -> 2.1 | T174: =SUM(T170:T173) -> 0 | U174: =SUM(U170:U173) -> 0 | V174: =SUM(V170:V173) -> 0 | W174: =SUM(W170:W173) -> 0 | X174: 0.06 | Y174: =SUM(Y170:Y173) -> 35 | Z174: =SUM(Z170:Z173) -> 2.1 | AA174: =SUM(AA170:AA173) -> 35 | AB174: =SUM(AB170:AB173) -> 2.1 | AE174: 2.1
A175: 6.05 | B175: Madarasa/Maktab | D175: 0 | Z175: =X175*Y175 -> 0 | AA175: =T175+V175+Y175 -> 0 | AB175: =U175+W175+Z175 -> 0 | AC175: =X175*Y175=Z175 -> TRUE | AD175: =U175+W175+Z175=AB175 -> TRUE | AE175: 0
B176: (a) 12 months | C176: 0 | D176: 0 | I176: =C176-E176 -> 0 | J176: 0 | S176: =Q176+N176+L176 -> 0 | Z176: 0 | AA176: 0 | AB176: 0 | AC176: TRUE | AD176: TRUE | AE176: 0
B177: (b) 9 months | C177: 0 | D177: 0 | I177: 0 | J177: 0 | R177: 0 | S177: 0 | Z177: 0 | AA177: 0 | AB177: 0 | AC177: TRUE | AD177: TRUE | AE177: 0
B178: (c) 6 months | C178: 0 | D178: 0 | I178: 0 | J178: 0 | R178: 0 | S178: 0 | Z178: 0 | AA178: 0 | AB178: 0 | AC178: TRUE | AD178: TRUE | AE178: 0
B179: (d) 3 months | C179: 0 | D179: 0 | I179: 0 | J179: 0 | R179: 0 | S179: 0 | Z179: 0 | AA179: 0 | AB179: 0 | AC179: TRUE | AD179: TRUE | AE179: 0
B180: Sub Total | C180: =SUM(C176:C179) -> 0 | D180: =SUM(D176:D179) -> 0 | E180: =SUM(E176:E179) -> 0 | F180: =SUM(F176:F179) -> 0 | G180: =SUM(G176:G179) -> 0 | H180: =SUM(H176:H179) -> 0 | I180: =SUM(I176:I179) -> 0 | J180: =SUM(J176:J179) -> 0 | K180: =SUM(K176:K179) -> 0 | L180: =SUM(L176:L179) -> 0 | M180: =SUM(M176:M179) -> 0 | N180: =SUM(N176:N179) -> 0 | O180: 0 | P180: =SUM(P176:P179) -> 0 | Q180: =SUM(Q176:Q179) -> 0 | R180: =SUM(R176:R179) -> 0 | S180: =SUM(S176:S179) -> 0 | T180: =SUM(T176:T179) -> 0 | U180: =SUM(U176:U179) -> 0 | V180: =SUM(V176:V179) -> 0 | W180: =SUM(W176:W179) -> 0 | X180: 0 | Y180: =SUM(Y176:Y179) -> 0 | Z180: =SUM(Z176:Z179) -> 0 | AA180: =SUM(AA176:AA179) -> 0 | AB180: =SUM(AB176:AB179) -> 0 | AE180: 0
A181: 6.06 | B181: Seasonal Hostel (Residential) | D181: 0 | AA181: 0 | AB181: 0 | AC181: =X181*Y181=Z181 -> TRUE | AD181: =U181+W181+Z181=AB181 -> TRUE | AE181: 0
B182: (a) 12 months | C182: 0 | D182: 0 | I182: =C182-E182 -> 0 | J182: 0 | R182: =P182+M182+K182 -> 0 | S182: 0 | Z182: =X182*Y182 -> 0 | AA182: =T182+V182+Y182 -> 0 | AB182: =U182+W182+Z182 -> 0 | AC182: TRUE | AD182: TRUE | AE182: 0
B183: (b) 9 months | C183: 0 | D183: 0 | I183: 0 | J183: 0 | R183: 0 | S183: 0 | Z183: 0 | AA183: 0 | AB183: 0 | AC183: TRUE | AD183: TRUE | AE183: 0
B184: (c) 6 months | C184: 0 | D184: 0 | I184: 0 | J184: 0 | R184: 0 | S184: 0 | Z184: 0 | AA184: 0 | AB184: 0 | AC184: TRUE | AD184: TRUE | AE184: 0
B185: (d) 3 months | C185: 0 | D185: 0 | I185: 0 | J185: 0 | R185: 0 | S185: 0 | Z185: 0 | AA185: 0 | AB185: 0 | AC185: TRUE | AD185: TRUE | AE185: 0
B186: Sub Total | C186: =SUM(C182:C185) -> 0 | D186: =SUM(D182:D185) -> 0 | E186: =SUM(E182:E185) -> 0 | F186: =SUM(F182:F185) -> 0 | G186: =SUM(G182:G185) -> 0 | H186: =SUM(H182:H185) -> 0 | I186: =SUM(I182:I185) -> 0 | J186: =SUM(J182:J185) -> 0 | K186: =SUM(K182:K185) -> 0 | L186: =SUM(L182:L185) -> 0 | M186: =SUM(M182:M185) -> 0 | N186: =SUM(N182:N185) -> 0 | O186: 0 | P186: =SUM(P182:P185) -> 0 | Q186: =SUM(Q182:Q185) -> 0 | R186: =SUM(R182:R185) -> 0 | S186: =SUM(S182:S185) -> 0 | T186: =SUM(T182:T185) -> 0 | U186: =SUM(U182:U185) -> 0 | V186: =SUM(V182:V185) -> 0 | W186: =SUM(W182:W185) -> 0 | X186: 0 | Y186: =SUM(Y182:Y185) -> 0 | Z186: =SUM(Z182:Z185) -> 0 | AA186: =SUM(AA182:AA185) -> 0 | AB186: =SUM(AB182:AB185) -> 0 | AE186: 0
A187: 6.07 | B187: Seasonal Hostel (Non Residential) | D187: 0 | AA187: 0 | AB187: 0 | AC187: =X187*Y187=Z187 -> TRUE | AD187: =U187+W187+Z187=AB187 -> TRUE | AE187: 0
B188: (a) 12 months | C188: 0 | D188: 0 | I188: =C188-E188 -> 0 | J188: 0 | R188: =P188+M188+K188 -> 0 | S188: 0 | Z188: =X188*Y188 -> 0 | AA188: =T188+V188+Y188 -> 0 | AB188: =U188+W188+Z188 -> 0 | AC188: TRUE | AD188: TRUE | AE188: 0
B189: (b) 9 months | C189: 0 | D189: 0 | I189: 0 | J189: 0 | R189: 0 | S189: 0 | Z189: 0 | AA189: 0 | AB189: 0 | AC189: TRUE | AD189: TRUE | AE189: 0
B190: (c) 6 months | C190: 0 | D190: 0 | I190: 0 | J190: 0 | R190: 0 | S190: 0 | Z190: 0 | AA190: 0 | AB190: 0 | AC190: TRUE | AD190: TRUE | AE190: 0
B191: (d) 3 months | C191: 0 | D191: 0 | I191: 0 | J191: 0 | R191: 0 | S191: 0 | Z191: 0 | AA191: 0 | AB191: 0 | AC191: TRUE | AD191: TRUE | AE191: 0
B192: Sub Total | C192: =SUM(C188:C191) -> 0 | D192: =SUM(D188:D191) -> 0 | E192: =SUM(E188:E191) -> 0 | F192: =SUM(F188:F191) -> 0 | G192: =SUM(G188:G191) -> 0 | H192: =SUM(H188:H191) -> 0 | I192: =SUM(I188:I191) -> 0 | J192: =SUM(J188:J191) -> 0 | K192: =SUM(K188:K191) -> 0 | L192: =SUM(L188:L191) -> 0 | M192: =SUM(M188:M191) -> 0 | N192: =SUM(N188:N191) -> 0 | O192: 0 | P192: =SUM(P188:P191) -> 0 | Q192: =SUM(Q188:Q191) -> 0 | R192: =SUM(R188:R191) -> 0 | S192: =SUM(S188:S191) -> 0 | T192: =SUM(T188:T191) -> 0 | U192: =SUM(U188:U191) -> 0 | V192: =SUM(V188:V191) -> 0 | W192: =SUM(W188:W191) -> 0 | X192: 0 | Y192: =SUM(Y188:Y191) -> 0 | Z192: =SUM(Z188:Z191) -> 0 | AA192: =SUM(AA188:AA191) -> 0 | AB192: 0 | AE192: 0
B193: Total | C193: =C192+C186+C180+C174+C168+C162+C156 -> 5022 | D193: =D192+D186+D180+D174+D168+D162+D156 -> 132.391 | E193: =E192+E186+E180+E174+E168+E162+E156 -> 464 | F193: =F192+F186+F180+F174+F168+F162+F156 -> 13.883 | G193: =G192+G186+G180+G174+G168+G162+G156 -> 0 | H193: =H192+H186+H180+H174+H168+H162+H156 -> 0 | I193: =I192+I186+I180+I174+I168+I162+I156 -> 4558 | J193: =J192+J186+J180+J174+J168+J162+J156 -> 118.508 | K193: =K192+K186+K180+K174+K168+K162+K156 -> 0 | L193: =L192+L186+L180+L174+L168+L162+L156 -> 0 | M193: =M192+M186+M180+M174+M168+M162+M156 -> 0 | N193: =N192+N186+N180+N174+N168+N162+N156 -> 0 | O193: 0.12 | P193: =P192+P186+P180+P174+P168+P162+P156 -> 4378 | Q193: =Q192+Q186+Q180+Q174+Q168+Q162+Q156 -> 262.68 | R193: 4378 | S193: =S192+S186+S180+S174+S168+S162+S156 -> 262.68 | T193: =T192+T186+T180+T174+T168+T162+T156 -> 0 | U193: =U192+U186+U180+U174+U168+U162+U156 -> 0 | V193: =V192+V186+V180+V174+V168+V162+V156 -> 0 | W193: =W192+W186+W180+W174+W168+W162+W156 -> 0 | X193: 0.12 | Y193: =Y192+Y186+Y180+Y174+Y168+Y162+Y156 -> 4378 | Z193: =Z192+Z186+Z180+Z174+Z168+Z162+Z156 -> 262.68 | AA193: 4378 | AB193: =AB192+AB186+AB180+AB174+AB168+AB162+AB156 -> 262.68 | AE193: 262.68
A194: II | B194: RETENTION | D194: 0 | AC194: =X194*Y194=Z194 -> TRUE | AD194: =U194+W194+Z194=AB194 -> TRUE | AE194: 0
A195: 7 | B195: Free Text Books | D195: 0 | AC195: TRUE | AD195: TRUE | AE195: 0
A196: 7.01 | B196: Free Text Books (P) | C196: 0 | D196: 0 | I196: =C196-E196 -> 0 | J196: 0 | N196: 0 | AC196: TRUE | AD196: TRUE | AE196: 0
B197: (a) Class I & II | C197: 24712 | D197: 37.068 | E197: 24712 | F197: 37.068 | I197: 0 | J197: 0 | O197: 0.0015 | P197: 24712 | Q197: =P197*O197 -> 37.068 | R197: =P197+M197+K197 -> 24712 | S197: 37.068 | X197: 0.0015 | Y197: 24712 | Z197: =X197*Y197 -> 37.068 | AA197: =T197+V197+Y197 -> 24712 | AB197: =U197+W197+Z197 -> 37.068 | AC197: Recommended propsed | AD197: TRUE | AE197: 37.068
B198: (b) Braille Books Class I & II | C198: 8 | D198: 0.012 | E198: 8 | F198: 0.012 | I198: 0 | J198: 0 | O198: 0.0015 | P198: 1 | Q198: 0.0015 | R198: 1 | S198: 0.0015 | X198: 0.0015 | Y198: 1 | Z198: =X198*Y198 -> 0.0015 | AA198: 1 | AB198: =U198+W198+Z198 -> 0.0015 | AC198: TRUE | AD198: TRUE | AE198: 0.0015
B199: (c) Large Print Books Class I & II | C199: 0 | D199: 0 | E199: 0 | F199: 0 | I199: 0 | J199: 0 | O199: 0.0015 | P199: 0 | Q199: 0 | R199: 0 | S199: 0 | X199: 0.0015 | Y199: 0 | Z199: 0 | AA199: 0 | AB199: 0 | AC199: TRUE | AD199: TRUE | AE199: 0
B200: (d) Class III to V | C200: 25708 | D200: 38.562 | E200: 25708 | F200: 38.562 | I200: 0 | J200: 0 | O200: 0.0015 | P200: 25708 | Q200: 38.562 | R200: 25708 | S200: 38.562 | X200: 0.0015 | Y200: 25708 | Z200: 38.562 | AA200: 25708 | AB200: 38.562 | AC200: Recommended propsed | AD200: TRUE | AE200: =AB200 -> 38.562
... 324 more rows

Sheet SWKH
A1: S.No. | B1: Activity | C1: Year 2016-17 | K1: Outlay Proposed for 2017-18 | T1: Outlay Recommended for 2017-18
C2: Outlay approved by PAB (including spillover) | E2: Achievement during the year | I2: Savings | K2: Spill Over | M2: Deferred laibility of 2014-15 | O2: Fresh | R2: Total | T2: Spill Over | V2: Deferred laibility of 2014-15 | X2: Fresh | AA2: Total
C3: Phy. | D3: Fin. | E3: Phy. | F3: Fin. | G3: Phy. (%) | H3: Fin. (%) | I3: Phy. | J3: Fin. | K3: Phy. | L3: Fin. | M3: Phy. | N3: Fin. | O3: Unit Cost | P3: Phy. | Q3: Fin. | R3: Phy. | S3: Fin. | T3: Phy. | U3: Fin. | V3: Phy. | W3: Fin. | X3: Unit Cost | Y3: Phy. | Z3: Fin. | AA3: Phy. | AB3: Fin.
A4: I | B4: ACCESS
B5: SSA
A6: 1 | B6: Opening of New Schools
A7: 1.01 | B7: New Primary School | D7: 0 | I7: =C7-E7 -> 0 | J7: =D7-F7 -> 0 | R7: =P7+M7+K7 -> 0 | S7: =Q7+N7+L7 -> 0 | AA7: =T7+V7+Y7 -> 0 | AB7: =U7+W7+Z7 -> 0 | AC7: =X7*Y7=Z7 -> TRUE | AD7: =U7+W7+Z7=AB7 -> TRUE | AE7: =AB7 -> 0
A8: 1.02 | B8: Upgradation of PS to UPS | C8: 0 | D8: 0 | I8: =C8-E8 -> 0 | J8: 0 | R8: =P8+M8+K8 -> 0 | S8: 0 | AA8: =T8+V8+Y8 -> 0 | AB8: =U8+W8+Z8 -> 0 | AC8: =X8*Y8=Z8 -> TRUE | AD8: =U8+W8+Z8=AB8 -> TRUE | AE8: =AB8 -> 0
A9: 1.03 | B9: Composite Schools | C9: 0 | D9: 0 | I9: 0 | J9: 0 | R9: 0 | S9: 0 | AA9: 0 | AB9: 0 | AC9: TRUE | AD9: TRUE | AE9: 0
A10: 1.04 | B10: Residential schools for specific category of children | C10: 0 | D10: 0 | I10: 0 | J10: 0 | R10: 0 | S10: 0 | AA10: 0 | AB10: 0 | AC10: TRUE | AD10: TRUE | AE10: 0
A11: 1.05 | B11: Residential Hostel | C11: 0 | D11: 0 | I11: 0 | J11: 0 | R11: 0 | S11: 0 | AA11: 0 | AB11: 0 | AC11: TRUE | AD11: TRUE | AE11: 0
A12: 1.06 | B12: Integration of Class V with primary schools | C12: 0 | D12: 0 | I12: 0 | J12: 0 | R12: 0 | S12: 0 | AA12: 0 | AB12: 0 | AC12: TRUE | AD12: TRUE | AE12: 0
A13: 1.07 | B13: Integration of Class VIII with upper primary schools | C13: 0 | D13: 0 | I13: 0 | J13: 0 | R13: 0 | S13: 0 | AA13: 0 | AB13: 0 | AC13: TRUE | AD13: TRUE | AE13: 0
A14: 2 | B14: Residential Schools for specific category of children | C14: 0 | D14: 0 | I14: 0 | J14: 0 | R14: 0 | S14: 0 | AA14: =Y14+V14+T14 -> 0 | AB14: =Z14+W14+U14 -> 0 | AC14: TRUE | AD14: TRUE | AE14: 0
B15: 50 children | C15: 0 | D15: 0 | I15: 0 | J15: 0 | R15: 0 | S15: 0 | AA15: 0 | AB15: 0 | AC15: TRUE | AD15: TRUE | AE15: 0
B16: Non-recurring (one time grant) | C16: 0 | D16: 0 | I16: 0 | J16: 0 | R16: 0 | S16: 0 | AA16: 0 | AB16: 0 | AC16: TRUE | AD16: TRUE | AE16: 0
A17: 2.01 | B17: Furniture/ Equipment (including kitchen) | C17: 0 | D17: 0 | I17: 0 | J17: 0 | R17: 0 | S17: 0 | Z17: =X17*Y17 -> 0 | AA17: =T17+V17+Y17 -> 0 | AB17: =U17+W17+Z17 -> 0 | AC17: TRUE | AD17: TRUE | AE17: 0
A18: 2.02 | B18: TLM and equipment including library books | C18: 0 | D18: 0 | I18: 0 | J18: 0 | R18: 0 | S18: 0 | Z18: 0 | AA18: 0 | AB18: 0 | AC18: TRUE | AD18: TRUE | AE18: 0
A19: 2.03 | B19: Bedding (new) | C19: 0 | D19: 0 | I19: 0 | J19: 0 | R19: 0 | S19: 0 | Z19: 0 | AA19: 0 | AB19: 0 | AC19: TRUE | AD19: TRUE | AE19: 0
A20: 2.04 | B20: Replacement of bedding (once in 3 years) | C20: 0 | D20: 0 | I20: 0 | J20: 0 | R20: 0 | S20: 0 | Z20: 0 | AA20: 0 | AB20: 0 | AC20: TRUE | AD20: TRUE | AE20: 0
B21: Sub Total (Non Recurring) | C21: =SUM(C15:C20) -> 0 | D21: =SUM(D15:D20) -> 0 | E21: 0 | F21: 0 | G21: 0 | H21: 0 | I21: 0 | J21: 0 | K21: 0 | L21: 0 | M21: 0 | N21: 0 | O21: 0 | P21: 0 | Q21: 0 | R21: 0 | S21: 0 | T21: 0 | U21: 0 | V21: 0 | W21: 0 | X21: 0 | Y21: 0 | Z21: 0 | AA21: 0 | AB21: 0 | AE21: 0
B22: Recurring (50 children) | C22: 0 | D22: 0 | AA22: 0 | AB22: 0 | AE22: 0
A23: 2.05 | B23: Maintenance @ Rs.1,500/- per child Per month | C23: 0 | D23: 0 | I23: =C23-E23 -> 0 | J23: 0 | R23: =P23+M23+K23 -> 0 | S23: 0 | Z23: =X23*Y23 -> 0 | AA23: =T23+V23+Y23 -> 0 | AB23: =U23+W23+Z23 -> 0 | AC23: =X23*Y23=Z23 -> TRUE | AD23: =U23+W23+Z23=AB23 -> TRUE | AE23: 0
A24: 2.06 | B24: Stipend @ Rs.100/- per child per month | C24: 0 | D24: 0 | I24: 0 | J24: 0 | R24: 0 | S24: 0 | Z24: 0 | AA24: 0 | AB24: 0 | AC24: TRUE | AD24: TRUE | AE24: 0
A25: 2.07 | B25: Supplementary TLM, Stationery and other educational material @Rs.1,000/- per child per annum | C25: 0 | D25: 0 | I25: 0 | J25: 0 | R25: 0 | S25: 0 | Z25: 0 | AA25: 0 | AB25: 0 | AC25: TRUE | AD25: TRUE | AE25: 0
A26: 2.08 | B26: Salaries | C26: 0 | D26: 0 | I26: 0 | J26: 0 | R26: 0 | S26: 0 | Z26: 0 | AA26: 0 | AB26: 0 | AC26: TRUE | AD26: TRUE | AE26: 0
A27: (a) | B27: 1 Warden @ Rs.25,000/- per month | C27: 0 | D27: 0 | I27: 0 | J27: 0 | R27: 0 | S27: 0 | Z27: 0 | AA27: 0 | AB27: 0 | AC27: TRUE | AD27: TRUE | AE27: 0
A28: (b) | B28: 4 Fulltime teachers as per RTE Norms @ Rs. 20,000/- per month per teacher | C28: 0 | D28: 0 | I28: 0 | J28: 0 | R28: 0 | S28: 0 | Z28: 0 | AA28: 0 | AB28: 0 | AC28: TRUE | AD28: TRUE | AE28: 0
A29: (c) | B29: 2 Urdu Teachers (only for Blocks with muslim population above 20% and select urban areas) if required @ Rs.12,000/- per month per teacher. | C29: 0 | D29: 0 | I29: 0 | J29: 0 | R29: 0 | S29: 0 | Z29: 0 | AA29: 0 | AB29: 0 | AC29: TRUE | AD29: TRUE | AE29: 0
A30: (d) | B30: 3 Part time teachers @ Rs.5,000/- per month per teacher | C30: 0 | D30: 0 | I30: 0 | J30: 0 | R30: 0 | S30: 0 | Z30: 0 | AA30: 0 | AB30: 0 | AC30: TRUE | AD30: TRUE | AE30: 0
A31: (e) | B31: 1 Full time Accountant @ Rs. 10,000/- per month | C31: 0 | D31: 0 | I31: 0 | J31: 0 | R31: 0 | S31: 0 | Z31: 0 | AA31: 0 | AB31: 0 | AC31: TRUE | AD31: TRUE | AE31: 0
A32: (f) | B32: 2 Support staff - (Accountant/Assistant, Peon, Chowkidar) @ Rs. 5,000/- per month per staff | C32: 0 | D32: 0 | I32: 0 | J32: 0 | R32: 0 | S32: 0 | Z32: 0 | AA32: 0 | AB32: 0 | AC32: TRUE | AD32: TRUE | AE32: 0
A33: (g) | B33: 1 Head Cook @ Rs. 6,000/- per month and upto 2 Asstt. Cooks @ Rs. 4,500/- per month per cook | C33: 0 | D33: 0 | I33: 0 | J33: 0 | R33: 0 | S33: 0 | Z33: 0 | AA33: 0 | AB33: 0 | AC33: TRUE | AD33: TRUE | AE33: 0
A34: 2.09 | B34: Specific Skill training @ Rs.1,000/- per child per annum | C34: 0 | D34: 0 | I34: 0 | J34: 0 | R34: 0 | S34: 0 | Z34: 0 | AA34: 0 | AB34: 0 | AC34: TRUE | AD34: TRUE | AE34: 0
A35: 2.1 | B35: Electricity / water charges @ Rs. 1,000/- per child per annum | C35: 0 | D35: 0 | I35: 0 | J35: 0 | R35: 0 | S35: 0 | Z35: 0 | AA35: 0 | AB35: 0 | AC35: TRUE | AD35: TRUE | AE35: 0
A36: =+A35+0.01 -> 2.11 | B36: Medical care/contingencies @ Rs.1,250/- per child per annum | C36: 0 | D36: 0 | I36: 0 | J36: 0 | R36: 0 | S36: 0 | Z36: 0 | AA36: 0 | AB36: 0 | AC36: TRUE | AD36: TRUE | AE36: 0
A37: =+A36+0.01 -> 2.12 | B37: Maintenance @ Rs. 750/- per child per annum | C37: 0 | D37: 0 | I37: 0 | J37: 0 | R37: 0 | S37: 0 | Z37: 0 | AA37: 0 | AB37: 0 | AC37: TRUE | AD37: TRUE | AE37: 0
A38: 2.13 | B38: Miscellaneous @ Rs. 750/- per child per annum | C38: 0 | D38: 0 | I38: 0 | J38: 0 | R38: 0 | S38: 0 | Z38: 0 | AA38: 0 | AB38: 0 | AC38: TRUE | AD38: TRUE | AE38: 0
A39: 2.14 | B39: Preparatory camps @ Rs. 300/- per child per annum | C39: 0 | D39: 0 | I39: =C39-E39 -> 0 | J39: 0 | R39: =P39+M39+K39 -> 0 | S39: 0 | Z39: 0 | AA39: 0 | AB39: 0 | AC39: TRUE | AD39: TRUE | AE39: 0
A40: 2.15 | B40: P.T.A / school functions @ Rs. 300/- per child per annum | C40: 0 | D40: 0 | I40: 0 | J40: 0 | R40: 0 | S40: 0 | Z40: 0 | AA40: 0 | AB40: 0 | AC40: TRUE | AD40: TRUE | AE40: 0
A41: 2.16 | B41: Provision of Rent @ Rs. 10,000/- per child per annum | C41: 0 | D41: 0 | I41: 0 | J41: 0 | R41: 0 | S41: 0 | Z41: 0 | AA41: 0 | AB41: 0 | AC41: TRUE | AD41: TRUE | AE41: 0
A42: 2.17 | B42: Capacity Building @ Rs. 500/- per child per annum | C42: 0 | D42: 0 | I42: 0 | J42: 0 | R42: 0 | S42: 0 | Z42: 0 | AA42: 0 | AB42: 0 | AC42: TRUE | AD42: TRUE | AE42: 0
A43: 2.18 | B43: Physical / Self Defence Training @ Rs.200/- per child per annum | C43: 0 | D43: 0 | I43: 0 | J43: 0 | R43: 0 | S43: 0 | Z43: 0 | AA43: 0 | AB43: 0 | AC43: TRUE | AD43: TRUE | AE43: 0
B44: Sub Total (Recurring) | C44: 0 | D44: 0 | E44: 0 | F44: 0 | G44: 0 | H44: 0 | I44: 0 | J44: 0 | K44: 0 | L44: 0 | M44: 0 | N44: 0 | O44: 0 | P44: 0 | Q44: 0 | R44: 0 | S44: 0 | T44: 0 | U44: 0 | V44: 0 | W44: 0 | X44: 0 | Y44: 0 | Z44: 0 | AA44: 0 | AB44: 0 | AE44: 0
B45: Total (Non Recurring + Recurring) | C45: =C44+C21 -> 0 | D45: =D44+D21 -> 0 | E45: 0 | F45: 0 | G45: 0 | H45: 0 | I45: 0 | J45: 0 | K45: 0 | L45: 0 | M45: 0 | N45: 0 | O45: 0 | P45: 0 | Q45: 0 | R45: 0 | S45: 0 | T45: 0 | U45: 0 | V45: 0 | W45: 0 | X45: 0 | Y45: 0 | Z45: 0 | AA45: 0 | AB45: 0 | AE45: 0
B46: 100 children | C46: 0 | D46: 0 | AA46: 0 | AB46: 0 | AC46: =X46*Y46=Z46 -> TRUE | AD46: =U46+W46+Z46=AB46 -> TRUE | AE46: 0
B47: Non-recurring (one time grant) | C47: 0 | D47: 0 | AA47: 0 | AB47: 0 | AC47: TRUE | AD47: TRUE | AE47: 0
A48: 2.19 | B48: Furniture / Equipment (including kitchen equipment) | C48: 0 | D48: 0 | I48: =C48-E48 -> 0 | J48: 0 | R48: =P48+M48+K48 -> 0 | S48: 0 | Z48: =X48*Y48 -> 0 | AA48: =T48+V48+Y48 -> 0 | AB48: =U48+W48+Z48 -> 0 | AC48: TRUE | AD48: TRUE | AE48: 0
A49: =+A48+0.01 -> 2.2 | B49: TLM and equipment including library books (New) | C49: 0 | D49: 0 | I49: 0 | J49: 0 | R49: 0 | S49: 0 | Z49: 0 | AA49: 0 | AB49: 0 | AC49: TRUE | AD49: TRUE | AE49: 0
A50: =+A49+0.01 -> 2.21 | B50: Bedding (New) | C50: 0 | D50: 0 | I50: 0 | J50: 0 | R50: 0 | S50: 0 | Z50: 0 | AA50: 0 | AB50: 0 | AC50: TRUE | AD50: TRUE | AE50: 0
A51: =+A50+0.01 -> 2.22 | B51: Replacement of bedding (once in 3 years) | C51: 0 | D51: 0 | I51: 0 | J51: 0 | R51: 0 | S51: 0 | Z51: 0 | AA51: 0 | AB51: 0 | AC51: TRUE | AD51: TRUE | AE51: 0
B52: Sub Total Non-recurring | C52: =SUM(C48:C51) -> 0 | D52: =SUM(D48:D51) -> 0 | E52: 0 | F52: 0 | G52: 0 | H52: 0 | I52: 0 | J52: 0 | K52: 0 | L52: 0 | M52: 0 | N52: 0 | O52: 0 | P52: 0 | Q52: 0 | R52: 0 | S52: 0 | T52: 0 | U52: 0 | V52: 0 | W52: 0 | X52: 0 | Y52: 0 | Z52: 0 | AA52: 0 | AB52: 0 | AE52: 0
B53: Recurring | C53: 0 | D53: 0 | AA53: 0 | AB53: 0 | AC53: =X53*Y53=Z53 -> TRUE | AD53: =U53+W53+Z53=AB53 -> TRUE | AE53: 0
A54: 2.23 | B54: Maintenance @ Rs. 1,500/- per child per month | C54: 0 | D54: 0 | I54: =C54-E54 -> 0 | J54: 0 | R54: =P54+M54+K54 -> 0 | S54: 0 | Z54: =X54*Y54 -> 0 | AA54: =T54+V54+Y54 -> 0 | AB54: =U54+W54+Z54 -> 0 | AC54: TRUE | AD54: TRUE | AE54: 0
A55: =+A54+0.01 -> 2.24 | B55: Stipend @ Rs.100/- per child per month | C55: 0 | D55: 0 | I55: 0 | J55: 0 | R55: 0 | S55: 0 | Z55: 0 | AA55: 0 | AB55: 0 | AC55: TRUE | AD55: TRUE | AE55: 0
A56: 2.25 | B56: Supplementary TLM, Stationery and other educational material @1,000/- per child per annum | C56: 0 | D56: 0 | I56: 0 | J56: 0 | R56: 0 | S56: 0 | Z56: 0 | AA56: 0 | AB56: 0 | AC56: TRUE | AD56: TRUE | AE56: 0
A57: 2.26 | B57: Salaries | C57: 0 | D57: 0 | I57: 0 | J57: 0 | R57: 0 | S57: 0 | Z57: 0 | AA57: 0 | AB57: 0 | AC57: TRUE | AD57: TRUE | AE57: 0
A58: (a) | B58: 1 Warden @ Rs. 25,000/- per month | C58: 0 | D58: 0 | I58: 0 | J58: 0 | R58: 0 | S58: 0 | Z58: 0 | AA58: 0 | AB58: 0 | AC58: TRUE | AD58: TRUE | AE58: 0
A59: (b) | B59: 1 head teacher @ Rs. 25,000/- per month in case the enrollment exceeds 100 | C59: 0 | D59: 0 | I59: 0 | J59: 0 | R59: 0 | S59: 0 | Z59: 0 | AA59: 0 | AB59: 0 | AC59: TRUE | AD59: TRUE | AE59: 0
A60: (c) | B60: 4 - 5 Full time teachers as per RTE norms @ Rs. 20,000/- per month per teacher | C60: 0 | D60: 0 | I60: 0 | J60: 0 | R60: 0 | S60: 0 | Z60: 0 | AA60: 0 | AB60: 0 | AC60: TRUE | AD60: TRUE | AE60: 0
A61: (d) | B61: 2 Urdu Teachers (only for blocks with muslim population above 20% and select urban areas), if required @ Rs. 12,000/- per month per teacher | C61: 0 | D61: 0 | I61: 0 | J61: 0 | R61: 0 | S61: 0 | Z61: 0 | AA61: 0 | AB61: 0 | AC61: TRUE | AD61: TRUE | AE61: 0
A62: (e) | B62: 3 part time teachers @ Rs. 5,000/- per month per teacher | C62: 0 | D62: 0 | I62: 0 | J62: 0 | R62: 0 | S62: 0 | Z62: 0 | AA62: 0 | AB62: 0 | AC62: TRUE | AD62: TRUE | AE62: 0
A63: (f) | B63: 1 Full time Accountant @ Rs. 10,000/- per month | C63: 0 | D63: 0 | I63: 0 | J63: 0 | R63: 0 | S63: 0 | Z63: 0 | AA63: 0 | AB63: 0 | AC63: TRUE | AD63: TRUE | AE63: 0
A64: (g) | B64: 2 Support Staff – (Accountant/ Assistant, Peon, Chowkidar) @ Rs. 5,000/- per month per staff | C64: 0 | D64: 0 | I64: 0 | J64: 0 | R64: 0 | S64: 0 | Z64: 0 | AA64: 0 | AB64: 0 | AC64: TRUE | AD64: TRUE | AE64: 0
A65: (h) | B65: 1 Head cook @ Rs. 6,000/- per month and upto 2 Asstt. Cooks @ Rs. 4,500/- per month per cook | C65: 0 | D65: 0 | I65: 0 | J65: 0 | R65: 0 | S65: 0 | Z65: 0 | AA65: 0 | AB65: 0 | AC65: TRUE | AD65: TRUE | AE65: 0
A66: 2.27 | B66: Specific skill training @ Rs. 1,000/- per child per annum | C66: 0 | D66: 0 | I66: 0 | J66: 0 | R66: 0 | S66: 0 | Z66: 0 | AA66: 0 | AB66: 0 | AC66: TRUE | AD66: TRUE | AE66: 0
A67: 2.28 | B67: Electricity / water charges @Rs. 1,000/- per child per annum | C67: 0 | D67: 0 | I67: 0 | J67: 0 | R67: 0 | S67: 0 | Z67: 0 | AA67: 0 | AB67: 0 | AC67: TRUE | AD67: TRUE | AE67: 0
A68: 2.29 | B68: Medical care/contingencies @ Rs. 1,250/- per child per annum | C68: 0 | D68: 0 | I68: 0 | J68: 0 | R68: 0 | S68: 0 | Z68: 0 | AA68: 0 | AB68: 0 | AC68: TRUE | AD68: TRUE | AE68: 0
A69: 2.3 | B69: Maintenance @ Rs. 750/- per child per annum | C69: 0 | D69: 0 | I69: 0 | J69: 0 | R69: 0 | S69: 0 | Z69: 0 | AA69: 0 | AB69: 0 | AC69: TRUE | AD69: TRUE | AE69: 0
A70: 2.31 | B70: Miscellaneous @ Rs. 750/- per child per annum | C70: 0 | D70: 0 | I70: =C70-E70 -> 0 | J70: 0 | R70: =P70+M70+K70 -> 0 | S70: 0 | Z70: 0 | AA70: 0 | AB70: 0 | AC70: TRUE | AD70: TRUE | AE70: 0
A71: 2.32 | B71: Preparatory camps @ Rs.200/- per child per annum | C71: 0 | D71: 0 | I71: 0 | J71: 0 | R71: 0 | S71: 0 | Z71: 0 | AA71: 0 | AB71: 0 | AC71: TRUE | AD71: TRUE | AE71: 0
A72: 2.33 | B72: P.T.A / school functions @ Rs.200/- per child per annum | C72: 0 | D72: 0 | I72: 0 | J72: 0 | R72: 0 | S72: 0 | Z72: 0 | AA72: 0 | AB72: 0 | AC72: TRUE | AD72: TRUE | AE72: =AB72 -> 0
A73: 2.34 | B73: Provision of Rent @ Rs. 6,000/- per child per annum | C73: 0 | D73: 0 | I73: 0 | J73: 0 | R73: 0 | S73: 0 | Z73: 0 | AA73: 0 | AB73: 0 | AC73: TRUE | AD73: TRUE | AE73: 0
A74: 2.35 | B74: Capacity Building @ Rs. 500/- per child per annum | C74: 0 | D74: 0 | I74: 0 | J74: 0 | R74: 0 | S74: 0 | Z74: 0 | AA74: 0 | AB74: 0 | AC74: TRUE | AD74: TRUE | AE74: 0
A75: 2.36 | B75: Physical / Self Defence training @ Rs. 200/- per child per annum. | C75: 0 | D75: 0 | I75: 0 | J75: 0 | R75: 0 | S75: 0 | Z75: 0 | AA75: 0 | AB75: 0 | AC75: TRUE | AD75: TRUE | AE75: 0
B76: Sub Total (Recurring) | C76: =SUM(C54:C75) -> 0 | D76: =SUM(D54:D75) -> 0 | E76: =SUM(E54:E75) -> 0 | F76: =SUM(F54:F75) -> 0 | G76: =SUM(G54:G75) -> 0 | H76: =SUM(H54:H75) -> 0 | I76: =SUM(I54:I75) -> 0 | J76: =SUM(J54:J75) -> 0 | K76: =SUM(K54:K75) -> 0 | L76: =SUM(L54:L75) -> 0 | M76: =SUM(M54:M75) -> 0 | N76: =SUM(N54:N75) -> 0 | O76: 0 | P76: =SUM(P54:P75) -> 0 | Q76: =SUM(Q54:Q75) -> 0 | R76: =SUM(R54:R75) -> 0 | S76: =SUM(S54:S75) -> 0 | T76: =SUM(T54:T75) -> 0 | U76: =SUM(U54:U75) -> 0 | V76: =SUM(V54:V75) -> 0 | W76: =SUM(W54:W75) -> 0 | X76: 0 | Y76: =SUM(Y54:Y75) -> 0 | Z76: =SUM(Z54:Z75) -> 0 | AA76: =SUM(AA54:AA75) -> 0 | AB76: =SUM(AB54:AB75) -> 0 | AE76: 0
B77: Total (Recurring + Non Recurring) | C77: =C76+C52 -> 0 | D77: =D76+D52 -> 0 | E77: 0 | F77: 0 | G77: 0 | H77: 0 | I77: 0 | J77: 0 | K77: 0 | L77: 0 | M77: 0 | N77: 0 | O77: 0 | P77: 0 | Q77: 0 | R77: 0 | S77: 0 | T77: 0 | U77: 0 | V77: 0 | W77: 0 | X77: 0 | Y77: 0 | Z77: 0 | AA77: 0 | AB77: 0 | AE77: 0
B78: Total (50 + 100 children) | C78: 0 | D78: 0 | E78: =E77+E45 -> 0 | F78: =F77+F45 -> 0 | AA78: =Y78+V78+T78 -> 0 | AB78: =Z78+W78+U78 -> 0 | AC78: =X78*Y78=Z78 -> TRUE | AD78: =U78+W78+Z78=AB78 -> TRUE | AE78: 0
A79: 3 | B79: Residential Hostel for specific category of children | C79: 0 | D79: 0 | AA79: 0 | AB79: 0 | AC79: TRUE | AD79: TRUE | AE79: 0
A80: (A) | B80: 50 children | D80: 0 | AA80: 0 | AB80: 0 | AC80: TRUE | AD80: TRUE | AE80: 0
B81: Non-recurring (one time grant) | D81: 0 | AA81: 0 | AB81: 0 | AC81: TRUE | AD81: TRUE | AE81: 0
A82: 3.01 | B82: Furniture/ Equipment (including kitchen) | C82: 0 | D82: 0 | I82: =C82-E82 -> 0 | J82: 0 | R82: =P82+M82+K82 -> 0 | S82: 0 | Z82: =X82*Y82 -> 0 | AA82: =T82+V82+Y82 -> 0 | AB82: =U82+W82+Z82 -> 0 | AC82: TRUE | AD82: TRUE | AE82: 0
A83: =+A82+0.01 -> 3.02 | B83: TLM and equipment including library books | C83: 0 | D83: 0 | I83: 0 | J83: 0 | R83: 0 | S83: 0 | Z83: 0 | AA83: 0 | AB83: 0 | AC83: TRUE | AD83: TRUE | AE83: 0
A84: =+A83+0.01 -> 3.03 | B84: Bedding (new) | C84: 0 | D84: 0 | I84: 0 | J84: 0 | R84: 0 | S84: 0 | Z84: 0 | AA84: 0 | AB84: 0 | AC84: TRUE | AD84: TRUE | AE84: 0
A85: =+A84+0.01 -> 3.04 | B85: Replacement of bedding (once in 3 years) | C85: 0 | D85: 0 | I85: 0 | J85: 0 | R85: 0 | S85: 0 | Z85: 0 | AA85: 0 | AB85: 0 | AC85: TRUE | AD85: TRUE | AE85: 0
B86: Sub Total (Non Recurring) | C86: =SUM(C82:C85) -> 0 | D86: =SUM(D82:D85) -> 0 | E86: 0 | F86: 0 | G86: 0 | H86: 0 | I86: 0 | J86: 0 | K86: 0 | L86: 0 | M86: 0 | N86: 0 | O86: 0 | P86: 0 | Q86: 0 | R86: 0 | S86: 0 | T86: 0 | U86: 0 | V86: 0 | W86: 0 | X86: 0 | Y86: 0 | Z86: 0 | AA86: 0 | AB86: 0 | AE86: 0
B87: Recurring (50 children) | D87: 0 | AA87: 0 | AB87: 0 | AC87: =X87*Y87=Z87 -> TRUE | AD87: =U87+W87+Z87=AB87 -> TRUE | AE87: 0
A88: 3.05 | B88: Maintenance @ Rs.1,500/- per child per month | C88: 0 | D88: 0 | I88: =C88-E88 -> 0 | J88: 0 | R88: =P88+M88+K88 -> 0 | S88: 0 | Z88: =X88*Y88 -> 0 | AA88: =T88+V88+Y88 -> 0 | AB88: =U88+W88+Z88 -> 0 | AC88: TRUE | AD88: TRUE | AE88: 0
A89: =+A88+0.01 -> 3.06 | B89: Stipend @ Rs.100/- per child per month | C89: 0 | D89: 0 | I89: 0 | J89: 0 | R89: 0 | S89: 0 | Z89: 0 | AA89: 0 | AB89: 0 | AC89: TRUE | AD89: TRUE | AE89: 0
A90: =+A89+0.01 -> 3.07 | B90: Supplementary TLM, Stationery and other educational material @Rs.1,000/- per child per annum | C90: 0 | D90: 0 | I90: 0 | J90: 0 | R90: 0 | S90: 0 | Z90: 0 | AA90: 0 | AB90: 0 | AC90: TRUE | AD90: TRUE | AE90: 0
A91: 3.08 | B91: Salaries | C91: 0 | D91: 0 | I91: 0 | J91: 0 | R91: 0 | S91: 0 | Z91: 0 | AA91: 0 | AB91: 0 | AC91: TRUE | AD91: TRUE | AE91: 0
A92: (a) | B92: 1 Warden @ Rs. 25,000/- per month | C92: 0 | D92: 0 | I92: 0 | J92: 0 | R92: 0 | S92: 0 | Z92: 0 | AA92: 0 | AB92: 0 | AC92: TRUE | AD92: TRUE | AE92: 0
A93: (b) | B93: 4 Fulltime teachers as per RTE Norms @ Rs. 20,000/- per month per teacher | C93: 0 | D93: 0 | I93: 0 | J93: 0 | R93: 0 | S93: 0 | Z93: 0 | AA93: 0 | AB93: 0 | AC93: TRUE | AD93: TRUE | AE93: 0
A94: (c) | B94: 2 Urdu Teachers (only for Blocks with muslim population above 20% and select urban areas) if required @ Rs.12,000/- per month per teacher. | C94: 0 | D94: 0 | I94: 0 | J94: 0 | R94: 0 | S94: 0 | Z94: 0 | AA94: 0 | AB94: 0 | AC94: TRUE | AD94: TRUE | AE94: 0
A95: (d) | B95: 3 Part time teachers @ Rs.5,000/- per month per teacher | C95: 0 | D95: 0 | I95: 0 | J95: 0 | R95: 0 | S95: 0 | Z95: 0 | AA95: 0 | AB95: 0 | AC95: TRUE | AD95: TRUE | AE95: 0
A96: (e) | B96: 1 Full time Accountant @ Rs. 10,000/- per month | C96: 0 | D96: 0 | I96: 0 | J96: 0 | R96: 0 | S96: 0 | Z96: 0 | AA96: 0 | AB96: 0 | AC96: TRUE | AD96: TRUE | AE96: 0
A97: (f) | B97: 2 Support staff - (Accountant/Assistant, Peon, Chowkidar) @ Rs. 5,000/- per month per staff | C97: 0 | D97: 0 | I97: 0 | J97: 0 | R97: 0 | S97: 0 | Z97: 0 | AA97: 0 | AB97: 0 | AC97: TRUE | AD97: TRUE | AE97: 0
A98: (g) | B98: 1 Head Cook @ Rs. 6,000/- per month and upto 2 Asstt. Cooks @ Rs. 4,500/- per month per cook | C98: 0 | D98: 0 | I98: 0 | J98: 0 | R98: 0 | S98: 0 | Z98: 0 | AA98: 0 | AB98: 0 | AC98: TRUE | AD98: TRUE | AE98: 0
A99: 3.09 | B99: Specific Skill training @ Rs.1000/- per child per annum | C99: 0 | D99: 0 | I99: 0 | J99: 0 | R99: 0 | S99: 0 | Z99: 0 | AA99: 0 | AB99: 0 | AC99: TRUE | AD99: TRUE | AE99: 0
A100: =+A99+0.01 -> 3.1 | B100: Electricity / water charges @ Rs. 1,000/- per child per annum | C100: 0 | D100: 0 | I100: 0 | J100: 0 | R100: 0 | S100: 0 | Z100: 0 | AA100: 0 | AB100: 0 | AC100: TRUE | AD100: TRUE | AE100: 0
A101: 3.11 | B101: Medical care/contingencies @ Rs.1,250/- per child per annum | C101: 0 | D101: 0 | I101: 0 | J101: 0 | R101: 0 | S101: 0 | Z101: 0 | AA101: 0 | AB101: 0 | AC101: TRUE | AD101: TRUE | AE101: 0
A102: 3.12 | B102: Maintenance @ Rs. 750/- per child per annum | C102: 0 | D102: 0 | I102: 0 | J102: 0 | R102: 0 | S102: 0 | Z102: 0 | AA102: 0 | AB102: 0 | AC102: TRUE | AD102: TRUE | AE102: 0
A103: 3.13 | B103: Miscellaneous @ Rs. 750/- per child per annum | C103: 0 | D103: 0 | I103: 0 | J103: 0 | R103: 0 | S103: 0 | Z103: 0 | AA103: 0 | AB103: 0 | AC103: TRUE | AD103: TRUE | AE103: 0
A104: 3.14 | B104: Preparatory camps @ Rs. 300/- per child per annum | C104: 0 | D104: 0 | I104: =C104-E104 -> 0 | J104: 0 | R104: =P104+M104+K104 -> 0 | S104: 0 | Z104: 0 | AA104: 0 | AB104: 0 | AC104: TRUE | AD104: TRUE | AE104: 0
A105: 3.15 | B105: P.T.A / school functions @ Rs. 300/- per child per annum | C105: 0 | D105: 0 | I105: 0 | J105: 0 | R105: 0 | S105: 0 | Z105: 0 | AA105: 0 | AB105: 0 | AC105: TRUE | AD105: TRUE | AE105: 0
A106: 3.16 | B106: Provision of Rent @ Rs. 10,000/- per child per annum | C106: 0 | D106: 0 | I106: 0 | J106: 0 | R106: 0 | S106: 0 | Z106: 0 | AA106: 0 | AB106: 0 | AC106: TRUE | AD106: TRUE | AE106: 0
A107: 3.17 | B107: Capacity Building @ Rs. 500/- per child per annum | C107: 0 | D107: 0 | I107: 0 | J107: 0 | R107: 0 | S107: 0 | Z107: 0 | AA107: 0 | AB107: 0 | AC107: TRUE | AD107: TRUE | AE107: 0
A108: 3.18 | B108: Physical / Self Defence Training @ Rs.200/- per child per annum | C108: 0 | D108: 0 | I108: 0 | J108: 0 | R108: 0 | S108: 0 | Z108: 0 | AA108: 0 | AB108: 0 | AC108: TRUE | AD108: TRUE | AE108: 0
B109: Sub Total (Recurring) | C109: =SUM(C88:C108) -> 0 | D109: =SUM(D88:D108) -> 0 | E109: 0 | F109: 0 | G109: 0 | H109: 0 | I109: 0 | J109: 0 | K109: 0 | L109: 0 | M109: 0 | N109: 0 | O109: 0 | P109: 0 | Q109: 0 | R109: 0 | S109: 0 | T109: 0 | U109: 0 | V109: 0 | W109: 0 | X109: 0 | Y109: 0 | Z109: 0 | AA109: 0 | AB109: 0 | AE109: 0
B110: Total (Non Recurring + Recurring) | C110: =C109+C86 -> 0 | D110: 0 | E110: =E109+E86 -> 0 | F110: =F109+F86 -> 0 | G110: 0 | H110: 0 | I110: 0 | J110: 0 | K110: 0 | L110: 0 | M110: 0 | N110: 0 | O110: 0 | P110: 0 | Q110: 0 | R110: 0 | S110: 0 | T110: 0 | U110: 0 | V110: 0 | W110: 0 | X110: 0 | Y110: 0 | Z110: 0 | AA110: 0 | AB110: 0 | AE110: 0
A111: (B) | B111: 100 Children | D111: 0 | AA111: 0 | AB111: 0 | AC111: =X111*Y111=Z111 -> TRUE | AD111: =U111+W111+Z111=AB111 -> TRUE | AE111: 0
B112: Non-recurring (one time grant) | D112: 0 | AA112: 0 | AB112: 0 | AC112: TRUE | AD112: TRUE | AE112: 0
A113: 3.19 | B113: Furniture / Equipment (including kitchen equipment) | C113: 0 | D113: 0 | I113: =C113-E113 -> 0 | J113: 0 | R113: =P113+M113+K113 -> 0 | S113: 0 | Z113: =X113*Y113 -> 0 | AA113: =T113+V113+Y113 -> 0 | AB113: =U113+W113+Z113 -> 0 | AC113: TRUE | AD113: TRUE | AE113: 0
A114: =+A113+0.01 -> 3.2 | B114: TLM and equipment including library books (New) | C114: 0 | D114: 0 | I114: 0 | J114: 0 | R114: 0 | S114: 0 | Z114: 0 | AA114: 0 | AB114: 0 | AC114: TRUE | AD114: TRUE | AE114: 0
A115: =+A114+0.01 -> 3.21 | B115: Bedding (New) | C115: 0 | D115: 0 | I115: 0 | J115: 0 | R115: 0 | S115: 0 | Z115: 0 | AA115: 0 | AB115: 0 | AC115: TRUE | AD115: TRUE | AE115: 0
A116: =+A115+0.01 -> 3.22 | B116: Replacement of bedding (once in 3 years) | C116: 0 | D116: 0 | I116: 0 | J116: 0 | R116: 0 | S116: 0 | Z116: 0 | AA116: 0 | AB116: 0 | AC116: TRUE | AD116: TRUE | AE116: 0
B117: Sub Total Non-recurring | C117: =SUM(C113:C116) -> 0 | D117: =SUM(D113:D116) -> 0 | E117: =SUM(E113:E116) -> 0 | F117: =SUM(F113:F116) -> 0 | G117: =SUM(G113:G116) -> 0 | H117: =SUM(H113:H116) -> 0 | I117: =SUM(I113:I116) -> 0 | J117: =SUM(J113:J116) -> 0 | K117: =SUM(K113:K116) -> 0 | L117: =SUM(L113:L116) -> 0 | M117: =SUM(M113:M116) -> 0 | N117: =SUM(N113:N116) -> 0 | O117: 0 | P117: =SUM(P113:P116) -> 0 | Q117: =SUM(Q113:Q116) -> 0 | R117: =SUM(R113:R116) -> 0 | S117: =SUM(S113:S116) -> 0 | T117: =SUM(T113:T116) -> 0 | U117: =SUM(U113:U116) -> 0 | V117: =SUM(V113:V116) -> 0 | W117: =SUM(W113:W116) -> 0 | X117: 0 | Y117: =SUM(Y113:Y116) -> 0 | Z117: =SUM(Z113:Z116) -> 0 | AA117: =SUM(AA113:AA116) -> 0 | AB117: =SUM(AB113:AB116) -> 0 | AE117: 0
B118: Recurring | D118: 0 | AA118: 0 | AB118: 0 | AC118: =X118*Y118=Z118 -> TRUE | AD118: =U118+W118+Z118=AB118 -> TRUE | AE118: 0
A119: 3.23 | B119: Maintenance @ Rs. 1,500/- per child per month | C119: 0 | D119: 0 | I119: =C119-E119 -> 0 | J119: 0 | R119: =P119+M119+K119 -> 0 | S119: 0 | Z119: =X119*Y119 -> 0 | AA119: =T119+V119+Y119 -> 0 | AB119: =U119+W119+Z119 -> 0 | AC119: TRUE | AD119: TRUE | AE119: 0
A120: =+A119+0.01 -> 3.24 | B120: Stipend @ Rs.100/- per child per month | C120: 0 | D120: 0 | I120: 0 | J120: 0 | R120: 0 | S120: 0 | Z120: 0 | AA120: 0 | AB120: 0 | AC120: TRUE | AD120: TRUE | AE120: 0
A121: =+A120+0.01 -> 3.25 | B121: Supplementary TLM, Stationery and other educational material @1,000/- per child per annum | C121: 0 | D121: 0 | I121: 0 | J121: 0 | R121: 0 | S121: 0 | Z121: 0 | AA121: 0 | AB121: 0 | AC121: TRUE | AD121: TRUE | AE121: 0
A122: 3.26 | B122: Salaries | C122: 0 | D122: 0 | I122: 0 | J122: 0 | R122: 0 | S122: 0 | Z122: 0 | AA122: 0 | AB122: 0 | AC122: TRUE | AD122: TRUE | AE122: 0
A123: (a) | B123: 1 Warden @ Rs. 25,000/- per month | C123: 0 | D123: 0 | I123: 0 | J123: 0 | R123: 0 | S123: 0 | Z123: 0 | AA123: 0 | AB123: 0 | AC123: TRUE | AD123: TRUE | AE123: 0
A124: (b) | B124: 1 head teacher @ Rs. 25,000/- per month in case the enrollment exceeds 100 | C124: 0 | D124: 0 | I124: 0 | J124: 0 | R124: 0 | S124: 0 | Z124: 0 | AA124: 0 | AB124: 0 | AC124: TRUE | AD124: TRUE | AE124: 0
A125: (c) | B125: 4 - 5 Full time teachers as per RTE norms @ Rs. 20,000/- per month per teacher | C125: 0 | D125: 0 | I125: 0 | J125: 0 | R125: 0 | S125: 0 | Z125: 0 | AA125: 0 | AB125: 0 | AC125: TRUE | AD125: TRUE | AE125: 0
A126: (d) | B126: 2 Urdu Teachers (only for blocks with muslim population above 20% and select urban areas), if required @ Rs. 12,000/- per month per teacher | C126: 0 | D126: 0 | I126: 0 | J126: 0 | R126: 0 | S126: 0 | Z126: 0 | AA126: 0 | AB126: 0 | AC126: TRUE | AD126: TRUE | AE126: 0
A127: (e) | B127: 3 part time teachers @ Rs. 5,000/- per month per teacher | C127: 0 | D127: 0 | I127: 0 | J127: 0 | R127: 0 | S127: 0 | Z127: 0 | AA127: 0 | AB127: 0 | AC127: TRUE | AD127: TRUE | AE127: 0
A128: (f) | B128: 1 Full time Accountant @ Rs. 10,000/- per month | C128: 0 | D128: 0 | I128: 0 | J128: 0 | R128: 0 | S128: 0 | Z128: 0 | AA128: 0 | AB128: 0 | AC128: TRUE | AD128: TRUE | AE128: 0
A129: (g) | B129: 2 Support Staff – (Accountant/ Assistant, Peon, Chowkidar) @ Rs. 5,000/- per month per staff | C129: 0 | D129: 0 | I129: 0 | J129: 0 | R129: 0 | S129: 0 | Z129: 0 | AA129: 0 | AB129: 0 | AC129: TRUE | AD129: TRUE | AE129: 0
A130: (h) | B130: 1 Head cook @ Rs. 6,000/- per month and upto 2 Asstt. Cooks @ Rs. 4,500/- per month per cook | C130: 0 | D130: 0 | I130: 0 | J130: 0 | R130: 0 | S130: 0 | Z130: 0 | AA130: 0 | AB130: 0 | AC130: TRUE | AD130: TRUE | AE130: 0
A131: 3.27 | B131: Specific skill training @ Rs.1,000/- per child per annum | C131: 0 | D131: 0 | I131: 0 | J131: 0 | R131: 0 | S131: 0 | Z131: 0 | AA131: 0 | AB131: 0 | AC131: TRUE | AD131: TRUE | AE131: 0
A132: =+A131+0.01 -> 3.28 | B132: Electricity / water charges @ Rs.1,000/- per child per annum | C132: 0 | D132: 0 | I132: 0 | J132: 0 | R132: 0 | S132: 0 | Z132: 0 | AA132: 0 | AB132: 0 | AC132: TRUE | AD132: TRUE | AE132: 0
A133: 3.29 | B133: Medical care/contingencies @ Rs.1,250/- per child per annum | C133: 0 | D133: 0 | I133: 0 | J133: 0 | R133: 0 | S133: 0 | Z133: 0 | AA133: 0 | AB133: 0 | AC133: TRUE | AD133: TRUE | AE133: 0
A134: 3.3 | B134: Maintenance @ Rs.750/- per child per annum | C134: 0 | D134: 0 | I134: 0 | J134: 0 | R134: 0 | S134: 0 | Z134: 0 | AA134: 0 | AB134: 0 | AC134: TRUE | AD134: TRUE | AE134: 0
A135: 3.31 | B135: Miscellaneous @ Rs.750/- per child per annum | C135: 0 | D135: 0 | I135: =C135-E135 -> 0 | J135: 0 | R135: =P135+M135+K135 -> 0 | S135: 0 | Z135: 0 | AA135: 0 | AB135: 0 | AC135: TRUE | AD135: TRUE | AE135: 0
A136: 3.32 | B136: Preparatory camps @ Rs.200/- per child per annum | C136: 0 | D136: 0 | I136: 0 | J136: 0 | R136: 0 | S136: 0 | Z136: 0 | AA136: 0 | AB136: 0 | AC136: TRUE | AD136: TRUE | AE136: =AB136 -> 0
A137: 3.33 | B137: P.T.A / school functions @ Rs.200/- per child per annum | C137: 0 | D137: 0 | I137: 0 | J137: 0 | R137: 0 | S137: 0 | Z137: 0 | AA137: 0 | AB137: 0 | AC137: TRUE | AD137: TRUE | AE137: 0
A138: 3.34 | B138: Provision of Rent @ Rs. 6,000/- per child per annum | C138: 0 | D138: 0 | I138: 0 | J138: 0 | R138: 0 | S138: 0 | Z138: 0 | AA138: 0 | AB138: 0 | AC138: TRUE | AD138: TRUE | AE138: 0
A139: 3.35 | B139: Capacity Building @ Rs.500/- per child per annum | C139: 0 | D139: 0 | I139: 0 | J139: 0 | R139: 0 | S139: 0 | Z139: 0 | AA139: 0 | AB139: 0 | AC139: TRUE | AD139: TRUE | AE139: 0
A140: 3.36 | B140: Physical / Self Defence training @ Rs. 200/- per child per annum. | C140: 0 | D140: 0 | I140: 0 | J140: 0 | R140: 0 | S140: 0 | Z140: 0 | AA140: 0 | AB140: 0 | AC140: TRUE | AD140: TRUE | AE140: 0
B141: Sub Total (Recurring) | C141: =SUM(C119:C140) -> 0 | D141: =SUM(D119:D140) -> 0 | E141: =SUM(E119:E140) -> 0 | F141: =SUM(F119:F140) -> 0 | G141: =SUM(G119:G140) -> 0 | H141: =SUM(H119:H140) -> 0 | I141: =SUM(I119:I140) -> 0 | J141: =SUM(J119:J140) -> 0 | K141: =SUM(K119:K140) -> 0 | L141: =SUM(L119:L140) -> 0 | M141: =SUM(M119:M140) -> 0 | N141: =SUM(N119:N140) -> 0 | O141: 0 | P141: =SUM(P119:P140) -> 0 | Q141: =SUM(Q119:Q140) -> 0 | R141: =SUM(R119:R140) -> 0 | S141: =SUM(S119:S140) -> 0 | T141: =SUM(T119:T140) -> 0 | U141: =SUM(U119:U140) -> 0 | V141: =SUM(V119:V140) -> 0 | W141: =SUM(W119:W140) -> 0 | X141: 0 | Y141: =SUM(Y119:Y140) -> 0 | Z141: =SUM(Z119:Z140) -> 0 | AA141: =SUM(AA119:AA140) -> 0 | AB141: =SUM(AB119:AB140) -> 0 | AE141: 0
B142: Total (Recurring + Non Recurring) | C142: =C141+C117 -> 0 | D142: =D141+D117 -> 0 | E142: =E141+E117 -> 0 | F142: =F141+F117 -> 0 | G142: =G141+G117 -> 0 | H142: =H141+H117 -> 0 | I142: =I141+I117 -> 0 | J142: =J141+J117 -> 0 | K142: =K141+K117 -> 0 | L142: =L141+L117 -> 0 | M142: =M141+M117 -> 0 | N142: =N141+N117 -> 0 | O142: 0 | P142: =P141+P117 -> 0 | Q142: =Q141+Q117 -> 0 | R142: =R141+R117 -> 0 | S142: =S141+S117 -> 0 | T142: =T141+T117 -> 0 | U142: =U141+U117 -> 0 | V142: =V141+V117 -> 0 | W142: =W141+W117 -> 0 | X142: 0 | Y142: =Y141+Y117 -> 0 | Z142: =Z141+Z117 -> 0 | AA142: =AA141+AA117 -> 0 | AB142: =AB141+AB117 -> 0 | AE142: 0
B143: Total (A + B) | C143: =C142+C110 -> 0 | D143: 0 | E143: =E142+E110 -> 0 | F143: =F142+F110 -> 0 | G143: 0 | H143: 0 | I143: 0 | J143: 0 | K143: 0 | L143: 0 | M143: 0 | N143: 0 | O143: 0 | P143: 0 | Q143: 0 | R143: 0 | S143: 0 | T143: 0 | U143: 0 | V143: 0 | W143: 0 | X143: 0 | Y143: 0 | Z143: 0 | AA143: 0 | AB143: 0 | AE143: 0
A144: 4 | B144: Transport/Escort Facility | D144: 0 | AA144: =Y144+V144+T144 -> 0 | AB144: =Z144+W144+U144 -> 0 | AC144: =X144*Y144=Z144 -> TRUE | AD144: =U144+W144+Z144=AB144 -> TRUE | AE144: 0
A145: 4.01 | B145: Children in remote habitation | C145: 0 | D145: 0 | I145: =C145-E145 -> 0 | J145: =D145-F145 -> 0 | Q145: =+O145*P145 -> 0 | R145: =P145+M145+K145 -> 0 | S145: =Q145+N145+L145 -> 0 | Z145: =X145*Y145 -> 0 | AA145: =T145+V145+Y145 -> 0 | AB145: =U145+W145+Z145 -> 0 | AC145: TRUE | AD145: TRUE | AE145: 0
A146: 4.02 | B146: Urban deprived children/children without adult protection | C146: 0 | D146: 0 | I146: =C146-E146 -> 0 | J146: =D146-F146 -> 0 | R146: =P146+M146+K146 -> 0 | S146: =Q146+N146+L146 -> 0 | Z146: =X146*Y146 -> 0 | AA146: =T146+V146+Y146 -> 0 | AB146: =U146+W146+Z146 -> 0 | AC146: TRUE | AD146: TRUE | AE146: 0
B147: Sub Total | C147: =SUM(C145:C146) -> 0 | D147: 0 | E147: 0 | F147: 0 | G147: 0 | H147: 0 | I147: 0 | J147: 0 | K147: 0 | L147: 0 | M147: 0 | N147: 0 | O147: 0 | P147: 0 | Q147: 0 | R147: 0 | S147: 0 | T147: 0 | U147: 0 | V147: 0 | W147: 0 | X147: 0 | Y147: 0 | Z147: 0 | AA147: 0 | AB147: 0 | AE147: 0
A148: 5 | B148: Reimbursement of Fee against 25% admission under Section 12(1)(c) of RTE Act 2009 (Entry Level) subject to upper limit of 20% of AWP&B guidelines issued by MHRD | C148: 0 | D148: 0 | I148: =C148-E148 -> 0 | J148: =D148-F148 -> 0 | R148: =P148+M148+K148 -> 0 | S148: =Q148+N148+L148 -> 0 | Z148: =X148*Y148 -> 0 | AA148: =T148+V148+Y148 -> 0 | AB148: =U148+W148+Z148 -> 0 | AC148: =X148*Y148=Z148 -> TRUE | AD148: =U148+W148+Z148=AB148 -> TRUE | AE148: 0
B149: Sub Total | C149: =SUM(C148) -> 0 | D149: =SUM(D148) -> 0 | E149: =SUM(E148) -> 0 | F149: =SUM(F148) -> 0 | G149: =SUM(G148) -> 0 | H149: =SUM(H148) -> 0 | I149: =SUM(I148) -> 0 | J149: =SUM(J148) -> 0 | K149: =SUM(K148) -> 0 | L149: =SUM(L148) -> 0 | M149: =SUM(M148) -> 0 | N149: =SUM(N148) -> 0 | O149: 0 | P149: =SUM(P148) -> 0 | Q149: =SUM(Q148) -> 0 | R149: =SUM(R148) -> 0 | S149: =SUM(S148) -> 0 | T149: =SUM(T148) -> 0 | U149: =SUM(U148) -> 0 | V149: =SUM(V148) -> 0 | W149: =SUM(W148) -> 0 | X149: 0 | Y149: =SUM(Y148) -> 0 | Z149: =SUM(Z148) -> 0 | AA149: =SUM(AA148) -> 0 | AB149: =SUM(AB148) -> 0 | AE149: 0
A150: =+A148+1 -> 6 | B150: Special Training for mainstreaming of out of school children | D150: 0 | AA150: 0 | AB150: 0 | AC150: =X150*Y150=Z150 -> TRUE | AD150: =U150+W150+Z150=AB150 -> TRUE | AE150: 0
A151: 6.01 | B151: Residential (Fresh) | D151: 0 | AA151: 0 | AB151: 0 | AC151: TRUE | AD151: TRUE | AE151: 0
B152: (a) 12 months | C152: 0 | D152: 0 | I152: =C152-E152 -> 0 | J152: 0 | R152: =P152+M152+K152 -> 0 | S152: 0 | Z152: =X152*Y152 -> 0 | AA152: =T152+V152+Y152 -> 0 | AB152: =U152+W152+Z152 -> 0 | AC152: TRUE | AD152: TRUE | AE152: 0
B153: (b) 9 months | C153: 0 | D153: 0 | I153: 0 | J153: 0 | R153: 0 | S153: 0 | Z153: 0 | AA153: 0 | AB153: 0 | AC153: TRUE | AD153: TRUE | AE153: 0
B154: (c) 6 months | C154: 0 | D154: 0 | I154: 0 | J154: 0 | R154: 0 | S154: 0 | Z154: 0 | AA154: 0 | AB154: 0 | AC154: TRUE | AD154: TRUE | AE154: 0
B155: (d) 3 months | C155: 0 | D155: 0 | I155: 0 | J155: 0 | R155: 0 | S155: 0 | Z155: 0 | AA155: 0 | AB155: 0 | AC155: TRUE | AD155: TRUE | AE155: 0
B156: Sub Total | C156: =SUM(C152:C155) -> 0 | D156: =SUM(D152:D155) -> 0 | E156: =SUM(E152:E155) -> 0 | F156: =SUM(F152:F155) -> 0 | G156: =SUM(G152:G155) -> 0 | H156: =SUM(H152:H155) -> 0 | I156: =SUM(I152:I155) -> 0 | J156: =SUM(J152:J155) -> 0 | K156: =SUM(K152:K155) -> 0 | L156: =SUM(L152:L155) -> 0 | M156: =SUM(M152:M155) -> 0 | N156: =SUM(N152:N155) -> 0 | O156: 0 | P156: =SUM(P152:P155) -> 0 | Q156: =SUM(Q152:Q155) -> 0 | R156: =SUM(R152:R155) -> 0 | S156: =SUM(S152:S155) -> 0 | T156: =SUM(T152:T155) -> 0 | U156: =SUM(U152:U155) -> 0 | V156: =SUM(V152:V155) -> 0 | W156: =SUM(W152:W155) -> 0 | X156: 0 | Y156: =SUM(Y152:Y155) -> 0 | Z156: =SUM(Z152:Z155) -> 0 | AA156: =SUM(AA152:AA155) -> 0 | AB156: =SUM(AB152:AB155) -> 0 | AE156: 0
A157: =+A151+0.01 -> 6.02 | B157: Residential (Continuing from previous year) | D157: 0 | AA157: 0 | AB157: 0 | AC157: =X157*Y157=Z157 -> TRUE | AD157: =U157+W157+Z157=AB157 -> TRUE | AE157: 0
B158: (a) 12 months | C158: 0 | D158: 0 | I158: =C158-E158 -> 0 | J158: 0 | R158: =P158+M158+K158 -> 0 | S158: 0 | Z158: =X158*Y158 -> 0 | AA158: =T158+V158+Y158 -> 0 | AB158: =U158+W158+Z158 -> 0 | AC158: TRUE | AD158: TRUE | AE158: 0
B159: (b) 9 months | C159: 0 | D159: 0 | I159: 0 | J159: 0 | R159: 0 | S159: 0 | Z159: 0 | AA159: 0 | AB159: 0 | AC159: TRUE | AD159: TRUE | AE159: 0
B160: (c) 6 months | C160: 0 | D160: 0 | I160: 0 | J160: 0 | R160: 0 | S160: 0 | Z160: 0 | AA160: 0 | AB160: 0 | AC160: TRUE | AD160: TRUE | AE160: 0
B161: (d) 3 months | C161: 0 | D161: 0 | I161: 0 | J161: 0 | R161: 0 | S161: 0 | Z161: 0 | AA161: 0 | AB161: 0 | AC161: TRUE | AD161: TRUE | AE161: 0
B162: Sub Total | C162: =SUM(C158:C161) -> 0 | D162: =SUM(D158:D161) -> 0 | E162: =SUM(E158:E161) -> 0 | F162: =SUM(F158:F161) -> 0 | G162: =SUM(G158:G161) -> 0 | H162: =SUM(H158:H161) -> 0 | I162: =SUM(I158:I161) -> 0 | J162: =SUM(J158:J161) -> 0 | K162: =SUM(K158:K161) -> 0 | L162: =SUM(L158:L161) -> 0 | M162: =SUM(M158:M161) -> 0 | N162: =SUM(N158:N161) -> 0 | O162: 0 | P162: =SUM(P158:P161) -> 0 | Q162: =SUM(Q158:Q161) -> 0 | R162: =SUM(R158:R161) -> 0 | S162: =SUM(S158:S161) -> 0 | T162: =SUM(T158:T161) -> 0 | U162: =SUM(U158:U161) -> 0 | V162: =SUM(V158:V161) -> 0 | W162: =SUM(W158:W161) -> 0 | X162: 0 | Y162: =SUM(Y158:Y161) -> 0 | Z162: =SUM(Z158:Z161) -> 0 | AA162: =SUM(AA158:AA161) -> 0 | AB162: =SUM(AB158:AB161) -> 0 | AE162: 0
A163: 6.03 | B163: Non-Residential (Fresh) | D163: 0 | AA163: 0 | AB163: 0 | AC163: =X163*Y163=Z163 -> TRUE | AD163: =U163+W163+Z163=AB163 -> TRUE | AE163: 0
B164: (a) 12 months | C164: 0 | D164: 0 | I164: =C164-E164 -> 0 | J164: 0 | S164: =Q164+N164+L164 -> 0 | AA164: =T164+V164+Y164 -> 0 | AB164: =U164+W164+Z164 -> 0 | AC164: TRUE | AD164: TRUE | AE164: 0
B165: (b) 9 months | C165: 950 | D165: 24.7 | E165: 121 | F165: 3.146 | I165: 829 | J165: 21.554 | O165: 0.06 | P165: 874 | Q165: =O165*P165 -> 52.44 | R165: =K165+M165+P165 -> 874 | S165: =L165+N165+Q165 -> 52.44 | X165: 0.06 | Y165: 874 | Z165: =Y165*X165 -> 52.44 | AA165: 874 | AB165: =U165+W165+Z165 -> 52.44 | AC165: TRUE | AD165: TRUE | AE165: 52.44
B166: (c) 6 months | C166: 0 | D166: 0 | I166: 0 | J166: 0 | R166: 0 | S166: 0 | AA166: 0 | AB166: =U166+W166+Z166 -> 0 | AC166: TRUE | AD166: TRUE | AE166: 0
B167: (d) 3 months | C167: 0 | D167: 0 | I167: 0 | J167: 0 | R167: 0 | S167: 0 | AA167: 0 | AB167: 0 | AC167: TRUE | AD167: TRUE | AE167: 0
B168: Sub Total | C168: =SUM(C164:C167) -> 950 | D168: =SUM(D164:D167) -> 24.7 | E168: =SUM(E164:E167) -> 121 | F168: =SUM(F164:F167) -> 3.146 | G168: =SUM(G164:G167) -> 0 | H168: =SUM(H164:H167) -> 0 | I168: =SUM(I164:I167) -> 829 | J168: =SUM(J164:J167) -> 21.554 | K168: =SUM(K164:K167) -> 0 | L168: =SUM(L164:L167) -> 0 | M168: =SUM(M164:M167) -> 0 | N168: =SUM(N164:N167) -> 0 | O168: 0.06 | P168: =SUM(P164:P167) -> 874 | Q168: =SUM(Q164:Q167) -> 52.44 | R168: =SUM(R164:R167) -> 874 | S168: =SUM(S164:S167) -> 52.44 | T168: =SUM(T164:T167) -> 0 | U168: =SUM(U164:U167) -> 0 | V168: =SUM(V164:V167) -> 0 | W168: =SUM(W164:W167) -> 0 | X168: 0.06 | Y168: =SUM(Y164:Y167) -> 874 | Z168: =SUM(Z164:Z167) -> 52.44 | AA168: =SUM(AA164:AA167) -> 874 | AB168: =SUM(AB164:AB167) -> 52.44 | AE168: 52.44
A169: 6.04 | B169: Non-Residential (Continuing from previous year) | D169: 0 | AD169: =U169+W169+Z169=AB169 -> TRUE | AE169: 0
B170: (a) 12 months | C170: 0 | D170: 0 | I170: =C170-E170 -> 0 | J170: 0 | S170: =Q170+N170+L170 -> 0 | Z170: =X170*Y170 -> 0 | AA170: =T170+V170+Y170 -> 0 | AB170: =U170+W170+Z170 -> 0 | AC170: =X170*Y170=Z170 -> TRUE | AD170: TRUE | AE170: 0
B171: (b) 9 months | C171: 44 | D171: 1.892 | E171: 44 | F171: 1.892 | I171: 0 | J171: 0 | O171: 0.06 | P171: 76 | Q171: =O171*P171 -> 4.56 | R171: =K171+M171+P171 -> 76 | S171: 4.56 | X171: 0.06 | Y171: 76 | Z171: 4.56 | AA171: 76 | AB171: 4.56 | AC171: TRUE | AD171: TRUE | AE171: 4.56
B172: (c) 6 months | C172: 0 | D172: 0 | I172: 0 | J172: 0 | R172: 0 | S172: 0 | Z172: 0 | AA172: 0 | AB172: 0 | AC172: TRUE | AD172: TRUE | AE172: 0
B173: (d) 3 months | C173: 0 | D173: 0 | I173: 0 | J173: 0 | R173: 0 | S173: 0 | Z173: 0 | AA173: 0 | AB173: 0 | AC173: TRUE | AD173: TRUE | AE173: 0
B174: Sub Total | C174: =SUM(C170:C173) -> 44 | D174: =SUM(D170:D173) -> 1.892 | E174: =SUM(E170:E173) -> 44 | F174: =SUM(F170:F173) -> 1.892 | G174: =SUM(G170:G173) -> 0 | H174: =SUM(H170:H173) -> 0 | I174: =SUM(I170:I173) -> 0 | J174: =SUM(J170:J173) -> 0 | K174: =SUM(K170:K173) -> 0 | L174: =SUM(L170:L173) -> 0 | M174: =SUM(M170:M173) -> 0 | N174: =SUM(N170:N173) -> 0 | O174: 0.06 | P174: =SUM(P170:P173) -> 76 | Q174: =SUM(Q170:Q173) -> 4.56 | R174: 76 | S174: =SUM(S170:S173) -> 4.56 | T174: =SUM(T170:T173) -> 0 | U174: =SUM(U170:U173) -> 0 | V174: =SUM(V170:V173) -> 0 | W174: =SUM(W170:W173) -> 0 | X174: 0.06 | Y174: =SUM(Y170:Y173) -> 76 | Z174: =SUM(Z170:Z173) -> 4.56 | AA174: =SUM(AA170:AA173) -> 76 | AB174: =SUM(AB170:AB173) -> 4.56 | AE174: 4.56
A175: 6.05 | B175: Madarasa/Maktab | D175: 0 | Z175: =X175*Y175 -> 0 | AA175: =T175+V175+Y175 -> 0 | AB175: =U175+W175+Z175 -> 0 | AC175: =X175*Y175=Z175 -> TRUE | AD175: =U175+W175+Z175=AB175 -> TRUE | AE175: 0
B176: (a) 12 months | C176: 0 | D176: 0 | I176: =C176-E176 -> 0 | J176: 0 | S176: =Q176+N176+L176 -> 0 | Z176: 0 | AA176: 0 | AB176: 0 | AC176: TRUE | AD176: TRUE | AE176: 0
B177: (b) 9 months | C177: 0 | D177: 0 | I177: 0 | J177: 0 | R177: 0 | S177: 0 | Z177: 0 | AA177: 0 | AB177: 0 | AC177: TRUE | AD177: TRUE | AE177: 0
B178: (c) 6 months | C178: 0 | D178: 0 | I178: 0 | J178: 0 | R178: 0 | S178: 0 | Z178: 0 | AA178: 0 | AB178: 0 | AC178: TRUE | AD178: TRUE | AE178: 0
B179: (d) 3 months | C179: 0 | D179: 0 | I179: 0 | J179: 0 | R179: 0 | S179: 0 | Z179: 0 | AA179: 0 | AB179: 0 | AC179: TRUE | AD179: TRUE | AE179: 0
B180: Sub Total | C180: =SUM(C176:C179) -> 0 | D180: =SUM(D176:D179) -> 0 | E180: =SUM(E176:E179) -> 0 | F180: =SUM(F176:F179) -> 0 | G180: =SUM(G176:G179) -> 0 | H180: =SUM(H176:H179) -> 0 | I180: =SUM(I176:I179) -> 0 | J180: =SUM(J176:J179) -> 0 | K180: =SUM(K176:K179) -> 0 | L180: =SUM(L176:L179) -> 0 | M180: =SUM(M176:M179) -> 0 | N180: =SUM(N176:N179) -> 0 | O180: 0 | P180: =SUM(P176:P179) -> 0 | Q180: =SUM(Q176:Q179) -> 0 | R180: =SUM(R176:R179) -> 0 | S180: =SUM(S176:S179) -> 0 | T180: =SUM(T176:T179) -> 0 | U180: =SUM(U176:U179) -> 0 | V180: =SUM(V176:V179) -> 0 | W180: =SUM(W176:W179) -> 0 | X180: 0 | Y180: =SUM(Y176:Y179) -> 0 | Z180: =SUM(Z176:Z179) -> 0 | AA180: =SUM(AA176:AA179) -> 0 | AB180: =SUM(AB176:AB179) -> 0 | AE180: 0
A181: 6.06 | B181: Seasonal Hostel (Residential) | D181: 0 | AA181: 0 | AB181: 0 | AC181: =X181*Y181=Z181 -> TRUE | AD181: =U181+W181+Z181=AB181 -> TRUE | AE181: 0
B182: (a) 12 months | C182: 0 | D182: 0 | I182: =C182-E182 -> 0 | J182: 0 | R182: =P182+M182+K182 -> 0 | S182: 0 | Z182: =X182*Y182 -> 0 | AA182: =T182+V182+Y182 -> 0 | AB182: =U182+W182+Z182 -> 0 | AC182: TRUE | AD182: TRUE | AE182: 0
B183: (b) 9 months | C183: 0 | D183: 0 | I183: 0 | J183: 0 | R183: 0 | S183: 0 | Z183: 0 | AA183: 0 | AB183: 0 | AC183: TRUE | AD183: TRUE | AE183: 0
B184: (c) 6 months | C184: 0 | D184: 0 | I184: 0 | J184: 0 | R184: 0 | S184: 0 | Z184: 0 | AA184: 0 | AB184: 0 | AC184: TRUE | AD184: TRUE | AE184: 0
B185: (d) 3 months | C185: 0 | D185: 0 | I185: 0 | J185: 0 | R185: 0 | S185: 0 | Z185: 0 | AA185: 0 | AB185: 0 | AC185: TRUE | AD185: TRUE | AE185: 0
B186: Sub Total | C186: =SUM(C182:C185) -> 0 | D186: =SUM(D182:D185) -> 0 | E186: =SUM(E182:E185) -> 0 | F186: =SUM(F182:F185) -> 0 | G186: =SUM(G182:G185) -> 0 | H186: =SUM(H182:H185) -> 0 | I186: =SUM(I182:I185) -> 0 | J186: =SUM(J182:J185) -> 0 | K186: =SUM(K182:K185) -> 0 | L186: =SUM(L182:L185) -> 0 | M186: =SUM(M182:M185) -> 0 | N186: =SUM(N182:N185) -> 0 | O186: 0 | P186: =SUM(P182:P185) -> 0 | Q186: =SUM(Q182:Q185) -> 0 | R186: =SUM(R182:R185) -> 0 | S186: =SUM(S182:S185) -> 0 | T186: =SUM(T182:T185) -> 0 | U186: =SUM(U182:U185) -> 0 | V186: =SUM(V182:V185) -> 0 | W186: =SUM(W182:W185) -> 0 | X186: 0 | Y186: =SUM(Y182:Y185) -> 0 | Z186: =SUM(Z182:Z185) -> 0 | AA186: =SUM(AA182:AA185) -> 0 | AB186: =SUM(AB182:AB185) -> 0 | AE186: 0
A187: 6.07 | B187: Seasonal Hostel (Non Residential) | D187: 0 | AA187: 0 | AB187: 0 | AC187: =X187*Y187=Z187 -> TRUE | AD187: =U187+W187+Z187=AB187 -> TRUE | AE187: 0
B188: (a) 12 months | C188: 0 | D188: 0 | I188: =C188-E188 -> 0 | J188: 0 | R188: =P188+M188+K188 -> 0 | S188: 0 | Z188: =X188*Y188 -> 0 | AA188: =T188+V188+Y188 -> 0 | AB188: =U188+W188+Z188 -> 0 | AC188: TRUE | AD188: TRUE | AE188: 0
B189: (b) 9 months | C189: 0 | D189: 0 | I189: 0 | J189: 0 | R189: 0 | S189: 0 | Z189: 0 | AA189: 0 | AB189: 0 | AC189: TRUE | AD189: TRUE | AE189: 0
B190: (c) 6 months | C190: 0 | D190: 0 | I190: 0 | J190: 0 | R190: 0 | S190: 0 | Z190: 0 | AA190: 0 | AB190: 0 | AC190: TRUE | AD190: TRUE | AE190: 0
B191: (d) 3 months | C191: 0 | D191: 0 | I191: 0 | J191: 0 | R191: 0 | S191: 0 | Z191: 0 | AA191: 0 | AB191: 0 | AC191: TRUE | AD191: TRUE | AE191: 0
B192: Sub Total | C192: =SUM(C188:C191) -> 0 | D192: =SUM(D188:D191) -> 0 | E192: =SUM(E188:E191) -> 0 | F192: =SUM(F188:F191) -> 0 | G192: =SUM(G188:G191) -> 0 | H192: =SUM(H188:H191) -> 0 | I192: =SUM(I188:I191) -> 0 | J192: =SUM(J188:J191) -> 0 | K192: =SUM(K188:K191) -> 0 | L192: =SUM(L188:L191) -> 0 | M192: =SUM(M188:M191) -> 0 | N192: =SUM(N188:N191) -> 0 | O192: 0 | P192: =SUM(P188:P191) -> 0 | Q192: =SUM(Q188:Q191) -> 0 | R192: =SUM(R188:R191) -> 0 | S192: =SUM(S188:S191) -> 0 | T192: =SUM(T188:T191) -> 0 | U192: =SUM(U188:U191) -> 0 | V192: =SUM(V188:V191) -> 0 | W192: =SUM(W188:W191) -> 0 | X192: 0 | Y192: =SUM(Y188:Y191) -> 0 | Z192: =SUM(Z188:Z191) -> 0 | AA192: =SUM(AA188:AA191) -> 0 | AB192: 0 | AE192: 0
B193: Total | C193: =C192+C186+C180+C174+C168+C162+C156 -> 994 | D193: =D192+D186+D180+D174+D168+D162+D156 -> 26.592 | E193: =E192+E186+E180+E174+E168+E162+E156 -> 165 | F193: =F192+F186+F180+F174+F168+F162+F156 -> 5.038 | G193: =G192+G186+G180+G174+G168+G162+G156 -> 0 | H193: =H192+H186+H180+H174+H168+H162+H156 -> 0 | I193: =I192+I186+I180+I174+I168+I162+I156 -> 829 | J193: =J192+J186+J180+J174+J168+J162+J156 -> 21.554 | K193: =K192+K186+K180+K174+K168+K162+K156 -> 0 | L193: =L192+L186+L180+L174+L168+L162+L156 -> 0 | M193: =M192+M186+M180+M174+M168+M162+M156 -> 0 | N193: =N192+N186+N180+N174+N168+N162+N156 -> 0 | O193: 0.12 | P193: =P192+P186+P180+P174+P168+P162+P156 -> 950 | Q193: =Q192+Q186+Q180+Q174+Q168+Q162+Q156 -> 57 | R193: 950 | S193: =S192+S186+S180+S174+S168+S162+S156 -> 57 | T193: =T192+T186+T180+T174+T168+T162+T156 -> 0 | U193: =U192+U186+U180+U174+U168+U162+U156 -> 0 | V193: =V192+V186+V180+V174+V168+V162+V156 -> 0 | W193: =W192+W186+W180+W174+W168+W162+W156 -> 0 | X193: 0.12 | Y193: =Y192+Y186+Y180+Y174+Y168+Y162+Y156 -> 950 | Z193: =Z192+Z186+Z180+Z174+Z168+Z162+Z156 -> 57 | AA193: 950 | AB193: =AB192+AB186+AB180+AB174+AB168+AB162+AB156 -> 57 | AE193: 57
A194: II | B194: RETENTION | D194: 0 | AC194: =X194*Y194=Z194 -> TRUE | AD194: =U194+W194+Z194=AB194 -> TRUE | AE194: 0
A195: 7 | B195: Free Text Books | D195: 0 | AC195: TRUE | AD195: TRUE | AE195: 0
A196: 7.01 | B196: Free Text Books (P) | C196: 0 | D196: 0 | I196: =C196-E196 -> 0 | J196: 0 | N196: 0 | AC196: TRUE | AD196: TRUE | AE196: 0
B197: (a) Class I & II | C197: 10681 | D197: 16.0215 | E197: 10681 | F197: 16.0215 | I197: 0 | J197: 0 | O197: 0.0015 | P197: 10681 | Q197: =P197*O197 -> 16.0215 | R197: =P197+M197+K197 -> 10681 | S197: 16.0215 | X197: 0.0015 | Y197: 10681 | Z197: =X197*Y197 -> 16.0215 | AA197: =T197+V197+Y197 -> 10681 | AB197: =U197+W197+Z197 -> 16.0215 | AC197: Recommended propsed | AD197: TRUE | AE197: 16.0215
B198: (b) Braille Books Class I & II | C198: 1 | D198: 0.0015 | E198: 1 | F198: 0.0015 | I198: 0 | J198: 0 | O198: 0.0015 | P198: 3 | Q198: 0.0045 | R198: 3 | S198: 0.0045 | X198: 0.0015 | Y198: 3 | Z198: =X198*Y198 -> 0.0045 | AA198: 3 | AB198: =U198+W198+Z198 -> 0.0045 | AC198: TRUE | AD198: TRUE | AE198: 0.0045
B199: (c) Large Print Books Class I & II | C199: 0 | D199: 0 | E199: 0 | F199: 0 | I199: 0 | J199: 0 | O199: 0.0015 | P199: 14 | Q199: 0.021 | R199: 14 | S199: 0.021 | X199: 0.0015 | Y199: 14 | Z199: 0.021 | AA199: 14 | AB199: 0.021 | AC199: TRUE | AD199: TRUE | AE199: 0.021
B200: (d) Class III to V | C200: 10525 | D200: 15.7875 | E200: 10525 | F200: 15.7875 | I200: 0 | J200: 0 | O200: 0.0015 | P200: 10525 | Q200: 15.7875 | R200: 10525 | S200: 15.7875 | X200: 0.0015 | Y200: 10525 | Z200: 15.7875 | AA200: 10525 | AB200: 15.7875 | AC200: Recommended propsed | AD200: TRUE | AE200: =AB200 -> 15.7875
... 324 more rows

Sheet EJH
A1: S.No. | B1: Activity | C1: Year 2016-17 | K1: Outlay Proposed for 2017-18 | T1: Outlay Recommended for 2017-18
C2: Outlay approved by PAB (including spillover) | E2: Achievement during the year | I2: Savings | K2: Spill Over | M2: Deferred laibility of 2014-15 | O2: Fresh | R2: Total | T2: Spill Over | V2: Deferred laibility of 2014-15 | X2: Fresh | AA2: Total
C3: Phy. | D3: Fin. | E3: Phy. | F3: Fin. | G3: Phy. (%) | H3: Fin. (%) | I3: Phy. | J3: Fin. | K3: Phy. | L3: Fin. | M3: Phy. | N3: Fin. | O3: Unit Cost | P3: Phy. | Q3: Fin. | R3: Phy. | S3: Fin. | T3: Phy. | U3: Fin. | V3: Phy. | W3: Fin. | X3: Unit Cost | Y3: Phy. | Z3: Fin. | AA3: Phy. | AB3: Fin.
A4: I | B4: ACCESS
B5: SSA
A6: 1 | B6: Opening of New Schools
A7: 1.01 | B7: New Primary School | C7: 0 | D7: 0 | I7: =C7-E7 -> 0 | J7: =D7-F7 -> 0 | R7: =P7+M7+K7 -> 0 | S7: =Q7+N7+L7 -> 0 | AA7: =T7+V7+Y7 -> 0 | AB7: =U7+W7+Z7 -> 0 | AC7: =X7*Y7=Z7 -> TRUE | AD7: =U7+W7+Z7=AB7 -> TRUE | AE7: =AB7 -> 0
A8: 1.02 | B8: Upgradation of PS to UPS | C8: 0 | D8: 0 | I8: =C8-E8 -> 0 | J8: 0 | R8: =P8+M8+K8 -> 0 | S8: 0 | AA8: =T8+V8+Y8 -> 0 | AB8: =U8+W8+Z8 -> 0 | AC8: =X8*Y8=Z8 -> TRUE | AD8: =U8+W8+Z8=AB8 -> TRUE | AE8: =AB8 -> 0
A9: 1.03 | B9: Composite Schools | C9: 0 | D9: 0 | I9: 0 | J9: 0 | R9: 0 | S9: 0 | AA9: 0 | AB9: 0 | AC9: TRUE | AD9: TRUE | AE9: 0
A10: 1.04 | B10: Residential schools for specific category of children | C10: 0 | D10: 0 | I10: 0 | J10: 0 | R10: 0 | S10: 0 | AA10: 0 | AB10: 0 | AC10: TRUE | AD10: TRUE | AE10: 0
A11: 1.05 | B11: Residential Hostel | C11: 0 | D11: 0 | I11: 0 | J11: 0 | R11: 0 | S11: 0 | AA11: 0 | AB11: 0 | AC11: TRUE | AD11: TRUE | AE11: 0
A12: 1.06 | B12: Integration of Class V with primary schools | C12: 0 | D12: 0 | I12: 0 | J12: 0 | R12: 0 | S12: 0 | AA12: 0 | AB12: 0 | AC12: TRUE | AD12: TRUE | AE12: 0
A13: 1.07 | B13: Integration of Class VIII with upper primary schools | C13: 0 | D13: 0 | I13: 0 | J13: 0 | R13: 0 | S13: 0 | AA13: 0 | AB13: 0 | AC13: TRUE | AD13: TRUE | AE13: 0
A14: 2 | B14: Residential Schools for specific category of children | C14: 0 | D14: 0 | I14: 0 | J14: 0 | R14: 0 | S14: 0 | AA14: =Y14+V14+T14 -> 0 | AB14: =Z14+W14+U14 -> 0 | AC14: TRUE | AD14: TRUE | AE14: 0
B15: 50 children | C15: 0 | D15: 0 | I15: 0 | J15: 0 | R15: 0 | S15: 0 | AA15: 0 | AB15: 0 | AC15: TRUE | AD15: TRUE | AE15: 0
B16: Non-recurring (one time grant) | C16: 0 | D16: 0 | I16: 0 | J16: 0 | R16: 0 | S16: 0 | AA16: 0 | AB16: 0 | AC16: TRUE | AD16: TRUE | AE16: 0
A17: 2.01 | B17: Furniture/ Equipment (including kitchen) | C17: 0 | D17: 0 | I17: 0 | J17: 0 | R17: 0 | S17: 0 | Z17: =X17*Y17 -> 0 | AA17: =T17+V17+Y17 -> 0 | AB17: =U17+W17+Z17 -> 0 | AC17: TRUE | AD17: TRUE | AE17: 0
A18: 2.02 | B18: TLM and equipment including library books | C18: 0 | D18: 0 | I18: 0 | J18: 0 | R18: 0 | S18: 0 | Z18: 0 | AA18: 0 | AB18: 0 | AC18: TRUE | AD18: TRUE | AE18: 0
A19: 2.03 | B19: Bedding (new) | C19: 0 | D19: 0 | I19: 0 | J19: 0 | R19: 0 | S19: 0 | Z19: 0 | AA19: 0 | AB19: 0 | AC19: TRUE | AD19: TRUE | AE19: 0
A20: 2.04 | B20: Replacement of bedding (once in 3 years) | C20: 0 | D20: 0 | I20: 0 | J20: 0 | R20: 0 | S20: 0 | Z20: 0 | AA20: 0 | AB20: 0 | AC20: TRUE | AD20: TRUE | AE20: 0
B21: Sub Total (Non Recurring) | C21: =SUM(C15:C20) -> 0 | D21: =SUM(D15:D20) -> 0 | E21: 0 | F21: 0 | G21: 0 | H21: 0 | I21: 0 | J21: 0 | K21: 0 | L21: 0 | M21: 0 | N21: 0 | O21: 0 | P21: 0 | Q21: 0 | R21: 0 | S21: 0 | T21: 0 | U21: 0 | V21: 0 | W21: 0 | X21: 0 | Y21: 0 | Z21: 0 | AA21: 0 | AB21: 0 | AE21: 0
B22: Recurring (50 children) | C22: 0 | D22: 0 | AA22: 0 | AB22: 0 | AE22: 0
A23: 2.05 | B23: Maintenance @ Rs.1,500/- per child Per month | C23: 0 | D23: 0 | I23: =C23-E23 -> 0 | J23: 0 | R23: =P23+M23+K23 -> 0 | S23: 0 | Z23: =X23*Y23 -> 0 | AA23: =T23+V23+Y23 -> 0 | AB23: =U23+W23+Z23 -> 0 | AC23: =X23*Y23=Z23 -> TRUE | AD23: =U23+W23+Z23=AB23 -> TRUE | AE23: 0
A24: 2.06 | B24: Stipend @ Rs.100/- per child per month | C24: 0 | D24: 0 | I24: 0 | J24: 0 | R24: 0 | S24: 0 | Z24: 0 | AA24: 0 | AB24: 0 | AC24: TRUE | AD24: TRUE | AE24: 0
A25: 2.07 | B25: Supplementary TLM, Stationery and other educational material @Rs.1,000/- per child per annum | C25: 0 | D25: 0 | I25: 0 | J25: 0 | R25: 0 | S25: 0 | Z25: 0 | AA25: 0 | AB25: 0 | AC25: TRUE | AD25: TRUE | AE25: 0
A26: 2.08 | B26: Salaries | C26: 0 | D26: 0 | I26: 0 | J26: 0 | R26: 0 | S26: 0 | Z26: 0 | AA26: 0 | AB26: 0 | AC26: TRUE | AD26: TRUE | AE26: 0
A27: (a) | B27: 1 Warden @ Rs.25,000/- per month | C27: 0 | D27: 0 | I27: 0 | J27: 0 | R27: 0 | S27: 0 | Z27: 0 | AA27: 0 | AB27: 0 | AC27: TRUE | AD27: TRUE | AE27: 0
A28: (b) | B28: 4 Fulltime teachers as per RTE Norms @ Rs. 20,000/- per month per teacher | C28: 0 | D28: 0 | I28: 0 | J28: 0 | R28: 0 | S28: 0 | Z28: 0 | AA28: 0 | AB28: 0 | AC28: TRUE | AD28: TRUE | AE28: 0
A29: (c) | B29: 2 Urdu Teachers (only for Blocks with muslim population above 20% and select urban areas) if required @ Rs.12,000/- per month per teacher. | C29: 0 | D29: 0 | I29: 0 | J29: 0 | R29: 0 | S29: 0 | Z29: 0 | AA29: 0 | AB29: 0 | AC29: TRUE | AD29: TRUE | AE29: 0
A30: (d) | B30: 3 Part time teachers @ Rs.5,000/- per month per teacher | C30: 0 | D30: 0 | I30: 0 | J30: 0 | R30: 0 | S30: 0 | Z30: 0 | AA30: 0 | AB30: 0 | AC30: TRUE | AD30: TRUE | AE30: 0
A31: (e) | B31: 1 Full time Accountant @ Rs. 10,000/- per month | C31: 0 | D31: 0 | I31: 0 | J31: 0 | R31: 0 | S31: 0 | Z31: 0 | AA31: 0 | AB31: 0 | AC31: TRUE | AD31: TRUE | AE31: 0
A32: (f) | B32: 2 Support staff - (Accountant/Assistant, Peon, Chowkidar) @ Rs. 5,000/- per month per staff | C32: 0 | D32: 0 | I32: 0 | J32: 0 | R32: 0 | S32: 0 | Z32: 0 | AA32: 0 | AB32: 0 | AC32: TRUE | AD32: TRUE | AE32: 0
A33: (g) | B33: 1 Head Cook @ Rs. 6,000/- per month and upto 2 Asstt. Cooks @ Rs. 4,500/- per month per cook | C33: 0 | D33: 0 | I33: 0 | J33: 0 | R33: 0 | S33: 0 | Z33: 0 | AA33: 0 | AB33: 0 | AC33: TRUE | AD33: TRUE | AE33: 0
A34: 2.09 | B34: Specific Skill training @ Rs.1,000/- per child per annum | C34: 0 | D34: 0 | I34: 0 | J34: 0 | R34: 0 | S34: 0 | Z34: 0 | AA34: 0 | AB34: 0 | AC34: TRUE | AD34: TRUE | AE34: 0
A35: 2.1 | B35: Electricity / water charges @ Rs. 1,000/- per child per annum | C35: 0 | D35: 0 | I35: 0 | J35: 0 | R35: 0 | S35: 0 | Z35: 0 | AA35: 0 | AB35: 0 | AC35: TRUE | AD35: TRUE | AE35: 0
A36: =+A35+0.01 -> 2.11 | B36: Medical care/contingencies @ Rs.1,250/- per child per annum | C36: 0 | D36: 0 | I36: 0 | J36: 0 | R36: 0 | S36: 0 | Z36: 0 | AA36: 0 | AB36: 0 | AC36: TRUE | AD36: TRUE | AE36: 0
A37: =+A36+0.01 -> 2.12 | B37: Maintenance @ Rs. 750/- per child per annum | C37: 0 | D37: 0 | I37: 0 | J37: 0 | R37: 0 | S37: 0 | Z37: 0 | AA37: 0 | AB37: 0 | AC37: TRUE | AD37: TRUE | AE37: 0
A38: 2.13 | B38: Miscellaneous @ Rs. 750/- per child per annum | C38: 0 | D38: 0 | I38: 0 | J38: 0 | R38: 0 | S38: 0 | Z38: 0 | AA38: 0 | AB38: 0 | AC38: TRUE | AD38: TRUE | AE38: 0
A39: 2.14 | B39: Preparatory camps @ Rs. 300/- per child per annum | C39: 0 | D39: 0 | I39: =C39-E39 -> 0 | J39: 0 | R39: =P39+M39+K39 -> 0 | S39: 0 | Z39: 0 | AA39: 0 | AB39: 0 | AC39: TRUE | AD39: TRUE | AE39: 0
A40: 2.15 | B40: P.T.A / school functions @ Rs. 300/- per child per annum | C40: 0 | D40: 0 | I40: 0 | J40: 0 | R40: 0 | S40: 0 | Z40: 0 | AA40: 0 | AB40: 0 | AC40: TRUE | AD40: TRUE | AE40: 0
A41: 2.16 | B41: Provision of Rent @ Rs. 10,000/- per child per annum | C41: 0 | D41: 0 | I41: 0 | J41: 0 | R41: 0 | S41: 0 | Z41: 0 | AA41: 0 | AB41: 0 | AC41: TRUE | AD41: TRUE | AE41: 0
A42: 2.17 | B42: Capacity Building @ Rs. 500/- per child per annum | C42: 0 | D42: 0 | I42: 0 | J42: 0 | R42: 0 | S42: 0 | Z42: 0 | AA42: 0 | AB42: 0 | AC42: TRUE | AD42: TRUE | AE42: 0
A43: 2.18 | B43: Physical / Self Defence Training @ Rs.200/- per child per annum | C43: 0 | D43: 0 | I43: 0 | J43: 0 | R43: 0 | S43: 0 | Z43: 0 | AA43: 0 | AB43: 0 | AC43: TRUE | AD43: TRUE | AE43: 0
B44: Sub Total (Recurring) | C44: 0 | D44: 0 | E44: 0 | F44: 0 | G44: 0 | H44: 0 | I44: 0 | J44: 0 | K44: 0 | L44: 0 | M44: 0 | N44: 0 | O44: 0 | P44: 0 | Q44: 0 | R44: 0 | S44: 0 | T44: 0 | U44: 0 | V44: 0 | W44: 0 | X44: 0 | Y44: 0 | Z44: 0 | AA44: 0 | AB44: 0 | AE44: 0
B45: Total (Non Recurring + Recurring) | C45: =C44+C21 -> 0 | D45: =D44+D21 -> 0 | E45: 0 | F45: 0 | G45: 0 | H45: 0 | I45: 0 | J45: 0 | K45: 0 | L45: 0 | M45: 0 | N45: 0 | O45: 0 | P45: 0 | Q45: 0 | R45: 0 | S45: 0 | T45: 0 | U45: 0 | V45: 0 | W45: 0 | X45: 0 | Y45: 0 | Z45: 0 | AA45: 0 | AB45: 0 | AE45: 0
B46: 100 children | C46: 0 | D46: 0 | AA46: 0 | AB46: 0 | AC46: =X46*Y46=Z46 -> TRUE | AD46: =U46+W46+Z46=AB46 -> TRUE | AE46: 0
B47: Non-recurring (one time grant) | C47: 0 | D47: 0 | AA47: 0 | AB47: 0 | AC47: TRUE | AD47: TRUE | AE47: 0
A48: 2.19 | B48: Furniture / Equipment (including kitchen equipment) | C48: 0 | D48: 0 | I48: =C48-E48 -> 0 | J48: 0 | R48: =P48+M48+K48 -> 0 | S48: 0 | Z48: =X48*Y48 -> 0 | AA48: =T48+V48+Y48 -> 0 | AB48: =U48+W48+Z48 -> 0 | AC48: TRUE | AD48: TRUE | AE48: 0
A49: =+A48+0.01 -> 2.2 | B49: TLM and equipment including library books (New) | C49: 0 | D49: 0 | I49: 0 | J49: 0 | R49: 0 | S49: 0 | Z49: 0 | AA49: 0 | AB49: 0 | AC49: TRUE | AD49: TRUE | AE49: 0
A50: =+A49+0.01 -> 2.21 | B50: Bedding (New) | C50: 0 | D50: 0 | I50: 0 | J50: 0 | R50: 0 | S50: 0 | Z50: 0 | AA50: 0 | AB50: 0 | AC50: TRUE | AD50: TRUE | AE50: 0
A51: =+A50+0.01 -> 2.22 | B51: Replacement of bedding (once in 3 years) | C51: 0 | D51: 0 | I51: 0 | J51: 0 | R51: 0 | S51: 0 | Z51: 0 | AA51: 0 | AB51: 0 | AC51: TRUE | AD51: TRUE | AE51: 0
B52: Sub Total Non-recurring | C52: =SUM(C48:C51) -> 0 | D52: =SUM(D48:D51) -> 0 | E52: 0 | F52: 0 | G52: 0 | H52: 0 | I52: 0 | J52: 0 | K52: 0 | L52: 0 | M52: 0 | N52: 0 | O52: 0 | P52: 0 | Q52: 0 | R52: 0 | S52: 0 | T52: 0 | U52: 0 | V52: 0 | W52: 0 | X52: 0 | Y52: 0 | Z52: 0 | AA52: 0 | AB52: 0 | AE52: 0
B53: Recurring | C53: 0 | D53: 0 | AA53: 0 | AB53: 0 | AC53: =X53*Y53=Z53 -> TRUE | AD53: =U53+W53+Z53=AB53 -> TRUE | AE53: 0
A54: 2.23 | B54: Maintenance @ Rs. 1,500/- per child per month | C54: 0 | D54: 0 | I54: =C54-E54 -> 0 | J54: 0 | R54: =P54+M54+K54 -> 0 | S54: 0 | Z54: =X54*Y54 -> 0 | AA54: =T54+V54+Y54 -> 0 | AB54: =U54+W54+Z54 -> 0 | AC54: TRUE | AD54: TRUE | AE54: 0
A55: =+A54+0.01 -> 2.24 | B55: Stipend @ Rs.100/- per child per month | C55: 0 | D55: 0 | I55: 0 | J55: 0 | R55: 0 | S55: 0 | Z55: 0 | AA55: 0 | AB55: 0 | AC55: TRUE | AD55: TRUE | AE55: 0
A56: 2.25 | B56: Supplementary TLM, Stationery and other educational material @1,000/- per child per annum | C56: 0 | D56: 0 | I56: 0 | J56: 0 | R56: 0 | S56: 0 | Z56: 0 | AA56: 0 | AB56: 0 | AC56: TRUE | AD56: TRUE | AE56: 0
A57: 2.26 | B57: Salaries | C57: 0 | D57: 0 | I57: 0 | J57: 0 | R57: 0 | S57: 0 | Z57: 0 | AA57: 0 | AB57: 0 | AC57: TRUE | AD57: TRUE | AE57: 0
A58: (a) | B58: 1 Warden @ Rs. 25,000/- per month | C58: 0 | D58: 0 | I58: 0 | J58: 0 | R58: 0 | S58: 0 | Z58: 0 | AA58: 0 | AB58: 0 | AC58: TRUE | AD58: TRUE | AE58: 0
A59: (b) | B59: 1 head teacher @ Rs. 25,000/- per month in case the enrollment exceeds 100 | C59: 0 | D59: 0 | I59: 0 | J59: 0 | R59: 0 | S59: 0 | Z59: 0 | AA59: 0 | AB59: 0 | AC59: TRUE | AD59: TRUE | AE59: 0
A60: (c) | B60: 4 - 5 Full time teachers as per RTE norms @ Rs. 20,000/- per month per teacher | C60: 0 | D60: 0 | I60: 0 | J60: 0 | R60: 0 | S60: 0 | Z60: 0 | AA60: 0 | AB60: 0 | AC60: TRUE | AD60: TRUE | AE60: 0
A61: (d) | B61: 2 Urdu Teachers (only for blocks with muslim population above 20% and select urban areas), if required @ Rs. 12,000/- per month per teacher | C61: 0 | D61: 0 | I61: 0 | J61: 0 | R61: 0 | S61: 0 | Z61: 0 | AA61: 0 | AB61: 0 | AC61: TRUE | AD61: TRUE | AE61: 0
A62: (e) | B62: 3 part time teachers @ Rs. 5,000/- per month per teacher | C62: 0 | D62: 0 | I62: 0 | J62: 0 | R62: 0 | S62: 0 | Z62: 0 | AA62: 0 | AB62: 0 | AC62: TRUE | AD62: TRUE | AE62: 0
A63: (f) | B63: 1 Full time Accountant @ Rs. 10,000/- per month | C63: 0 | D63: 0 | I63: 0 | J63: 0 | R63: 0 | S63: 0 | Z63: 0 | AA63: 0 | AB63: 0 | AC63: TRUE | AD63: TRUE | AE63: 0
A64: (g) | B64: 2 Support Staff – (Accountant/ Assistant, Peon, Chowkidar) @ Rs. 5,000/- per month per staff | C64: 0 | D64: 0 | I64: 0 | J64: 0 | R64: 0 | S64: 0 | Z64: 0 | AA64: 0 | AB64: 0 | AC64: TRUE | AD64: TRUE | AE64: 0
A65: (h) | B65: 1 Head cook @ Rs. 6,000/- per month and upto 2 Asstt. Cooks @ Rs. 4,500/- per month per cook | C65: 0 | D65: 0 | I65: 0 | J65: 0 | R65: 0 | S65: 0 | Z65: 0 | AA65: 0 | AB65: 0 | AC65: TRUE | AD65: TRUE | AE65: 0
A66: 2.27 | B66: Specific skill training @ Rs. 1,000/- per child per annum | C66: 0 | D66: 0 | I66: 0 | J66: 0 | R66: 0 | S66: 0 | Z66: 0 | AA66: 0 | AB66: 0 | AC66: TRUE | AD66: TRUE | AE66: 0
A67: 2.28 | B67: Electricity / water charges @Rs. 1,000/- per child per annum | C67: 0 | D67: 0 | I67: 0 | J67: 0 | R67: 0 | S67: 0 | Z67: 0 | AA67: 0 | AB67: 0 | AC67: TRUE | AD67: TRUE | AE67: 0
A68: 2.29 | B68: Medical care/contingencies @ Rs. 1,250/- per child per annum | C68: 0 | D68: 0 | I68: 0 | J68: 0 | R68: 0 | S68: 0 | Z68: 0 | AA68: 0 | AB68: 0 | AC68: TRUE | AD68: TRUE | AE68: 0
A69: 2.3 | B69: Maintenance @ Rs. 750/- per child per annum | C69: 0 | D69: 0 | I69: 0 | J69: 0 | R69: 0 | S69: 0 | Z69: 0 | AA69: 0 | AB69: 0 | AC69: TRUE | AD69: TRUE | AE69: 0
A70: 2.31 | B70: Miscellaneous @ Rs. 750/- per child per annum | C70: 0 | D70: 0 | I70: =C70-E70 -> 0 | J70: 0 | R70: =P70+M70+K70 -> 0 | S70: 0 | Z70: 0 | AA70: 0 | AB70: 0 | AC70: TRUE | AD70: TRUE | AE70: 0
A71: 2.32 | B71: Preparatory camps @ Rs.200/- per child per annum | C71: 0 | D71: 0 | I71: 0 | J71: 0 | R71: 0 | S71: 0 | Z71: 0 | AA71: 0 | AB71: 0 | AC71: TRUE | AD71: TRUE | AE71: 0
A72: 2.33 | B72: P.T.A / school functions @ Rs.200/- per child per annum | C72: 0 | D72: 0 | I72: 0 | J72: 0 | R72: 0 | S72: 0 | Z72: 0 | AA72: 0 | AB72: 0 | AC72: TRUE | AD72: TRUE | AE72: =AB72 -> 0
A73: 2.34 | B73: Provision of Rent @ Rs. 6,000/- per child per annum | C73: 0 | D73: 0 | I73: 0 | J73: 0 | R73: 0 | S73: 0 | Z73: 0 | AA73: 0 | AB73: 0 | AC73: TRUE | AD73: TRUE | AE73: 0
A74: 2.35 | B74: Capacity Building @ Rs. 500/- per child per annum | C74: 0 | D74: 0 | I74: 0 | J74: 0 | R74: 0 | S74: 0 | Z74: 0 | AA74: 0 | AB74: 0 | AC74: TRUE | AD74: TRUE | AE74: 0
A75: 2.36 | B75: Physical / Self Defence training @ Rs. 200/- per child per annum. | C75: 0 | D75: 0 | I75: 0 | J75: 0 | R75: 0 | S75: 0 | Z75: 0 | AA75: 0 | AB75: 0 | AC75: TRUE | AD75: TRUE | AE75: 0
B76: Sub Total (Recurring) | C76: =SUM(C54:C75) -> 0 | D76: =SUM(D54:D75) -> 0 | E76: =SUM(E54:E75) -> 0 | F76: =SUM(F54:F75) -> 0 | G76: =SUM(G54:G75) -> 0 | H76: =SUM(H54:H75) -> 0 | I76: =SUM(I54:I75) -> 0 | J76: =SUM(J54:J75) -> 0 | K76: =SUM(K54:K75) -> 0 | L76: =SUM(L54:L75) -> 0 | M76: =SUM(M54:M75) -> 0 | N76: =SUM(N54:N75) -> 0 | O76: 0 | P76: =SUM(P54:P75) -> 0 | Q76: =SUM(Q54:Q75) -> 0 | R76: =SUM(R54:R75) -> 0 | S76: =SUM(S54:S75) -> 0 | T76: =SUM(T54:T75) -> 0 | U76: =SUM(U54:U75) -> 0 | V76: =SUM(V54:V75) -> 0 | W76: =SUM(W54:W75) -> 0 | X76: 0 | Y76: =SUM(Y54:Y75) -> 0 | Z76: =SUM(Z54:Z75) -> 0 | AA76: =SUM(AA54:AA75) -> 0 | AB76: =SUM(AB54:AB75) -> 0 | AE76: 0
B77: Total (Recurring + Non Recurring) | C77: =C76+C52 -> 0 | D77: =D76+D52 -> 0 | E77: 0 | F77: 0 | G77: 0 | H77: 0 | I77: 0 | J77: 0 | K77: 0 | L77: 0 | M77: 0 | N77: 0 | O77: 0 | P77: 0 | Q77: 0 | R77: 0 | S77: 0 | T77: 0 | U77: 0 | V77: 0 | W77: 0 | X77: 0 | Y77: 0 | Z77: 0 | AA77: 0 | AB77: 0 | AE77: 0
B78: Total (50 + 100 children) | C78: 0 | D78: 0 | E78: =E77+E45 -> 0 | F78: =F77+F45 -> 0 | AA78: =Y78+V78+T78 -> 0 | AB78: =Z78+W78+U78 -> 0 | AC78: =X78*Y78=Z78 -> TRUE | AD78: =U78+W78+Z78=AB78 -> TRUE | AE78: 0
A79: 3 | B79: Residential Hostel for specific category of children | C79: 0 | D79: 0 | AA79: 0 | AB79: 0 | AC79: TRUE | AD79: TRUE | AE79: 0
A80: (A) | B80: 50 children | D80: 0 | AA80: 0 | AB80: 0 | AC80: TRUE | AD80: TRUE | AE80: 0
B81: Non-recurring (one time grant) | D81: 0 | AA81: 0 | AB81: 0 | AC81: TRUE | AD81: TRUE | AE81: 0
A82: 3.01 | B82: Furniture/ Equipment (including kitchen) | C82: 0 | D82: 0 | I82: =C82-E82 -> 0 | J82: 0 | R82: =P82+M82+K82 -> 0 | S82: 0 | Z82: =X82*Y82 -> 0 | AA82: =T82+V82+Y82 -> 0 | AB82: =U82+W82+Z82 -> 0 | AC82: TRUE | AD82: TRUE | AE82: 0
A83: =+A82+0.01 -> 3.02 | B83: TLM and equipment including library books | C83: 0 | D83: 0 | I83: 0 | J83: 0 | R83: 0 | S83: 0 | Z83: 0 | AA83: 0 | AB83: 0 | AC83: TRUE | AD83: TRUE | AE83: 0
A84: =+A83+0.01 -> 3.03 | B84: Bedding (new) | C84: 0 | D84: 0 | I84: 0 | J84: 0 | R84: 0 | S84: 0 | Z84: 0 | AA84: 0 | AB84: 0 | AC84: TRUE | AD84: TRUE | AE84: 0
A85: =+A84+0.01 -> 3.04 | B85: Replacement of bedding (once in 3 years) | C85: 0 | D85: 0 | I85: 0 | J85: 0 | R85: 0 | S85: 0 | Z85: 0 | AA85: 0 | AB85: 0 | AC85: TRUE | AD85: TRUE | AE85: 0
B86: Sub Total (Non Recurring) | C86: =SUM(C82:C85) -> 0 | D86: =SUM(D82:D85) -> 0 | E86: 0 | F86: 0 | G86: 0 | H86: 0 | I86: 0 | J86: 0 | K86: 0 | L86: 0 | M86: 0 | N86: 0 | O86: 0 | P86: 0 | Q86: 0 | R86: 0 | S86: 0 | T86: 0 | U86: 0 | V86: 0 | W86: 0 | X86: 0 | Y86: 0 | Z86: 0 | AA86: 0 | AB86: 0 | AE86: 0
B87: Recurring (50 children) | D87: 0 | AA87: 0 | AB87: 0 | AC87: =X87*Y87=Z87 -> TRUE | AD87: =U87+W87+Z87=AB87 -> TRUE | AE87: 0
A88: 3.05 | B88: Maintenance @ Rs.1,500/- per child per month | C88: 0 | D88: 0 | I88: =C88-E88 -> 0 | J88: 0 | R88: =P88+M88+K88 -> 0 | S88: 0 | Z88: =X88*Y88 -> 0 | AA88: =T88+V88+Y88 -> 0 | AB88: =U88+W88+Z88 -> 0 | AC88: TRUE | AD88: TRUE | AE88: 0
A89: =+A88+0.01 -> 3.06 | B89: Stipend @ Rs.100/- per child per month | C89: 0 | D89: 0 | I89: 0 | J89: 0 | R89: 0 | S89: 0 | Z89: 0 | AA89: 0 | AB89: 0 | AC89: TRUE | AD89: TRUE | AE89: 0
A90: =+A89+0.01 -> 3.07 | B90: Supplementary TLM, Stationery and other educational material @Rs.1,000/- per child per annum | C90: 0 | D90: 0 | I90: 0 | J90: 0 | R90: 0 | S90: 0 | Z90: 0 | AA90: 0 | AB90: 0 | AC90: TRUE | AD90: TRUE | AE90: 0
A91: 3.08 | B91: Salaries | C91: 0 | D91: 0 | I91: 0 | J91: 0 | R91: 0 | S91: 0 | Z91: 0 | AA91: 0 | AB91: 0 | AC91: TRUE | AD91: TRUE | AE91: 0
A92: (a) | B92: 1 Warden @ Rs. 25,000/- per month | C92: 0 | D92: 0 | I92: 0 | J92: 0 | R92: 0 | S92: 0 | Z92: 0 | AA92: 0 | AB92: 0 | AC92: TRUE | AD92: TRUE | AE92: 0
A93: (b) | B93: 4 Fulltime teachers as per RTE Norms @ Rs. 20,000/- per month per teacher | C93: 0 | D93: 0 | I93: 0 | J93: 0 | R93: 0 | S93: 0 | Z93: 0 | AA93: 0 | AB93: 0 | AC93: TRUE | AD93: TRUE | AE93: 0
A94: (c) | B94: 2 Urdu Teachers (only for Blocks with muslim population above 20% and select urban areas) if required @ Rs.12,000/- per month per teacher. | C94: 0 | D94: 0 | I94: 0 | J94: 0 | R94: 0 | S94: 0 | Z94: 0 | AA94: 0 | AB94: 0 | AC94: TRUE | AD94: TRUE | AE94: 0
A95: (d) | B95: 3 Part time teachers @ Rs.5,000/- per month per teacher | C95: 0 | D95: 0 | I95: 0 | J95: 0 | R95: 0 | S95: 0 | Z95: 0 | AA95: 0 | AB95: 0 | AC95: TRUE | AD95: TRUE | AE95: 0
A96: (e) | B96: 1 Full time Accountant @ Rs. 10,000/- per month | C96: 0 | D96: 0 | I96: 0 | J96: 0 | R96: 0 | S96: 0 | Z96: 0 | AA96: 0 | AB96: 0 | AC96: TRUE | AD96: TRUE | AE96: 0
A97: (f) | B97: 2 Support staff - (Accountant/Assistant, Peon, Chowkidar) @ Rs. 5,000/- per month per staff | C97: 0 | D97: 0 | I97: 0 | J97: 0 | R97: 0 | S97: 0 | Z97: 0 | AA97: 0 | AB97: 0 | AC97: TRUE | AD97: TRUE | AE97: 0
A98: (g) | B98: 1 Head Cook @ Rs. 6,000/- per month and upto 2 Asstt. Cooks @ Rs. 4,500/- per month per cook | C98: 0 | D98: 0 | I98: 0 | J98: 0 | R98: 0 | S98: 0 | Z98: 0 | AA98: 0 | AB98: 0 | AC98: TRUE | AD98: TRUE | AE98: 0
A99: 3.09 | B99: Specific Skill training @ Rs.1000/- per child per annum | C99: 0 | D99: 0 | I99: 0 | J99: 0 | R99: 0 | S99: 0 | Z99: 0 | AA99: 0 | AB99: 0 | AC99: TRUE | AD99: TRUE | AE99: 0
A100: =+A99+0.01 -> 3.1 | B100: Electricity / water charges @ Rs. 1,000/- per child per annum | C100: 0 | D100: 0 | I100: 0 | J100: 0 | R100: 0 | S100: 0 | Z100: 0 | AA100: 0 | AB100: 0 | AC100: TRUE | AD100: TRUE | AE100: 0
A101: 3.11 | B101: Medical care/contingencies @ Rs.1,250/- per child per annum | C101: 0 | D101: 0 | I101: 0 | J101: 0 | R101: 0 | S101: 0 | Z101: 0 | AA101: 0 | AB101: 0 | AC101: TRUE | AD101: TRUE | AE101: 0
A102: 3.12 | B102: Maintenance @ Rs. 750/- per child per annum | C102: 0 | D102: 0 | I102: 0 | J102: 0 | R102: 0 | S102: 0 | Z102: 0 | AA102: 0 | AB102: 0 | AC102: TRUE | AD102: TRUE | AE102: 0
A103: 3.13 | B103: Miscellaneous @ Rs. 750/- per child per annum | C103: 0 | D103: 0 | I103: 0 | J103: 0 | R103: 0 | S103: 0 | Z103: 0 | AA103: 0 | AB103: 0 | AC103: TRUE | AD103: TRUE | AE103: 0
A104: 3.14 | B104: Preparatory camps @ Rs. 300/- per child per annum | C104: 0 | D104: 0 | I104: =C104-E104 -> 0 | J104: 0 | R104: =P104+M104+K104 -> 0 | S104: 0 | Z104: 0 | AA104: 0 | AB104: 0 | AC104: TRUE | AD104: TRUE | AE104: 0
A105: 3.15 | B105: P.T.A / school functions @ Rs. 300/- per child per annum | C105: 0 | D105: 0 | I105: 0 | J105: 0 | R105: 0 | S105: 0 | Z105: 0 | AA105: 0 | AB105: 0 | AC105: TRUE | AD105: TRUE | AE105: 0
A106: 3.16 | B106: Provision of Rent @ Rs. 10,000/- per child per annum | C106: 0 | D106: 0 | I106: 0 | J106: 0 | R106: 0 | S106: 0 | Z106: 0 | AA106: 0 | AB106: 0 | AC106: TRUE | AD106: TRUE | AE106: 0
A107: 3.17 | B107: Capacity Building @ Rs. 500/- per child per annum | C107: 0 | D107: 0 | I107: 0 | J107: 0 | R107: 0 | S107: 0 | Z107: 0 | AA107: 0 | AB107: 0 | AC107: TRUE | AD107: TRUE | AE107: 0
A108: 3.18 | B108: Physical / Self Defence Training @ Rs.200/- per child per annum | C108: 0 | D108: 0 | I108: 0 | J108: 0 | R108: 0 | S108: 0 | Z108: 0 | AA108: 0 | AB108: 0 | AC108: TRUE | AD108: TRUE | AE108: 0
B109: Sub Total (Recurring) | C109: =SUM(C88:C108) -> 0 | D109: =SUM(D88:D108) -> 0 | E109: 0 | F109: 0 | G109: 0 | H109: 0 | I109: 0 | J109: 0 | K109: 0 | L109: 0 | M109: 0 | N109: 0 | O109: 0 | P109: 0 | Q109: 0 | R109: 0 | S109: 0 | T109: 0 | U109: 0 | V109: 0 | W109: 0 | X109: 0 | Y109: 0 | Z109: 0 | AA109: 0 | AB109: 0 | AE109: 0
B110: Total (Non Recurring + Recurring) | C110: =C109+C86 -> 0 | D110: 0 | E110: =E109+E86 -> 0 | F110: =F109+F86 -> 0 | G110: 0 | H110: 0 | I110: 0 | J110: 0 | K110: 0 | L110: 0 | M110: 0 | N110: 0 | O110: 0 | P110: 0 | Q110: 0 | R110: 0 | S110: 0 | T110: 0 | U110: 0 | V110: 0 | W110: 0 | X110: 0 | Y110: 0 | Z110: 0 | AA110: 0 | AB110: 0 | AE110: 0
A111: (B) | B111: 100 Children | D111: 0 | AA111: 0 | AB111: 0 | AC111: =X111*Y111=Z111 -> TRUE | AD111: =U111+W111+Z111=AB111 -> TRUE | AE111: 0
B112: Non-recurring (one time grant) | D112: 0 | AA112: 0 | AB112: 0 | AC112: TRUE | AD112: TRUE | AE112: 0
A113: 3.19 | B113: Furniture / Equipment (including kitchen equipment) | C113: 0 | D113: 0 | I113: =C113-E113 -> 0 | J113: 0 | R113: =P113+M113+K113 -> 0 | S113: 0 | Z113: =X113*Y113 -> 0 | AA113: =T113+V113+Y113 -> 0 | AB113: =U113+W113+Z113 -> 0 | AC113: TRUE | AD113: TRUE | AE113: 0
A114: =+A113+0.01 -> 3.2 | B114: TLM and equipment including library books (New) | C114: 0 | D114: 0 | I114: 0 | J114: 0 | R114: 0 | S114: 0 | Z114: 0 | AA114: 0 | AB114: 0 | AC114: TRUE | AD114: TRUE | AE114: 0
A115: =+A114+0.01 -> 3.21 | B115: Bedding (New) | C115: 0 | D115: 0 | I115: 0 | J115: 0 | R115: 0 | S115: 0 | Z115: 0 | AA115: 0 | AB115: 0 | AC115: TRUE | AD115: TRUE | AE115: 0
A116: =+A115+0.01 -> 3.22 | B116: Replacement of bedding (once in 3 years) | C116: 0 | D116: 0 | I116: 0 | J116: 0 | R116: 0 | S116: 0 | Z116: 0 | AA116: 0 | AB116: 0 | AC116: TRUE | AD116: TRUE | AE116: 0
B117: Sub Total Non-recurring | C117: =SUM(C113:C116) -> 0 | D117: =SUM(D113:D116) -> 0 | E117: =SUM(E113:E116) -> 0 | F117: =SUM(F113:F116) -> 0 | G117: =SUM(G113:G116) -> 0 | H117: =SUM(H113:H116) -> 0 | I117: =SUM(I113:I116) -> 0 | J117: =SUM(J113:J116) -> 0 | K117: =SUM(K113:K116) -> 0 | L117: =SUM(L113:L116) -> 0 | M117: =SUM(M113:M116) -> 0 | N117: =SUM(N113:N116) -> 0 | O117: 0 | P117: =SUM(P113:P116) -> 0 | Q117: =SUM(Q113:Q116) -> 0 | R117: =SUM(R113:R116) -> 0 | S117: =SUM(S113:S116) -> 0 | T117: =SUM(T113:T116) -> 0 | U117: =SUM(U113:U116) -> 0 | V117: =SUM(V113:V116) -> 0 | W117: =SUM(W113:W116) -> 0 | X117: 0 | Y117: =SUM(Y113:Y116) -> 0 | Z117: =SUM(Z113:Z116) -> 0 | AA117: =SUM(AA113:AA116) -> 0 | AB117: =SUM(AB113:AB116) -> 0 | AE117: 0
B118: Recurring | D118: 0 | AA118: 0 | AB118: 0 | AC118: =X118*Y118=Z118 -> TRUE | AD118: =U118+W118+Z118=AB118 -> TRUE | AE118: 0
A119: 3.23 | B119: Maintenance @ Rs. 1,500/- per child per month | C119: 0 | D119: 0 | I119: =C119-E119 -> 0 | J119: 0 | R119: =P119+M119+K119 -> 0 | S119: 0 | Z119: =X119*Y119 -> 0 | AA119: =T119+V119+Y119 -> 0 | AB119: =U119+W119+Z119 -> 0 | AC119: TRUE | AD119: TRUE | AE119: 0
A120: =+A119+0.01 -> 3.24 | B120: Stipend @ Rs.100/- per child per month | C120: 0 | D120: 0 | I120: 0 | J120: 0 | R120: 0 | S120: 0 | Z120: 0 | AA120: 0 | AB120: 0 | AC120: TRUE | AD120: TRUE | AE120: 0
A121: =+A120+0.01 -> 3.25 | B121: Supplementary TLM, Stationery and other educational material @1,000/- per child per annum | C121: 0 | D121: 0 | I121: 0 | J121: 0 | R121: 0 | S121: 0 | Z121: 0 | AA121: 0 | AB121: 0 | AC121: TRUE | AD121: TRUE | AE121: 0
A122: 3.26 | B122: Salaries | C122: 0 | D122: 0 | I122: 0 | J122: 0 | R122: 0 | S122: 0 | Z122: 0 | AA122: 0 | AB122: 0 | AC122: TRUE | AD122: TRUE | AE122: 0
A123: (a) | B123: 1 Warden @ Rs. 25,000/- per month | C123: 0 | D123: 0 | I123: 0 | J123: 0 | R123: 0 | S123: 0 | Z123: 0 | AA123: 0 | AB123: 0 | AC123: TRUE | AD123: TRUE | AE123: 0
A124: (b) | B124: 1 head teacher @ Rs. 25,000/- per month in case the enrollment exceeds 100 | C124: 0 | D124: 0 | I124: 0 | J124: 0 | R124: 0 | S124: 0 | Z124: 0 | AA124: 0 | AB124: 0 | AC124: TRUE | AD124: TRUE | AE124: 0
A125: (c) | B125: 4 - 5 Full time teachers as per RTE norms @ Rs. 20,000/- per month per teacher | C125: 0 | D125: 0 | I125: 0 | J125: 0 | R125: 0 | S125: 0 | Z125: 0 | AA125: 0 | AB125: 0 | AC125: TRUE | AD125: TRUE | AE125: 0
A126: (d) | B126: 2 Urdu Teachers (only for blocks with muslim population above 20% and select urban areas), if required @ Rs. 12,000/- per month per teacher | C126: 0 | D126: 0 | I126: 0 | J126: 0 | R126: 0 | S126: 0 | Z126: 0 | AA126: 0 | AB126: 0 | AC126: TRUE | AD126: TRUE | AE126: 0
A127: (e) | B127: 3 part time teachers @ Rs. 5,000/- per month per teacher | C127: 0 | D127: 0 | I127: 0 | J127: 0 | R127: 0 | S127: 0 | Z127: 0 | AA127: 0 | AB127: 0 | AC127: TRUE | AD127: TRUE | AE127: 0
A128: (f) | B128: 1 Full time Accountant @ Rs. 10,000/- per month | C128: 0 | D128: 0 | I128: 0 | J128: 0 | R128: 0 | S128: 0 | Z128: 0 | AA128: 0 | AB128: 0 | AC128: TRUE | AD128: TRUE | AE128: 0
A129: (g) | B129: 2 Support Staff – (Accountant/ Assistant, Peon, Chowkidar) @ Rs. 5,000/- per month per staff | C129: 0 | D129: 0 | I129: 0 | J129: 0 | R129: 0 | S129: 0 | Z129: 0 | AA129: 0 | AB129: 0 | AC129: TRUE | AD129: TRUE | AE129: 0
A130: (h) | B130: 1 Head cook @ Rs. 6,000/- per month and upto 2 Asstt. Cooks @ Rs. 4,500/- per month per cook | C130: 0 | D130: 0 | I130: 0 | J130: 0 | R130: 0 | S130: 0 | Z130: 0 | AA130: 0 | AB130: 0 | AC130: TRUE | AD130: TRUE | AE130: 0
A131: 3.27 | B131: Specific skill training @ Rs.1,000/- per child per annum | C131: 0 | D131: 0 | I131: 0 | J131: 0 | R131: 0 | S131: 0 | Z131: 0 | AA131: 0 | AB131: 0 | AC131: TRUE | AD131: TRUE | AE131: 0
A132: =+A131+0.01 -> 3.28 | B132: Electricity / water charges @ Rs.1,000/- per child per annum | C132: 0 | D132: 0 | I132: 0 | J132: 0 | R132: 0 | S132: 0 | Z132: 0 | AA132: 0 | AB132: 0 | AC132: TRUE | AD132: TRUE | AE132: 0
A133: 3.29 | B133: Medical care/contingencies @ Rs.1,250/- per child per annum | C133: 0 | D133: 0 | I133: 0 | J133: 0 | R133: 0 | S133: 0 | Z133: 0 | AA133: 0 | AB133: 0 | AC133: TRUE | AD133: TRUE | AE133: 0
A134: 3.3 | B134: Maintenance @ Rs.750/- per child per annum | C134: 0 | D134: 0 | I134: 0 | J134: 0 | R134: 0 | S134: 0 | Z134: 0 | AA134: 0 | AB134: 0 | AC134: TRUE | AD134: TRUE | AE134: 0
A135: 3.31 | B135: Miscellaneous @ Rs.750/- per child per annum | C135: 0 | D135: 0 | I135: =C135-E135 -> 0 | J135: 0 | R135: =P135+M135+K135 -> 0 | S135: 0 | Z135: 0 | AA135: 0 | AB135: 0 | AC135: TRUE | AD135: TRUE | AE135: 0
A136: 3.32 | B136: Preparatory camps @ Rs.200/- per child per annum | C136: 0 | D136: 0 | I136: 0 | J136: 0 | R136: 0 | S136: 0 | Z136: 0 | AA136: 0 | AB136: 0 | AC136: TRUE | AD136: TRUE | AE136: =AB136 -> 0
A137: 3.33 | B137: P.T.A / school functions @ Rs.200/- per child per annum | C137: 0 | D137: 0 | I137: 0 | J137: 0 | R137: 0 | S137: 0 | Z137: 0 | AA137: 0 | AB137: 0 | AC137: TRUE | AD137: TRUE | AE137: 0
A138: 3.34 | B138: Provision of Rent @ Rs. 6,000/- per child per annum | C138: 0 | D138: 0 | I138: 0 | J138: 0 | R138: 0 | S138: 0 | Z138: 0 | AA138: 0 | AB138: 0 | AC138: TRUE | AD138: TRUE | AE138: 0
A139: 3.35 | B139: Capacity Building @ Rs.500/- per child per annum | C139: 0 | D139: 0 | I139: 0 | J139: 0 | R139: 0 | S139: 0 | Z139: 0 | AA139: 0 | AB139: 0 | AC139: TRUE | AD139: TRUE | AE139: 0
A140: 3.36 | B140: Physical / Self Defence training @ Rs. 200/- per child per annum. | C140: 0 | D140: 0 | I140: 0 | J140: 0 | R140: 0 | S140: 0 | Z140: 0 | AA140: 0 | AB140: 0 | AC140: TRUE | AD140: TRUE | AE140: 0
B141: Sub Total (Recurring) | C141: =SUM(C119:C140) -> 0 | D141: =SUM(D119:D140) -> 0 | E141: =SUM(E119:E140) -> 0 | F141: =SUM(F119:F140) -> 0 | G141: =SUM(G119:G140) -> 0 | H141: =SUM(H119:H140) -> 0 | I141: =SUM(I119:I140) -> 0 | J141: =SUM(J119:J140) -> 0 | K141: =SUM(K119:K140) -> 0 | L141: =SUM(L119:L140) -> 0 | M141: =SUM(M119:M140) -> 0 | N141: =SUM(N119:N140) -> 0 | O141: 0 | P141: =SUM(P119:P140) -> 0 | Q141: =SUM(Q119:Q140) -> 0 | R141: =SUM(R119:R140) -> 0 | S141: =SUM(S119:S140) -> 0 | T141: =SUM(T119:T140) -> 0 | U141: =SUM(U119:U140) -> 0 | V141: =SUM(V119:V140) -> 0 | W141: =SUM(W119:W140) -> 0 | X141: 0 | Y141: =SUM(Y119:Y140) -> 0 | Z141: =SUM(Z119:Z140) -> 0 | AA141: =SUM(AA119:AA140) -> 0 | AB141: =SUM(AB119:AB140) -> 0 | AE141: 0
B142: Total (Recurring + Non Recurring) | C142: =C141+C117 -> 0 | D142: =D141+D117 -> 0 | E142: =E141+E117 -> 0 | F142: =F141+F117 -> 0 | G142: =G141+G117 -> 0 | H142: =H141+H117 -> 0 | I142: =I141+I117 -> 0 | J142: =J141+J117 -> 0 | K142: =K141+K117 -> 0 | L142: =L141+L117 -> 0 | M142: =M141+M117 -> 0 | N142: =N141+N117 -> 0 | O142: 0 | P142: =P141+P117 -> 0 | Q142: =Q141+Q117 -> 0 | R142: =R141+R117 -> 0 | S142: =S141+S117 -> 0 | T142: =T141+T117 -> 0 | U142: =U141+U117 -> 0 | V142: =V141+V117 -> 0 | W142: =W141+W117 -> 0 | X142: 0 | Y142: =Y141+Y117 -> 0 | Z142: =Z141+Z117 -> 0 | AA142: =AA141+AA117 -> 0 | AB142: =AB141+AB117 -> 0 | AE142: 0
B143: Total (A + B) | C143: =C142+C110 -> 0 | D143: 0 | E143: =E142+E110 -> 0 | F143: =F142+F110 -> 0 | G143: 0 | H143: 0 | I143: 0 | J143: 0 | K143: 0 | L143: 0 | M143: 0 | N143: 0 | O143: 0 | P143: 0 | Q143: 0 | R143: 0 | S143: 0 | T143: 0 | U143: 0 | V143: 0 | W143: 0 | X143: 0 | Y143: 0 | Z143: 0 | AA143: 0 | AB143: 0 | AE143: 0
A144: 4 | B144: Transport/Escort Facility | D144: 0 | AA144: =Y144+V144+T144 -> 0 | AB144: =Z144+W144+U144 -> 0 | AC144: =X144*Y144=Z144 -> TRUE | AD144: =U144+W144+Z144=AB144 -> TRUE | AE144: 0
A145: 4.01 | B145: Children in remote habitation | C145: 0 | D145: 0 | I145: =C145-E145 -> 0 | J145: =D145-F145 -> 0 | Q145: =+O145*P145 -> 0 | R145: =P145+M145+K145 -> 0 | S145: =Q145+N145+L145 -> 0 | Z145: =X145*Y145 -> 0 | AA145: =T145+V145+Y145 -> 0 | AB145: =U145+W145+Z145 -> 0 | AC145: TRUE | AD145: TRUE | AE145: 0
A146: 4.02 | B146: Urban deprived children/children without adult protection | C146: 0 | D146: 0 | I146: =C146-E146 -> 0 | J146: =D146-F146 -> 0 | R146: =P146+M146+K146 -> 0 | S146: =Q146+N146+L146 -> 0 | Z146: =X146*Y146 -> 0 | AA146: =T146+V146+Y146 -> 0 | AB146: =U146+W146+Z146 -> 0 | AC146: TRUE | AD146: TRUE | AE146: 0
B147: Sub Total | C147: =SUM(C145:C146) -> 0 | D147: 0 | E147: 0 | F147: 0 | G147: 0 | H147: 0 | I147: 0 | J147: 0 | K147: 0 | L147: 0 | M147: 0 | N147: 0 | O147: 0 | P147: 0 | Q147: 0 | R147: 0 | S147: 0 | T147: 0 | U147: 0 | V147: 0 | W147: 0 | X147: 0 | Y147: 0 | Z147: 0 | AA147: 0 | AB147: 0 | AE147: 0
A148: 5 | B148: Reimbursement of Fee against 25% admission under Section 12(1)(c) of RTE Act 2009 (Entry Level) subject to upper limit of 20% of AWP&B guidelines issued by MHRD | C148: 0 | D148: 0 | I148: =C148-E148 -> 0 | J148: =D148-F148 -> 0 | R148: =P148+M148+K148 -> 0 | S148: =Q148+N148+L148 -> 0 | Z148: =X148*Y148 -> 0 | AA148: =T148+V148+Y148 -> 0 | AB148: =U148+W148+Z148 -> 0 | AC148: =X148*Y148=Z148 -> TRUE | AD148: =U148+W148+Z148=AB148 -> TRUE | AE148: 0
B149: Sub Total | C149: =SUM(C148) -> 0 | D149: =SUM(D148) -> 0 | E149: =SUM(E148) -> 0 | F149: =SUM(F148) -> 0 | G149: =SUM(G148) -> 0 | H149: =SUM(H148) -> 0 | I149: =SUM(I148) -> 0 | J149: =SUM(J148) -> 0 | K149: =SUM(K148) -> 0 | L149: =SUM(L148) -> 0 | M149: =SUM(M148) -> 0 | N149: =SUM(N148) -> 0 | O149: 0 | P149: =SUM(P148) -> 0 | Q149: =SUM(Q148) -> 0 | R149: =SUM(R148) -> 0 | S149: =SUM(S148) -> 0 | T149: =SUM(T148) -> 0 | U149: =SUM(U148) -> 0 | V149: =SUM(V148) -> 0 | W149: =SUM(W148) -> 0 | X149: 0 | Y149: =SUM(Y148) -> 0 | Z149: =SUM(Z148) -> 0 | AA149: =SUM(AA148) -> 0 | AB149: =SUM(AB148) -> 0 | AE149: 0
A150: =+A148+1 -> 6 | B150: Special Training for mainstreaming of out of school children | D150: 0 | AA150: 0 | AB150: 0 | AC150: =X150*Y150=Z150 -> TRUE | AD150: =U150+W150+Z150=AB150 -> TRUE | AE150: 0
A151: 6.01 | B151: Residential (Fresh) | D151: 0 | AA151: 0 | AB151: 0 | AC151: TRUE | AD151: TRUE | AE151: 0
B152: (a) 12 months | C152: 0 | D152: 0 | I152: =C152-E152 -> 0 | J152: 0 | R152: =P152+M152+K152 -> 0 | S152: 0 | Z152: =X152*Y152 -> 0 | AA152: =T152+V152+Y152 -> 0 | AB152: =U152+W152+Z152 -> 0 | AC152: TRUE | AD152: TRUE | AE152: 0
B153: (b) 9 months | C153: 0 | D153: 0 | I153: 0 | J153: 0 | R153: 0 | S153: 0 | Z153: 0 | AA153: 0 | AB153: 0 | AC153: TRUE | AD153: TRUE | AE153: 0
B154: (c) 6 months | C154: 0 | D154: 0 | I154: 0 | J154: 0 | R154: 0 | S154: 0 | Z154: 0 | AA154: 0 | AB154: 0 | AC154: TRUE | AD154: TRUE | AE154: 0
B155: (d) 3 months | C155: 0 | D155: 0 | I155: 0 | J155: 0 | R155: 0 | S155: 0 | Z155: 0 | AA155: 0 | AB155: 0 | AC155: TRUE | AD155: TRUE | AE155: 0
B156: Sub Total | C156: =SUM(C152:C155) -> 0 | D156: =SUM(D152:D155) -> 0 | E156: =SUM(E152:E155) -> 0 | F156: =SUM(F152:F155) -> 0 | G156: =SUM(G152:G155) -> 0 | H156: =SUM(H152:H155) -> 0 | I156: =SUM(I152:I155) -> 0 | J156: =SUM(J152:J155) -> 0 | K156: =SUM(K152:K155) -> 0 | L156: =SUM(L152:L155) -> 0 | M156: =SUM(M152:M155) -> 0 | N156: =SUM(N152:N155) -> 0 | O156: 0 | P156: =SUM(P152:P155) -> 0 | Q156: =SUM(Q152:Q155) -> 0 | R156: =SUM(R152:R155) -> 0 | S156: =SUM(S152:S155) -> 0 | T156: =SUM(T152:T155) -> 0 | U156: =SUM(U152:U155) -> 0 | V156: =SUM(V152:V155) -> 0 | W156: =SUM(W152:W155) -> 0 | X156: 0 | Y156: =SUM(Y152:Y155) -> 0 | Z156: =SUM(Z152:Z155) -> 0 | AA156: =SUM(AA152:AA155) -> 0 | AB156: =SUM(AB152:AB155) -> 0 | AE156: 0
A157: =+A151+0.01 -> 6.02 | B157: Residential (Continuing from previous year) | D157: 0 | AA157: 0 | AB157: 0 | AC157: =X157*Y157=Z157 -> TRUE | AD157: =U157+W157+Z157=AB157 -> TRUE | AE157: 0
B158: (a) 12 months | C158: 0 | D158: 0 | I158: =C158-E158 -> 0 | J158: 0 | R158: =P158+M158+K158 -> 0 | S158: 0 | Z158: =X158*Y158 -> 0 | AA158: =T158+V158+Y158 -> 0 | AB158: =U158+W158+Z158 -> 0 | AC158: TRUE | AD158: TRUE | AE158: 0
B159: (b) 9 months | C159: 0 | D159: 0 | I159: 0 | J159: 0 | R159: 0 | S159: 0 | Z159: 0 | AA159: 0 | AB159: 0 | AC159: TRUE | AD159: TRUE | AE159: 0
B160: (c) 6 months | C160: 0 | D160: 0 | I160: 0 | J160: 0 | R160: 0 | S160: 0 | Z160: 0 | AA160: 0 | AB160: 0 | AC160: TRUE | AD160: TRUE | AE160: 0
B161: (d) 3 months | C161: 0 | D161: 0 | I161: 0 | J161: 0 | R161: 0 | S161: 0 | Z161: 0 | AA161: 0 | AB161: 0 | AC161: TRUE | AD161: TRUE | AE161: 0
B162: Sub Total | C162: =SUM(C158:C161) -> 0 | D162: =SUM(D158:D161) -> 0 | E162: =SUM(E158:E161) -> 0 | F162: =SUM(F158:F161) -> 0 | G162: =SUM(G158:G161) -> 0 | H162: =SUM(H158:H161) -> 0 | I162: =SUM(I158:I161) -> 0 | J162: =SUM(J158:J161) -> 0 | K162: =SUM(K158:K161) -> 0 | L162: =SUM(L158:L161) -> 0 | M162: =SUM(M158:M161) -> 0 | N162: =SUM(N158:N161) -> 0 | O162: 0 | P162: =SUM(P158:P161) -> 0 | Q162: =SUM(Q158:Q161) -> 0 | R162: =SUM(R158:R161) -> 0 | S162: =SUM(S158:S161) -> 0 | T162: =SUM(T158:T161) -> 0 | U162: =SUM(U158:U161) -> 0 | V162: =SUM(V158:V161) -> 0 | W162: =SUM(W158:W161) -> 0 | X162: 0 | Y162: =SUM(Y158:Y161) -> 0 | Z162: =SUM(Z158:Z161) -> 0 | AA162: =SUM(AA158:AA161) -> 0 | AB162: =SUM(AB158:AB161) -> 0 | AE162: 0
A163: 6.03 | B163: Non-Residential (Fresh) | D163: 0 | AA163: 0 | AB163: 0 | AC163: =X163*Y163=Z163 -> TRUE | AD163: =U163+W163+Z163=AB163 -> TRUE | AE163: 0
B164: (a) 12 months | C164: 0 | D164: 0 | I164: =C164-E164 -> 0 | J164: 0 | S164: =Q164+N164+L164 -> 0 | AA164: =T164+V164+Y164 -> 0 | AB164: =U164+W164+Z164 -> 0 | AC164: TRUE | AD164: TRUE | AE164: 0
B165: (b) 9 months | C165: 476 | D165: 12.376 | E165: 249 | F165: 6.474 | I165: 227 | J165: 5.902 | O165: 0.06 | P165: 682 | Q165: =O165*P165 -> 40.92 | R165: =K165+M165+P165 -> 682 | S165: =L165+N165+Q165 -> 40.92 | X165: 0.06 | Y165: 682 | Z165: =Y165*X165 -> 40.92 | AA165: 682 | AB165: =U165+W165+Z165 -> 40.92 | AC165: TRUE | AD165: TRUE | AE165: 40.92
B166: (c) 6 months | C166: 0 | D166: 0 | I166: 0 | J166: 0 | R166: 0 | S166: 0 | AA166: 0 | AB166: =U166+W166+Z166 -> 0 | AC166: TRUE | AD166: TRUE | AE166: 0
B167: (d) 3 months | C167: 0 | D167: 0 | I167: 0 | J167: 0 | R167: 0 | S167: 0 | AA167: 0 | AB167: 0 | AC167: TRUE | AD167: TRUE | AE167: 0
B168: Sub Total | C168: =SUM(C164:C167) -> 476 | D168: =SUM(D164:D167) -> 12.376 | E168: =SUM(E164:E167) -> 249 | F168: =SUM(F164:F167) -> 6.474 | G168: =SUM(G164:G167) -> 0 | H168: =SUM(H164:H167) -> 0 | I168: =SUM(I164:I167) -> 227 | J168: =SUM(J164:J167) -> 5.902 | K168: =SUM(K164:K167) -> 0 | L168: =SUM(L164:L167) -> 0 | M168: =SUM(M164:M167) -> 0 | N168: =SUM(N164:N167) -> 0 | O168: 0.06 | P168: =SUM(P164:P167) -> 682 | Q168: =SUM(Q164:Q167) -> 40.92 | R168: =SUM(R164:R167) -> 682 | S168: =SUM(S164:S167) -> 40.92 | T168: =SUM(T164:T167) -> 0 | U168: =SUM(U164:U167) -> 0 | V168: =SUM(V164:V167) -> 0 | W168: =SUM(W164:W167) -> 0 | X168: 0.06 | Y168: =SUM(Y164:Y167) -> 682 | Z168: =SUM(Z164:Z167) -> 40.92 | AA168: =SUM(AA164:AA167) -> 682 | AB168: =SUM(AB164:AB167) -> 40.92 | AE168: 40.92
A169: 6.04 | B169: Non-Residential (Continuing from previous year) | D169: 0 | AD169: =U169+W169+Z169=AB169 -> TRUE | AE169: 0
B170: (a) 12 months | C170: 0 | D170: 0 | I170: =C170-E170 -> 0 | J170: 0 | S170: =Q170+N170+L170 -> 0 | Z170: =X170*Y170 -> 0 | AA170: =T170+V170+Y170 -> 0 | AB170: =U170+W170+Z170 -> 0 | AC170: =X170*Y170=Z170 -> TRUE | AD170: TRUE | AE170: 0
B171: (b) 9 months | C171: 0 | D171: 0 | I171: 0 | J171: 0 | O171: 0.06 | P171: 159 | Q171: =O171*P171 -> 9.54 | R171: =K171+M171+P171 -> 159 | S171: 9.54 | X171: 0.06 | Y171: 159 | Z171: 9.54 | AA171: 159 | AB171: 9.54 | AC171: TRUE | AD171: TRUE | AE171: 9.54
B172: (c) 6 months | C172: 0 | D172: 0 | I172: 0 | J172: 0 | R172: 0 | S172: 0 | Z172: 0 | AA172: 0 | AB172: 0 | AC172: TRUE | AD172: TRUE | AE172: 0
B173: (d) 3 months | C173: 0 | D173: 0 | I173: 0 | J173: 0 | R173: 0 | S173: 0 | Z173: 0 | AA173: 0 | AB173: 0 | AC173: TRUE | AD173: TRUE | AE173: 0
B174: Sub Total | C174: =SUM(C170:C173) -> 0 | D174: =SUM(D170:D173) -> 0 | E174: =SUM(E170:E173) -> 0 | F174: =SUM(F170:F173) -> 0 | G174: =SUM(G170:G173) -> 0 | H174: =SUM(H170:H173) -> 0 | I174: =SUM(I170:I173) -> 0 | J174: =SUM(J170:J173) -> 0 | K174: =SUM(K170:K173) -> 0 | L174: =SUM(L170:L173) -> 0 | M174: =SUM(M170:M173) -> 0 | N174: =SUM(N170:N173) -> 0 | O174: 0.06 | P174: =SUM(P170:P173) -> 159 | Q174: =SUM(Q170:Q173) -> 9.54 | R174: 159 | S174: =SUM(S170:S173) -> 9.54 | T174: =SUM(T170:T173) -> 0 | U174: =SUM(U170:U173) -> 0 | V174: =SUM(V170:V173) -> 0 | W174: =SUM(W170:W173) -> 0 | X174: 0.06 | Y174: =SUM(Y170:Y173) -> 159 | Z174: =SUM(Z170:Z173) -> 9.54 | AA174: =SUM(AA170:AA173) -> 159 | AB174: =SUM(AB170:AB173) -> 9.54 | AE174: 9.54
A175: 6.05 | B175: Madarasa/Maktab | D175: 0 | Z175: =X175*Y175 -> 0 | AA175: =T175+V175+Y175 -> 0 | AB175: =U175+W175+Z175 -> 0 | AC175: =X175*Y175=Z175 -> TRUE | AD175: =U175+W175+Z175=AB175 -> TRUE | AE175: 0
B176: (a) 12 months | C176: 0 | D176: 0 | I176: =C176-E176 -> 0 | J176: 0 | S176: =Q176+N176+L176 -> 0 | Z176: 0 | AA176: 0 | AB176: 0 | AC176: TRUE | AD176: TRUE | AE176: 0
B177: (b) 9 months | C177: 0 | D177: 0 | I177: 0 | J177: 0 | R177: 0 | S177: 0 | Z177: 0 | AA177: 0 | AB177: 0 | AC177: TRUE | AD177: TRUE | AE177: 0
B178: (c) 6 months | C178: 0 | D178: 0 | I178: 0 | J178: 0 | R178: 0 | S178: 0 | Z178: 0 | AA178: 0 | AB178: 0 | AC178: TRUE | AD178: TRUE | AE178: 0
B179: (d) 3 months | C179: 0 | D179: 0 | I179: 0 | J179: 0 | R179: 0 | S179: 0 | Z179: 0 | AA179: 0 | AB179: 0 | AC179: TRUE | AD179: TRUE | AE179: 0
B180: Sub Total | C180: =SUM(C176:C179) -> 0 | D180: =SUM(D176:D179) -> 0 | E180: =SUM(E176:E179) -> 0 | F180: =SUM(F176:F179) -> 0 | G180: =SUM(G176:G179) -> 0 | H180: =SUM(H176:H179) -> 0 | I180: =SUM(I176:I179) -> 0 | J180: =SUM(J176:J179) -> 0 | K180: =SUM(K176:K179) -> 0 | L180: =SUM(L176:L179) -> 0 | M180: =SUM(M176:M179) -> 0 | N180: =SUM(N176:N179) -> 0 | O180: 0 | P180: =SUM(P176:P179) -> 0 | Q180: =SUM(Q176:Q179) -> 0 | R180: =SUM(R176:R179) -> 0 | S180: =SUM(S176:S179) -> 0 | T180: =SUM(T176:T179) -> 0 | U180: =SUM(U176:U179) -> 0 | V180: =SUM(V176:V179) -> 0 | W180: =SUM(W176:W179) -> 0 | X180: 0 | Y180: =SUM(Y176:Y179) -> 0 | Z180: =SUM(Z176:Z179) -> 0 | AA180: =SUM(AA176:AA179) -> 0 | AB180: =SUM(AB176:AB179) -> 0 | AE180: 0
A181: 6.06 | B181: Seasonal Hostel (Residential) | D181: 0 | AA181: 0 | AB181: 0 | AC181: =X181*Y181=Z181 -> TRUE | AD181: =U181+W181+Z181=AB181 -> TRUE | AE181: 0
B182: (a) 12 months | C182: 0 | D182: 0 | I182: =C182-E182 -> 0 | J182: 0 | R182: =P182+M182+K182 -> 0 | S182: 0 | Z182: =X182*Y182 -> 0 | AA182: =T182+V182+Y182 -> 0 | AB182: =U182+W182+Z182 -> 0 | AC182: TRUE | AD182: TRUE | AE182: 0
B183: (b) 9 months | C183: 0 | D183: 0 | I183: 0 | J183: 0 | R183: 0 | S183: 0 | Z183: 0 | AA183: 0 | AB183: 0 | AC183: TRUE | AD183: TRUE | AE183: 0
B184: (c) 6 months | C184: 0 | D184: 0 | I184: 0 | J184: 0 | R184: 0 | S184: 0 | Z184: 0 | AA184: 0 | AB184: 0 | AC184: TRUE | AD184: TRUE | AE184: 0
B185: (d) 3 months | C185: 0 | D185: 0 | I185: 0 | J185: 0 | R185: 0 | S185: 0 | Z185: 0 | AA185: 0 | AB185: 0 | AC185: TRUE | AD185: TRUE | AE185: 0
B186: Sub Total | C186: =SUM(C182:C185) -> 0 | D186: =SUM(D182:D185) -> 0 | E186: =SUM(E182:E185) -> 0 | F186: =SUM(F182:F185) -> 0 | G186: =SUM(G182:G185) -> 0 | H186: =SUM(H182:H185) -> 0 | I186: =SUM(I182:I185) -> 0 | J186: =SUM(J182:J185) -> 0 | K186: =SUM(K182:K185) -> 0 | L186: =SUM(L182:L185) -> 0 | M186: =SUM(M182:M185) -> 0 | N186: =SUM(N182:N185) -> 0 | O186: 0 | P186: =SUM(P182:P185) -> 0 | Q186: =SUM(Q182:Q185) -> 0 | R186: =SUM(R182:R185) -> 0 | S186: =SUM(S182:S185) -> 0 | T186: =SUM(T182:T185) -> 0 | U186: =SUM(U182:U185) -> 0 | V186: =SUM(V182:V185) -> 0 | W186: =SUM(W182:W185) -> 0 | X186: 0 | Y186: =SUM(Y182:Y185) -> 0 | Z186: =SUM(Z182:Z185) -> 0 | AA186: =SUM(AA182:AA185) -> 0 | AB186: =SUM(AB182:AB185) -> 0 | AE186: 0
A187: 6.07 | B187: Seasonal Hostel (Non Residential) | D187: 0 | AA187: 0 | AB187: 0 | AC187: =X187*Y187=Z187 -> TRUE | AD187: =U187+W187+Z187=AB187 -> TRUE | AE187: 0
B188: (a) 12 months | C188: 0 | D188: 0 | I188: =C188-E188 -> 0 | J188: 0 | R188: =P188+M188+K188 -> 0 | S188: 0 | Z188: =X188*Y188 -> 0 | AA188: =T188+V188+Y188 -> 0 | AB188: =U188+W188+Z188 -> 0 | AC188: TRUE | AD188: TRUE | AE188: 0
B189: (b) 9 months | C189: 0 | D189: 0 | I189: 0 | J189: 0 | R189: 0 | S189: 0 | Z189: 0 | AA189: 0 | AB189: 0 | AC189: TRUE | AD189: TRUE | AE189: 0
B190: (c) 6 months | C190: 0 | D190: 0 | I190: 0 | J190: 0 | R190: 0 | S190: 0 | Z190: 0 | AA190: 0 | AB190: 0 | AC190: TRUE | AD190: TRUE | AE190: 0
B191: (d) 3 months | C191: 0 | D191: 0 | I191: 0 | J191: 0 | R191: 0 | S191: 0 | Z191: 0 | AA191: 0 | AB191: 0 | AC191: TRUE | AD191: TRUE | AE191: 0
B192: Sub Total | C192: =SUM(C188:C191) -> 0 | D192: =SUM(D188:D191) -> 0 | E192: =SUM(E188:E191) -> 0 | F192: =SUM(F188:F191) -> 0 | G192: =SUM(G188:G191) -> 0 | H192: =SUM(H188:H191) -> 0 | I192: =SUM(I188:I191) -> 0 | J192: =SUM(J188:J191) -> 0 | K192: =SUM(K188:K191) -> 0 | L192: =SUM(L188:L191) -> 0 | M192: =SUM(M188:M191) -> 0 | N192: =SUM(N188:N191) -> 0 | O192: 0 | P192: =SUM(P188:P191) -> 0 | Q192: =SUM(Q188:Q191) -> 0 | R192: =SUM(R188:R191) -> 0 | S192: =SUM(S188:S191) -> 0 | T192: =SUM(T188:T191) -> 0 | U192: =SUM(U188:U191) -> 0 | V192: =SUM(V188:V191) -> 0 | W192: =SUM(W188:W191) -> 0 | X192: 0 | Y192: =SUM(Y188:Y191) -> 0 | Z192: =SUM(Z188:Z191) -> 0 | AA192: =SUM(AA188:AA191) -> 0 | AB192: 0 | AE192: 0
B193: Total | C193: =C192+C186+C180+C174+C168+C162+C156 -> 476 | D193: =D192+D186+D180+D174+D168+D162+D156 -> 12.376 | E193: =E192+E186+E180+E174+E168+E162+E156 -> 249 | F193: =F192+F186+F180+F174+F168+F162+F156 -> 6.474 | G193: =G192+G186+G180+G174+G168+G162+G156 -> 0 | H193: =H192+H186+H180+H174+H168+H162+H156 -> 0 | I193: =I192+I186+I180+I174+I168+I162+I156 -> 227 | J193: =J192+J186+J180+J174+J168+J162+J156 -> 5.902 | K193: =K192+K186+K180+K174+K168+K162+K156 -> 0 | L193: =L192+L186+L180+L174+L168+L162+L156 -> 0 | M193: =M192+M186+M180+M174+M168+M162+M156 -> 0 | N193: =N192+N186+N180+N174+N168+N162+N156 -> 0 | O193: 0.12 | P193: =P192+P186+P180+P174+P168+P162+P156 -> 841 | Q193: =Q192+Q186+Q180+Q174+Q168+Q162+Q156 -> 50.46 | R193: 841 | S193: =S192+S186+S180+S174+S168+S162+S156 -> 50.46 | T193: =T192+T186+T180+T174+T168+T162+T156 -> 0 | U193: =U192+U186+U180+U174+U168+U162+U156 -> 0 | V193: =V192+V186+V180+V174+V168+V162+V156 -> 0 | W193: =W192+W186+W180+W174+W168+W162+W156 -> 0 | X193: 0.12 | Y193: =Y192+Y186+Y180+Y174+Y168+Y162+Y156 -> 841 | Z193: =Z192+Z186+Z180+Z174+Z168+Z162+Z156 -> 50.46 | AA193: 841 | AB193: =AB192+AB186+AB180+AB174+AB168+AB162+AB156 -> 50.46 | AE193: 50.46
A194: II | B194: RETENTION | D194: 0 | AC194: =X194*Y194=Z194 -> TRUE | AD194: =U194+W194+Z194=AB194 -> TRUE | AE194: 0
A195: 7 | B195: Free Text Books | D195: 0 | AC195: TRUE | AD195: TRUE | AE195: 0
A196: 7.01 | B196: Free Text Books (P) | C196: 0 | D196: 0 | I196: =C196-E196 -> 0 | J196: 0 | N196: 0 | AC196: TRUE | AD196: TRUE | AE196: 0
B197: (a) Class I & II | C197: 10395 | D197: 15.5925 | E197: 10395 | F197: 15.5925 | I197: 0 | J197: 0 | O197: 0.0015 | P197: 10395 | Q197: =P197*O197 -> 15.5925 | R197: =P197+M197+K197 -> 10395 | S197: 15.5925 | X197: 0.0015 | Y197: 10395 | Z197: =X197*Y197 -> 15.5925 | AA197: =T197+V197+Y197 -> 10395 | AB197: =U197+W197+Z197 -> 15.5925 | AC197: Recommended propsed | AD197: TRUE | AE197: 15.5925
B198: (b) Braille Books Class I & II | C198: 4 | D198: 0.006 | E198: 4 | F198: 0.006 | I198: 0 | J198: 0 | O198: 0.0015 | P198: 0 | Q198: 0 | R198: 0 | S198: 0 | X198: 0.0015 | Y198: 0 | Z198: =X198*Y198 -> 0 | AA198: 0 | AB198: =U198+W198+Z198 -> 0 | AC198: TRUE | AD198: TRUE | AE198: 0
B199: (c) Large Print Books Class I & II | C199: 0 | D199: 0 | E199: 0 | F199: 0 | I199: 0 | J199: 0 | O199: 0.0015 | P199: 0 | Q199: 0 | R199: 0 | S199: 0 | X199: 0.0015 | Y199: 0 | Z199: 0 | AA199: 0 | AB199: 0 | AC199: TRUE | AD199: TRUE | AE199: 0
B200: (d) Class III to V | C200: 11160 | D200: 16.74 | E200: 11160 | F200: 16.74 | I200: 0 | J200: 0 | O200: 0.0015 | P200: 11160 | Q200: 16.74 | R200: 11160 | S200: 16.74 | X200: 0.0015 | Y200: 11160 | Z200: 16.74 | AA200: 11160 | AB200: 16.74 | AC200: Recommended propsed | AD200: TRUE | AE200: =AB200 -> 16.74
... 325 more rows

Sheet WJH
A1: S.No. | B1: Activity | C1: Year 2016-17 | K1: Outlay Proposed for 2017-18 | T1: Outlay Recommended for 2017-18
C2: Outlay approved by PAB (including spillover) | E2: Achievement during the year | I2: Savings | K2: Spill Over | M2: Deferred laibility of 2014-15 | O2: Fresh | R2: Total | T2: Spill Over | V2: Deferred laibility of 2014-15 | X2: Fresh | AA2: Total
C3: Phy. | D3: Fin. | E3: Phy. | F3: Fin. | G3: Phy. (%) | H3: Fin. (%) | I3: Phy. | J3: Fin. | K3: Phy. | L3: Fin. | M3: Phy. | N3: Fin. | O3: Unit Cost | P3: Phy. | Q3: Fin. | R3: Phy. | S3: Fin. | T3: Phy. | U3: Fin. | V3: Phy. | W3: Fin. | X3: Unit Cost | Y3: Phy. | Z3: Fin. | AA3: Phy. | AB3: Fin.
A4: I | B4: ACCESS
B5: SSA
A6: 1 | B6: Opening of New Schools
A7: 1.01 | B7: New Primary School | D7: 0 | I7: =C7-E7 -> 0 | J7: =D7-F7 -> 0 | R7: =P7+M7+K7 -> 0 | S7: =Q7+N7+L7 -> 0 | AA7: =T7+V7+Y7 -> 0 | AB7: =U7+W7+Z7 -> 0 | AC7: =X7*Y7=Z7 -> TRUE | AD7: =U7+W7+Z7=AB7 -> TRUE | AE7: =AB7 -> 0
A8: 1.02 | B8: Upgradation of PS to UPS | C8: 1 | D8: 0 | E8: 1 | I8: =C8-E8 -> 0 | J8: 0 | R8: =P8+M8+K8 -> 0 | S8: 0 | AA8: =T8+V8+Y8 -> 0 | AB8: =U8+W8+Z8 -> 0 | AC8: =X8*Y8=Z8 -> TRUE | AD8: =U8+W8+Z8=AB8 -> TRUE | AE8: =AB8 -> 0
A9: 1.03 | B9: Composite Schools | C9: 0 | D9: 0 | I9: 0 | J9: 0 | R9: 0 | S9: 0 | AA9: 0 | AB9: 0 | AC9: TRUE | AD9: TRUE | AE9: 0
A10: 1.04 | B10: Residential schools for specific category of children | C10: 0 | D10: 0 | I10: 0 | J10: 0 | R10: 0 | S10: 0 | AA10: 0 | AB10: 0 | AC10: TRUE | AD10: TRUE | AE10: 0
A11: 1.05 | B11: Residential Hostel | C11: 0 | D11: 0 | I11: 0 | J11: 0 | R11: 0 | S11: 0 | AA11: 0 | AB11: 0 | AC11: TRUE | AD11: TRUE | AE11: 0
A12: 1.06 | B12: Integration of Class V with primary schools | C12: 0 | D12: 0 | I12: 0 | J12: 0 | R12: 0 | S12: 0 | AA12: 0 | AB12: 0 | AC12: TRUE | AD12: TRUE | AE12: 0
A13: 1.07 | B13: Integration of Class VIII with upper primary schools | C13: 0 | D13: 0 | I13: 0 | J13: 0 | R13: 0 | S13: 0 | AA13: 0 | AB13: 0 | AC13: TRUE | AD13: TRUE | AE13: 0
A14: 2 | B14: Residential Schools for specific category of children | C14: 0 | D14: 0 | I14: 0 | J14: 0 | R14: 0 | S14: 0 | AA14: =Y14+V14+T14 -> 0 | AB14: =Z14+W14+U14 -> 0 | AC14: TRUE | AD14: TRUE | AE14: 0
B15: 50 children | C15: 0 | D15: 0 | I15: 0 | J15: 0 | R15: 0 | S15: 0 | AA15: 0 | AB15: 0 | AC15: TRUE | AD15: TRUE | AE15: 0
B16: Non-recurring (one time grant) | C16: 0 | D16: 0 | I16: 0 | J16: 0 | R16: 0 | S16: 0 | AA16: 0 | AB16: 0 | AC16: TRUE | AD16: TRUE | AE16: 0
A17: 2.01 | B17: Furniture/ Equipment (including kitchen) | C17: 0 | D17: 0 | I17: 0 | J17: 0 | R17: 0 | S17: 0 | Z17: =X17*Y17 -> 0 | AA17: =T17+V17+Y17 -> 0 | AB17: =U17+W17+Z17 -> 0 | AC17: TRUE | AD17: TRUE | AE17: 0
A18: 2.02 | B18: TLM and equipment including library books | C18: 0 | D18: 0 | I18: 0 | J18: 0 | R18: 0 | S18: 0 | Z18: 0 | AA18: 0 | AB18: 0 | AC18: TRUE | AD18: TRUE | AE18: 0
A19: 2.03 | B19: Bedding (new) | C19: 0 | D19: 0 | I19: 0 | J19: 0 | R19: 0 | S19: 0 | Z19: 0 | AA19: 0 | AB19: 0 | AC19: TRUE | AD19: TRUE | AE19: 0
A20: 2.04 | B20: Replacement of bedding (once in 3 years) | C20: 0 | D20: 0 | I20: 0 | J20: 0 | R20: 0 | S20: 0 | Z20: 0 | AA20: 0 | AB20: 0 | AC20: TRUE | AD20: TRUE | AE20: 0
B21: Sub Total (Non Recurring) | C21: =SUM(C15:C20) -> 0 | D21: =SUM(D15:D20) -> 0 | E21: 0 | F21: 0 | G21: 0 | H21: 0 | I21: 0 | J21: 0 | K21: 0 | L21: 0 | M21: 0 | N21: 0 | O21: 0 | P21: 0 | Q21: 0 | R21: 0 | S21: 0 | T21: 0 | U21: 0 | V21: 0 | W21: 0 | X21: 0 | Y21: 0 | Z21: 0 | AA21: 0 | AB21: 0 | AE21: 0
B22: Recurring (50 children) | C22: 0 | D22: 0 | AA22: 0 | AB22: 0 | AE22: 0
A23: 2.05 | B23: Maintenance @ Rs.1,500/- per child Per month | C23: 0 | D23: 0 | I23: =C23-E23 -> 0 | J23: 0 | R23: =P23+M23+K23 -> 0 | S23: 0 | Z23: =X23*Y23 -> 0 | AA23: =T23+V23+Y23 -> 0 | AB23: =U23+W23+Z23 -> 0 | AC23: =X23*Y23=Z23 -> TRUE | AD23: =U23+W23+Z23=AB23 -> TRUE | AE23: 0
A24: 2.06 | B24: Stipend @ Rs.100/- per child per month | C24: 0 | D24: 0 | I24: 0 | J24: 0 | R24: 0 | S24: 0 | Z24: 0 | AA24: 0 | AB24: 0 | AC24: TRUE | AD24: TRUE | AE24: 0
A25: 2.07 | B25: Supplementary TLM, Stationery and other educational material @Rs.1,000/- per child per annum | C25: 0 | D25: 0 | I25: 0 | J25: 0 | R25: 0 | S25: 0 | Z25: 0 | AA25: 0 | AB25: 0 | AC25: TRUE | AD25: TRUE | AE25: 0
A26: 2.08 | B26: Salaries | C26: 0 | D26: 0 | I26: 0 | J26: 0 | R26: 0 | S26: 0 | Z26: 0 | AA26: 0 | AB26: 0 | AC26: TRUE | AD26: TRUE | AE26: 0
A27: (a) | B27: 1 Warden @ Rs.25,000/- per month | C27: 0 | D27: 0 | I27: 0 | J27: 0 | R27: 0 | S27: 0 | Z27: 0 | AA27: 0 | AB27: 0 | AC27: TRUE | AD27: TRUE | AE27: 0
A28: (b) | B28: 4 Fulltime teachers as per RTE Norms @ Rs. 20,000/- per month per teacher | C28: 0 | D28: 0 | I28: 0 | J28: 0 | R28: 0 | S28: 0 | Z28: 0 | AA28: 0 | AB28: 0 | AC28: TRUE | AD28: TRUE | AE28: 0
A29: (c) | B29: 2 Urdu Teachers (only for Blocks with muslim population above 20% and select urban areas) if required @ Rs.12,000/- per month per teacher. | C29: 0 | D29: 0 | I29: 0 | J29: 0 | R29: 0 | S29: 0 | Z29: 0 | AA29: 0 | AB29: 0 | AC29: TRUE | AD29: TRUE | AE29: 0
A30: (d) | B30: 3 Part time teachers @ Rs.5,000/- per month per teacher | C30: 0 | D30: 0 | I30: 0 | J30: 0 | R30: 0 | S30: 0 | Z30: 0 | AA30: 0 | AB30: 0 | AC30: TRUE | AD30: TRUE | AE30: 0
A31: (e) | B31: 1 Full time Accountant @ Rs. 10,000/- per month | C31: 0 | D31: 0 | I31: 0 | J31: 0 | R31: 0 | S31: 0 | Z31: 0 | AA31: 0 | AB31: 0 | AC31: TRUE | AD31: TRUE | AE31: 0
A32: (f) | B32: 2 Support staff - (Accountant/Assistant, Peon, Chowkidar) @ Rs. 5,000/- per month per staff | C32: 0 | D32: 0 | I32: 0 | J32: 0 | R32: 0 | S32: 0 | Z32: 0 | AA32: 0 | AB32: 0 | AC32: TRUE | AD32: TRUE | AE32: 0
A33: (g) | B33: 1 Head Cook @ Rs. 6,000/- per month and upto 2 Asstt. Cooks @ Rs. 4,500/- per month per cook | C33: 0 | D33: 0 | I33: 0 | J33: 0 | R33: 0 | S33: 0 | Z33: 0 | AA33: 0 | AB33: 0 | AC33: TRUE | AD33: TRUE | AE33: 0
A34: 2.09 | B34: Specific Skill training @ Rs.1,000/- per child per annum | C34: 0 | D34: 0 | I34: 0 | J34: 0 | R34: 0 | S34: 0 | Z34: 0 | AA34: 0 | AB34: 0 | AC34: TRUE | AD34: TRUE | AE34: 0
A35: 2.1 | B35: Electricity / water charges @ Rs. 1,000/- per child per annum | C35: 0 | D35: 0 | I35: 0 | J35: 0 | R35: 0 | S35: 0 | Z35: 0 | AA35: 0 | AB35: 0 | AC35: TRUE | AD35: TRUE | AE35: 0
A36: =+A35+0.01 -> 2.11 | B36: Medical care/contingencies @ Rs.1,250/- per child per annum | C36: 0 | D36: 0 | I36: 0 | J36: 0 | R36: 0 | S36: 0 | Z36: 0 | AA36: 0 | AB36: 0 | AC36: TRUE | AD36: TRUE | AE36: 0
A37: =+A36+0.01 -> 2.12 | B37: Maintenance @ Rs. 750/- per child per annum | C37: 0 | D37: 0 | I37: 0 | J37: 0 | R37: 0 | S37: 0 | Z37: 0 | AA37: 0 | AB37: 0 | AC37: TRUE | AD37: TRUE | AE37: 0
A38: 2.13 | B38: Miscellaneous @ Rs. 750/- per child per annum | C38: 0 | D38: 0 | I38: 0 | J38: 0 | R38: 0 | S38: 0 | Z38: 0 | AA38: 0 | AB38: 0 | AC38: TRUE | AD38: TRUE | AE38: 0
A39: 2.14 | B39: Preparatory camps @ Rs. 300/- per child per annum | C39: 0 | D39: 0 | I39: =C39-E39 -> 0 | J39: 0 | R39: =P39+M39+K39 -> 0 | S39: 0 | Z39: 0 | AA39: 0 | AB39: 0 | AC39: TRUE | AD39: TRUE | AE39: 0
A40: 2.15 | B40: P.T.A / school functions @ Rs. 300/- per child per annum | C40: 0 | D40: 0 | I40: 0 | J40: 0 | R40: 0 | S40: 0 | Z40: 0 | AA40: 0 | AB40: 0 | AC40: TRUE | AD40: TRUE | AE40: 0
A41: 2.16 | B41: Provision of Rent @ Rs. 10,000/- per child per annum | C41: 0 | D41: 0 | I41: 0 | J41: 0 | R41: 0 | S41: 0 | Z41: 0 | AA41: 0 | AB41: 0 | AC41: TRUE | AD41: TRUE | AE41: 0
A42: 2.17 | B42: Capacity Building @ Rs. 500/- per child per annum | C42: 0 | D42: 0 | I42: 0 | J42: 0 | R42: 0 | S42: 0 | Z42: 0 | AA42: 0 | AB42: 0 | AC42: TRUE | AD42: TRUE | AE42: 0
A43: 2.18 | B43: Physical / Self Defence Training @ Rs.200/- per child per annum | C43: 0 | D43: 0 | I43: 0 | J43: 0 | R43: 0 | S43: 0 | Z43: 0 | AA43: 0 | AB43: 0 | AC43: TRUE | AD43: TRUE | AE43: 0
B44: Sub Total (Recurring) | C44: 0 | D44: 0 | E44: 0 | F44: 0 | G44: 0 | H44: 0 | I44: 0 | J44: 0 | K44: 0 | L44: 0 | M44: 0 | N44: 0 | O44: 0 | P44: 0 | Q44: 0 | R44: 0 | S44: 0 | T44: 0 | U44: 0 | V44: 0 | W44: 0 | X44: 0 | Y44: 0 | Z44: 0 | AA44: 0 | AB44: 0 | AE44: 0
B45: Total (Non Recurring + Recurring) | C45: =C44+C21 -> 0 | D45: =D44+D21 -> 0 | E45: 0 | F45: 0 | G45: 0 | H45: 0 | I45: 0 | J45: 0 | K45: 0 | L45: 0 | M45: 0 | N45: 0 | O45: 0 | P45: 0 | Q45: 0 | R45: 0 | S45: 0 | T45: 0 | U45: 0 | V45: 0 | W45: 0 | X45: 0 | Y45: 0 | Z45: 0 | AA45: 0 | AB45: 0 | AE45: 0
B46: 100 children | C46: 0 | D46: 0 | AA46: 0 | AB46: 0 | AC46: =X46*Y46=Z46 -> TRUE | AD46: =U46+W46+Z46=AB46 -> TRUE | AE46: 0
B47: Non-recurring (one time grant) | C47: 0 | D47: 0 | AA47: 0 | AB47: 0 | AC47: TRUE | AD47: TRUE | AE47: 0
A48: 2.19 | B48: Furniture / Equipment (including kitchen equipment) | C48: 0 | D48: 0 | I48: =C48-E48 -> 0 | J48: 0 | R48: =P48+M48+K48 -> 0 | S48: 0 | Z48: =X48*Y48 -> 0 | AA48: =T48+V48+Y48 -> 0 | AB48: =U48+W48+Z48 -> 0 | AC48: TRUE | AD48: TRUE | AE48: 0
A49: =+A48+0.01 -> 2.2 | B49: TLM and equipment including library books (New) | C49: 0 | D49: 0 | I49: 0 | J49: 0 | R49: 0 | S49: 0 | Z49: 0 | AA49: 0 | AB49: 0 | AC49: TRUE | AD49: TRUE | AE49: 0
A50: =+A49+0.01 -> 2.21 | B50: Bedding (New) | C50: 0 | D50: 0 | I50: 0 | J50: 0 | R50: 0 | S50: 0 | Z50: 0 | AA50: 0 | AB50: 0 | AC50: TRUE | AD50: TRUE | AE50: 0
A51: =+A50+0.01 -> 2.22 | B51: Replacement of bedding (once in 3 years) | C51: 0 | D51: 0 | I51: 0 | J51: 0 | R51: 0 | S51: 0 | Z51: 0 | AA51: 0 | AB51: 0 | AC51: TRUE | AD51: TRUE | AE51: 0
B52: Sub Total Non-recurring | C52: =SUM(C48:C51) -> 0 | D52: =SUM(D48:D51) -> 0 | E52: 0 | F52: 0 | G52: 0 | H52: 0 | I52: 0 | J52: 0 | K52: 0 | L52: 0 | M52: 0 | N52: 0 | O52: 0 | P52: 0 | Q52: 0 | R52: 0 | S52: 0 | T52: 0 | U52: 0 | V52: 0 | W52: 0 | X52: 0 | Y52: 0 | Z52: 0 | AA52: 0 | AB52: 0 | AE52: 0
B53: Recurring | C53: 0 | D53: 0 | AA53: 0 | AB53: 0 | AC53: =X53*Y53=Z53 -> TRUE | AD53: =U53+W53+Z53=AB53 -> TRUE | AE53: 0
A54: 2.23 | B54: Maintenance @ Rs. 1,500/- per child per month | C54: 0 | D54: 0 | I54: =C54-E54 -> 0 | J54: 0 | R54: =P54+M54+K54 -> 0 | S54: 0 | Z54: =X54*Y54 -> 0 | AA54: =T54+V54+Y54 -> 0 | AB54: =U54+W54+Z54 -> 0 | AC54: TRUE | AD54: TRUE | AE54: 0
A55: =+A54+0.01 -> 2.24 | B55: Stipend @ Rs.100/- per child per month | C55: 0 | D55: 0 | I55: 0 | J55: 0 | R55: 0 | S55: 0 | Z55: 0 | AA55: 0 | AB55: 0 | AC55: TRUE | AD55: TRUE | AE55: 0
A56: 2.25 | B56: Supplementary TLM, Stationery and other educational material @1,000/- per child per annum | C56: 0 | D56: 0 | I56: 0 | J56: 0 | R56: 0 | S56: 0 | Z56: 0 | AA56: 0 | AB56: 0 | AC56: TRUE | AD56: TRUE | AE56: 0
A57: 2.26 | B57: Salaries | C57: 0 | D57: 0 | I57: 0 | J57: 0 | R57: 0 | S57: 0 | Z57: 0 | AA57: 0 | AB57: 0 | AC57: TRUE | AD57: TRUE | AE57: 0
A58: (a) | B58: 1 Warden @ Rs. 25,000/- per month | C58: 0 | D58: 0 | I58: 0 | J58: 0 | R58: 0 | S58: 0 | Z58: 0 | AA58: 0 | AB58: 0 | AC58: TRUE | AD58: TRUE | AE58: 0
A59: (b) | B59: 1 head teacher @ Rs. 25,000/- per month in case the enrollment exceeds 100 | C59: 0 | D59: 0 | I59: 0 | J59: 0 | R59: 0 | S59: 0 | Z59: 0 | AA59: 0 | AB59: 0 | AC59: TRUE | AD59: TRUE | AE59: 0
A60: (c) | B60: 4 - 5 Full time teachers as per RTE norms @ Rs. 20,000/- per month per teacher | C60: 0 | D60: 0 | I60: 0 | J60: 0 | R60: 0 | S60: 0 | Z60: 0 | AA60: 0 | AB60: 0 | AC60: TRUE | AD60: TRUE | AE60: 0
A61: (d) | B61: 2 Urdu Teachers (only for blocks with muslim population above 20% and select urban areas), if required @ Rs. 12,000/- per month per teacher | C61: 0 | D61: 0 | I61: 0 | J61: 0 | R61: 0 | S61: 0 | Z61: 0 | AA61: 0 | AB61: 0 | AC61: TRUE | AD61: TRUE | AE61: 0
A62: (e) | B62: 3 part time teachers @ Rs. 5,000/- per month per teacher | C62: 0 | D62: 0 | I62: 0 | J62: 0 | R62: 0 | S62: 0 | Z62: 0 | AA62: 0 | AB62: 0 | AC62: TRUE | AD62: TRUE | AE62: 0
A63: (f) | B63: 1 Full time Accountant @ Rs. 10,000/- per month | C63: 0 | D63: 0 | I63: 0 | J63: 0 | R63: 0 | S63: 0 | Z63: 0 | AA63: 0 | AB63: 0 | AC63: TRUE | AD63: TRUE | AE63: 0
A64: (g) | B64: 2 Support Staff – (Accountant/ Assistant, Peon, Chowkidar) @ Rs. 5,000/- per month per staff | C64: 0 | D64: 0 | I64: 0 | J64: 0 | R64: 0 | S64: 0 | Z64: 0 | AA64: 0 | AB64: 0 | AC64: TRUE | AD64: TRUE | AE64: 0
A65: (h) | B65: 1 Head cook @ Rs. 6,000/- per month and upto 2 Asstt. Cooks @ Rs. 4,500/- per month per cook | C65: 0 | D65: 0 | I65: 0 | J65: 0 | R65: 0 | S65: 0 | Z65: 0 | AA65: 0 | AB65: 0 | AC65: TRUE | AD65: TRUE | AE65: 0
A66: 2.27 | B66: Specific skill training @ Rs. 1,000/- per child per annum | C66: 0 | D66: 0 | I66: 0 | J66: 0 | R66: 0 | S66: 0 | Z66: 0 | AA66: 0 | AB66: 0 | AC66: TRUE | AD66: TRUE | AE66: 0
A67: 2.28 | B67: Electricity / water charges @Rs. 1,000/- per child per annum | C67: 0 | D67: 0 | I67: 0 | J67: 0 | R67: 0 | S67: 0 | Z67: 0 | AA67: 0 | AB67: 0 | AC67: TRUE | AD67: TRUE | AE67: 0
A68: 2.29 | B68: Medical care/contingencies @ Rs. 1,250/- per child per annum | C68: 0 | D68: 0 | I68: 0 | J68: 0 | R68: 0 | S68: 0 | Z68: 0 | AA68: 0 | AB68: 0 | AC68: TRUE | AD68: TRUE | AE68: 0
A69: 2.3 | B69: Maintenance @ Rs. 750/- per child per annum | C69: 0 | D69: 0 | I69: 0 | J69: 0 | R69: 0 | S69: 0 | Z69: 0 | AA69: 0 | AB69: 0 | AC69: TRUE | AD69: TRUE | AE69: 0
A70: 2.31 | B70: Miscellaneous @ Rs. 750/- per child per annum | C70: 0 | D70: 0 | I70: =C70-E70 -> 0 | J70: 0 | R70: =P70+M70+K70 -> 0 | S70: 0 | Z70: 0 | AA70: 0 | AB70: 0 | AC70: TRUE | AD70: TRUE | AE70: 0
A71: 2.32 | B71: Preparatory camps @ Rs.200/- per child per annum | C71: 0 | D71: 0 | I71: 0 | J71: 0 | R71: 0 | S71: 0 | Z71: 0 | AA71: 0 | AB71: 0 | AC71: TRUE | AD71: TRUE | AE71: 0
A72: 2.33 | B72: P.T.A / school functions @ Rs.200/- per child per annum | C72: 0 | D72: 0 | I72: 0 | J72: 0 | R72: 0 | S72: 0 | Z72: 0 | AA72: 0 | AB72: 0 | AC72: TRUE | AD72: TRUE | AE72: =AB72 -> 0
A73: 2.34 | B73: Provision of Rent @ Rs. 6,000/- per child per annum | C73: 0 | D73: 0 | I73: 0 | J73: 0 | R73: 0 | S73: 0 | Z73: 0 | AA73: 0 | AB73: 0 | AC73: TRUE | AD73: TRUE | AE73: 0
A74: 2.35 | B74: Capacity Building @ Rs. 500/- per child per annum | C74: 0 | D74: 0 | I74: 0 | J74: 0 | R74: 0 | S74: 0 | Z74: 0 | AA74: 0 | AB74: 0 | AC74: TRUE | AD74: TRUE | AE74: 0
A75: 2.36 | B75: Physical / Self Defence training @ Rs. 200/- per child per annum. | C75: 0 | D75: 0 | I75: 0 | J75: 0 | R75: 0 | S75: 0 | Z75: 0 | AA75: 0 | AB75: 0 | AC75: TRUE | AD75: TRUE | AE75: 0
B76: Sub Total (Recurring) | C76: =SUM(C54:C75) -> 0 | D76: =SUM(D54:D75) -> 0 | E76: =SUM(E54:E75) -> 0 | F76: =SUM(F54:F75) -> 0 | G76: =SUM(G54:G75) -> 0 | H76: =SUM(H54:H75) -> 0 | I76: =SUM(I54:I75) -> 0 | J76: =SUM(J54:J75) -> 0 | K76: =SUM(K54:K75) -> 0 | L76: =SUM(L54:L75) -> 0 | M76: =SUM(M54:M75) -> 0 | N76: =SUM(N54:N75) -> 0 | O76: 0 | P76: =SUM(P54:P75) -> 0 | Q76: =SUM(Q54:Q75) -> 0 | R76: =SUM(R54:R75) -> 0 | S76: =SUM(S54:S75) -> 0 | T76: =SUM(T54:T75) -> 0 | U76: =SUM(U54:U75) -> 0 | V76: =SUM(V54:V75) -> 0 | W76: =SUM(W54:W75) -> 0 | X76: 0 | Y76: =SUM(Y54:Y75) -> 0 | Z76: =SUM(Z54:Z75) -> 0 | AA76: =SUM(AA54:AA75) -> 0 | AB76: =SUM(AB54:AB75) -> 0 | AE76: 0
B77: Total (Recurring + Non Recurring) | C77: =C76+C52 -> 0 | D77: =D76+D52 -> 0 | E77: 0 | F77: 0 | G77: 0 | H77: 0 | I77: 0 | J77: 0 | K77: 0 | L77: 0 | M77: 0 | N77: 0 | O77: 0 | P77: 0 | Q77: 0 | R77: 0 | S77: 0 | T77: 0 | U77: 0 | V77: 0 | W77: 0 | X77: 0 | Y77: 0 | Z77: 0 | AA77: 0 | AB77: 0 | AE77: 0
B78: Total (50 + 100 children) | C78: 0 | D78: 0 | E78: =E77+E45 -> 0 | F78: =F77+F45 -> 0 | AA78: =Y78+V78+T78 -> 0 | AB78: =Z78+W78+U78 -> 0 | AC78: =X78*Y78=Z78 -> TRUE | AD78: =U78+W78+Z78=AB78 -> TRUE | AE78: 0
A79: 3 | B79: Residential Hostel for specific category of children | C79: 0 | D79: 0 | AA79: 0 | AB79: 0 | AC79: TRUE | AD79: TRUE | AE79: 0
A80: (A) | B80: 50 children | D80: 0 | AA80: 0 | AB80: 0 | AC80: TRUE | AD80: TRUE | AE80: 0
B81: Non-recurring (one time grant) | D81: 0 | AA81: 0 | AB81: 0 | AC81: TRUE | AD81: TRUE | AE81: 0
A82: 3.01 | B82: Furniture/ Equipment (including kitchen) | C82: 0 | D82: 0 | I82: =C82-E82 -> 0 | J82: 0 | R82: =P82+M82+K82 -> 0 | S82: 0 | Z82: =X82*Y82 -> 0 | AA82: =T82+V82+Y82 -> 0 | AB82: =U82+W82+Z82 -> 0 | AC82: TRUE | AD82: TRUE | AE82: 0
A83: =+A82+0.01 -> 3.02 | B83: TLM and equipment including library books | C83: 0 | D83: 0 | I83: 0 | J83: 0 | R83: 0 | S83: 0 | Z83: 0 | AA83: 0 | AB83: 0 | AC83: TRUE | AD83: TRUE | AE83: 0
A84: =+A83+0.01 -> 3.03 | B84: Bedding (new) | C84: 0 | D84: 0 | I84: 0 | J84: 0 | R84: 0 | S84: 0 | Z84: 0 | AA84: 0 | AB84: 0 | AC84: TRUE | AD84: TRUE | AE84: 0
A85: =+A84+0.01 -> 3.04 | B85: Replacement of bedding (once in 3 years) | C85: 0 | D85: 0 | I85: 0 | J85: 0 | R85: 0 | S85: 0 | Z85: 0 | AA85: 0 | AB85: 0 | AC85: TRUE | AD85: TRUE | AE85: 0
B86: Sub Total (Non Recurring) | C86: =SUM(C82:C85) -> 0 | D86: =SUM(D82:D85) -> 0 | E86: 0 | F86: 0 | G86: 0 | H86: 0 | I86: 0 | J86: 0 | K86: 0 | L86: 0 | M86: 0 | N86: 0 | O86: 0 | P86: 0 | Q86: 0 | R86: 0 | S86: 0 | T86: 0 | U86: 0 | V86: 0 | W86: 0 | X86: 0 | Y86: 0 | Z86: 0 | AA86: 0 | AB86: 0 | AE86: 0
B87: Recurring (50 children) | D87: 0 | AA87: 0 | AB87: 0 | AC87: =X87*Y87=Z87 -> TRUE | AD87: =U87+W87+Z87=AB87 -> TRUE | AE87: 0
A88: 3.05 | B88: Maintenance @ Rs.1,500/- per child per month | C88: 0 | D88: 0 | I88: =C88-E88 -> 0 | J88: 0 | R88: =P88+M88+K88 -> 0 | S88: 0 | Z88: =X88*Y88 -> 0 | AA88: =T88+V88+Y88 -> 0 | AB88: =U88+W88+Z88 -> 0 | AC88: TRUE | AD88: TRUE | AE88: 0
A89: =+A88+0.01 -> 3.06 | B89: Stipend @ Rs.100/- per child per month | C89: 0 | D89: 0 | I89: 0 | J89: 0 | R89: 0 | S89: 0 | Z89: 0 | AA89: 0 | AB89: 0 | AC89: TRUE | AD89: TRUE | AE89: 0
A90: =+A89+0.01 -> 3.07 | B90: Supplementary TLM, Stationery and other educational material @Rs.1,000/- per child per annum | C90: 0 | D90: 0 | I90: 0 | J90: 0 | R90: 0 | S90: 0 | Z90: 0 | AA90: 0 | AB90: 0 | AC90: TRUE | AD90: TRUE | AE90: 0
A91: 3.08 | B91: Salaries | C91: 0 | D91: 0 | I91: 0 | J91: 0 | R91: 0 | S91: 0 | Z91: 0 | AA91: 0 | AB91: 0 | AC91: TRUE | AD91: TRUE | AE91: 0
A92: (a) | B92: 1 Warden @ Rs. 25,000/- per month | C92: 0 | D92: 0 | I92: 0 | J92: 0 | R92: 0 | S92: 0 | Z92: 0 | AA92: 0 | AB92: 0 | AC92: TRUE | AD92: TRUE | AE92: 0
A93: (b) | B93: 4 Fulltime teachers as per RTE Norms @ Rs. 20,000/- per month per teacher | C93: 0 | D93: 0 | I93: 0 | J93: 0 | R93: 0 | S93: 0 | Z93: 0 | AA93: 0 | AB93: 0 | AC93: TRUE | AD93: TRUE | AE93: 0
A94: (c) | B94: 2 Urdu Teachers (only for Blocks with muslim population above 20% and select urban areas) if required @ Rs.12,000/- per month per teacher. | C94: 0 | D94: 0 | I94: 0 | J94: 0 | R94: 0 | S94: 0 | Z94: 0 | AA94: 0 | AB94: 0 | AC94: TRUE | AD94: TRUE | AE94: 0
A95: (d) | B95: 3 Part time teachers @ Rs.5,000/- per month per teacher | C95: 0 | D95: 0 | I95: 0 | J95: 0 | R95: 0 | S95: 0 | Z95: 0 | AA95: 0 | AB95: 0 | AC95: TRUE | AD95: TRUE | AE95: 0
A96: (e) | B96: 1 Full time Accountant @ Rs. 10,000/- per month | C96: 0 | D96: 0 | I96: 0 | J96: 0 | R96: 0 | S96: 0 | Z96: 0 | AA96: 0 | AB96: 0 | AC96: TRUE | AD96: TRUE | AE96: 0
A97: (f) | B97: 2 Support staff - (Accountant/Assistant, Peon, Chowkidar) @ Rs. 5,000/- per month per staff | C97: 0 | D97: 0 | I97: 0 | J97: 0 | R97: 0 | S97: 0 | Z97: 0 | AA97: 0 | AB97: 0 | AC97: TRUE | AD97: TRUE | AE97: 0
A98: (g) | B98: 1 Head Cook @ Rs. 6,000/- per month and upto 2 Asstt. Cooks @ Rs. 4,500/- per month per cook | C98: 0 | D98: 0 | I98: 0 | J98: 0 | R98: 0 | S98: 0 | Z98: 0 | AA98: 0 | AB98: 0 | AC98: TRUE | AD98: TRUE | AE98: 0
A99: 3.09 | B99: Specific Skill training @ Rs.1000/- per child per annum | C99: 0 | D99: 0 | I99: 0 | J99: 0 | R99: 0 | S99: 0 | Z99: 0 | AA99: 0 | AB99: 0 | AC99: TRUE | AD99: TRUE | AE99: 0
A100: =+A99+0.01 -> 3.1 | B100: Electricity / water charges @ Rs. 1,000/- per child per annum | C100: 0 | D100: 0 | I100: 0 | J100: 0 | R100: 0 | S100: 0 | Z100: 0 | AA100: 0 | AB100: 0 | AC100: TRUE | AD100: TRUE | AE100: 0
A101: 3.11 | B101: Medical care/contingencies @ Rs.1,250/- per child per annum | C101: 0 | D101: 0 | I101: 0 | J101: 0 | R101: 0 | S101: 0 | Z101: 0 | AA101: 0 | AB101: 0 | AC101: TRUE | AD101: TRUE | AE101: 0
A102: 3.12 | B102: Maintenance @ Rs. 750/- per child per annum | C102: 0 | D102: 0 | I102: 0 | J102: 0 | R102: 0 | S102: 0 | Z102: 0 | AA102: 0 | AB102: 0 | AC102: TRUE | AD102: TRUE | AE102: 0
A103: 3.13 | B103: Miscellaneous @ Rs. 750/- per child per annum | C103: 0 | D103: 0 | I103: 0 | J103: 0 | R103: 0 | S103: 0 | Z103: 0 | AA103: 0 | AB103: 0 | AC103: TRUE | AD103: TRUE | AE103: 0
A104: 3.14 | B104: Preparatory camps @ Rs. 300/- per child per annum | C104: 0 | D104: 0 | I104: =C104-E104 -> 0 | J104: 0 | R104: =P104+M104+K104 -> 0 | S104: 0 | Z104: 0 | AA104: 0 | AB104: 0 | AC104: TRUE | AD104: TRUE | AE104: 0
A105: 3.15 | B105: P.T.A / school functions @ Rs. 300/- per child per annum | C105: 0 | D105: 0 | I105: 0 | J105: 0 | R105: 0 | S105: 0 | Z105: 0 | AA105: 0 | AB105: 0 | AC105: TRUE | AD105: TRUE | AE105: 0
A106: 3.16 | B106: Provision of Rent @ Rs. 10,000/- per child per annum | C106: 0 | D106: 0 | I106: 0 | J106: 0 | R106: 0 | S106: 0 | Z106: 0 | AA106: 0 | AB106: 0 | AC106: TRUE | AD106: TRUE | AE106: 0
A107: 3.17 | B107: Capacity Building @ Rs. 500/- per child per annum | C107: 0 | D107: 0 | I107: 0 | J107: 0 | R107: 0 | S107: 0 | Z107: 0 | AA107: 0 | AB107: 0 | AC107: TRUE | AD107: TRUE | AE107: 0
A108: 3.18 | B108: Physical / Self Defence Training @ Rs.200/- per child per annum | C108: 0 | D108: 0 | I108: 0 | J108: 0 | R108: 0 | S108: 0 | Z108: 0 | AA108: 0 | AB108: 0 | AC108: TRUE | AD108: TRUE | AE108: 0
B109: Sub Total (Recurring) | C109: =SUM(C88:C108) -> 0 | D109: =SUM(D88:D108) -> 0 | E109: 0 | F109: 0 | G109: 0 | H109: 0 | I109: 0 | J109: 0 | K109: 0 | L109: 0 | M109: 0 | N109: 0 | O109: 0 | P109: 0 | Q109: 0 | R109: 0 | S109: 0 | T109: 0 | U109: 0 | V109: 0 | W109: 0 | X109: 0 | Y109: 0 | Z109: 0 | AA109: 0 | AB109: 0 | AE109: 0
B110: Total (Non Recurring + Recurring) | C110: =C109+C86 -> 0 | D110: 0 | E110: =E109+E86 -> 0 | F110: =F109+F86 -> 0 | G110: 0 | H110: 0 | I110: 0 | J110: 0 | K110: 0 | L110: 0 | M110: 0 | N110: 0 | O110: 0 | P110: 0 | Q110: 0 | R110: 0 | S110: 0 | T110: 0 | U110: 0 | V110: 0 | W110: 0 | X110: 0 | Y110: 0 | Z110: 0 | AA110: 0 | AB110: 0 | AE110: 0
A111: (B) | B111: 100 Children | D111: 0 | AA111: 0 | AB111: 0 | AC111: =X111*Y111=Z111 -> TRUE | AD111: =U111+W111+Z111=AB111 -> TRUE | AE111: 0
B112: Non-recurring (one time grant) | D112: 0 | AA112: 0 | AB112: 0 | AC112: TRUE | AD112: TRUE | AE112: 0
A113: 3.19 | B113: Furniture / Equipment (including kitchen equipment) | C113: 0 | D113: 0 | I113: =C113-E113 -> 0 | J113: 0 | R113: =P113+M113+K113 -> 0 | S113: 0 | Z113: =X113*Y113 -> 0 | AA113: =T113+V113+Y113 -> 0 | AB113: =U113+W113+Z113 -> 0 | AC113: TRUE | AD113: TRUE | AE113: 0
A114: =+A113+0.01 -> 3.2 | B114: TLM and equipment including library books (New) | C114: 0 | D114: 0 | I114: 0 | J114: 0 | R114: 0 | S114: 0 | Z114: 0 | AA114: 0 | AB114: 0 | AC114: TRUE | AD114: TRUE | AE114: 0
A115: =+A114+0.01 -> 3.21 | B115: Bedding (New) | C115: 0 | D115: 0 | I115: 0 | J115: 0 | R115: 0 | S115: 0 | Z115: 0 | AA115: 0 | AB115: 0 | AC115: TRUE | AD115: TRUE | AE115: 0
A116: =+A115+0.01 -> 3.22 | B116: Replacement of bedding (once in 3 years) | C116: 0 | D116: 0 | I116: 0 | J116: 0 | R116: 0 | S116: 0 | Z116: 0 | AA116: 0 | AB116: 0 | AC116: TRUE | AD116: TRUE | AE116: 0
B117: Sub Total Non-recurring | C117: =SUM(C113:C116) -> 0 | D117: =SUM(D113:D116) -> 0 | E117: =SUM(E113:E116) -> 0 | F117: =SUM(F113:F116) -> 0 | G117: =SUM(G113:G116) -> 0 | H117: =SUM(H113:H116) -> 0 | I117: =SUM(I113:I116) -> 0 | J117: =SUM(J113:J116) -> 0 | K117: =SUM(K113:K116) -> 0 | L117: =SUM(L113:L116) -> 0 | M117: =SUM(M113:M116) -> 0 | N117: =SUM(N113:N116) -> 0 | O117: 0 | P117: =SUM(P113:P116) -> 0 | Q117: =SUM(Q113:Q116) -> 0 | R117: =SUM(R113:R116) -> 0 | S117: =SUM(S113:S116) -> 0 | T117: =SUM(T113:T116) -> 0 | U117: =SUM(U113:U116) -> 0 | V117: =SUM(V113:V116) -> 0 | W117: =SUM(W113:W116) -> 0 | X117: 0 | Y117: =SUM(Y113:Y116) -> 0 | Z117: =SUM(Z113:Z116) -> 0 | AA117: =SUM(AA113:AA116) -> 0 | AB117: =SUM(AB113:AB116) -> 0 | AE117: 0
B118: Recurring | D118: 0 | AA118: 0 | AB118: 0 | AC118: =X118*Y118=Z118 -> TRUE | AD118: =U118+W118+Z118=AB118 -> TRUE | AE118: 0
A119: 3.23 | B119: Maintenance @ Rs. 1,500/- per child per month | C119: 0 | D119: 0 | I119: =C119-E119 -> 0 | J119: 0 | R119: =P119+M119+K119 -> 0 | S119: 0 | Z119: =X119*Y119 -> 0 | AA119: =T119+V119+Y119 -> 0 | AB119: =U119+W119+Z119 -> 0 | AC119: TRUE | AD119: TRUE | AE119: 0
A120: =+A119+0.01 -> 3.24 | B120: Stipend @ Rs.100/- per child per month | C120: 0 | D120: 0 | I120: 0 | J120: 0 | R120: 0 | S120: 0 | Z120: 0 | AA120: 0 | AB120: 0 | AC120: TRUE | AD120: TRUE | AE120: 0
A121: =+A120+0.01 -> 3.25 | B121: Supplementary TLM, Stationery and other educational material @1,000/- per child per annum | C121: 0 | D121: 0 | I121: 0 | J121: 0 | R121: 0 | S121: 0 | Z121: 0 | AA121: 0 | AB121: 0 | AC121: TRUE | AD121: TRUE | AE121: 0
A122: 3.26 | B122: Salaries | C122: 0 | D122: 0 | I122: 0 | J122: 0 | R122: 0 | S122: 0 | Z122: 0 | AA122: 0 | AB122: 0 | AC122: TRUE | AD122: TRUE | AE122: 0
A123: (a) | B123: 1 Warden @ Rs. 25,000/- per month | C123: 0 | D123: 0 | I123: 0 | J123: 0 | R123: 0 | S123: 0 | Z123: 0 | AA123: 0 | AB123: 0 | AC123: TRUE | AD123: TRUE | AE123: 0
A124: (b) | B124: 1 head teacher @ Rs. 25,000/- per month in case the enrollment exceeds 100 | C124: 0 | D124: 0 | I124: 0 | J124: 0 | R124: 0 | S124: 0 | Z124: 0 | AA124: 0 | AB124: 0 | AC124: TRUE | AD124: TRUE | AE124: 0
A125: (c) | B125: 4 - 5 Full time teachers as per RTE norms @ Rs. 20,000/- per month per teacher | C125: 0 | D125: 0 | I125: 0 | J125: 0 | R125: 0 | S125: 0 | Z125: 0 | AA125: 0 | AB125: 0 | AC125: TRUE | AD125: TRUE | AE125: 0
A126: (d) | B126: 2 Urdu Teachers (only for blocks with muslim population above 20% and select urban areas), if required @ Rs. 12,000/- per month per teacher | C126: 0 | D126: 0 | I126: 0 | J126: 0 | R126: 0 | S126: 0 | Z126: 0 | AA126: 0 | AB126: 0 | AC126: TRUE | AD126: TRUE | AE126: 0
A127: (e) | B127: 3 part time teachers @ Rs. 5,000/- per month per teacher | C127: 0 | D127: 0 | I127: 0 | J127: 0 | R127: 0 | S127: 0 | Z127: 0 | AA127: 0 | AB127: 0 | AC127: TRUE | AD127: TRUE | AE127: 0
A128: (f) | B128: 1 Full time Accountant @ Rs. 10,000/- per month | C128: 0 | D128: 0 | I128: 0 | J128: 0 | R128: 0 | S128: 0 | Z128: 0 | AA128: 0 | AB128: 0 | AC128: TRUE | AD128: TRUE | AE128: 0
A129: (g) | B129: 2 Support Staff – (Accountant/ Assistant, Peon, Chowkidar) @ Rs. 5,000/- per month per staff | C129: 0 | D129: 0 | I129: 0 | J129: 0 | R129: 0 | S129: 0 | Z129: 0 | AA129: 0 | AB129: 0 | AC129: TRUE | AD129: TRUE | AE129: 0
A130: (h) | B130: 1 Head cook @ Rs. 6,000/- per month and upto 2 Asstt. Cooks @ Rs. 4,500/- per month per cook | C130: 0 | D130: 0 | I130: 0 | J130: 0 | R130: 0 | S130: 0 | Z130: 0 | AA130: 0 | AB130: 0 | AC130: TRUE | AD130: TRUE | AE130: 0
A131: 3.27 | B131: Specific skill training @ Rs.1,000/- per child per annum | C131: 0 | D131: 0 | I131: 0 | J131: 0 | R131: 0 | S131: 0 | Z131: 0 | AA131: 0 | AB131: 0 | AC131: TRUE | AD131: TRUE | AE131: 0
A132: =+A131+0.01 -> 3.28 | B132: Electricity / water charges @ Rs.1,000/- per child per annum | C132: 0 | D132: 0 | I132: 0 | J132: 0 | R132: 0 | S132: 0 | Z132: 0 | AA132: 0 | AB132: 0 | AC132: TRUE | AD132: TRUE | AE132: 0
A133: 3.29 | B133: Medical care/contingencies @ Rs.1,250/- per child per annum | C133: 0 | D133: 0 | I133: 0 | J133: 0 | R133: 0 | S133: 0 | Z133: 0 | AA133: 0 | AB133: 0 | AC133: TRUE | AD133: TRUE | AE133: 0
A134: 3.3 | B134: Maintenance @ Rs.750/- per child per annum | C134: 0 | D134: 0 | I134: 0 | J134: 0 | R134: 0 | S134: 0 | Z134: 0 | AA134: 0 | AB134: 0 | AC134: TRUE | AD134: TRUE | AE134: 0
A135: 3.31 | B135: Miscellaneous @ Rs.750/- per child per annum | C135: 0 | D135: 0 | I135: =C135-E135 -> 0 | J135: 0 | R135: =P135+M135+K135 -> 0 | S135: 0 | Z135: 0 | AA135: 0 | AB135: 0 | AC135: TRUE | AD135: TRUE | AE135: 0
A136: 3.32 | B136: Preparatory camps @ Rs.200/- per child per annum | C136: 0 | D136: 0 | I136: 0 | J136: 0 | R136: 0 | S136: 0 | Z136: 0 | AA136: 0 | AB136: 0 | AC136: TRUE | AD136: TRUE | AE136: =AB136 -> 0
A137: 3.33 | B137: P.T.A / school functions @ Rs.200/- per child per annum | C137: 0 | D137: 0 | I137: 0 | J137: 0 | R137: 0 | S137: 0 | Z137: 0 | AA137: 0 | AB137: 0 | AC137: TRUE | AD137: TRUE | AE137: 0
A138: 3.34 | B138: Provision of Rent @ Rs. 6,000/- per child per annum | C138: 0 | D138: 0 | I138: 0 | J138: 0 | R138: 0 | S138: 0 | Z138: 0 | AA138: 0 | AB138: 0 | AC138: TRUE | AD138: TRUE | AE138: 0
A139: 3.35 | B139: Capacity Building @ Rs.500/- per child per annum | C139: 0 | D139: 0 | I139: 0 | J139: 0 | R139: 0 | S139: 0 | Z139: 0 | AA139: 0 | AB139: 0 | AC139: TRUE | AD139: TRUE | AE139: 0
A140: 3.36 | B140: Physical / Self Defence training @ Rs. 200/- per child per annum. | C140: 0 | D140: 0 | I140: 0 | J140: 0 | R140: 0 | S140: 0 | Z140: 0 | AA140: 0 | AB140: 0 | AC140: TRUE | AD140: TRUE | AE140: 0
B141: Sub Total (Recurring) | C141: =SUM(C119:C140) -> 0 | D141: =SUM(D119:D140) -> 0 | E141: =SUM(E119:E140) -> 0 | F141: =SUM(F119:F140) -> 0 | G141: =SUM(G119:G140) -> 0 | H141: =SUM(H119:H140) -> 0 | I141: =SUM(I119:I140) -> 0 | J141: =SUM(J119:J140) -> 0 | K141: =SUM(K119:K140) -> 0 | L141: =SUM(L119:L140) -> 0 | M141: =SUM(M119:M140) -> 0 | N141: =SUM(N119:N140) -> 0 | O141: 0 | P141: =SUM(P119:P140) -> 0 | Q141: =SUM(Q119:Q140) -> 0 | R141: =SUM(R119:R140) -> 0 | S141: =SUM(S119:S140) -> 0 | T141: =SUM(T119:T140) -> 0 | U141: =SUM(U119:U140) -> 0 | V141: =SUM(V119:V140) -> 0 | W141: =SUM(W119:W140) -> 0 | X141: 0 | Y141: =SUM(Y119:Y140) -> 0 | Z141: =SUM(Z119:Z140) -> 0 | AA141: =SUM(AA119:AA140) -> 0 | AB141: =SUM(AB119:AB140) -> 0 | AE141: 0
B142: Total (Recurring + Non Recurring) | C142: =C141+C117 -> 0 | D142: =D141+D117 -> 0 | E142: =E141+E117 -> 0 | F142: =F141+F117 -> 0 | G142: =G141+G117 -> 0 | H142: =H141+H117 -> 0 | I142: =I141+I117 -> 0 | J142: =J141+J117 -> 0 | K142: =K141+K117 -> 0 | L142: =L141+L117 -> 0 | M142: =M141+M117 -> 0 | N142: =N141+N117 -> 0 | O142: 0 | P142: =P141+P117 -> 0 | Q142: =Q141+Q117 -> 0 | R142: =R141+R117 -> 0 | S142: =S141+S117 -> 0 | T142: =T141+T117 -> 0 | U142: =U141+U117 -> 0 | V142: =V141+V117 -> 0 | W142: =W141+W117 -> 0 | X142: 0 | Y142: =Y141+Y117 -> 0 | Z142: =Z141+Z117 -> 0 | AA142: =AA141+AA117 -> 0 | AB142: =AB141+AB117 -> 0 | AE142: 0
B143: Total (A + B) | C143: =C142+C110 -> 0 | D143: 0 | E143: =E142+E110 -> 0 | F143: =F142+F110 -> 0 | G143: 0 | H143: 0 | I143: 0 | J143: 0 | K143: 0 | L143: 0 | M143: 0 | N143: 0 | O143: 0 | P143: 0 | Q143: 0 | R143: 0 | S143: 0 | T143: 0 | U143: 0 | V143: 0 | W143: 0 | X143: 0 | Y143: 0 | Z143: 0 | AA143: 0 | AB143: 0 | AE143: 0
A144: 4 | B144: Transport/Escort Facility | D144: 0 | AA144: =Y144+V144+T144 -> 0 | AB144: =Z144+W144+U144 -> 0 | AC144: =X144*Y144=Z144 -> TRUE | AD144: =U144+W144+Z144=AB144 -> TRUE | AE144: 0
A145: 4.01 | B145: Children in remote habitation | C145: 0 | D145: 0 | I145: =C145-E145 -> 0 | J145: =D145-F145 -> 0 | Q145: =+O145*P145 -> 0 | R145: =P145+M145+K145 -> 0 | S145: =Q145+N145+L145 -> 0 | Z145: =X145*Y145 -> 0 | AA145: =T145+V145+Y145 -> 0 | AB145: =U145+W145+Z145 -> 0 | AC145: TRUE | AD145: TRUE | AE145: 0
A146: 4.02 | B146: Urban deprived children/children without adult protection | C146: 0 | D146: 0 | I146: =C146-E146 -> 0 | J146: =D146-F146 -> 0 | R146: =P146+M146+K146 -> 0 | S146: =Q146+N146+L146 -> 0 | Z146: =X146*Y146 -> 0 | AA146: =T146+V146+Y146 -> 0 | AB146: =U146+W146+Z146 -> 0 | AC146: TRUE | AD146: TRUE | AE146: 0
B147: Sub Total | C147: =SUM(C145:C146) -> 0 | D147: 0 | E147: 0 | F147: 0 | G147: 0 | H147: 0 | I147: 0 | J147: 0 | K147: 0 | L147: 0 | M147: 0 | N147: 0 | O147: 0 | P147: 0 | Q147: 0 | R147: 0 | S147: 0 | T147: 0 | U147: 0 | V147: 0 | W147: 0 | X147: 0 | Y147: 0 | Z147: 0 | AA147: 0 | AB147: 0 | AE147: 0
A148: 5 | B148: Reimbursement of Fee against 25% admission under Section 12(1)(c) of RTE Act 2009 (Entry Level) subject to upper limit of 20% of AWP&B guidelines issued by MHRD | C148: 0 | D148: 0 | I148: =C148-E148 -> 0 | J148: =D148-F148 -> 0 | R148: =P148+M148+K148 -> 0 | S148: =Q148+N148+L148 -> 0 | Z148: =X148*Y148 -> 0 | AA148: =T148+V148+Y148 -> 0 | AB148: =U148+W148+Z148 -> 0 | AC148: =X148*Y148=Z148 -> TRUE | AD148: =U148+W148+Z148=AB148 -> TRUE | AE148: 0
B149: Sub Total | C149: =SUM(C148) -> 0 | D149: =SUM(D148) -> 0 | E149: =SUM(E148) -> 0 | F149: =SUM(F148) -> 0 | G149: =SUM(G148) -> 0 | H149: =SUM(H148) -> 0 | I149: =SUM(I148) -> 0 | J149: =SUM(J148) -> 0 | K149: =SUM(K148) -> 0 | L149: =SUM(L148) -> 0 | M149: =SUM(M148) -> 0 | N149: =SUM(N148) -> 0 | O149: 0 | P149: =SUM(P148) -> 0 | Q149: =SUM(Q148) -> 0 | R149: =SUM(R148) -> 0 | S149: =SUM(S148) -> 0 | T149: =SUM(T148) -> 0 | U149: =SUM(U148) -> 0 | V149: =SUM(V148) -> 0 | W149: =SUM(W148) -> 0 | X149: 0 | Y149: =SUM(Y148) -> 0 | Z149: =SUM(Z148) -> 0 | AA149: =SUM(AA148) -> 0 | AB149: =SUM(AB148) -> 0 | AE149: 0
A150: =+A148+1 -> 6 | B150: Special Training for mainstreaming of out of school children | D150: 0 | AA150: 0 | AB150: 0 | AC150: =X150*Y150=Z150 -> TRUE | AD150: =U150+W150+Z150=AB150 -> TRUE | AE150: 0
A151: 6.01 | B151: Residential (Fresh) | D151: 0 | AA151: 0 | AB151: 0 | AC151: TRUE | AD151: TRUE | AE151: 0
B152: (a) 12 months | C152: 0 | D152: 0 | I152: =C152-E152 -> 0 | J152: 0 | R152: =P152+M152+K152 -> 0 | S152: 0 | Z152: =X152*Y152 -> 0 | AA152: =T152+V152+Y152 -> 0 | AB152: =U152+W152+Z152 -> 0 | AC152: TRUE | AD152: TRUE | AE152: 0
B153: (b) 9 months | C153: 0 | D153: 0 | I153: 0 | J153: 0 | R153: 0 | S153: 0 | Z153: 0 | AA153: 0 | AB153: 0 | AC153: TRUE | AD153: TRUE | AE153: 0
B154: (c) 6 months | C154: 0 | D154: 0 | I154: 0 | J154: 0 | R154: 0 | S154: 0 | Z154: 0 | AA154: 0 | AB154: 0 | AC154: TRUE | AD154: TRUE | AE154: 0
B155: (d) 3 months | C155: 0 | D155: 0 | I155: 0 | J155: 0 | R155: 0 | S155: 0 | Z155: 0 | AA155: 0 | AB155: 0 | AC155: TRUE | AD155: TRUE | AE155: 0
B156: Sub Total | C156: =SUM(C152:C155) -> 0 | D156: =SUM(D152:D155) -> 0 | E156: =SUM(E152:E155) -> 0 | F156: =SUM(F152:F155) -> 0 | G156: =SUM(G152:G155) -> 0 | H156: =SUM(H152:H155) -> 0 | I156: =SUM(I152:I155) -> 0 | J156: =SUM(J152:J155) -> 0 | K156: =SUM(K152:K155) -> 0 | L156: =SUM(L152:L155) -> 0 | M156: =SUM(M152:M155) -> 0 | N156: =SUM(N152:N155) -> 0 | O156: 0 | P156: =SUM(P152:P155) -> 0 | Q156: =SUM(Q152:Q155) -> 0 | R156: =SUM(R152:R155) -> 0 | S156: =SUM(S152:S155) -> 0 | T156: =SUM(T152:T155) -> 0 | U156: =SUM(U152:U155) -> 0 | V156: =SUM(V152:V155) -> 0 | W156: =SUM(W152:W155) -> 0 | X156: 0 | Y156: =SUM(Y152:Y155) -> 0 | Z156: =SUM(Z152:Z155) -> 0 | AA156: =SUM(AA152:AA155) -> 0 | AB156: =SUM(AB152:AB155) -> 0 | AE156: 0
A157: =+A151+0.01 -> 6.02 | B157: Residential (Continuing from previous year) | D157: 0 | AA157: 0 | AB157: 0 | AC157: =X157*Y157=Z157 -> TRUE | AD157: =U157+W157+Z157=AB157 -> TRUE | AE157: 0
B158: (a) 12 months | C158: 0 | D158: 0 | I158: =C158-E158 -> 0 | J158: 0 | R158: =P158+M158+K158 -> 0 | S158: 0 | Z158: =X158*Y158 -> 0 | AA158: =T158+V158+Y158 -> 0 | AB158: =U158+W158+Z158 -> 0 | AC158: TRUE | AD158: TRUE | AE158: 0
B159: (b) 9 months | C159: 0 | D159: 0 | I159: 0 | J159: 0 | R159: 0 | S159: 0 | Z159: 0 | AA159: 0 | AB159: 0 | AC159: TRUE | AD159: TRUE | AE159: 0
B160: (c) 6 months | C160: 0 | D160: 0 | I160: 0 | J160: 0 | R160: 0 | S160: 0 | Z160: 0 | AA160: 0 | AB160: 0 | AC160: TRUE | AD160: TRUE | AE160: 0
B161: (d) 3 months | C161: 0 | D161: 0 | I161: 0 | J161: 0 | R161: 0 | S161: 0 | Z161: 0 | AA161: 0 | AB161: 0 | AC161: TRUE | AD161: TRUE | AE161: 0
B162: Sub Total | C162: =SUM(C158:C161) -> 0 | D162: =SUM(D158:D161) -> 0 | E162: =SUM(E158:E161) -> 0 | F162: =SUM(F158:F161) -> 0 | G162: =SUM(G158:G161) -> 0 | H162: =SUM(H158:H161) -> 0 | I162: =SUM(I158:I161) -> 0 | J162: =SUM(J158:J161) -> 0 | K162: =SUM(K158:K161) -> 0 | L162: =SUM(L158:L161) -> 0 | M162: =SUM(M158:M161) -> 0 | N162: =SUM(N158:N161) -> 0 | O162: 0 | P162: =SUM(P158:P161) -> 0 | Q162: =SUM(Q158:Q161) -> 0 | R162: =SUM(R158:R161) -> 0 | S162: =SUM(S158:S161) -> 0 | T162: =SUM(T158:T161) -> 0 | U162: =SUM(U158:U161) -> 0 | V162: =SUM(V158:V161) -> 0 | W162: =SUM(W158:W161) -> 0 | X162: 0 | Y162: =SUM(Y158:Y161) -> 0 | Z162: =SUM(Z158:Z161) -> 0 | AA162: =SUM(AA158:AA161) -> 0 | AB162: =SUM(AB158:AB161) -> 0 | AE162: 0
A163: 6.03 | B163: Non-Residential (Fresh) | D163: 0 | AA163: 0 | AB163: 0 | AC163: =X163*Y163=Z163 -> TRUE | AD163: =U163+W163+Z163=AB163 -> TRUE | AE163: 0
B164: (a) 12 months | C164: 0 | D164: 0 | I164: =C164-E164 -> 0 | J164: 0 | S164: =Q164+N164+L164 -> 0 | AA164: =T164+V164+Y164 -> 0 | AB164: =U164+W164+Z164 -> 0 | AC164: TRUE | AD164: TRUE | AE164: 0
B165: (b) 10 months | C165: 2358 | D165: 61.308 | E165: 1540 | F165: 40.04 | I165: 818 | J165: 21.268 | O165: 0.06 | P165: 1440 | Q165: =O165*P165 -> 86.4 | R165: =K165+M165+P165 -> 1440 | S165: =L165+N165+Q165 -> 86.4 | X165: 0.06 | Y165: 1440 | Z165: =Y165*X165 -> 86.4 | AA165: 1440 | AB165: =U165+W165+Z165 -> 86.4 | AC165: TRUE | AD165: TRUE | AE165: 86.4
B166: (c) 6 months | C166: 0 | D166: 0 | I166: 0 | J166: 0 | R166: 0 | S166: 0 | AA166: 0 | AB166: =U166+W166+Z166 -> 0 | AC166: TRUE | AD166: TRUE | AE166: 0
B167: (d) 3 months | C167: 0 | D167: 0 | I167: 0 | J167: 0 | R167: 0 | S167: 0 | AA167: 0 | AB167: 0 | AC167: TRUE | AD167: TRUE | AE167: 0
B168: Sub Total | C168: =SUM(C164:C167) -> 2358 | D168: =SUM(D164:D167) -> 61.308 | E168: =SUM(E164:E167) -> 1540 | F168: =SUM(F164:F167) -> 40.04 | G168: =SUM(G164:G167) -> 0 | H168: =SUM(H164:H167) -> 0 | I168: =SUM(I164:I167) -> 818 | J168: =SUM(J164:J167) -> 21.268 | K168: =SUM(K164:K167) -> 0 | L168: =SUM(L164:L167) -> 0 | M168: =SUM(M164:M167) -> 0 | N168: =SUM(N164:N167) -> 0 | O168: 0.06 | P168: =SUM(P164:P167) -> 1440 | Q168: =SUM(Q164:Q167) -> 86.4 | R168: =SUM(R164:R167) -> 1440 | S168: =SUM(S164:S167) -> 86.4 | T168: =SUM(T164:T167) -> 0 | U168: =SUM(U164:U167) -> 0 | V168: =SUM(V164:V167) -> 0 | W168: =SUM(W164:W167) -> 0 | X168: 0.06 | Y168: =SUM(Y164:Y167) -> 1440 | Z168: =SUM(Z164:Z167) -> 86.4 | AA168: =SUM(AA164:AA167) -> 1440 | AB168: =SUM(AB164:AB167) -> 86.4 | AE168: 86.4
A169: 6.04 | B169: Non-Residential (Continuing from previous year) | D169: 0 | AD169: =U169+W169+Z169=AB169 -> TRUE | AE169: 0
B170: (a) 12 months | C170: 0 | D170: 0 | I170: =C170-E170 -> 0 | J170: 0 | S170: =Q170+N170+L170 -> 0 | Z170: =X170*Y170 -> 0 | AA170: =T170+V170+Y170 -> 0 | AB170: =U170+W170+Z170 -> 0 | AC170: =X170*Y170=Z170 -> TRUE | AD170: TRUE | AE170: 0
B171: (b) 9 months | C171: 0 | D171: 0 | I171: 0 | J171: 0 | O171: 0.06 | P171: 1540 | Q171: =O171*P171 -> 92.4 | R171: =K171+M171+P171 -> 1540 | S171: 92.4 | X171: 0.06 | Y171: 1540 | Z171: 92.4 | AA171: 1540 | AB171: 92.4 | AC171: TRUE | AD171: TRUE | AE171: 92.4
B172: (c) 6 months | C172: 0 | D172: 0 | I172: 0 | J172: 0 | R172: 0 | S172: 0 | Z172: 0 | AA172: 0 | AB172: 0 | AC172: TRUE | AD172: TRUE | AE172: 0
B173: (d) 3 months | C173: 0 | D173: 0 | I173: 0 | J173: 0 | R173: 0 | S173: 0 | Z173: 0 | AA173: 0 | AB173: 0 | AC173: TRUE | AD173: TRUE | AE173: 0
B174: Sub Total | C174: =SUM(C170:C173) -> 0 | D174: =SUM(D170:D173) -> 0 | E174: =SUM(E170:E173) -> 0 | F174: =SUM(F170:F173) -> 0 | G174: =SUM(G170:G173) -> 0 | H174: =SUM(H170:H173) -> 0 | I174: =SUM(I170:I173) -> 0 | J174: =SUM(J170:J173) -> 0 | K174: =SUM(K170:K173) -> 0 | L174: =SUM(L170:L173) -> 0 | M174: =SUM(M170:M173) -> 0 | N174: =SUM(N170:N173) -> 0 | O174: 0.06 | P174: =SUM(P170:P173) -> 1540 | Q174: =SUM(Q170:Q173) -> 92.4 | R174: 1540 | S174: =SUM(S170:S173) -> 92.4 | T174: =SUM(T170:T173) -> 0 | U174: =SUM(U170:U173) -> 0 | V174: =SUM(V170:V173) -> 0 | W174: =SUM(W170:W173) -> 0 | X174: 0.06 | Y174: =SUM(Y170:Y173) -> 1540 | Z174: =SUM(Z170:Z173) -> 92.4 | AA174: =SUM(AA170:AA173) -> 1540 | AB174: =SUM(AB170:AB173) -> 92.4 | AE174: 92.4
A175: 6.05 | B175: Madarasa/Maktab | D175: 0 | Z175: =X175*Y175 -> 0 | AA175: =T175+V175+Y175 -> 0 | AB175: =U175+W175+Z175 -> 0 | AC175: =X175*Y175=Z175 -> TRUE | AD175: =U175+W175+Z175=AB175 -> TRUE | AE175: 0
B176: (a) 12 months | C176: 0 | D176: 0 | I176: =C176-E176 -> 0 | J176: 0 | S176: =Q176+N176+L176 -> 0 | Z176: 0 | AA176: 0 | AB176: 0 | AC176: TRUE | AD176: TRUE | AE176: 0
B177: (b) 9 months | C177: 0 | D177: 0 | I177: 0 | J177: 0 | R177: 0 | S177: 0 | Z177: 0 | AA177: 0 | AB177: 0 | AC177: TRUE | AD177: TRUE | AE177: 0
B178: (c) 6 months | C178: 0 | D178: 0 | I178: 0 | J178: 0 | R178: 0 | S178: 0 | Z178: 0 | AA178: 0 | AB178: 0 | AC178: TRUE | AD178: TRUE | AE178: 0
B179: (d) 3 months | C179: 0 | D179: 0 | I179: 0 | J179: 0 | R179: 0 | S179: 0 | Z179: 0 | AA179: 0 | AB179: 0 | AC179: TRUE | AD179: TRUE | AE179: 0
B180: Sub Total | C180: =SUM(C176:C179) -> 0 | D180: =SUM(D176:D179) -> 0 | E180: =SUM(E176:E179) -> 0 | F180: =SUM(F176:F179) -> 0 | G180: =SUM(G176:G179) -> 0 | H180: =SUM(H176:H179) -> 0 | I180: =SUM(I176:I179) -> 0 | J180: =SUM(J176:J179) -> 0 | K180: =SUM(K176:K179) -> 0 | L180: =SUM(L176:L179) -> 0 | M180: =SUM(M176:M179) -> 0 | N180: =SUM(N176:N179) -> 0 | O180: 0 | P180: =SUM(P176:P179) -> 0 | Q180: =SUM(Q176:Q179) -> 0 | R180: =SUM(R176:R179) -> 0 | S180: =SUM(S176:S179) -> 0 | T180: =SUM(T176:T179) -> 0 | U180: =SUM(U176:U179) -> 0 | V180: =SUM(V176:V179) -> 0 | W180: =SUM(W176:W179) -> 0 | X180: 0 | Y180: =SUM(Y176:Y179) -> 0 | Z180: =SUM(Z176:Z179) -> 0 | AA180: =SUM(AA176:AA179) -> 0 | AB180: =SUM(AB176:AB179) -> 0 | AE180: 0
A181: 6.06 | B181: Seasonal Hostel (Residential) | D181: 0 | AA181: 0 | AB181: 0 | AC181: =X181*Y181=Z181 -> TRUE | AD181: =U181+W181+Z181=AB181 -> TRUE | AE181: 0
B182: (a) 12 months | C182: 0 | D182: 0 | I182: =C182-E182 -> 0 | J182: 0 | R182: =P182+M182+K182 -> 0 | S182: 0 | Z182: =X182*Y182 -> 0 | AA182: =T182+V182+Y182 -> 0 | AB182: =U182+W182+Z182 -> 0 | AC182: TRUE | AD182: TRUE | AE182: 0
B183: (b) 9 months | C183: 0 | D183: 0 | I183: 0 | J183: 0 | R183: 0 | S183: 0 | Z183: 0 | AA183: 0 | AB183: 0 | AC183: TRUE | AD183: TRUE | AE183: 0
B184: (c) 6 months | C184: 0 | D184: 0 | I184: 0 | J184: 0 | R184: 0 | S184: 0 | Z184: 0 | AA184: 0 | AB184: 0 | AC184: TRUE | AD184: TRUE | AE184: 0
B185: (d) 3 months | C185: 0 | D185: 0 | I185: 0 | J185: 0 | R185: 0 | S185: 0 | Z185: 0 | AA185: 0 | AB185: 0 | AC185: TRUE | AD185: TRUE | AE185: 0
B186: Sub Total | C186: =SUM(C182:C185) -> 0 | D186: =SUM(D182:D185) -> 0 | E186: =SUM(E182:E185) -> 0 | F186: =SUM(F182:F185) -> 0 | G186: =SUM(G182:G185) -> 0 | H186: =SUM(H182:H185) -> 0 | I186: =SUM(I182:I185) -> 0 | J186: =SUM(J182:J185) -> 0 | K186: =SUM(K182:K185) -> 0 | L186: =SUM(L182:L185) -> 0 | M186: =SUM(M182:M185) -> 0 | N186: =SUM(N182:N185) -> 0 | O186: 0 | P186: =SUM(P182:P185) -> 0 | Q186: =SUM(Q182:Q185) -> 0 | R186: =SUM(R182:R185) -> 0 | S186: =SUM(S182:S185) -> 0 | T186: =SUM(T182:T185) -> 0 | U186: =SUM(U182:U185) -> 0 | V186: =SUM(V182:V185) -> 0 | W186: =SUM(W182:W185) -> 0 | X186: 0 | Y186: =SUM(Y182:Y185) -> 0 | Z186: =SUM(Z182:Z185) -> 0 | AA186: =SUM(AA182:AA185) -> 0 | AB186: =SUM(AB182:AB185) -> 0 | AE186: 0
A187: 6.07 | B187: Seasonal Hostel (Non Residential) | D187: 0 | AA187: 0 | AB187: 0 | AC187: =X187*Y187=Z187 -> TRUE | AD187: =U187+W187+Z187=AB187 -> TRUE | AE187: 0
B188: (a) 12 months | C188: 0 | D188: 0 | I188: =C188-E188 -> 0 | J188: 0 | R188: =P188+M188+K188 -> 0 | S188: 0 | Z188: =X188*Y188 -> 0 | AA188: =T188+V188+Y188 -> 0 | AB188: =U188+W188+Z188 -> 0 | AC188: TRUE | AD188: TRUE | AE188: 0
B189: (b) 9 months | C189: 0 | D189: 0 | I189: 0 | J189: 0 | R189: 0 | S189: 0 | Z189: 0 | AA189: 0 | AB189: 0 | AC189: TRUE | AD189: TRUE | AE189: 0
B190: (c) 6 months | C190: 0 | D190: 0 | I190: 0 | J190: 0 | R190: 0 | S190: 0 | Z190: 0 | AA190: 0 | AB190: 0 | AC190: TRUE | AD190: TRUE | AE190: 0
B191: (d) 3 months | C191: 0 | D191: 0 | I191: 0 | J191: 0 | R191: 0 | S191: 0 | Z191: 0 | AA191: 0 | AB191: 0 | AC191: TRUE | AD191: TRUE | AE191: 0
B192: Sub Total | C192: =SUM(C188:C191) -> 0 | D192: =SUM(D188:D191) -> 0 | E192: =SUM(E188:E191) -> 0 | F192: =SUM(F188:F191) -> 0 | G192: =SUM(G188:G191) -> 0 | H192: =SUM(H188:H191) -> 0 | I192: =SUM(I188:I191) -> 0 | J192: =SUM(J188:J191) -> 0 | K192: =SUM(K188:K191) -> 0 | L192: =SUM(L188:L191) -> 0 | M192: =SUM(M188:M191) -> 0 | N192: =SUM(N188:N191) -> 0 | O192: 0 | P192: =SUM(P188:P191) -> 0 | Q192: =SUM(Q188:Q191) -> 0 | R192: =SUM(R188:R191) -> 0 | S192: =SUM(S188:S191) -> 0 | T192: =SUM(T188:T191) -> 0 | U192: =SUM(U188:U191) -> 0 | V192: =SUM(V188:V191) -> 0 | W192: =SUM(W188:W191) -> 0 | X192: 0 | Y192: =SUM(Y188:Y191) -> 0 | Z192: =SUM(Z188:Z191) -> 0 | AA192: =SUM(AA188:AA191) -> 0 | AB192: 0 | AE192: 0
B193: Total | C193: =C192+C186+C180+C174+C168+C162+C156 -> 2358 | D193: =D192+D186+D180+D174+D168+D162+D156 -> 61.308 | E193: =E192+E186+E180+E174+E168+E162+E156 -> 1540 | F193: =F192+F186+F180+F174+F168+F162+F156 -> 40.04 | G193: =G192+G186+G180+G174+G168+G162+G156 -> 0 | H193: =H192+H186+H180+H174+H168+H162+H156 -> 0 | I193: =I192+I186+I180+I174+I168+I162+I156 -> 818 | J193: =J192+J186+J180+J174+J168+J162+J156 -> 21.268 | K193: =K192+K186+K180+K174+K168+K162+K156 -> 0 | L193: =L192+L186+L180+L174+L168+L162+L156 -> 0 | M193: =M192+M186+M180+M174+M168+M162+M156 -> 0 | N193: =N192+N186+N180+N174+N168+N162+N156 -> 0 | O193: 0.12 | P193: =P192+P186+P180+P174+P168+P162+P156 -> 2980 | Q193: =Q192+Q186+Q180+Q174+Q168+Q162+Q156 -> 178.8 | R193: 2980 | S193: =S192+S186+S180+S174+S168+S162+S156 -> 178.8 | T193: =T192+T186+T180+T174+T168+T162+T156 -> 0 | U193: =U192+U186+U180+U174+U168+U162+U156 -> 0 | V193: =V192+V186+V180+V174+V168+V162+V156 -> 0 | W193: =W192+W186+W180+W174+W168+W162+W156 -> 0 | X193: 0.12 | Y193: =Y192+Y186+Y180+Y174+Y168+Y162+Y156 -> 2980 | Z193: =Z192+Z186+Z180+Z174+Z168+Z162+Z156 -> 178.8 | AA193: 2980 | AB193: =AB192+AB186+AB180+AB174+AB168+AB162+AB156 -> 178.8 | AE193: 178.8
A194: II | B194: RETENTION | D194: 0 | AC194: =X194*Y194=Z194 -> TRUE | AD194: =U194+W194+Z194=AB194 -> TRUE | AE194: 0
A195: 7 | B195: Free Text Books | D195: 0 | AC195: TRUE | AD195: TRUE | AE195: 0
A196: 7.01 | B196: Free Text Books (P) | C196: 0 | D196: 0 | I196: =C196-E196 -> 0 | J196: 0 | N196: 0 | AC196: TRUE | AD196: TRUE | AE196: 0
B197: (a) Class I & II | C197: 18013 | D197: 27.0195 | E197: 18013 | F197: 27.0195 | I197: 0 | J197: 0 | O197: 0.0015 | P197: 18013 | Q197: =P197*O197 -> 27.0195 | R197: =P197+M197+K197 -> 18013 | S197: 27.0195 | X197: 0.0015 | Y197: 18013 | Z197: =X197*Y197 -> 27.0195 | AA197: =T197+V197+Y197 -> 18013 | AB197: =U197+W197+Z197 -> 27.0195 | AC197: Recommended propsed | AD197: TRUE | AE197: 27.0195
B198: (b) Braille Books Class I & II | C198: 16 | D198: 0.024 | E198: 16 | F198: 0.024 | I198: 0 | J198: 0 | O198: 0.0015 | P198: 5 | Q198: 0.0075 | R198: 5 | S198: 0.0075 | X198: 0.0015 | Y198: 5 | Z198: =X198*Y198 -> 0.0075 | AA198: 5 | AB198: =U198+W198+Z198 -> 0.0075 | AC198: TRUE | AD198: TRUE | AE198: 0.0075
B199: (c) Large Print Books Class I & II | C199: 0 | D199: 0 | E199: 0 | F199: 0 | I199: 0 | J199: 0 | O199: 0.0015 | P199: 9 | Q199: 0.0135 | R199: 9 | S199: 0.0135 | X199: 0.0015 | Y199: 9 | Z199: 0.0135 | AA199: 9 | AB199: 0.0135 | AC199: TRUE | AD199: TRUE | AE199: 0.0135
B200: (d) Class III to V | C200: 19472 | D200: 29.208 | E200: 19472 | F200: 29.208 | I200: 0 | J200: 0 | O200: 0.0015 | P200: 19472 | Q200: 29.208 | R200: 19472 | S200: 29.208 | X200: 0.0015 | Y200: 19472 | Z200: 29.208 | AA200: 19472 | AB200: 29.208 | AC200: Recommended propsed | AD200: TRUE | AE200: =AB200 -> 29.208
... 324 more rows

Sheet NGH
A1: S.No. | B1: Activity | C1: Year 2016-17 | K1: Outlay Proposed for 2017-18 | T1: Outlay Recommended for 2017-18
C2: Outlay approved by PAB (including spillover) | E2: Achievement during the year | I2: Savings | K2: Spill Over | M2: Deferred laibility of 2014-15 | O2: Fresh | R2: Total | T2: Spill Over | V2: Deferred laibility of 2014-15 | X2: Fresh | AA2: Total
C3: Phy. | D3: Fin. | E3: Phy. | F3: Fin. | G3: Phy. (%) | H3: Fin. (%) | I3: Phy. | J3: Fin. | K3: Phy. | L3: Fin. | M3: Phy. | N3: Fin. | O3: Unit Cost | P3: Phy. | Q3: Fin. | R3: Phy. | S3: Fin. | T3: Phy. | U3: Fin. | V3: Phy. | W3: Fin. | X3: Unit Cost | Y3: Phy. | Z3: Fin. | AA3: Phy. | AB3: Fin.
A4: I | B4: ACCESS
B5: SSA
A6: 1 | B6: Opening of New Schools
A7: 1.01 | B7: New Primary School | D7: 0 | I7: =C7-E7 -> 0 | J7: =D7-F7 -> 0 | R7: =P7+M7+K7 -> 0 | S7: =Q7+N7+L7 -> 0 | AA7: =T7+V7+Y7 -> 0 | AB7: =U7+W7+Z7 -> 0 | AC7: =X7*Y7=Z7 -> TRUE | AD7: =U7+W7+Z7=AB7 -> TRUE | AE7: =AB7 -> 0
A8: 1.02 | B8: Upgradation of PS to UPS | C8: 0 | D8: 0 | I8: =C8-E8 -> 0 | J8: 0 | R8: =P8+M8+K8 -> 0 | S8: 0 | AA8: =T8+V8+Y8 -> 0 | AB8: =U8+W8+Z8 -> 0 | AC8: =X8*Y8=Z8 -> TRUE | AD8: =U8+W8+Z8=AB8 -> TRUE | AE8: =AB8 -> 0
A9: 1.03 | B9: Composite Schools | C9: 0 | D9: 0 | I9: 0 | J9: 0 | R9: 0 | S9: 0 | AA9: 0 | AB9: 0 | AC9: TRUE | AD9: TRUE | AE9: 0
A10: 1.04 | B10: Residential schools for specific category of children | C10: 0 | D10: 0 | I10: 0 | J10: 0 | R10: 0 | S10: 0 | AA10: 0 | AB10: 0 | AC10: TRUE | AD10: TRUE | AE10: 0
A11: 1.05 | B11: Residential Hostel | C11: 0 | D11: 0 | I11: 0 | J11: 0 | R11: 0 | S11: 0 | AA11: 0 | AB11: 0 | AC11: TRUE | AD11: TRUE | AE11: 0
A12: 1.06 | B12: Integration of Class V with primary schools | C12: 0 | D12: 0 | I12: 0 | J12: 0 | R12: 0 | S12: 0 | AA12: 0 | AB12: 0 | AC12: TRUE | AD12: TRUE | AE12: 0
A13: 1.07 | B13: Integration of Class VIII with upper primary schools | C13: 0 | D13: 0 | I13: 0 | J13: 0 | R13: 0 | S13: 0 | AA13: 0 | AB13: 0 | AC13: TRUE | AD13: TRUE | AE13: 0
A14: 2 | B14: Residential Schools for specific category of children | C14: 0 | D14: 0 | I14: 0 | J14: 0 | R14: 0 | S14: 0 | AA14: =Y14+V14+T14 -> 0 | AB14: =Z14+W14+U14 -> 0 | AC14: TRUE | AD14: TRUE | AE14: 0
B15: 50 children | C15: 0 | D15: 0 | I15: 0 | J15: 0 | R15: 0 | S15: 0 | AA15: 0 | AB15: 0 | AC15: TRUE | AD15: TRUE | AE15: 0
B16: Non-recurring (one time grant) | C16: 0 | D16: 0 | I16: 0 | J16: 0 | R16: 0 | S16: 0 | AA16: 0 | AB16: 0 | AC16: TRUE | AD16: TRUE | AE16: 0
A17: 2.01 | B17: Furniture/ Equipment (including kitchen) | C17: 0 | D17: 0 | I17: 0 | J17: 0 | R17: 0 | S17: 0 | Z17: =X17*Y17 -> 0 | AA17: =T17+V17+Y17 -> 0 | AB17: =U17+W17+Z17 -> 0 | AC17: TRUE | AD17: TRUE | AE17: 0
A18: 2.02 | B18: TLM and equipment including library books | C18: 0 | D18: 0 | I18: 0 | J18: 0 | R18: 0 | S18: 0 | Z18: 0 | AA18: 0 | AB18: 0 | AC18: TRUE | AD18: TRUE | AE18: 0
A19: 2.03 | B19: Bedding (new) | C19: 0 | D19: 0 | I19: 0 | J19: 0 | R19: 0 | S19: 0 | Z19: 0 | AA19: 0 | AB19: 0 | AC19: TRUE | AD19: TRUE | AE19: 0
A20: 2.04 | B20: Replacement of bedding (once in 3 years) | C20: 0 | D20: 0 | I20: 0 | J20: 0 | R20: 0 | S20: 0 | Z20: 0 | AA20: 0 | AB20: 0 | AC20: TRUE | AD20: TRUE | AE20: 0
B21: Sub Total (Non Recurring) | C21: =SUM(C15:C20) -> 0 | D21: =SUM(D15:D20) -> 0 | E21: 0 | F21: 0 | G21: 0 | H21: 0 | I21: 0 | J21: 0 | K21: 0 | L21: 0 | M21: 0 | N21: 0 | O21: 0 | P21: 0 | Q21: 0 | R21: 0 | S21: 0 | T21: 0 | U21: 0 | V21: 0 | W21: 0 | X21: 0 | Y21: 0 | Z21: 0 | AA21: 0 | AB21: 0 | AE21: 0
B22: Recurring (50 children) | C22: 0 | D22: 0 | AA22: 0 | AB22: 0 | AE22: 0
A23: 2.05 | B23: Maintenance @ Rs.1,500/- per child Per month | C23: 0 | D23: 0 | I23: =C23-E23 -> 0 | J23: 0 | R23: =P23+M23+K23 -> 0 | S23: 0 | Z23: =X23*Y23 -> 0 | AA23: =T23+V23+Y23 -> 0 | AB23: =U23+W23+Z23 -> 0 | AC23: =X23*Y23=Z23 -> TRUE | AD23: =U23+W23+Z23=AB23 -> TRUE | AE23: 0
A24: 2.06 | B24: Stipend @ Rs.100/- per child per month | C24: 0 | D24: 0 | I24: 0 | J24: 0 | R24: 0 | S24: 0 | Z24: 0 | AA24: 0 | AB24: 0 | AC24: TRUE | AD24: TRUE | AE24: 0
A25: 2.07 | B25: Supplementary TLM, Stationery and other educational material @Rs.1,000/- per child per annum | C25: 0 | D25: 0 | I25: 0 | J25: 0 | R25: 0 | S25: 0 | Z25: 0 | AA25: 0 | AB25: 0 | AC25: TRUE | AD25: TRUE | AE25: 0
A26: 2.08 | B26: Salaries | C26: 0 | D26: 0 | I26: 0 | J26: 0 | R26: 0 | S26: 0 | Z26: 0 | AA26: 0 | AB26: 0 | AC26: TRUE | AD26: TRUE | AE26: 0
A27: (a) | B27: 1 Warden @ Rs.25,000/- per month | C27: 0 | D27: 0 | I27: 0 | J27: 0 | R27: 0 | S27: 0 | Z27: 0 | AA27: 0 | AB27: 0 | AC27: TRUE | AD27: TRUE | AE27: 0
A28: (b) | B28: 4 Fulltime teachers as per RTE Norms @ Rs. 20,000/- per month per teacher | C28: 0 | D28: 0 | I28: 0 | J28: 0 | R28: 0 | S28: 0 | Z28: 0 | AA28: 0 | AB28: 0 | AC28: TRUE | AD28: TRUE | AE28: 0
A29: (c) | B29: 2 Urdu Teachers (only for Blocks with muslim population above 20% and select urban areas) if required @ Rs.12,000/- per month per teacher. | C29: 0 | D29: 0 | I29: 0 | J29: 0 | R29: 0 | S29: 0 | Z29: 0 | AA29: 0 | AB29: 0 | AC29: TRUE | AD29: TRUE | AE29: 0
A30: (d) | B30: 3 Part time teachers @ Rs.5,000/- per month per teacher | C30: 0 | D30: 0 | I30: 0 | J30: 0 | R30: 0 | S30: 0 | Z30: 0 | AA30: 0 | AB30: 0 | AC30: TRUE | AD30: TRUE | AE30: 0
A31: (e) | B31: 1 Full time Accountant @ Rs. 10,000/- per month | C31: 0 | D31: 0 | I31: 0 | J31: 0 | R31: 0 | S31: 0 | Z31: 0 | AA31: 0 | AB31: 0 | AC31: TRUE | AD31: TRUE | AE31: 0
A32: (f) | B32: 2 Support staff - (Accountant/Assistant, Peon, Chowkidar) @ Rs. 5,000/- per month per staff | C32: 0 | D32: 0 | I32: 0 | J32: 0 | R32: 0 | S32: 0 | Z32: 0 | AA32: 0 | AB32: 0 | AC32: TRUE | AD32: TRUE | AE32: 0
A33: (g) | B33: 1 Head Cook @ Rs. 6,000/- per month and upto 2 Asstt. Cooks @ Rs. 4,500/- per month per cook | C33: 0 | D33: 0 | I33: 0 | J33: 0 | R33: 0 | S33: 0 | Z33: 0 | AA33: 0 | AB33: 0 | AC33: TRUE | AD33: TRUE | AE33: 0
A34: 2.09 | B34: Specific Skill training @ Rs.1,000/- per child per annum | C34: 0 | D34: 0 | I34: 0 | J34: 0 | R34: 0 | S34: 0 | Z34: 0 | AA34: 0 | AB34: 0 | AC34: TRUE | AD34: TRUE | AE34: 0
A35: 2.1 | B35: Electricity / water charges @ Rs. 1,000/- per child per annum | C35: 0 | D35: 0 | I35: 0 | J35: 0 | R35: 0 | S35: 0 | Z35: 0 | AA35: 0 | AB35: 0 | AC35: TRUE | AD35: TRUE | AE35: 0
A36: =+A35+0.01 -> 2.11 | B36: Medical care/contingencies @ Rs.1,250/- per child per annum | C36: 0 | D36: 0 | I36: 0 | J36: 0 | R36: 0 | S36: 0 | Z36: 0 | AA36: 0 | AB36: 0 | AC36: TRUE | AD36: TRUE | AE36: 0
A37: =+A36+0.01 -> 2.12 | B37: Maintenance @ Rs. 750/- per child per annum | C37: 0 | D37: 0 | I37: 0 | J37: 0 | R37: 0 | S37: 0 | Z37: 0 | AA37: 0 | AB37: 0 | AC37: TRUE | AD37: TRUE | AE37: 0
A38: 2.13 | B38: Miscellaneous @ Rs. 750/- per child per annum | C38: 0 | D38: 0 | I38: 0 | J38: 0 | R38: 0 | S38: 0 | Z38: 0 | AA38: 0 | AB38: 0 | AC38: TRUE | AD38: TRUE | AE38: 0
A39: 2.14 | B39: Preparatory camps @ Rs. 300/- per child per annum | C39: 0 | D39: 0 | I39: =C39-E39 -> 0 | J39: 0 | R39: =P39+M39+K39 -> 0 | S39: 0 | Z39: 0 | AA39: 0 | AB39: 0 | AC39: TRUE | AD39: TRUE | AE39: 0
A40: 2.15 | B40: P.T.A / school functions @ Rs. 300/- per child per annum | C40: 0 | D40: 0 | I40: 0 | J40: 0 | R40: 0 | S40: 0 | Z40: 0 | AA40: 0 | AB40: 0 | AC40: TRUE | AD40: TRUE | AE40: 0
A41: 2.16 | B41: Provision of Rent @ Rs. 10,000/- per child per annum | C41: 0 | D41: 0 | I41: 0 | J41: 0 | R41: 0 | S41: 0 | Z41: 0 | AA41: 0 | AB41: 0 | AC41: TRUE | AD41: TRUE | AE41: 0
A42: 2.17 | B42: Capacity Building @ Rs. 500/- per child per annum | C42: 0 | D42: 0 | I42: 0 | J42: 0 | R42: 0 | S42: 0 | Z42: 0 | AA42: 0 | AB42: 0 | AC42: TRUE | AD42: TRUE | AE42: 0
A43: 2.18 | B43: Physical / Self Defence Training @ Rs.200/- per child per annum | C43: 0 | D43: 0 | I43: 0 | J43: 0 | R43: 0 | S43: 0 | Z43: 0 | AA43: 0 | AB43: 0 | AC43: TRUE | AD43: TRUE | AE43: 0
B44: Sub Total (Recurring) | C44: 0 | D44: 0 | E44: 0 | F44: 0 | G44: 0 | H44: 0 | I44: 0 | J44: 0 | K44: 0 | L44: 0 | M44: 0 | N44: 0 | O44: 0 | P44: 0 | Q44: 0 | R44: 0 | S44: 0 | T44: 0 | U44: 0 | V44: 0 | W44: 0 | X44: 0 | Y44: 0 | Z44: 0 | AA44: 0 | AB44: 0 | AE44: 0
B45: Total (Non Recurring + Recurring) | C45: =C44+C21 -> 0 | D45: =D44+D21 -> 0 | E45: 0 | F45: 0 | G45: 0 | H45: 0 | I45: 0 | J45: 0 | K45: 0 | L45: 0 | M45: 0 | N45: 0 | O45: 0 | P45: 0 | Q45: 0 | R45: 0 | S45: 0 | T45: 0 | U45: 0 | V45: 0 | W45: 0 | X45: 0 | Y45: 0 | Z45: 0 | AA45: 0 | AB45: 0 | AE45: 0
B46: 100 children | C46: 0 | D46: 0 | AA46: 0 | AB46: 0 | AC46: =X46*Y46=Z46 -> TRUE | AD46: =U46+W46+Z46=AB46 -> TRUE | AE46: 0
B47: Non-recurring (one time grant) | C47: 0 | D47: 0 | AA47: 0 | AB47: 0 | AC47: TRUE | AD47: TRUE | AE47: 0
A48: 2.19 | B48: Furniture / Equipment (including kitchen equipment) | C48: 0 | D48: 0 | I48: =C48-E48 -> 0 | J48: 0 | R48: =P48+M48+K48 -> 0 | S48: 0 | Z48: =X48*Y48 -> 0 | AA48: =T48+V48+Y48 -> 0 | AB48: =U48+W48+Z48 -> 0 | AC48: TRUE | AD48: TRUE | AE48: 0
A49: =+A48+0.01 -> 2.2 | B49: TLM and equipment including library books (New) | C49: 0 | D49: 0 | I49: 0 | J49: 0 | R49: 0 | S49: 0 | Z49: 0 | AA49: 0 | AB49: 0 | AC49: TRUE | AD49: TRUE | AE49: 0
A50: =+A49+0.01 -> 2.21 | B50: Bedding (New) | C50: 0 | D50: 0 | I50: 0 | J50: 0 | R50: 0 | S50: 0 | Z50: 0 | AA50: 0 | AB50: 0 | AC50: TRUE | AD50: TRUE | AE50: 0
A51: =+A50+0.01 -> 2.22 | B51: Replacement of bedding (once in 3 years) | C51: 0 | D51: 0 | I51: 0 | J51: 0 | R51: 0 | S51: 0 | Z51: 0 | AA51: 0 | AB51: 0 | AC51: TRUE | AD51: TRUE | AE51: 0
B52: Sub Total Non-recurring | C52: =SUM(C48:C51) -> 0 | D52: =SUM(D48:D51) -> 0 | E52: 0 | F52: 0 | G52: 0 | H52: 0 | I52: 0 | J52: 0 | K52: 0 | L52: 0 | M52: 0 | N52: 0 | O52: 0 | P52: 0 | Q52: 0 | R52: 0 | S52: 0 | T52: 0 | U52: 0 | V52: 0 | W52: 0 | X52: 0 | Y52: 0 | Z52: 0 | AA52: 0 | AB52: 0 | AE52: 0
B53: Recurring | C53: 0 | D53: 0 | AA53: 0 | AB53: 0 | AC53: =X53*Y53=Z53 -> TRUE | AD53: =U53+W53+Z53=AB53 -> TRUE | AE53: 0
A54: 2.23 | B54: Maintenance @ Rs. 1,500/- per child per month | C54: 0 | D54: 0 | I54: =C54-E54 -> 0 | J54: 0 | R54: =P54+M54+K54 -> 0 | S54: 0 | Z54: =X54*Y54 -> 0 | AA54: =T54+V54+Y54 -> 0 | AB54: =U54+W54+Z54 -> 0 | AC54: TRUE | AD54: TRUE | AE54: 0
A55: =+A54+0.01 -> 2.24 | B55: Stipend @ Rs.100/- per child per month | C55: 0 | D55: 0 | I55: 0 | J55: 0 | R55: 0 | S55: 0 | Z55: 0 | AA55: 0 | AB55: 0 | AC55: TRUE | AD55: TRUE | AE55: 0
A56: 2.25 | B56: Supplementary TLM, Stationery and other educational material @1,000/- per child per annum | C56: 0 | D56: 0 | I56: 0 | J56: 0 | R56: 0 | S56: 0 | Z56: 0 | AA56: 0 | AB56: 0 | AC56: TRUE | AD56: TRUE | AE56: 0
A57: 2.26 | B57: Salaries | C57: 0 | D57: 0 | I57: 0 | J57: 0 | R57: 0 | S57: 0 | Z57: 0 | AA57: 0 | AB57: 0 | AC57: TRUE | AD57: TRUE | AE57: 0
A58: (a) | B58: 1 Warden @ Rs. 25,000/- per month | C58: 0 | D58: 0 | I58: 0 | J58: 0 | R58: 0 | S58: 0 | Z58: 0 | AA58: 0 | AB58: 0 | AC58: TRUE | AD58: TRUE | AE58: 0
A59: (b) | B59: 1 head teacher @ Rs. 25,000/- per month in case the enrollment exceeds 100 | C59: 0 | D59: 0 | I59: 0 | J59: 0 | R59: 0 | S59: 0 | Z59: 0 | AA59: 0 | AB59: 0 | AC59: TRUE | AD59: TRUE | AE59: 0
A60: (c) | B60: 4 - 5 Full time teachers as per RTE norms @ Rs. 20,000/- per month per teacher | C60: 0 | D60: 0 | I60: 0 | J60: 0 | R60: 0 | S60: 0 | Z60: 0 | AA60: 0 | AB60: 0 | AC60: TRUE | AD60: TRUE | AE60: 0
A61: (d) | B61: 2 Urdu Teachers (only for blocks with muslim population above 20% and select urban areas), if required @ Rs. 12,000/- per month per teacher | C61: 0 | D61: 0 | I61: 0 | J61: 0 | R61: 0 | S61: 0 | Z61: 0 | AA61: 0 | AB61: 0 | AC61: TRUE | AD61: TRUE | AE61: 0
A62: (e) | B62: 3 part time teachers @ Rs. 5,000/- per month per teacher | C62: 0 | D62: 0 | I62: 0 | J62: 0 | R62: 0 | S62: 0 | Z62: 0 | AA62: 0 | AB62: 0 | AC62: TRUE | AD62: TRUE | AE62: 0
A63: (f) | B63: 1 Full time Accountant @ Rs. 10,000/- per month | C63: 0 | D63: 0 | I63: 0 | J63: 0 | R63: 0 | S63: 0 | Z63: 0 | AA63: 0 | AB63: 0 | AC63: TRUE | AD63: TRUE | AE63: 0
A64: (g) | B64: 2 Support Staff – (Accountant/ Assistant, Peon, Chowkidar) @ Rs. 5,000/- per month per staff | C64: 0 | D64: 0 | I64: 0 | J64: 0 | R64: 0 | S64: 0 | Z64: 0 | AA64: 0 | AB64: 0 | AC64: TRUE | AD64: TRUE | AE64: 0
A65: (h) | B65: 1 Head cook @ Rs. 6,000/- per month and upto 2 Asstt. Cooks @ Rs. 4,500/- per month per cook | C65: 0 | D65: 0 | I65: 0 | J65: 0 | R65: 0 | S65: 0 | Z65: 0 | AA65: 0 | AB65: 0 | AC65: TRUE | AD65: TRUE | AE65: 0
A66: 2.27 | B66: Specific skill training @ Rs. 1,000/- per child per annum | C66: 0 | D66: 0 | I66: 0 | J66: 0 | R66: 0 | S66: 0 | Z66: 0 | AA66: 0 | AB66: 0 | AC66: TRUE | AD66: TRUE | AE66: 0
A67: 2.28 | B67: Electricity / water charges @Rs. 1,000/- per child per annum | C67: 0 | D67: 0 | I67: 0 | J67: 0 | R67: 0 | S67: 0 | Z67: 0 | AA67: 0 | AB67: 0 | AC67: TRUE | AD67: TRUE | AE67: 0
A68: 2.29 | B68: Medical care/contingencies @ Rs. 1,250/- per child per annum | C68: 0 | D68: 0 | I68: 0 | J68: 0 | R68: 0 | S68: 0 | Z68: 0 | AA68: 0 | AB68: 0 | AC68: TRUE | AD68: TRUE | AE68: 0
A69: 2.3 | B69: Maintenance @ Rs. 750/- per child per annum | C69: 0 | D69: 0 | I69: 0 | J69: 0 | R69: 0 | S69: 0 | Z69: 0 | AA69: 0 | AB69: 0 | AC69: TRUE | AD69: TRUE | AE69: 0
